Workbook

Sheet Титульный лист (hidden)
G2: Приложение N 3
G3: к приказу Министерства здравоохранения
G4: Российской Федерации
G5: от 10 ноября 2020 г. N 1207н
B7: ОТРАСЛЕВАЯ СТАТИСТИЧЕСКАЯ ОТЧЕТНОСТЬ
B9: КОНФИДЕНЦИАЛЬНОСТЬ ГАРАНТИРУЕТСЯ ПОЛУЧАТЕЛЕМ ИНФОРМАЦИИ
B11: ВОЗМОЖНО ПРЕДСТАВЛЕНИЕ В ЭЛЕКТРОННОМ ВИДЕ | G11: Еженедельный отчёт | H11: 2023-03-30
B13: "СВЕДЕНИЯ О ПРОВЕДЕНИИ ПРОФИЛАКТИЧЕСКОГО МЕДИЦИНСКОГО ОСМОТРА И ДИСПАНСЕРИЗАЦИИ ОПРЕДЕЛЕННЫХ ГРУПП ВЗРОСЛОГО НАСЕЛЕНИЯ" | G13: Ежемесячный отчёт
B14: 2023 года за период | C14: январь | D14: Март
B16: Представляют: | C16: Сроки представления | F16: ФОРМА N 131/о
B17: Медицинские организации, оказывающие первичную медико-санитарную помощь (далее - медицинская организация), органу исполнительной власти субъектов Российской Федерации в сфере охраны здоровья | C17: 5 числа месяца, следующего за отчетным периодом
E18: Утверждена приказом Минздрава России
E19: от ___________ N _____
B20: Органы исполнительной власти субъектов Российской Федерации в сфере охраны здоровья - Министерству здравоохранения Российской Федерации | C20: 10 числа месяца, следующего за отчетным периодом | E20: нарастающим итогом ежемесячная, годовая
B22: Наименование медицинской организации: | C22: ГБУЗ "Кумылженская ЦРБ"
B23: Почтовый адрес:
B24: Код медицинской организации по ОКПО | C24: Код вида деятельности по ОКВЭД | D24: Код отрасли по ОКОНХ | E24: Код территории по ОКАТО | F24: Код органа исполнительной власти субъекта Российской Федерации в сфере охраны здоровья по ОКОГУ
B25: 1 | C25: 2 | D25: 3 | E25: 4 | F25: 5
B26: 00088390 | C26: 75.11.21 | E26: 18401395000 | F26: 2300229
B28: Должностное лицо (уполномоченный представитель), ответственное за предоставление статистической информации
B29: Главный врач | C29: должность (руководитель медицинской организации)
B30: Шиповская Юлия Дмитриевна | C30: Ф.И.О.
B31: Ростовцева Ирина Федоровна | C31: Ф.И.О. исполнителя
B32: 89044132260 | C32: номер контактного телефона
B33: crb_kumylga@volganet.ru | C33: E-mail | F33: М.П.

Sheet 1000, 1001 (hidden)
A1: =AND('Титульный лист'!$D$14<>"",'Титульный лист'!$C$22<>"",'Титульный лист'!$B$29<>"",'Титульный лист'!$B$30<>"",'Титульный лист'!$B$31<>"",'Титульный лист'!$B$32<>"",'Титульный лист'!$B$33<>"") -> TRUE
B2: Сведения о проведении профилактического медицинского осмотра (ПМО) и диспансеризации определенных групп взрослого населения (ДОГВН)
M3: Код по ОКЕИ: человек - 792
B4: (1000)
B5: Возраст | C5: N строки | D5: Все взрослое население | H5: в том числе:
H6: Мужчины | L6: Женщины
D7: Численность прикрепленного взрослого населения на 01.01 текущего года | E7: Из них по плану подлежат: ПМО и ДОГВН (чел.) | F7: Из них прошли: | H7: Численность прикрепленного взрослого населения на 01.01 текущего года | I7: Из них по плану подлежат: ПМО и ДОГВН (чел.) | J7: Из них прошли: | L7: Численность прикрепленного взрослого населения на 01.01 текущего года | M7: Из них по плану подлежат: ПМО и ДОГВН (чел.) | N7: Из них прошли:
F8: ПМО (чел.) | G8: ДОГВН (чел.) | J8: ПМО (чел.) | K8: ДОГВН (чел.) | N8: ПМО (чел.) | O8: ДОГВН (чел.) | P8: Проверка
B9: 1 | C9: 2 | D9: 3 | E9: 4 | F9: 5 | G9: 6 | H9: 7 | I9: 8 | J9: 9 | K9: 10 | L9: 11 | M9: 12 | N9: 13 | O9: 14
B10: 18-34 | C10: 1 | D10: =H10+L10 -> 4367 | E10: =I10+M10 -> 996 | F10: ='профосмотры 124н'!D9 -> 263 | G10: ='ДВН-124н'!D9 -> 78 | H10: =IF(ISERROR(VLOOKUP('Титульный лист'!$C$22,'Проверочный лист'!$J$3:$AL$55,2,FALSE)),0,VLOOKUP('Титульный лист'!$C$22,'Проверочный лист'!$J$3:$AL$55,2,FALSE)) -> 2067 | I10: =IF(ISERROR(VLOOKUP('Титульный лист'!$C$22,'Проверочный лист'!$J$3:$AL$55,9,FALSE)),0,VLOOKUP('Титульный лист'!$C$22,'Проверочный лист'!$J$3:$AL$55,9,FALSE)) -> 479 | J10: 139 | K10: 20 | L10: =IF(ISERROR(VLOOKUP('Титульный лист'!$C$22,'Проверочный лист'!$J$3:$AL$55,16,FALSE)),0,VLOOKUP('Титульный лист'!$C$22,'Проверочный лист'!$J$3:$AL$55,16,FALSE)) -> 2300 | M10: =IF(ISERROR(VLOOKUP('Титульный лист'!$C$22,'Проверочный лист'!$J$3:$AL$55,23,FALSE)),0,VLOOKUP('Титульный лист'!$C$22,'Проверочный лист'!$J$3:$AL$55,23,FALSE)) -> 517 | N10: =F10-J10 -> 124 | O10: =G10-K10 -> 58 | P10: =IF(S10>0,"гр.8 >= гр.7 по строке "&R10,"ОК") -> ОК | Q10: гр.8 должна быть меньше гр.7 по всем строкам | R10: =IF(S10>0,INDEX($C$10:$C$17,S10,1),CHAR(151)) -> — | S10: =IF(ISERROR(MATCH(FALSE,T10:AA10,0)),0,MATCH(FALSE,T10:AA10,0)) -> 0 | T10: =IF(OR($I10<>0,$H10<>0),$I10<$H10,TRUE) -> TRUE | U10: =IF(OR($I11<>0,$H11<>0),$I11<$H11,TRUE) -> TRUE | V10: =IF(OR($I12<>0,$H12<>0),$I12<$H12,TRUE) -> TRUE | W10: =IF(OR($I13<>0,$H13<>0),$I13<$H13,TRUE) -> TRUE | X10: =IF(OR($I14<>0,$H14<>0),$I14<$H14,TRUE) -> TRUE | Y10: =IF(OR($I15<>0,$H15<>0),$I15<$H15,TRUE) -> TRUE | Z10: =IF(OR($I16<>0,$H16<>0),$I16<$H16,TRUE) -> TRUE | AA10: =IF(OR($I17<>0,$H17<>0),$I17<$H17,TRUE) -> TRUE
B11: 35-39 | C11: 2 | D11: =H11+L11 -> 2923 | E11: 1218 | F11: ='профосмотры 124н'!D10 -> 128 | G11: ='ДВН-124н'!D10 -> 87 | H11: =IF(ISERROR(VLOOKUP('Титульный лист'!$C$22,'Проверочный лист'!$J$3:$AL$55,3,FALSE)),0,VLOOKUP('Титульный лист'!$C$22,'Проверочный лист'!$J$3:$AL$55,3,FALSE)) -> 1293 | I11: =IF(ISERROR(VLOOKUP('Титульный лист'!$C$22,'Проверочный лист'!$J$3:$AL$55,10,FALSE)),0,VLOOKUP('Титульный лист'!$C$22,'Проверочный лист'!$J$3:$AL$55,10,FALSE)) -> 549 | J11: 37 | K11: 22 | L11: =IF(ISERROR(VLOOKUP('Титульный лист'!$C$22,'Проверочный лист'!$J$3:$AL$55,17,FALSE)),0,VLOOKUP('Титульный лист'!$C$22,'Проверочный лист'!$J$3:$AL$55,17,FALSE)) -> 1630 | M11: =IF(ISERROR(VLOOKUP('Титульный лист'!$C$22,'Проверочный лист'!$J$3:$AL$55,24,FALSE)),0,VLOOKUP('Титульный лист'!$C$22,'Проверочный лист'!$J$3:$AL$55,24,FALSE)) -> 669 | N11: =F11-J11 -> 91 | O11: 65 | P11: =IF(S11>0,"гр.12 >= гр.11 по строке "&R11,"ОК") -> ОК | Q11: гр.12 должна быть меньше гр.11 по всем строкам | R11: =IF(S11>0,INDEX($C$10:$C$17,S11,1),CHAR(151)) -> — | S11: =IF(ISERROR(MATCH(FALSE,T11:AA11,0)),0,MATCH(FALSE,T11:AA11,0)) -> 0 | T11: =IF(OR($M10<>0,$L10<>0),$M10<$L10,TRUE) -> TRUE | U11: =IF(OR($M11<>0,$L11<>0),$M11<$L11,TRUE) -> TRUE | V11: =IF(OR($M12<>0,$L12<>0),$M12<$L12,TRUE) -> TRUE | W11: =IF(OR($M13<>0,$L13<>0),$M13<$L13,TRUE) -> TRUE | X11: =IF(OR($M14<>0,$L14<>0),$M14<$L14,TRUE) -> TRUE | Y11: =IF(OR($M15<>0,$L15<>0),$M15<$L15,TRUE) -> TRUE | Z11: =IF(OR($M16<>0,$L16<>0),$M16<$L16,TRUE) -> TRUE | AA11: =IF(OR($M17<>0,$L17<>0),$M17<$L17,TRUE) -> TRUE
B12: 40-54 | C12: 3 | D12: 3154 | E12: 935 | F12: ='профосмотры 124н'!D11 -> 0 | G12: ='ДВН-124н'!D11 -> 96 | H12: =IF(ISERROR(VLOOKUP('Титульный лист'!$C$22,'Проверочный лист'!$J$3:$AL$55,4,FALSE)),0,VLOOKUP('Титульный лист'!$C$22,'Проверочный лист'!$J$3:$AL$55,4,FALSE)) -> 1117 | I12: =IF(ISERROR(VLOOKUP('Титульный лист'!$C$22,'Проверочный лист'!$J$3:$AL$55,11,FALSE)),0,VLOOKUP('Титульный лист'!$C$22,'Проверочный лист'!$J$3:$AL$55,11,FALSE)) -> 417 | K12: 53 | L12: =IF(ISERROR(VLOOKUP('Титульный лист'!$C$22,'Проверочный лист'!$J$3:$AL$55,18,FALSE)),0,VLOOKUP('Титульный лист'!$C$22,'Проверочный лист'!$J$3:$AL$55,18,FALSE)) -> 2037 | M12: =IF(ISERROR(VLOOKUP('Титульный лист'!$C$22,'Проверочный лист'!$J$3:$AL$55,25,FALSE)),0,VLOOKUP('Титульный лист'!$C$22,'Проверочный лист'!$J$3:$AL$55,25,FALSE)) -> 518 | N12: 0 | O12: 43 | P12: =IF(S12>0,"гр.9+гр.10 > гр.8 по строке "&R12,"ОК") -> ОК | Q12: сумма граф.9+10 должна быть меньше или равна гр.8 по всем строкам | R12: =IF(S12>0,INDEX($C$10:$C$17,S12,1),CHAR(151)) -> — | S12: =IF(ISERROR(MATCH(FALSE,T12:AA12,0)),0,MATCH(FALSE,T12:AA12,0)) -> 0 | T12: =IF(OR(SUM($J10:$K10)<>0,$I10<>0),SUM($J10:$K10)<=$I10,TRUE) -> TRUE | U12: =IF(OR(SUM($J11:$K11)<>0,$I11<>0),SUM($J11:$K11)<=$I11,TRUE) -> TRUE | V12: =IF(OR(SUM($J12:$K12)<>0,$I12<>0),SUM($J12:$K12)<=$I12,TRUE) -> TRUE | W12: =IF(OR(SUM($J13:$K13)<>0,$I13<>0),SUM($J13:$K13)<=$I13,TRUE) -> TRUE | X12: =IF(OR(SUM($J14:$K14)<>0,$I14<>0),SUM($J14:$K14)<=$I14,TRUE) -> TRUE | Y12: =IF(OR(SUM($J15:$K15)<>0,$I15<>0),SUM($J15:$K15)<=$I15,TRUE) -> TRUE | Z12: =IF(OR(SUM($J16:$K16)<>0,$I16<>0),SUM($J16:$K16)<=$I16,TRUE) -> TRUE | AA12: =IF(OR(SUM($J17:$K17)<>0,$I17<>0),SUM($J17:$K17)<=$I17,TRUE) -> TRUE
B13: 55-59 | C13: 4 | D13: 1518 | E13: 651 | F13: ='профосмотры 124н'!D12 -> 0 | G13: ='ДВН-124н'!D12 -> 81 | H13: =IF(ISERROR(VLOOKUP('Титульный лист'!$C$22,'Проверочный лист'!$J$3:$AL$55,5,FALSE)),0,VLOOKUP('Титульный лист'!$C$22,'Проверочный лист'!$J$3:$AL$55,5,FALSE)) -> 669 | I13: =IF(ISERROR(VLOOKUP('Титульный лист'!$C$22,'Проверочный лист'!$J$3:$AL$55,12,FALSE)),0,VLOOKUP('Титульный лист'!$C$22,'Проверочный лист'!$J$3:$AL$55,12,FALSE)) -> 294 | K13: 47 | L13: =IF(ISERROR(VLOOKUP('Титульный лист'!$C$22,'Проверочный лист'!$J$3:$AL$55,19,FALSE)),0,VLOOKUP('Титульный лист'!$C$22,'Проверочный лист'!$J$3:$AL$55,19,FALSE)) -> 849 | M13: =IF(ISERROR(VLOOKUP('Титульный лист'!$C$22,'Проверочный лист'!$J$3:$AL$55,26,FALSE)),0,VLOOKUP('Титульный лист'!$C$22,'Проверочный лист'!$J$3:$AL$55,26,FALSE)) -> 357 | N13: 0 | O13: 34 | P13: =IF(S13>0,"гр.13+гр.14 > гр.12 по строке "&R13,"ОК") -> ОК | Q13: сумма граф.13+14 должна быть меньше или равна гр.12 по всем строкам | R13: =IF(S13>0,INDEX($C$10:$C$17,S13,1),CHAR(151)) -> — | S13: =IF(ISERROR(MATCH(FALSE,T13:AA13,0)),0,MATCH(FALSE,T13:AA13,0)) -> 0 | T13: =IF(OR(SUM($N10:$O10)<>0,$M10<>0),SUM($N10:$O10)<=$M10,TRUE) -> TRUE | U13: =IF(OR(SUM($N11:$O11)<>0,$M11<>0),SUM($N11:$O11)<=$M11,TRUE) -> TRUE | V13: =IF(OR(SUM($N12:$O12)<>0,$M12<>0),SUM($N12:$O12)<=$M12,TRUE) -> TRUE | W13: =IF(OR(SUM($N13:$O13)<>0,$M13<>0),SUM($N13:$O13)<=$M13,TRUE) -> TRUE | X13: =IF(OR(SUM($N14:$O14)<>0,$M14<>0),SUM($N14:$O14)<=$M14,TRUE) -> TRUE | Y13: =IF(OR(SUM($N15:$O15)<>0,$M15<>0),SUM($N15:$O15)<=$M15,TRUE) -> TRUE | Z13: =IF(OR(SUM($N16:$O16)<>0,$M16<>0),SUM($N16:$O16)<=$M16,TRUE) -> TRUE | AA13: =IF(OR(SUM($N17:$O17)<>0,$M17<>0),SUM($N17:$O17)<=$M17,TRUE) -> TRUE
B14: 60-64 | C14: 5 | D14: 896 | E14: 590 | F14: ='профосмотры 124н'!D13 -> 0 | G14: ='ДВН-124н'!D13 -> 199 | H14: =IF(ISERROR(VLOOKUP('Титульный лист'!$C$22,'Проверочный лист'!$J$3:$AL$55,6,FALSE)),0,VLOOKUP('Титульный лист'!$C$22,'Проверочный лист'!$J$3:$AL$55,6,FALSE)) -> 439 | I14: =IF(ISERROR(VLOOKUP('Титульный лист'!$C$22,'Проверочный лист'!$J$3:$AL$55,13,FALSE)),0,VLOOKUP('Титульный лист'!$C$22,'Проверочный лист'!$J$3:$AL$55,13,FALSE)) -> 273 | K14: 43 | L14: =IF(ISERROR(VLOOKUP('Титульный лист'!$C$22,'Проверочный лист'!$J$3:$AL$55,20,FALSE)),0,VLOOKUP('Титульный лист'!$C$22,'Проверочный лист'!$J$3:$AL$55,20,FALSE)) -> 457 | M14: =IF(ISERROR(VLOOKUP('Титульный лист'!$C$22,'Проверочный лист'!$J$3:$AL$55,27,FALSE)),0,VLOOKUP('Титульный лист'!$C$22,'Проверочный лист'!$J$3:$AL$55,27,FALSE)) -> 317 | O14: 156
B15: 65-74 | C15: 6 | D15: 890 | E15: 493 | G15: ='ДВН-124н'!D14 -> 225 | H15: =IF(ISERROR(VLOOKUP('Титульный лист'!$C$22,'Проверочный лист'!$J$3:$AL$55,7,FALSE)),0,VLOOKUP('Титульный лист'!$C$22,'Проверочный лист'!$J$3:$AL$55,7,FALSE)) -> 434 | I15: =IF(ISERROR(VLOOKUP('Титульный лист'!$C$22,'Проверочный лист'!$J$3:$AL$55,14,FALSE)),0,VLOOKUP('Титульный лист'!$C$22,'Проверочный лист'!$J$3:$AL$55,14,FALSE)) -> 237 | K15: 73 | L15: =IF(ISERROR(VLOOKUP('Титульный лист'!$C$22,'Проверочный лист'!$J$3:$AL$55,21,FALSE)),0,VLOOKUP('Титульный лист'!$C$22,'Проверочный лист'!$J$3:$AL$55,21,FALSE)) -> 456 | M15: =IF(ISERROR(VLOOKUP('Титульный лист'!$C$22,'Проверочный лист'!$J$3:$AL$55,28,FALSE)),0,VLOOKUP('Титульный лист'!$C$22,'Проверочный лист'!$J$3:$AL$55,28,FALSE)) -> 256 | O15: 152
B16: 75 и старше | C16: 7 | D16: 1137 | E16: 975 | G16: ='ДВН-124н'!D15 -> 309 | H16: =IF(ISERROR(VLOOKUP('Титульный лист'!$C$22,'Проверочный лист'!$J$3:$AL$55,8,FALSE)),0,VLOOKUP('Титульный лист'!$C$22,'Проверочный лист'!$J$3:$AL$55,8,FALSE)) -> 489 | I16: =IF(ISERROR(VLOOKUP('Титульный лист'!$C$22,'Проверочный лист'!$J$3:$AL$55,15,FALSE)),0,VLOOKUP('Титульный лист'!$C$22,'Проверочный лист'!$J$3:$AL$55,15,FALSE)) -> 445 | K16: 55 | L16: =IF(ISERROR(VLOOKUP('Титульный лист'!$C$22,'Проверочный лист'!$J$3:$AL$55,22,FALSE)),0,VLOOKUP('Титульный лист'!$C$22,'Проверочный лист'!$J$3:$AL$55,22,FALSE)) -> 648 | M16: =IF(ISERROR(VLOOKUP('Титульный лист'!$C$22,'Проверочный лист'!$J$3:$AL$55,29,FALSE)),0,VLOOKUP('Титульный лист'!$C$22,'Проверочный лист'!$J$3:$AL$55,29,FALSE)) -> 530 | O16: 254
B17: Всего | C17: 8 | D17: =SUM(D10:D16) -> 14885 | E17: =SUM(E10:E16) -> 5858 | F17: =SUM(F10:F14) -> 391 | G17: =SUM(G10:G16) -> 1075 | H17: =SUM(H10:H16) -> 6508 | I17: 2694 | J17: =SUM(J10:J14) -> 176 | K17: 313 | L17: 8377 | M17: 3164 | N17: 215 | O17: 762
E18: =E17-'ДВН и профосмотр_общая '!A11-'ДВН и профосмотр_общая '!AD11 -> 0 | F18: =F17-'ДВН и профосмотр_общая '!AF11 -> 0 | G18: =G17-'ДВН и профосмотр_общая '!G11 -> 0
B19: (1001) | F19: Код по ОКЕИ: человек - 792 | J19: Заполните только желтые поля
B20: Число лиц в трудоспособном возрасте прошло:
B21: диспансеризацию определенных групп взрослого населения всего 1 | G21: =SUM('ДВН и профосмотр_общая '!AW12:AY12) -> 342 | H21: , | P21: =IF(OR(D22<>0,SUM(O10:O12)<>0),IF(D22>=SUM(O10:O12),"ОК","гр.2 табл.1001 < стр.1+стр.2+стр.3 гр.14 табл.1000 "),"ОК") -> ОК
B22: в том числе: женщин 2 | D22: =G21-D23 -> 200 | E22: , | G22: Сумма строк с 1 по 4 по графе 6 должна быть меньше графы 1 табл.(1001) | P22: =IF(OR(D22<>0,SUM(O10:O13)<>0),IF(D22<=SUM(O10:O13),"ОК","гр.2 табл.1001 > стр.1+стр.2+стр.3+стр.4 гр.14 табл.1000 "),"ОК") -> ОК | Q22: гр.2 табл.1001 должна быть больше или равна суммы строк с 1 по 3 гр.14 табл.1000, но меньше или равна суммы строк с 1 по 4 по гр.14 табл.1000
B23: мужчин 3 | D23: =G21-SUM(O10:O13) -> 142 | E23: ; | P23: =IF(OR(D23<>0,SUM(K10:K13)<>0),IF(D23>=SUM(K10:K13),"ОК","гр.3 табл.1001 < стр.1+стр.2+стр.3+стр.4 гр.10 табл.1000 "),"ОК") -> ОК | Q23: гр.3 табл.1001 должна быть больше или равна суммы строк с 1 по 4, но меньше или равна суммы строк с 1 по 5 по гр.10 табл.1000
P24: =IF(OR(D23<>0,SUM(K10:K14)<>0),IF(D23<=SUM(K10:K14),"ОК","гр.3 табл.1001 > стр.1+стр.2+стр.3+стр.4+стр.5 гр.10 табл.1000 "),"ОК") -> ОК
B25: профилактический медицинский осмотр всего 4 | G25: =SUM('ДВН и профосмотр_общая '!AW13:AY13) -> 391 | H25: , | P25: =IF(OR(D26<>0,SUM(N10:N12)<>0),IF(D26>=SUM(N10:N12),"ОК","гр.5 табл.1001 < стр.1+стр.2+стр.3 гр.13 табл.1000 "),"ОК") -> ОК
B26: в том числе: женщин 5 | D26: =G25-D27 -> 215 | E26: , | P26: =IF(OR(D26<>0,SUM(N10:N13)<>0),IF(D26<=SUM(N10:N13),"ОК","гр.5 табл.1001 > стр.1+стр.2+стр.3+стр.4 гр.13 табл.1000 "),"ОК") -> ОК | Q26: гр.5 табл.1001 должна быть больше или равна суммы строк с 1 по 3 гр.13 табл.1000, но меньше или равна суммы строк с 1 по 4 по гр.13 табл.1000
B27: мужчин 6 | D27: =$J$17 -> 176 | E27: ; | P27: =IF(OR(D27<>0,SUM(J10:J13)<>0),IF(D27>=SUM(J10:J13),"ОК","гр.6 табл.1001 < стр.1+стр.2+стр.3+стр.4 гр.9 табл.1000 "),"ОК") -> ОК | Q27: гр.6 табл.1001 должна быть больше или равна суммы строк с 1 по 4, но меньше или равна суммы строк с 1 по 5 по гр.9 табл.1000
P28: =IF(OR(D27<>0,SUM(J10:J14)<>0),IF(D27<=SUM(J10:J14),"ОК","гр.6 табл.1001 > стр.1+стр.2+стр.3+стр.4+стр.5 гр.9 табл.1000 "),"ОК") -> ОК

Sheet 2000 (hidden)
A1: =AND('Титульный лист'!$D$14<>"",'Титульный лист'!$C$22<>"",'Титульный лист'!$B$29<>"",'Титульный лист'!$B$30<>"",'Титульный лист'!$B$31<>"",'Титульный лист'!$B$32<>"",'Титульный лист'!$B$33<>"") -> TRUE
A2: Сведения о приёмах (осмотрах), консультациях, исследованиях и иных медицинских вмешательствах, входящих в объем профилактического медицинского осмотра и первого этапа диспансеризации
A3: (2000) | F3: Код по ОКЕИ: едицица - 642
B4: Приём (осмотр), консультация, исследование и иное медицинское вмешательство (далее - медицинское мероприятие), входящее в объем профилактического медицинского осмотра/первого этапа диспансеризации | C4: N строки | D4: Проведено медицинских мероприятий | E4: Учтено из числа выполненных ранее (в предшествующие 12 мес.) | F4: Число отказов | G4: Выявлены патологические состояния
B5: 1 | C5: 2 | D5: 3 | E5: 4 | F5: 5 | G5: 6
B6: Опрос (анкетирование) | C6: 1 | D6: =SUM('1000, 1001'!$F$17:$G$17) -> 1466 | E6: X | G6: 1287
B7: Расчет на основании антропометрии (измерение роста, массы тела, окружности талии) индекса массы тела | C7: 2 | D7: =SUM('1000, 1001'!$F$17:$G$17)-E7-F7 -> 1466 | G7: 516
B8: Измерение артериального давления на периферических артериях | C8: 3 | D8: =SUM('1000, 1001'!$F$17:$G$17)-E8-F8 -> 1466 | G8: 72
B9: Определение уровня общего холестерина в крови | C9: 4 | D9: =SUM('1000, 1001'!$F$17:$G$17)-E9-F9 -> 1427 | E9: 39 | G9: 480
B10: Определение уровня глюкозы в крови натощак | C10: 5 | D10: =SUM('1000, 1001'!$F$17:$G$17)-E10-F10 -> 1428 | E10: 38 | G10: 217
B11: Определение относительного сердечно-сосудистого риска | C11: 6 | D11: 415 | G11: 88
B12: Определение абсолютного сердечно-сосудистого риска | C12: 7 | D12: 455 | G12: 63
B13: Флюорография легких или рентгенография легких | C13: 8 | D13: 357 | E13: 338 | G13: 13
B14: Электрокардиография в покое | C14: 9 | D14: 1112 | E14: 47 | G14: 174
B15: Измерение внутриглазного давления | C15: 10 | D15: 1031 | E15: 20 | G15: 4
B16: Осмотр фельдшером (акушеркой) или врачом акушером-гинекологом | C16: 11 | D16: 777
B17: Взятие с использованием щетки цитологической цервикальной мазка (соскоба) с поверхности шейки матки (наружного маточного зева) и цервикального канала на цитологическое исследование, цитологическое исследование мазка с шейки матки | C17: 12 | D17: 76 | E17: 14
B18: Маммография обеих молочных желез в двух проекциях | C18: 13 | D18: 157 | E18: 20 | F18: 9 | G18: 1
B19: Исследование кала на скрытую кровь иммунохимическим методом | C19: 14 | D19: 594 | E19: 19 | G19: 71
B20: Определение простат-специфического антигена в крови | C20: 15 | D20: 48 | E20: 3
B21: Эзофагогастродуоденоскопия | C21: 16 | D21: 6
B22: Общий анализ крови | C22: 17 | D22: 1051 | E22: 28
B23: Краткое индивидуальное профилактическое консультирование | C23: 18 | D23: 1121
B24: Прием (осмотр) по результатам профилактического медицинского осмотра фельдшером фельдшерского здравпункта или фельдшерско-акушерского пункта, врачом-терапевтом или врачом по медицинской профилактике отделения (кабинета) медицинской профилактики или центра здоровья граждан в возрасте 18 лет и старше, 1 раз в год | C24: 19 | D24: ='1000, 1001'!F17 -> 391 | E24: X | G24: 98
B25: Прием (осмотр) врачом-терапевтом по результатам первого этапа диспансеризации: а) граждан в возрасте от 18 лет до 39 лет 1 раз в 3 года | C25: 19.1 | D25: =SUM('1000, 1001'!$G$10:$G$11) -> 165 | E25: X | G25: 63
B26: б) граждан в возрасте 40 лет и старше 1 раз в год | C26: 19.2 | D26: =SUM('1000, 1001'!$G$12:$G$16) -> 910 | E26: X | G26: 270
B27: Осмотр на выявление визуальных и иных локализаций онкологических заболеваний, включающий осмотр кожных покровов, слизистых губ и ротовой полости, пальпацию щитовидной железы, лимфатических узлов | C27: 20 | D27: =SUM('1000, 1001'!$F$17:$G$17) -> 1466 | E27: X | G27: 636

Sheet 2001, 3000 (hidden)
A1: =AND('Титульный лист'!$D$14<>"",'Титульный лист'!$C$22<>"",'Титульный лист'!$B$29<>"",'Титульный лист'!$B$30<>"",'Титульный лист'!$B$31<>"",'Титульный лист'!$B$32<>"",'Титульный лист'!$B$33<>"") -> TRUE
B2: (2001)
B3: Число лиц, которые по результатам первого этапа диспансеризации направлены на второй этап ___________. | E3: ='ДВН и профосмотр_общая '!$AB$11 -> 452
B5: Сведения о приёмах (осмотрах), медицинских исследованиях и иных медицинских вмешательствах второго этапа диспансеризации
B7: (3000) | F7: Код по ОКЕИ: едицица - 642
B8: Медицинское вмешательство, входящее в объем второго этапа диспансеризации | C8: N строки | D8: Число лиц с выявленными медицинскими показаниями в рамках первого этапа диспансеризации | E8: Число выполненных медицинских мероприятий | G8: Число отказов | H8: Впервые выявлено заболевание или патологическое состояние
E9: в рамках диспансеризации | F9: проведено ранее (в предшествующие 12 мес.)
B10: 1 | C10: 2 | D10: 3 | E10: 4 | F10: 5 | G10: 6 | H10: 7
B11: Осмотр (консультация) врачом-неврологом | C11: 1 | D11: =SUM(E11:G11) -> 6 | E11: 6 | H11: 6
B12: Дуплексное сканирование брахиоцефальных артерий | C12: 2 | D12: 0
B13: Осмотр (консультация) врачом-хирургом или врачом-урологом | C13: 3 | D13: 1 | E13: 1 | H13: 1
B14: Осмотр (консультация) врачом-хирургом или врачом-колопроктологом, включая проведение ректороманоскопии | C14: 4 | D14: 7 | E14: 7 | H14: 7
B15: Колоноскопия | C15: 5 | D15: 0
B16: Эзофагогастродуоденоскопия | C16: 6 | D16: 2 | E16: 2 | H16: 2
B17: Рентгенография легких | C17: 7 | D17: 149 | E17: 149 | H17: 149
B18: Компьютерная томография легких | C18: 8 | D18: 0
B19: Спирометрия | C19: 9 | D19: 41 | E19: 41 | H19: 41
B20: Осмотр (консультация) врачом акушером-гинекологом | C20: 10 | D20: 3 | E20: 3 | H20: 3
B21: Осмотр (консультация) врачом-оториноларингологом | C21: 11 | D21: 5 | E21: 5 | H21: 5
B22: Осмотр (консультация) врачом-офтальмологом | C22: 12 | D22: 8 | E22: 8 | H22: 8
B23: Индивидуальное или групповое (школа для пациентов) углубленное профилактическое консультирование для граждан: | C23: 13 | D23: 0 | E23: =SUM(E24:E27) -> 0 | F23: =SUM(F24:F27) -> 0 | G23: =SUM(G24:G27) -> 0 | H23: X
B24: с выявленными ишемической болезнью сердца, цереброваскулярными заболеваниями, хронической ишемией нижних конечностей атеросклеротического генеза или болезнями, характеризующимися повышенным кровяным давлением | C24: 13.1 | D24: 0 | H24: X
B25: с выявленным по результатам анкетирования риском пагубного потребления алкоголя и (или) потребления наркотических средств и психотропных веществ без назначения врача | C25: 13.2 | D25: 0 | H25: X
B26: в возрасте 65 лет и старше в целях коррекции выявленных факторов риска и (или) профилактики старческой астении | C26: 13.3 | D26: 0 | H26: X
B27: при выявлении высокого относительного, высокого и очень высокого абсолютного сердечно-сосудистого риска, и (или) ожирения, и (или) гиперхолестеринемии с уровнем общего холестерина 8 ммоль/л и более, а также установленном по результатам анкетирования курении более 20 сигарет в день, риске пагубного потребления алкоголя и (или) риске немедицинского потребления наркотических средств и психотропных веществ | C27: 13.4 | D27: 0 | H27: X
B28: Прием (осмотр) врачом-терапевтом по результатам второго этапа диспансеризации | C28: 14 | D28: =E28 -> 322 | E28: ='3001, 3002, 3003'!Q4 -> 322 | H28: 222
B29: Направление на осмотр (консультацию) врачом-онкологом при подозрении на онкологические заболевания | C29: 15 | D29: 0

Sheet 3001, 3002, 3003 (hidden)
A1: =AND('Титульный лист'!$D$14<>"",'Титульный лист'!$C$22<>"",'Титульный лист'!$B$29<>"",'Титульный лист'!$B$30<>"",'Титульный лист'!$B$31<>"",'Титульный лист'!$B$32<>"",'Титульный лист'!$B$33<>"") -> TRUE
B2: (3001) | M2: Код по ОКЕИ: человек - 792
B4: Число лиц, прошедших полностью все мероприятия второго этапа диспансеризации, на которые они были направлены по результатам первого этапа | Q4: ='ДВН и профосмотр_общая '!$AC$11 -> 322 | R4: ;
B6: (3002) | M6: Код по ОКЕИ: человек - 792
B8: Число лиц, прошедших частично (не все рекомендованные) мероприятия второго этапа диспансеризации, на которые они были направлены по результатам первого этапа | Q8: ='ДВН и профосмотр_общая '!AB11-'ДВН и профосмотр_общая '!AC11-Q12 -> 130 | R8: ;
B10: (3003) | M10: Код по ОКЕИ: человек - 792
B12: Число лиц, не прошедших ни одного мероприятия второго этапа диспансеризации, на которые они были направлены по результатам первого этапа | R12: ;

Sheet 4000,4001 (hidden)
A1: =AND('Титульный лист'!$D$14<>"",'Титульный лист'!$C$22<>"",'Титульный лист'!$B$29<>"",'Титульный лист'!$B$30<>"",'Титульный лист'!$B$31<>"",'Титульный лист'!$B$32<>"",'Титульный лист'!$B$33<>"") -> TRUE
B2: Сведения о выявленных при проведении профилактического медицинского осмотра (диспансеризации) факторах риска и других патологических состояниях и заболеваниях, повышающих вероятность развития хронических неинфекционных заболеваний (далее - факторы риска)
B3: (4000) | J3: Код по ОКЕИ: человек - 792
B4: Наименование факторов риска и других патологических состояний и заболеваний | C4: Код МКБ-10 1 | D4: N строки | E4: Все взрослое население в том числе: | H4: Мужчины в том числе: | K4: Женщины в том числе:
E5: Всего | F5: в трудоспособном возрасте | G5: в возрасте старше трудоспособного | H5: Всего | I5: в трудоспособном возрасте | J5: в возрасте старше трудоспособного | K5: Всего | L5: в трудоспособном возрасте | M5: в возрасте старше трудоспособного
B6: 1 | C6: 2 | D6: 3 | E6: 4 | F6: 5 | G6: 6 | H6: 7 | I6: 8 | J6: 9 | K6: 10 | L6: 11 | M6: 12
B7: Гиперхолестеринемия | C7: Е78 | D7: 1 | E7: =SUM(H7+K7) -> 480 | F7: =SUM(I7+L7) -> 145 | G7: =SUM(J7+M7) -> 335 | H7: 184 | I7: 83 | J7: 101 | K7: 296 | L7: 62 | M7: 234
B8: Гипергликемия | C8: R73.9 | D8: 2 | E8: =SUM(H8+K8) -> 217 | F8: =SUM(I8+L8) -> 44 | G8: =SUM(J8+M8) -> 173 | H8: 81 | I8: 28 | J8: 53 | K8: 136 | L8: 16 | M8: 120
B9: Курение табака | C9: Z72.0 | D9: 3 | E9: 240 | F9: 166 | G9: 74 | H9: 226 | I9: 154 | J9: 72 | K9: 14 | L9: 12 | M9: 2
B10: Нерациональное питание | C10: Z72.4 | D10: 4 | E10: 508 | F10: 204 | G10: 304 | H10: 238 | I10: 129 | J10: 109 | K10: 270 | L10: 75 | M10: 195
B11: Избыточная масса тела | C11: R63.5 | D11: 5 | E11: 516 | F11: 221 | G11: 295 | H11: 264 | I11: 141 | J11: 123 | K11: 252 | L11: 80 | M11: 172
B12: Ожирение | C12: Е66 | D12: 6 | E12: 472 | F12: 157 | G12: 315 | H12: 157 | I12: 80 | J12: 77 | K12: 315 | L12: 77 | M12: 238
B13: Низкая физическая активность | C13: Z72.3 | D13: 7 | E13: 422 | F13: 127 | G13: 295 | H13: 177 | I13: 71 | J13: 106 | K13: 245 | L13: 56 | M13: 189
B14: Риск пагубного потребления алкоголя | C14: Z72.1 | D14: 8 | E14: 30 | F14: 21 | G14: 9 | H14: 30 | I14: 21 | J14: 9
B15: Риск потребления наркотических средств и психотропных веществ без назначения врача | C15: Z72.2 | D15: 9 | E15: 7 | F15: 1 | G15: 6 | H15: 2 | I15: 1 | J15: 1 | K15: 5 | M15: 5
B16: Отягощенная наследственность по инфаркту миокарда | C16: Z82.4 | D16: 10 | E16: 343 | F16: 140 | G16: 203 | H16: 160 | I16: 69 | J16: 91 | K16: 183 | L16: 71 | M16: 112
B17: Отягощенная наследственность по мозговому инсульту | C17: Z82.3 | D17: 11 | E17: 0 | F17: 0 | G17: 0
B18: Отягощенная наследственность по ЗНО колоректальной области | C18: Z80.0 | D18: 12 | E18: 0 | F18: 0 | G18: 0
B19: Отягощенная наследственность по ЗНО по другим локализациям | C19: Z80.9 | D19: 13 | E19: 68 | F19: 33 | G19: 35 | H19: 41 | I19: 20 | J19: 21 | K19: 27 | L19: 13 | M19: 14
B20: Отягощенная наследственность по хроническим болезням нижних дыхательных путей | C20: Z82.5 | D20: 14 | E20: 47 | F20: 25 | G20: 22 | H20: 23 | I20: 15 | J20: 8 | K20: 24 | L20: 10 | M20: 14
B21: Отягощенная наследственность по сахарному диабету | C21: Z83.3 | D21: 15 | E21: 62 | F21: 35 | G21: 27 | H21: 28 | I21: 18 | J21: 10 | K21: 34 | L21: 17 | M21: 17
B22: Высокий (5% и более) или очень высокий (10% и более) абсолютный сердечно-сосудистый риск | C22: - | D22: 16 | E22: 63 | F22: 31 | G22: 32 | H22: 34 | I22: 19 | J22: 15 | K22: 29 | L22: 12 | M22: 17
B23: Высокий (более 1 ед.) относительный сердечно-сосудистый риск | C23: - | D23: 17 | E23: 88 | F23: 88 | G23: 0 | H23: 45 | I23: 45 | K23: 43 | L23: 43
B24: Старческая астения | C24: R54 | D24: 18 | E24: 0 | F24: 0 | G24: 0
B26: (4001)
B27: Число лиц, у которых по строкам 03, 04, 07, 08, 09 отсутствуют факторы риска | I27: 63 | J27: ;
B29: Число граждан, у которых выявлены факторы риска | E29: =SUM(E7:E11)+SUM(E13:E15)+SUM(E24) -> 2420 | F29: =SUM(F7:F11)+SUM(F13:F15)+SUM(F24) -> 929 | G29: =SUM(G7:G11)+SUM(G13:G15)+SUM(G24) -> 1491 | O29: Новое!
B31: в том числ при ДВН | E31: 59

Sheet 5000 и 5001 ДВН (hidden)
A1: =AND('Титульный лист'!$D$14<>"",'Титульный лист'!$C$22<>"",'Титульный лист'!$B$29<>"",'Титульный лист'!$B$30<>"",'Титульный лист'!$B$31<>"",'Титульный лист'!$B$32<>"",'Титульный лист'!$B$33<>"") -> TRUE | B1: Заболевания, выявленные при проведении профилактического медицинского осмотра (диспансеризации), установление диспансерного наблюдения
B2: (5000) | K2: Код по ОКЕИ: единица - 642
B3: Наименование классов и отдельных заболеваний | C3: N строки | D3: Код МКБ-10 | E3: Выявлено заболеваний | I3: из них: с впервые в жизни установленным диагнозом
E4: всего | G4: в том числе: | I4: всего | K4: в трудоспособном возрасте | M4: в возрасте старше трудоспособного
E5: всего | F5: из них: установлено диспансерное наблюдение | G5: В трудоспособном возрасте | H5: В возрасте старше трудоспособного | I5: всего | J5: из них: установлено диспансерное наблюдение | K5: всего | L5: из них: установлено диспансерное наблюдение | M5: всего | N5: из них: установлено диспансерное наблюдение | O5: Проверка | P5: Сделать проверку на соответствие значений с гр 4 и 8, 5 и 9, 6 и 10, 7 и 12, в паре второе число д. б. <= первого по всем строкам
B6: 1 | C6: 2 | D6: 3 | E6: 4 | F6: 5 | G6: 6 | H6: 7 | I6: 8 | J6: 9 | K6: 10 | L6: 11 | M6: 12 | N6: 13
B7: Некоторые инфекционные и паразитарные болезни | C7: 1 | D7: А00-В99 | E7: =G7+H7 -> 1 | F7: 1 | G7: 1 | I7: =K7+M7 -> 0 | J7: =L7+N7 -> 0 | O7: =IF(Q7>0,"гр.4 >= гр.8 по строке "&P7,"ОК") -> ОК | P7: =IF(Q7>0,INDEX($C$7:$C$78,Q7,1),CHAR(151)) -> — | Q7: =IF(ISERROR(MATCH(FALSE,S7:CL7,0)),0,MATCH(FALSE,S7:CL7,0)) -> 0 | S7: =IF(OR($E7<>0,$I7<>0),$E7>=$I7,TRUE) -> TRUE | T7: =IF(OR($E8<>0,$I8<>0),$E8>=$I8,TRUE) -> TRUE | U7: =IF(OR($E9<>0,$I9<>0),$E9>=$I9,TRUE) -> TRUE | V7: =IF(OR($E10<>0,$I10<>0),$E10>=$I10,TRUE) -> TRUE | W7: =IF(OR($E11<>0,$I11<>0),$E11>=$I11,TRUE) -> TRUE | X7: =IF(OR($E12<>0,$I12<>0),$E12>=$I12,TRUE) -> TRUE | Y7: =IF(OR($E13<>0,$I13<>0),$E13>=$I13,TRUE) -> TRUE | Z7: =IF(OR($E14<>0,$I14<>0),$E14>=$I14,TRUE) -> TRUE | AA7: =IF(OR($E15<>0,$I15<>0),$E15>=$I15,TRUE) -> TRUE | AB7: =IF(OR($E16<>0,$I16<>0),$E16>=$I16,TRUE) -> TRUE | AC7: =IF(OR($E17<>0,$I17<>0),$E17>=$I17,TRUE) -> TRUE | AD7: =IF(OR($E18<>0,$I18<>0),$E18>=$I18,TRUE) -> TRUE | AE7: =IF(OR($E19<>0,$I19<>0),$E19>=$I19,TRUE) -> TRUE | AF7: =IF(OR($E20<>0,$I20<>0),$E20>=$I20,TRUE) -> TRUE | AG7: =IF(OR($E21<>0,$I21<>0),$E21>=$I21,TRUE) -> TRUE | AH7: =IF(OR($E22<>0,$I22<>0),$E22>=$I22,TRUE) -> TRUE | AI7: =IF(OR($E23<>0,$I23<>0),$E23>=$I23,TRUE) -> TRUE | AJ7: =IF(OR($E24<>0,$I24<>0),$E24>=$I24,TRUE) -> TRUE | AK7: =IF(OR($E25<>0,$I25<>0),$E25>=$I25,TRUE) -> TRUE | AL7: =IF(OR($E26<>0,$I26<>0),$E26>=$I26,TRUE) -> TRUE | AM7: =IF(OR($E27<>0,$I27<>0),$E27>=$I27,TRUE) -> TRUE | AN7: =IF(OR($E28<>0,$I28<>0),$E28>=$I28,TRUE) -> TRUE | AO7: =IF(OR($E29<>0,$I29<>0),$E29>=$I29,TRUE) -> TRUE | AP7: =IF(OR($E30<>0,$I30<>0),$E30>=$I30,TRUE) -> TRUE | AQ7: =IF(OR($E31<>0,$I31<>0),$E31>=$I31,TRUE) -> TRUE | AR7: =IF(OR($E32<>0,$I32<>0),$E32>=$I32,TRUE) -> TRUE | AS7: =IF(OR($E33<>0,$I33<>0),$E33>=$I33,TRUE) -> TRUE | AT7: =IF(OR($E34<>0,$I34<>0),$E34>=$I34,TRUE) -> TRUE | AU7: =IF(OR($E35<>0,$I35<>0),$E35>=$I35,TRUE) -> TRUE | AV7: =IF(OR($E36<>0,$I36<>0),$E36>=$I36,TRUE) -> TRUE | AW7: =IF(OR($E37<>0,$I37<>0),$E37>=$I37,TRUE) -> TRUE | AX7: =IF(OR($E38<>0,$I38<>0),$E38>=$I38,TRUE) -> TRUE | AY7: =IF(OR($E39<>0,$I39<>0),$E39>=$I39,TRUE) -> TRUE | AZ7: =IF(OR($E40<>0,$I40<>0),$E40>=$I40,TRUE) -> TRUE | BA7: =IF(OR($E41<>0,$I41<>0),$E41>=$I41,TRUE) -> TRUE | BB7: =IF(OR($E42<>0,$I42<>0),$E42>=$I42,TRUE) -> TRUE | BC7: =IF(OR($E43<>0,$I43<>0),$E43>=$I43,TRUE) -> TRUE | BD7: =IF(OR($E44<>0,$I44<>0),$E44>=$I44,TRUE) -> TRUE | BE7: =IF(OR($E45<>0,$I45<>0),$E45>=$I45,TRUE) -> TRUE | BF7: =IF(OR($E46<>0,$I46<>0),$E46>=$I46,TRUE) -> TRUE | BG7: =IF(OR($E47<>0,$I47<>0),$E47>=$I47,TRUE) -> TRUE | BH7: =IF(OR($E48<>0,$I48<>0),$E48>=$I48,TRUE) -> TRUE | BI7: =IF(OR($E49<>0,$I49<>0),$E49>=$I49,TRUE) -> TRUE | BJ7: =IF(OR($E50<>0,$I50<>0),$E50>=$I50,TRUE) -> TRUE | BK7: =IF(OR($E51<>0,$I51<>0),$E51>=$I51,TRUE) -> TRUE | BL7: =IF(OR($E52<>0,$I52<>0),$E52>=$I52,TRUE) -> TRUE | BM7: =IF(OR($E53<>0,$I53<>0),$E53>=$I53,TRUE) -> TRUE | BN7: =IF(OR($E54<>0,$I54<>0),$E54>=$I54,TRUE) -> TRUE | BO7: =IF(OR($E55<>0,$I55<>0),$E55>=$I55,TRUE) -> TRUE | BP7: =IF(OR($E56<>0,$I56<>0),$E56>=$I56,TRUE) -> TRUE | BQ7: =IF(OR($E57<>0,$I57<>0),$E57>=$I57,TRUE) -> TRUE | BR7: =IF(OR($E58<>0,$I58<>0),$E58>=$I58,TRUE) -> TRUE | BS7: =IF(OR($E59<>0,$I59<>0),$E59>=$I59,TRUE) -> TRUE | BT7: =IF(OR($E60<>0,$I60<>0),$E60>=$I60,TRUE) -> TRUE | BU7: =IF(OR($E61<>0,$I61<>0),$E61>=$I61,TRUE) -> TRUE | BV7: =IF(OR($E62<>0,$I62<>0),$E62>=$I62,TRUE) -> TRUE | BW7: =IF(OR($E63<>0,$I63<>0),$E63>=$I63,TRUE) -> TRUE | BX7: =IF(OR($E64<>0,$I64<>0),$E64>=$I64,TRUE) -> TRUE | BY7: =IF(OR($E65<>0,$I65<>0),$E65>=$I65,TRUE) -> TRUE | BZ7: =IF(OR($E66<>0,$I66<>0),$E66>=$I66,TRUE) -> TRUE | CA7: =IF(OR($E67<>0,$I67<>0),$E67>=$I67,TRUE) -> TRUE | CB7: =IF(OR($E68<>0,$I68<>0),$E68>=$I68,TRUE) -> TRUE | CC7: =IF(OR($E69<>0,$I69<>0),$E69>=$I69,TRUE) -> TRUE | CD7: =IF(OR($E70<>0,$I70<>0),$E70>=$I70,TRUE) -> TRUE | CE7: =IF(OR($E71<>0,$I71<>0),$E71>=$I71,TRUE) -> TRUE | CF7: =IF(OR($E72<>0,$I72<>0),$E72>=$I72,TRUE) -> TRUE | CG7: =IF(OR($E73<>0,$I73<>0),$E73>=$I73,TRUE) -> TRUE | CH7: =IF(OR($E74<>0,$I74<>0),$E74>=$I74,TRUE) -> TRUE | CI7: =IF(OR($E75<>0,$I75<>0),$E75>=$I75,TRUE) -> TRUE | CJ7: =IF(OR($E76<>0,$I76<>0),$E76>=$I76,TRUE) -> TRUE | CK7: =IF(OR($E77<>0,$I77<>0),$E77>=$I77,TRUE) -> TRUE | CL7: =IF(OR($E78<>0,$I78<>0),$E78>=$I78,TRUE) -> TRUE
B8: в том числе: туберкулез | C8: 1.1 | D8: А15-А19 | E8: =G8+H8 -> 1 | F8: 1 | G8: 1 | I8: =K8+M8 -> 0 | J8: 0 | O8: =IF(Q8>0,"гр.5 >= гр.9 по строке "&P8,"ОК") -> ОК | P8: =IF(Q8>0,INDEX($C$7:$C$78,Q8,1),CHAR(151)) -> — | Q8: =IF(ISERROR(MATCH(FALSE,S8:CL8,0)),0,MATCH(FALSE,S8:CL8,0)) -> 0 | S8: =IF(OR($F7<>0,$J7<>0),$F7>=$J7,TRUE) -> TRUE | T8: =IF(OR($F8<>0,$J8<>0),$F8>=$J8,TRUE) -> TRUE | U8: =IF(OR($F9<>0,$J9<>0),$F9>=$J9,TRUE) -> TRUE | V8: =IF(OR($F10<>0,$J10<>0),$F10>=$J10,TRUE) -> TRUE | W8: =IF(OR($F11<>0,$J11<>0),$F11>=$J11,TRUE) -> TRUE | X8: =IF(OR($F12<>0,$J12<>0),$F12>=$J12,TRUE) -> TRUE | Y8: =IF(OR($F13<>0,$J13<>0),$F13>=$J13,TRUE) -> TRUE | Z8: =IF(OR($F14<>0,$J14<>0),$F14>=$J14,TRUE) -> TRUE | AA8: =IF(OR($F15<>0,$J15<>0),$F15>=$J15,TRUE) -> TRUE | AB8: =IF(OR($F16<>0,$J16<>0),$F16>=$J16,TRUE) -> TRUE | AC8: =IF(OR($F17<>0,$J17<>0),$F17>=$J17,TRUE) -> TRUE | AD8: =IF(OR($F18<>0,$J18<>0),$F18>=$J18,TRUE) -> TRUE | AE8: =IF(OR($F19<>0,$J19<>0),$F19>=$J19,TRUE) -> TRUE | AF8: =IF(OR($F20<>0,$J20<>0),$F20>=$J20,TRUE) -> TRUE | AG8: =IF(OR($F21<>0,$J21<>0),$F21>=$J21,TRUE) -> TRUE | AH8: =IF(OR($F22<>0,$J22<>0),$F22>=$J22,TRUE) -> TRUE | AI8: =IF(OR($F23<>0,$J23<>0),$F23>=$J23,TRUE) -> TRUE | AJ8: =IF(OR($F24<>0,$J24<>0),$F24>=$J24,TRUE) -> TRUE | AK8: =IF(OR($F25<>0,$J25<>0),$F25>=$J25,TRUE) -> TRUE | AL8: =IF(OR($F26<>0,$J26<>0),$F26>=$J26,TRUE) -> TRUE | AM8: =IF(OR($F27<>0,$J27<>0),$F27>=$J27,TRUE) -> TRUE | AN8: =IF(OR($F28<>0,$J28<>0),$F28>=$J28,TRUE) -> TRUE | AO8: =IF(OR($F29<>0,$J29<>0),$F29>=$J29,TRUE) -> TRUE | AP8: =IF(OR($F30<>0,$J30<>0),$F30>=$J30,TRUE) -> TRUE | AQ8: =IF(OR($F31<>0,$J31<>0),$F31>=$J31,TRUE) -> TRUE | AR8: =IF(OR($F32<>0,$J32<>0),$F32>=$J32,TRUE) -> TRUE | AS8: =IF(OR($F33<>0,$J33<>0),$F33>=$J33,TRUE) -> TRUE | AT8: =IF(OR($F34<>0,$J34<>0),$F34>=$J34,TRUE) -> TRUE | AU8: =IF(OR($F35<>0,$J35<>0),$F35>=$J35,TRUE) -> TRUE | AV8: =IF(OR($F36<>0,$J36<>0),$F36>=$J36,TRUE) -> TRUE | AW8: =IF(OR($F37<>0,$J37<>0),$F37>=$J37,TRUE) -> TRUE | AX8: =IF(OR($F38<>0,$J38<>0),$F38>=$J38,TRUE) -> TRUE | AY8: =IF(OR($F39<>0,$J39<>0),$F39>=$J39,TRUE) -> TRUE | AZ8: =IF(OR($F40<>0,$J40<>0),$F40>=$J40,TRUE) -> TRUE | BA8: =IF(OR($F41<>0,$J41<>0),$F41>=$J41,TRUE) -> TRUE | BB8: =IF(OR($F42<>0,$J42<>0),$F42>=$J42,TRUE) -> TRUE | BC8: =IF(OR($F43<>0,$J43<>0),$F43>=$J43,TRUE) -> TRUE | BD8: =IF(OR($F44<>0,$J44<>0),$F44>=$J44,TRUE) -> TRUE | BE8: =IF(OR($F45<>0,$J45<>0),$F45>=$J45,TRUE) -> TRUE | BF8: =IF(OR($F46<>0,$J46<>0),$F46>=$J46,TRUE) -> TRUE | BG8: =IF(OR($F47<>0,$J47<>0),$F47>=$J47,TRUE) -> TRUE | BH8: =IF(OR($F48<>0,$J48<>0),$F48>=$J48,TRUE) -> TRUE | BI8: =IF(OR($F49<>0,$J49<>0),$F49>=$J49,TRUE) -> TRUE | BJ8: =IF(OR($F50<>0,$J50<>0),$F50>=$J50,TRUE) -> TRUE | BK8: =IF(OR($F51<>0,$J51<>0),$F51>=$J51,TRUE) -> TRUE | BL8: =IF(OR($F52<>0,$J52<>0),$F52>=$J52,TRUE) -> TRUE | BM8: =IF(OR($F53<>0,$J53<>0),$F53>=$J53,TRUE) -> TRUE | BN8: =IF(OR($F54<>0,$J54<>0),$F54>=$J54,TRUE) -> TRUE | BO8: =IF(OR($F55<>0,$J55<>0),$F55>=$J55,TRUE) -> TRUE | BP8: =IF(OR($F56<>0,$J56<>0),$F56>=$J56,TRUE) -> TRUE | BQ8: =IF(OR($F57<>0,$J57<>0),$F57>=$J57,TRUE) -> TRUE | BR8: =IF(OR($F58<>0,$J58<>0),$F58>=$J58,TRUE) -> TRUE | BS8: =IF(OR($F59<>0,$J59<>0),$F59>=$J59,TRUE) -> TRUE | BT8: =IF(OR($F60<>0,$J60<>0),$F60>=$J60,TRUE) -> TRUE | BU8: =IF(OR($F61<>0,$J61<>0),$F61>=$J61,TRUE) -> TRUE | BV8: =IF(OR($F62<>0,$J62<>0),$F62>=$J62,TRUE) -> TRUE | BW8: =IF(OR($F63<>0,$J63<>0),$F63>=$J63,TRUE) -> TRUE | BX8: =IF(OR($F64<>0,$J64<>0),$F64>=$J64,TRUE) -> TRUE | BY8: =IF(OR($F65<>0,$J65<>0),$F65>=$J65,TRUE) -> TRUE | BZ8: =IF(OR($F66<>0,$J66<>0),$F66>=$J66,TRUE) -> TRUE | CA8: =IF(OR($F67<>0,$J67<>0),$F67>=$J67,TRUE) -> TRUE | CB8: =IF(OR($F68<>0,$J68<>0),$F68>=$J68,TRUE) -> TRUE | CC8: =IF(OR($F69<>0,$J69<>0),$F69>=$J69,TRUE) -> TRUE | CD8: =IF(OR($F70<>0,$J70<>0),$F70>=$J70,TRUE) -> TRUE | CE8: =IF(OR($F71<>0,$J71<>0),$F71>=$J71,TRUE) -> TRUE | CF8: =IF(OR($F72<>0,$J72<>0),$F72>=$J72,TRUE) -> TRUE | CG8: =IF(OR($F73<>0,$J73<>0),$F73>=$J73,TRUE) -> TRUE | CH8: =IF(OR($F74<>0,$J74<>0),$F74>=$J74,TRUE) -> TRUE | CI8: =IF(OR($F75<>0,$J75<>0),$F75>=$J75,TRUE) -> TRUE | CJ8: =IF(OR($F76<>0,$J76<>0),$F76>=$J76,TRUE) -> TRUE | CK8: =IF(OR($F77<>0,$J77<>0),$F77>=$J77,TRUE) -> TRUE | CL8: =IF(OR($F78<>0,$J78<>0),$F78>=$J78,TRUE) -> TRUE
B9: Новообразования | C9: 2 | D9: C00-D48 | E9: 3 | F9: 3 | G9: 1 | H9: 2 | I9: 0 | J9: 0 | O9: =IF(Q9>0,"гр.6 >= гр.10 по строке "&P9,"ОК") -> ОК | P9: =IF(Q9>0,INDEX($C$7:$C$78,Q9,1),CHAR(151)) -> — | Q9: =IF(ISERROR(MATCH(FALSE,S9:CL9,0)),0,MATCH(FALSE,S9:CL9,0)) -> 0 | S9: =IF(OR($G7<>0,$K7<>0),$G7>=$K7,TRUE) -> TRUE | T9: =IF(OR($G8<>0,$K8<>0),$G8>=$K8,TRUE) -> TRUE | U9: =IF(OR($G9<>0,$K9<>0),$G9>=$K9,TRUE) -> TRUE | V9: =IF(OR($G10<>0,$K10<>0),$G10>=$K10,TRUE) -> TRUE | W9: =IF(OR($G11<>0,$K11<>0),$G11>=$K11,TRUE) -> TRUE | X9: =IF(OR($G12<>0,$K12<>0),$G12>=$K12,TRUE) -> TRUE | Y9: =IF(OR($G13<>0,$K13<>0),$G13>=$K13,TRUE) -> TRUE | Z9: =IF(OR($G14<>0,$K14<>0),$G14>=$K14,TRUE) -> TRUE | AA9: =IF(OR($G15<>0,$K15<>0),$G15>=$K15,TRUE) -> TRUE | AB9: =IF(OR($G16<>0,$K16<>0),$G16>=$K16,TRUE) -> TRUE | AC9: =IF(OR($G17<>0,$K17<>0),$G17>=$K17,TRUE) -> TRUE | AD9: =IF(OR($G18<>0,$K18<>0),$G18>=$K18,TRUE) -> TRUE | AE9: =IF(OR($G19<>0,$K19<>0),$G19>=$K19,TRUE) -> TRUE | AF9: =IF(OR($G20<>0,$K20<>0),$G20>=$K20,TRUE) -> TRUE | AG9: =IF(OR($G21<>0,$K21<>0),$G21>=$K21,TRUE) -> TRUE | AH9: =IF(OR($G22<>0,$K22<>0),$G22>=$K22,TRUE) -> TRUE | AI9: =IF(OR($G23<>0,$K23<>0),$G23>=$K23,TRUE) -> TRUE | AJ9: =IF(OR($G24<>0,$K24<>0),$G24>=$K24,TRUE) -> TRUE | AK9: =IF(OR($G25<>0,$K25<>0),$G25>=$K25,TRUE) -> TRUE | AL9: =IF(OR($G26<>0,$K26<>0),$G26>=$K26,TRUE) -> TRUE | AM9: =IF(OR($G27<>0,$K27<>0),$G27>=$K27,TRUE) -> TRUE | AN9: =IF(OR($G28<>0,$K28<>0),$G28>=$K28,TRUE) -> TRUE | AO9: =IF(OR($G29<>0,$K29<>0),$G29>=$K29,TRUE) -> TRUE | AP9: =IF(OR($G30<>0,$K30<>0),$G30>=$K30,TRUE) -> TRUE | AQ9: =IF(OR($G31<>0,$K31<>0),$G31>=$K31,TRUE) -> TRUE | AR9: =IF(OR($G32<>0,$K32<>0),$G32>=$K32,TRUE) -> TRUE | AS9: =IF(OR($G33<>0,$K33<>0),$G33>=$K33,TRUE) -> TRUE | AT9: =IF(OR($G34<>0,$K34<>0),$G34>=$K34,TRUE) -> TRUE | AU9: =IF(OR($G35<>0,$K35<>0),$G35>=$K35,TRUE) -> TRUE | AV9: =IF(OR($G36<>0,$K36<>0),$G36>=$K36,TRUE) -> TRUE | AW9: =IF(OR($G37<>0,$K37<>0),$G37>=$K37,TRUE) -> TRUE | AX9: =IF(OR($G38<>0,$K38<>0),$G38>=$K38,TRUE) -> TRUE | AY9: =IF(OR($G39<>0,$K39<>0),$G39>=$K39,TRUE) -> TRUE | AZ9: =IF(OR($G40<>0,$K40<>0),$G40>=$K40,TRUE) -> TRUE | BA9: =IF(OR($G41<>0,$K41<>0),$G41>=$K41,TRUE) -> TRUE | BB9: =IF(OR($G42<>0,$K42<>0),$G42>=$K42,TRUE) -> TRUE | BC9: =IF(OR($G43<>0,$K43<>0),$G43>=$K43,TRUE) -> TRUE | BD9: =IF(OR($G44<>0,$K44<>0),$G44>=$K44,TRUE) -> TRUE | BE9: =IF(OR($G45<>0,$K45<>0),$G45>=$K45,TRUE) -> TRUE | BF9: =IF(OR($G46<>0,$K46<>0),$G46>=$K46,TRUE) -> TRUE | BG9: =IF(OR($G47<>0,$K47<>0),$G47>=$K47,TRUE) -> TRUE | BH9: =IF(OR($G48<>0,$K48<>0),$G48>=$K48,TRUE) -> TRUE | BI9: =IF(OR($G49<>0,$K49<>0),$G49>=$K49,TRUE) -> TRUE | BJ9: =IF(OR($G50<>0,$K50<>0),$G50>=$K50,TRUE) -> TRUE | BK9: =IF(OR($G51<>0,$K51<>0),$G51>=$K51,TRUE) -> TRUE | BL9: =IF(OR($G52<>0,$K52<>0),$G52>=$K52,TRUE) -> TRUE | BM9: =IF(OR($G53<>0,$K53<>0),$G53>=$K53,TRUE) -> TRUE | BN9: =IF(OR($G54<>0,$K54<>0),$G54>=$K54,TRUE) -> TRUE | BO9: =IF(OR($G55<>0,$K55<>0),$G55>=$K55,TRUE) -> TRUE | BP9: =IF(OR($G56<>0,$K56<>0),$G56>=$K56,TRUE) -> TRUE | BQ9: =IF(OR($G57<>0,$K57<>0),$G57>=$K57,TRUE) -> TRUE | BR9: =IF(OR($G58<>0,$K58<>0),$G58>=$K58,TRUE) -> TRUE | BS9: =IF(OR($G59<>0,$K59<>0),$G59>=$K59,TRUE) -> TRUE | BT9: =IF(OR($G60<>0,$K60<>0),$G60>=$K60,TRUE) -> TRUE | BU9: =IF(OR($G61<>0,$K61<>0),$G61>=$K61,TRUE) -> TRUE | BV9: =IF(OR($G62<>0,$K62<>0),$G62>=$K62,TRUE) -> TRUE | BW9: =IF(OR($G63<>0,$K63<>0),$G63>=$K63,TRUE) -> TRUE | BX9: =IF(OR($G64<>0,$K64<>0),$G64>=$K64,TRUE) -> TRUE | BY9: =IF(OR($G65<>0,$K65<>0),$G65>=$K65,TRUE) -> TRUE | BZ9: =IF(OR($G66<>0,$K66<>0),$G66>=$K66,TRUE) -> TRUE | CA9: =IF(OR($G67<>0,$K67<>0),$G67>=$K67,TRUE) -> TRUE | CB9: =IF(OR($G68<>0,$K68<>0),$G68>=$K68,TRUE) -> TRUE | CC9: =IF(OR($G69<>0,$K69<>0),$G69>=$K69,TRUE) -> TRUE | CD9: =IF(OR($G70<>0,$K70<>0),$G70>=$K70,TRUE) -> TRUE | CE9: =IF(OR($G71<>0,$K71<>0),$G71>=$K71,TRUE) -> TRUE | CF9: =IF(OR($G72<>0,$K72<>0),$G72>=$K72,TRUE) -> TRUE | CG9: =IF(OR($G73<>0,$K73<>0),$G73>=$K73,TRUE) -> TRUE | CH9: =IF(OR($G74<>0,$K74<>0),$G74>=$K74,TRUE) -> TRUE | CI9: =IF(OR($G75<>0,$K75<>0),$G75>=$K75,TRUE) -> TRUE | CJ9: =IF(OR($G76<>0,$K76<>0),$G76>=$K76,TRUE) -> TRUE | CK9: =IF(OR($G77<>0,$K77<>0),$G77>=$K77,TRUE) -> TRUE | CL9: =IF(OR($G78<>0,$K78<>0),$G78>=$K78,TRUE) -> TRUE
B10: Злокачественные новообразования | C10: 2.1 | D10: C00 - С97 | E10: 3 | F10: 3 | G10: 1 | H10: 2 | I10: 0 | J10: 0 | K10: ='ДВН-124н'!$N$8-$M$10 -> 0 | L10: ='ДВН-124н'!N19 -> 0 | M10: ='ДВН-124н'!$N$17 -> 0 | N10: ='ДВН-124н'!$N$20 -> 0 | O10: =IF(Q10>0,"гр.7 >= гр.12 по строке "&P10,"ОК") -> ОК | P10: =IF(Q10>0,INDEX($C$7:$C$78,Q10,1),CHAR(151)) -> — | Q10: =IF(ISERROR(MATCH(FALSE,S10:CL10,0)),0,MATCH(FALSE,S10:CL10,0)) -> 0 | S10: =IF(OR($H7<>0,$M7<>0),$H7>=$M7,TRUE) -> TRUE | T10: =IF(OR($H8<>0,$M8<>0),$H8>=$M8,TRUE) -> TRUE | U10: =IF(OR($H9<>0,$M9<>0),$H9>=$M9,TRUE) -> TRUE | V10: =IF(OR($H10<>0,$M10<>0),$H10>=$M10,TRUE) -> TRUE | W10: =IF(OR($H11<>0,$M11<>0),$H11>=$M11,TRUE) -> TRUE | X10: =IF(OR($H12<>0,$M12<>0),$H12>=$M12,TRUE) -> TRUE | Y10: =IF(OR($H13<>0,$M13<>0),$H13>=$M13,TRUE) -> TRUE | Z10: =IF(OR($H14<>0,$M14<>0),$H14>=$M14,TRUE) -> TRUE | AA10: =IF(OR($H15<>0,$M15<>0),$H15>=$M15,TRUE) -> TRUE | AB10: =IF(OR($H16<>0,$M16<>0),$H16>=$M16,TRUE) -> TRUE | AC10: =IF(OR($H17<>0,$M17<>0),$H17>=$M17,TRUE) -> TRUE | AD10: =IF(OR($H18<>0,$M18<>0),$H18>=$M18,TRUE) -> TRUE | AE10: =IF(OR($H19<>0,$M19<>0),$H19>=$M19,TRUE) -> TRUE | AF10: =IF(OR($H20<>0,$M20<>0),$H20>=$M20,TRUE) -> TRUE | AG10: =IF(OR($H21<>0,$M21<>0),$H21>=$M21,TRUE) -> TRUE | AH10: =IF(OR($H22<>0,$M22<>0),$H22>=$M22,TRUE) -> TRUE | AI10: =IF(OR($H23<>0,$M23<>0),$H23>=$M23,TRUE) -> TRUE | AJ10: =IF(OR($H24<>0,$M24<>0),$H24>=$M24,TRUE) -> TRUE | AK10: =IF(OR($H25<>0,$M25<>0),$H25>=$M25,TRUE) -> TRUE | AL10: =IF(OR($H26<>0,$M26<>0),$H26>=$M26,TRUE) -> TRUE | AM10: =IF(OR($H27<>0,$M27<>0),$H27>=$M27,TRUE) -> TRUE | AN10: =IF(OR($H28<>0,$M28<>0),$H28>=$M28,TRUE) -> TRUE | AO10: =IF(OR($H29<>0,$M29<>0),$H29>=$M29,TRUE) -> TRUE | AP10: =IF(OR($H30<>0,$M30<>0),$H30>=$M30,TRUE) -> TRUE | AQ10: =IF(OR($H31<>0,$M31<>0),$H31>=$M31,TRUE) -> TRUE | AR10: =IF(OR($H32<>0,$M32<>0),$H32>=$M32,TRUE) -> TRUE | AS10: =IF(OR($H33<>0,$M33<>0),$H33>=$M33,TRUE) -> TRUE | AT10: =IF(OR($H34<>0,$M34<>0),$H34>=$M34,TRUE) -> TRUE | AU10: =IF(OR($H35<>0,$M35<>0),$H35>=$M35,TRUE) -> TRUE | AV10: =IF(OR($H36<>0,$M36<>0),$H36>=$M36,TRUE) -> TRUE | AW10: =IF(OR($H37<>0,$M37<>0),$H37>=$M37,TRUE) -> TRUE | AX10: =IF(OR($H38<>0,$M38<>0),$H38>=$M38,TRUE) -> TRUE | AY10: =IF(OR($H39<>0,$M39<>0),$H39>=$M39,TRUE) -> TRUE | AZ10: =IF(OR($H40<>0,$M40<>0),$H40>=$M40,TRUE) -> TRUE | BA10: =IF(OR($H41<>0,$M41<>0),$H41>=$M41,TRUE) -> TRUE | BB10: =IF(OR($H42<>0,$M42<>0),$H42>=$M42,TRUE) -> TRUE | BC10: =IF(OR($H43<>0,$M43<>0),$H43>=$M43,TRUE) -> TRUE | BD10: =IF(OR($H44<>0,$M44<>0),$H44>=$M44,TRUE) -> TRUE | BE10: =IF(OR($H45<>0,$M45<>0),$H45>=$M45,TRUE) -> TRUE | BF10: =IF(OR($H46<>0,$M46<>0),$H46>=$M46,TRUE) -> TRUE | BG10: =IF(OR($H47<>0,$M47<>0),$H47>=$M47,TRUE) -> TRUE | BH10: =IF(OR($H48<>0,$M48<>0),$H48>=$M48,TRUE) -> TRUE | BI10: =IF(OR($H49<>0,$M49<>0),$H49>=$M49,TRUE) -> TRUE | BJ10: =IF(OR($H50<>0,$M50<>0),$H50>=$M50,TRUE) -> TRUE | BK10: =IF(OR($H51<>0,$M51<>0),$H51>=$M51,TRUE) -> TRUE | BL10: =IF(OR($H52<>0,$M52<>0),$H52>=$M52,TRUE) -> TRUE | BM10: =IF(OR($H53<>0,$M53<>0),$H53>=$M53,TRUE) -> TRUE | BN10: =IF(OR($H54<>0,$M54<>0),$H54>=$M54,TRUE) -> TRUE | BO10: =IF(OR($H55<>0,$M55<>0),$H55>=$M55,TRUE) -> TRUE | BP10: =IF(OR($H56<>0,$M56<>0),$H56>=$M56,TRUE) -> TRUE | BQ10: =IF(OR($H57<>0,$M57<>0),$H57>=$M57,TRUE) -> TRUE | BR10: =IF(OR($H58<>0,$M58<>0),$H58>=$M58,TRUE) -> TRUE | BS10: =IF(OR($H59<>0,$M59<>0),$H59>=$M59,TRUE) -> TRUE | BT10: =IF(OR($H60<>0,$M60<>0),$H60>=$M60,TRUE) -> TRUE | BU10: =IF(OR($H61<>0,$M61<>0),$H61>=$M61,TRUE) -> TRUE | BV10: =IF(OR($H62<>0,$M62<>0),$H62>=$M62,TRUE) -> TRUE | BW10: =IF(OR($H63<>0,$M63<>0),$H63>=$M63,TRUE) -> TRUE | BX10: =IF(OR($H64<>0,$M64<>0),$H64>=$M64,TRUE) -> TRUE | BY10: =IF(OR($H65<>0,$M65<>0),$H65>=$M65,TRUE) -> TRUE | BZ10: =IF(OR($H66<>0,$M66<>0),$H66>=$M66,TRUE) -> TRUE | CA10: =IF(OR($H67<>0,$M67<>0),$H67>=$M67,TRUE) -> TRUE | CB10: =IF(OR($H68<>0,$M68<>0),$H68>=$M68,TRUE) -> TRUE | CC10: =IF(OR($H69<>0,$M69<>0),$H69>=$M69,TRUE) -> TRUE | CD10: =IF(OR($H70<>0,$M70<>0),$H70>=$M70,TRUE) -> TRUE | CE10: =IF(OR($H71<>0,$M71<>0),$H71>=$M71,TRUE) -> TRUE | CF10: =IF(OR($H72<>0,$M72<>0),$H72>=$M72,TRUE) -> TRUE | CG10: =IF(OR($H73<>0,$M73<>0),$H73>=$M73,TRUE) -> TRUE | CH10: =IF(OR($H74<>0,$M74<>0),$H74>=$M74,TRUE) -> TRUE | CI10: =IF(OR($H75<>0,$M75<>0),$H75>=$M75,TRUE) -> TRUE | CJ10: =IF(OR($H76<>0,$M76<>0),$H76>=$M76,TRUE) -> TRUE | CK10: =IF(OR($H77<>0,$M77<>0),$H77>=$M77,TRUE) -> TRUE | CL10: =IF(OR($H78<>0,$M78<>0),$H78>=$M78,TRUE) -> TRUE
B11: Из них губы, полости рта и глотки | C11: 2.2 | D11: C00 - С14 | E11: 0 | I11: 0 | J11: 0 | O11: =IF(Q11>0,"стр.2.1 < суммы строк (2.2.+2.4+2.6+2.8+2.10+2.12+2.14+2.16+2.18+2.21+2.24) по графе "&P11,"ОК") -> ОК | P11: =IF(Q11>0,INDEX($F$6:$N$6,1,Q11),CHAR(151)) -> — | Q11: =IF(ISERROR(MATCH(FALSE,S11:AA11,0)),0,MATCH(FALSE,S11:AA11,0)) -> 0 | R11: данные по строке 2.1 д.б. больше или равны суммы строк (2.2.+2.4+2.6+2.8+2.10+2.12+2.14+2.16+2.18+2.21+2.24) по всем графам | S11: =F10>=SUM(F11,F13,F15,F17,F19,F21,F23,F25,F27,F30,F33) -> TRUE | T11: =G10>=SUM(G11,G13,G15,G17,G19,G21,G23,G25,G27,G30,G33) -> TRUE | U11: TRUE | V11: =I10>=SUM(I11,I13,I15,I17,I19,I21,I23,I25,I27,I30,I33) -> TRUE | W11: =J10>=SUM(J11,J13,J15,J17,J19,J21,J23,J25,J27,J30,J33) -> TRUE | X11: TRUE | Y11: TRUE | Z11: TRUE | AA11: TRUE
B12: из них в 1-2 стадии | C12: 2.3 | E12: 0 | I12: 0 | J12: 0 | O12: =IF(Q12>0,"стр.2 < стр.2.1 по графе "&P12,"ОК") -> ОК | P12: =IF(Q12>0,INDEX($F$6:$N$6,1,Q12),CHAR(151)) -> — | Q12: =IF(ISERROR(MATCH(FALSE,S12:AA12,0)),0,MATCH(FALSE,S12:AA12,0)) -> 0 | R12: строка 2 д.б больше или равна строке 2.1 | S12: =F9>=F10 -> TRUE | T12: =G9>=G10 -> TRUE | U12: TRUE | V12: TRUE | W12: TRUE | X12: TRUE | Y12: TRUE | Z12: TRUE | AA12: TRUE
B13: пищевода | C13: 2.4 | D13: С15 | E13: 0 | I13: 0 | J13: 0
B14: из них в 1-2 стадии | C14: 2.5 | E14: 0 | I14: 0 | J14: 0
B15: желудка | C15: 2.6 | D15: С16 | E15: 0 | I15: 0 | J15: 0
B16: из них в 1-2 стадии | C16: 2.7 | E16: 0 | I16: 0 | J16: 0
B17: тонкого кишечника | C17: 2.8 | D17: С17 | E17: 0 | I17: 0 | J17: 0
B18: из них в 1-2 стадии | C18: 2.9 | E18: 0 | I18: 0 | J18: 0
B19: ободочной кишки | C19: 2.10 | D19: С18 | E19: 0 | I19: 0 | J19: 0
B20: из них в 1-2 стадии | C20: 2.11 | E20: 0 | I20: 0 | J20: 0
B21: ректосигмоидного соединения, прямой кишки, заднего прохода (ануса) и анального канала | C21: 2.12 | D21: С19 - С21 | E21: 1 | F21: 1 | G21: 1 | I21: 0 | J21: 0
B22: из них в 1-2 стадии | C22: 2.13 | E22: 1 | F22: 1 | G22: 1 | I22: 0 | J22: 0
B23: трахеи, бронхов, легкого | C23: 2.14 | D23: C33, | E23: 0 | I23: 0 | J23: 0
B24: из них в 1-2 стадии | C24: 2.15 | D24: С34 | E24: 0 | I24: 0 | J24: 0
B25: кожи | C25: 2.16 | D25: С43- | E25: 0 | I25: 0 | J25: 0
B26: из них в 1-2 стадии | C26: 2.17 | D26: С44 | E26: 0 | I26: 0 | J26: 0
B27: молочной железы | C27: 2.18 | D27: С50 | E27: 1 | F27: 1 | H27: 1 | I27: 0 | J27: 0
B28: из них в 0-1 стадии | C28: 2.19 | E28: 0 | I28: 0 | J28: 0
B29: 2 стадии | C29: 2.20 | E29: 1 | F29: 1 | H29: 1 | I29: 0 | J29: 0
B30: шейки матки | C30: 2.21 | D30: С53 | E30: 0 | I30: 0 | J30: 0
B31: из них в 0-1 стадии | C31: 2.22 | E31: 0 | I31: 0 | J31: 0
B32: 2 стадии | C32: 2.23 | E32: 0 | I32: 0 | J32: 0
B33: предстательной железы | C33: 2.24 | D33: С61 | E33: 1 | F33: 1 | H33: 1 | I33: 0 | J33: 0
B34: из них в 1-2 стадии | C34: 2.25 | E34: 1 | F34: 1 | H34: 1 | I34: 0 | J34: 0
B35: Болезни крови, кроветворных органов и отдельные нарушения, вовлекающие иммунный механизм | C35: 3 | D35: D50-D89 | E35: 0 | F35: 1 | I35: 0 | J35: 0 | O35: =IF(Q35>0,"стр.3 < стр.3.1 по графе "&P35,"ОК") -> ОК | P35: =IF(Q35>0,INDEX($F$6:$N$6,1,Q35),CHAR(151)) -> — | Q35: =IF(ISERROR(MATCH(FALSE,S35:AA35,0)),0,MATCH(FALSE,S35:AA35,0)) -> 0 | R35: данные по строке 3 должны быть больше или равны по соотв.графам строки 3.1 | S35: =F35>=F36 -> TRUE | T35: =G35>=G36 -> TRUE | U35: TRUE | V35: TRUE | W35: TRUE | X35: TRUE | Y35: TRUE | Z35: TRUE | AA35: TRUE
B36: в том числе: анемии, связанные с питанием, гемолитические анемии, апластические и другие анемии | C36: 3.1 | D36: D50-D64 | E36: 0 | F36: 1 | I36: 0 | J36: 0
B37: Болезни эндокринной системы, расстройства питания и нарушения обмена веществ | C37: 4 | D37: Е00-Е90 | E37: 205 | F37: 137 | G37: 46 | H37: 159 | I37: 11 | J37: 11 | M37: 11 | N37: 11 | O37: =IF(Q37>0,"стр.4 < суммы строк(4.1+4.3+4.4) по графе "&P37,"ОК") -> ОК | P37: =IF(Q37>0,INDEX($F$6:$N$6,1,Q37),CHAR(151)) -> — | Q37: =IF(ISERROR(MATCH(FALSE,S37:AA37,0)),0,MATCH(FALSE,S37:AA37,0)) -> 0 | R37: данные по строке 4 должны быть больше или равны по соотв.графам строки 4.1 и больше или равны суммы строк(4.1+4.3+4.4) | S37: =F37>=SUM(F38,F40:F41) -> TRUE | T37: =G37>=SUM(G38,G40:G41) -> TRUE | U37: TRUE | V37: TRUE | W37: TRUE | X37: TRUE | Y37: TRUE | Z37: TRUE | AA37: TRUE
B38: Сахарный диабет | C38: 4.1 | D38: Е10 - Е14 | E38: 103 | F38: 97 | G38: 9 | H38: 94 | I38: 11 | J38: 11 | K38: ='ДВН-124н'!$P$8-M38 -> 0 | L38: ='ДВН-124н'!$P$19 -> 0 | M38: ='ДВН-124н'!$P$17 -> 11 | N38: ='ДВН-124н'!$P$20 -> 11
B39: из него: инсулиннезависимый сахарный диабет | C39: 4.2 | D39: Е11 | E39: 103 | F39: 97 | G39: 9 | H39: 94 | I39: 11 | J39: 11 | M39: 11 | N39: 11
B40: ожирение | C40: 4.3 | D40: Е66 | E40: 58 | F40: 29 | G40: 20 | H40: 38 | I40: 0 | J40: 0
B41: нарушения обмена липопротеинов и другие липидемии | C41: 4.4 | D41: Е78 | E41: 29 | F41: 7 | G41: 11 | H41: 18 | I41: 0 | J41: 0
B42: Болезни нервной системы | C42: 5 | D42: G00-G99 | E42: 138 | F42: 11 | G42: 94 | H42: 44 | I42: 0 | J42: 0 | O42: =IF(Q42>0,"стр.5 < стр.5.1 по графе "&P42,"ОК") -> ОК | P42: =IF(Q42>0,INDEX($F$6:$N$6,1,Q42),CHAR(151)) -> — | Q42: =IF(ISERROR(MATCH(FALSE,S42:AA42,0)),0,MATCH(FALSE,S42:AA42,0)) -> 0 | R42: данные по строке 5 должны быть больше или равны по соотв.графам строки 5.1 | S42: =F42>=F43 -> TRUE | T42: =G42>=G43 -> TRUE | U42: TRUE | V42: TRUE | W42: TRUE | X42: TRUE | Y42: TRUE | Z42: TRUE | AA42: TRUE
B43: Преходящие церебральные ишемические приступы (атаки) и родственные синдромы | C43: 5.1 | D43: G45 | E43: 0 | I43: 0 | J43: 0
B44: Болезни глаза и его придаточного аппарата | C44: 6 | D44: Н00-Н59 | E44: 6 | F44: 3 | G44: 1 | H44: 5 | I44: 0 | J44: 0 | O44: =IF(Q44>0,"стр.6 < суммы строк(6.1+6.2+6.3) по графе "&P44,"ОК") -> ОК | P44: =IF(Q44>0,INDEX($F$6:$N$6,1,Q44),CHAR(151)) -> — | Q44: =IF(ISERROR(MATCH(FALSE,S44:AA44,0)),0,MATCH(FALSE,S44:AA44,0)) -> 0 | R44: данные по строке 6 должны быть больше или равны по соотв.графам суммы строк(6.1+6.2+6.3) | S44: =F44>=SUM(F45:F47) -> TRUE | T44: TRUE | U44: TRUE | V44: TRUE | W44: TRUE | X44: TRUE | Y44: TRUE | Z44: TRUE | AA44: TRUE
B45: Старческая катаракта и другие катаракты | C45: 6.1 | D45: Н25, Н26 | E45: 0 | I45: 0 | J45: 0
B46: Глаукома | C46: 6.2 | D46: Н40 | E46: 5 | F46: 2 | G46: 1 | H46: 4 | I46: 0 | J46: 0 | K46: ='ДВН-124н'!$R$8-M46 -> 0 | L46: ='ДВН-124н'!$R$19 -> 0 | M46: ='ДВН-124н'!$R$17 -> 0 | N46: ='ДВН-124н'!$R$20 -> 0
B47: Слепота и пониженное зрение | C47: 6.3 | D47: Н54 | E47: 1 | F47: 1 | H47: 1 | I47: 0 | J47: 0
B48: Болезни системы кровообращения | C48: 7 | D48: I00-I99 | E48: 1225 | F48: 1260 | G48: 137 | H48: 1088 | I48: 56 | J48: 56 | K48: ='ДВН-124н'!$M$8-$M$48 -> 18 | L48: ='ДВН-124н'!$M$19 -> 18 | M48: ='ДВН-124н'!$M$17 -> 38 | N48: ='ДВН-124н'!$M$20 -> 38 | O48: =IF(Q48>0,"стр.7 < суммы строк(7.1+7.2+7.4+7.6) по графе "&P48,"ОК") -> ОК | P48: =IF(Q48>0,INDEX($F$6:$N$6,1,Q48),CHAR(151)) -> — | Q48: =IF(ISERROR(MATCH(FALSE,S48:AA48,0)),0,MATCH(FALSE,S48:AA48,0)) -> 0 | R48: данные по строке 7 должны быть больше или равны по соотв.графам суммы строк(7.1+7.2+7.4+7.6) | S48: =F48>=SUM(F49:F50,F55,F59) -> TRUE | T48: =G48>=SUM(G49:G50,G55,G59) -> TRUE | U48: TRUE | V48: TRUE | W48: TRUE | X48: TRUE | Y48: TRUE | Z48: TRUE | AA48: TRUE
B49: из них болезни, характеризующиеся повышенным кровяным давлением | C49: 7.1 | D49: I10 - I13 | E49: 656 | F49: 702 | G49: 98 | H49: 558 | I49: 32 | J49: 32 | K49: 10 | L49: 10 | M49: 22 | N49: 22
B50: ишемические болезни сердца | C50: 7.2 | D50: I20 - I25 | E50: 387 | F50: =F51+F53 -> 403 | G50: =G51+G53 -> 23 | H50: =H51+H53 -> 364 | I50: =I51+I53 -> 24 | J50: 24 | K50: =K51+K53 -> 8 | L50: =L51+L53 -> 8 | M50: =M51+M53 -> 16 | N50: =N51+N53 -> 16
B51: в том числе: стенокардия (грудная жаба) | C51: 7.2.1 | D51: I20 | E51: 56 | F51: 60 | G51: 6 | H51: 50 | I51: 0 | J51: 0
B52: в том числе нестабильная стенокардия | C52: 7.2.2 | D52: I20.0 | E52: 0 | I52: 0 | J52: 0
B53: хроническая ишемическая болезнь сердца | C53: 7.3 | D53: I25 | E53: 331 | F53: 343 | G53: 17 | H53: 314 | I53: 24 | J53: 24 | K53: 8 | L53: 8 | M53: 16 | N53: 16
B54: в том числе: перенесенный в прошлом инфаркт миокарда | C54: 7.3.1 | D54: I25.2 | E54: 30 | F54: 30 | G54: 2 | H54: 28 | I54: 0 | J54: 0
B55: другие болезни сердца | C55: 7.4 | D55: I30-I52 | E55: 63 | F55: 63 | G55: 2 | H55: 61 | I55: 0 | J55: 0
B56: цереброваскулярные болезни | C56: 7.5 | D56: I60 - I69 | E56: 102 | F56: 84 | G56: 10 | H56: 92 | I56: 0 | J56: 0
B57: из них: закупорка и стеноз прецеребральных и (или) церебральных артерий, не приводящие к инфаркту мозга | C57: 7.5.1 | D57: I65, I66 | E57: 2 | F57: 2 | H57: 2 | I57: 0 | J57: 0
B58: другие цереброваскулярные болезни | C58: 7.5.2 | D58: I67 | E58: 76 | F58: 57 | G58: 6 | H58: 70 | I58: 0 | J58: 0
B59: аневризма брюшной аорты | C59: 7.6 | D59: I71.3-I71.4 | E59: 0 | I59: 0 | J59: 0
B60: Болезни органов дыхания | C60: 8.0 | D60: J00-J98 | E60: 51 | F60: 53 | G60: 15 | H60: 36 | I60: 13 | J60: 2 | K60: ='ДВН-124н'!$S$8-M60 -> 6 | L60: ='ДВН-124н'!$S$19 -> 1 | M60: ='ДВН-124н'!$S$17 -> 7 | N60: ='ДВН-124н'!$S$20 -> 1 | O60: =IF(Q60>0,"стр.8 < суммы строк(8.1+8.2+8.3) по графе "&P60,"ОК") -> ОК | P60: =IF(Q60>0,INDEX($F$6:$N$6,1,Q60),CHAR(151)) -> — | Q60: =IF(ISERROR(MATCH(FALSE,S60:AA60,0)),0,MATCH(FALSE,S60:AA60,0)) -> 0 | R60: данные по строке 8 должны быть больше или равны по соотв.графам суммы строк(8.1+8.2+8.3) | S60: =F60>=SUM(F61:F63) -> TRUE | T60: =G60>=SUM(G61:G63) -> TRUE | U60: TRUE | V60: TRUE | W60: TRUE | X60: TRUE | Y60: TRUE | Z60: TRUE | AA60: TRUE
B61: в том числе: вирусная пневмония, пневмония, вызванная Streptococcus pneumonia, пневмония, вызванная Haemophilus influenza, бактериальная пневмония, пневмония, вызванная другими инфекционными возбудителями, пневмония при болезнях, классифицированных в других рубриках, пневмония без уточнения возбудителя | C61: 8.1 | D61: J12-J18 | E61: 0 | I61: 0 | J61: 0
B62: Бронхит, не уточненный как острый и хронический, простой и слизисто-гнойный хронический бронхит, хронический бронхит неуточненный, эмфизема | C62: 8.2 | D62: J40 - J43 | E62: 22 | F62: 22 | G62: 9 | H62: 13 | I62: 13 | J62: 2 | K62: 6 | L62: 1 | M62: 7 | N62: 1
B63: Другая хроническая обструктивная легочная болезнь, астма, астматический статус, бронхоэктатическая болезнь | C63: 8.3 | D63: J44 - J47 | E63: 29 | F63: 31 | G63: 6 | H63: 23 | I63: 0 | J63: 0
B64: Болезни органов пищеварения | C64: 9.0 | D64: К00-К93 | E64: 68 | F64: 49 | G64: 32 | H64: 36 | I64: 13 | J64: 0 | K64: ='ДВН-124н'!$T$8-M64 -> 5 | L64: ='ДВН-124н'!$T$19 -> 0 | M64: ='ДВН-124н'!$T$17 -> 8 | N64: ='ДВН-124н'!$T$20 -> 0 | O64: =IF(Q64>0,"стр.9 < суммы строк(9.1+9.2+9.3+9.4) по графе "&P64,"ОК") -> ОК | P64: =IF(Q64>0,INDEX($F$6:$N$6,1,Q64),CHAR(151)) -> — | Q64: =IF(ISERROR(MATCH(FALSE,S64:AA64,0)),0,MATCH(FALSE,S64:AA64,0)) -> 0 | R64: данные по строке 9 должны быть больше или равны по соотв.графам суммы строк(9.1+9.2+9.3+9.4) | S64: =F64>=SUM(F65:F68) -> TRUE | T64: =G64>=SUM(G65:G68) -> TRUE | U64: TRUE | V64: TRUE | W64: TRUE | X64: TRUE | Y64: TRUE | Z64: TRUE | AA64: TRUE
B65: язва желудка, язва двенадцатиперстной кишки | C65: 9.1 | D65: K25, К26 | E65: 15 | F65: 11 | G65: 9 | H65: 6 | I65: 0 | J65: 0
B66: гастрит и дуоденит | C66: 9.2 | D66: K29 | E66: 27 | F66: 20 | G66: 10 | H66: 17 | I66: 3 | J66: 0 | K66: 1 | M66: 2
B67: неинфекционный энтерит и колит | C67: 9.3 | D67: К50-К52 | E67: 0 | F67: 1 | I67: 0 | J67: 0
B68: другие болезни кишечника | C68: 9.4 | D68: К55-К63 | E68: =G68+H68 -> 0 | I68: 0 | J68: 0
B69: Прочие заболевания | C69: 10.0 | E69: =SUM(E70+E74+E76+E77) -> 435 | F69: =SUM(F70+F74+F76+F77) -> 159 | G69: 239 | H69: 196 | I69: 239 | J69: 0 | K69: 94 | L69: 0 | M69: 145 | N69: 0 | O69: =IF(Q69>0,"стр.10.1 < суммы строк(10.1.1+10.1.2+10.1.3) по графе "&P69,"ОК") -> ОК | P69: =IF(Q69>0,INDEX($F$6:$N$6,1,Q69),CHAR(151)) -> — | Q69: =IF(ISERROR(MATCH(FALSE,S69:AA69,0)),0,MATCH(FALSE,S69:AA69,0)) -> 0 | R69: данные по строке 10.1 должны быть больше или равны по соотв.графам суммы строк(10.1.1+10.1.2+10.1.3) | S69: =F70>=SUM(F71:F73) -> TRUE | T69: =G70>=SUM(G71:G73) -> TRUE | U69: TRUE | V69: TRUE | W69: TRUE | X69: TRUE | Y69: TRUE | Z69: TRUE | AA69: TRUE
B70: Болезни мочеполовой системы | C70: 10.1 | D70: N00-N99 | E70: =G70+H70 -> 167 | F70: 36 | G70: 145 | H70: 22 | I70: 0 | J70: 0
B71: в том числе: гиперплазия предстательной железы, воспалительные болезни предстательной железы, другие болезни предстательной железы | C71: 10.1.1 | D71: N40-N42 | E71: =G71+H71 -> 5 | F71: 1 | G71: 1 | H71: 4 | I71: 0 | J71: 0
B72: доброкачественная дисплазия молочной железы | C72: 10.1.2 | D72: N60 | E72: 0 | I72: =K72+M72 -> 0 | J72: 0
B73: воспалительные болезни женских тазовых органов | C73: 10.1.3 | D73: N70-N77 | E73: 0 | I73: 0 | J73: 0
B74: Болезни уха и сосцевидного отростка | C74: 11.0 | D74: Н60-Н95 | E74: 0 | I74: 0 | J74: 0 | O74: =IF(Q74>0,"стр.11.0 < стр.11.1 по графе "&P74,"ОК") -> ОК | P74: =IF(Q74>0,INDEX($F$6:$N$6,1,Q74),CHAR(151)) -> — | Q74: =IF(ISERROR(MATCH(FALSE,S74:AA74,0)),0,MATCH(FALSE,S74:AA74,0)) -> 0 | R74: строка 11.0 д.б больше или равна строке 11.1 | S74: =F74>=F75 -> TRUE | T74: =G74>=G75 -> TRUE | U74: TRUE | V74: TRUE | W74: TRUE | X74: TRUE | Y74: TRUE | Z74: TRUE | AA74: TRUE
B75: Кондуктивная и нейросенсорная потеря слуха | C75: 11.1 | D75: Н90 | E75: 0 | I75: 0 | J75: 0
B76: Болезни кожи и подкожной клетчатки | C76: 12.0 | D76: L00-L98 | E76: 0 | I76: 0 | J76: 0
B77: Болезни костно-мышечной системы | C77: 13.0 | D77: М00-М99 | E77: 268 | F77: 123 | G77: 94 | H77: 174 | I77: 239 | J77: 0 | K77: 94 | M77: 145
B78: ИТОГО заболеваний | C78: 14.0 | D78: А00-Т98 | E78: =E7+E9+E35+E37+E42+E44+E48+E60+E64+E69 -> 2132 | F78: =F7+F9+F35+F37+F42+F44+F48+F60+F64+F69 -> 1677 | G78: 566 | H78: 1566 | I78: 332 | J78: 69 | K78: 123 | L78: 19 | M78: 209 | N78: 50 | O78: =IF(Q78>0,"стр.14.0 ≠ стр.15.0 по графе "&P78,"ОК") -> ОК | P78: =IF(Q78>0,INDEX($F$6:$N$6,1,Q78),CHAR(151)) -> — | Q78: =IF(ISERROR(MATCH(FALSE,S78:AA78,0)),0,MATCH(FALSE,S78:AA78,0)) -> 0 | R78: Данные строки 14.0 с 8 по13 графы должны быть равны строке 15.0 по тем же графам | S78: TRUE | T78: TRUE | U78: TRUE | V78: =I78=I79 -> TRUE | W78: TRUE | X78: TRUE | Y78: TRUE | Z78: TRUE | AA78: TRUE
B79: контрольные цифры | C79: 15.0 | I79: ='ДВН-124н'!L8 -> 332 | J79: ='ДВН-124н'!$U$18 -> 69 | K79: ='ДВН-124н'!L8-'ДВН-124н'!L17 -> 123 | L79: ='ДВН-124н'!$U$19 -> 19 | M79: ='ДВН-124н'!$L$17 -> 209 | N79: ='ДВН-124н'!$U$20 -> 50
B80: (5001) | K80: Код по ОКЕИ: человек - 792
B81: Число лиц с артериальным давлением ниже 140/90 мм рт.ст. на фоне приема гипотензивных лекарственных препаратов, при наличии болезней, характеризующихся повышенным кровяным давлением (I10 - I15 по МКБ-10) | M81: 613 | N81: ;

Sheet 5000 и 5001 ПО (hidden)
A1: =AND('Титульный лист'!$D$14<>"",'Титульный лист'!$C$22<>"",'Титульный лист'!$B$29<>"",'Титульный лист'!$B$30<>"",'Титульный лист'!$B$31<>"",'Титульный лист'!$B$32<>"",'Титульный лист'!$B$33<>"") -> TRUE | B1: Заболевания, выявленные при проведении профилактического медицинского осмотра (диспансеризации), установление диспансерного наблюдения
B2: (5000) | K2: Код по ОКЕИ: единица - 642
B3: Наименование классов и отдельных заболеваний | C3: N строки | D3: Код МКБ-10 | E3: Выявлено заболеваний | I3: из них: с впервые в жизни установленным диагнозом
E4: всего | G4: в том числе: | I4: всего | K4: в трудоспособном возрасте | M4: в возрасте старше трудоспособного
E5: всего | F5: из них: установлено диспансерное наблюдение | G5: В трудоспособном возрасте | H5: В возрасте старше трудоспособного | I5: всего | J5: из них: установлено диспансерное наблюдение | K5: всего | L5: из них: установлено диспансерное наблюдение | M5: всего | N5: из них: установлено диспансерное наблюдение | O5: Проверка | P5: Сделать проверку на соответствие значений с гр 4 и 8, 5 и 9, 6 и 10, 7 и 12, в паре второе число д. б. <= первого по всем строкам
B6: 1 | C6: 2 | D6: 3 | E6: 4 | F6: 5 | G6: 6 | H6: 7 | I6: 8 | J6: 9 | K6: 10 | L6: 11 | M6: 12 | N6: 13
B7: Некоторые инфекционные и паразитарные болезни | C7: 1 | D7: А00-В99 | E7: =G7+H7 -> 0 | I7: =K7+M7 -> 0 | J7: =L7+N7 -> 0 | O7: =IF(Q7>0,"гр.4 >= гр.8 по строке "&P7,"ОК") -> ОК | P7: =IF(Q7>0,INDEX($C$7:$C$78,Q7,1),CHAR(151)) -> — | Q7: =IF(ISERROR(MATCH(FALSE,S7:CL7,0)),0,MATCH(FALSE,S7:CL7,0)) -> 0 | S7: =IF(OR($E7<>0,$I7<>0),$E7>=$I7,TRUE) -> TRUE | T7: =IF(OR($E8<>0,$I8<>0),$E8>=$I8,TRUE) -> TRUE | U7: =IF(OR($E9<>0,$I9<>0),$E9>=$I9,TRUE) -> TRUE | V7: =IF(OR($E10<>0,$I10<>0),$E10>=$I10,TRUE) -> TRUE | W7: =IF(OR($E11<>0,$I11<>0),$E11>=$I11,TRUE) -> TRUE | X7: =IF(OR($E12<>0,$I12<>0),$E12>=$I12,TRUE) -> TRUE | Y7: =IF(OR($E13<>0,$I13<>0),$E13>=$I13,TRUE) -> TRUE | Z7: =IF(OR($E14<>0,$I14<>0),$E14>=$I14,TRUE) -> TRUE | AA7: =IF(OR($E15<>0,$I15<>0),$E15>=$I15,TRUE) -> TRUE | AB7: =IF(OR($E16<>0,$I16<>0),$E16>=$I16,TRUE) -> TRUE | AC7: =IF(OR($E17<>0,$I17<>0),$E17>=$I17,TRUE) -> TRUE | AD7: =IF(OR($E18<>0,$I18<>0),$E18>=$I18,TRUE) -> TRUE | AE7: =IF(OR($E19<>0,$I19<>0),$E19>=$I19,TRUE) -> TRUE | AF7: =IF(OR($E20<>0,$I20<>0),$E20>=$I20,TRUE) -> TRUE | AG7: =IF(OR($E21<>0,$I21<>0),$E21>=$I21,TRUE) -> TRUE | AH7: =IF(OR($E22<>0,$I22<>0),$E22>=$I22,TRUE) -> TRUE | AI7: =IF(OR($E23<>0,$I23<>0),$E23>=$I23,TRUE) -> TRUE | AJ7: =IF(OR($E24<>0,$I24<>0),$E24>=$I24,TRUE) -> TRUE | AK7: =IF(OR($E25<>0,$I25<>0),$E25>=$I25,TRUE) -> TRUE | AL7: =IF(OR($E26<>0,$I26<>0),$E26>=$I26,TRUE) -> TRUE | AM7: =IF(OR($E27<>0,$I27<>0),$E27>=$I27,TRUE) -> TRUE | AN7: =IF(OR($E28<>0,$I28<>0),$E28>=$I28,TRUE) -> TRUE | AO7: =IF(OR($E29<>0,$I29<>0),$E29>=$I29,TRUE) -> TRUE | AP7: =IF(OR($E30<>0,$I30<>0),$E30>=$I30,TRUE) -> TRUE | AQ7: =IF(OR($E31<>0,$I31<>0),$E31>=$I31,TRUE) -> TRUE | AR7: =IF(OR($E32<>0,$I32<>0),$E32>=$I32,TRUE) -> TRUE | AS7: =IF(OR($E33<>0,$I33<>0),$E33>=$I33,TRUE) -> TRUE | AT7: =IF(OR($E34<>0,$I34<>0),$E34>=$I34,TRUE) -> TRUE | AU7: =IF(OR($E35<>0,$I35<>0),$E35>=$I35,TRUE) -> TRUE | AV7: =IF(OR($E36<>0,$I36<>0),$E36>=$I36,TRUE) -> TRUE | AW7: =IF(OR($E37<>0,$I37<>0),$E37>=$I37,TRUE) -> TRUE | AX7: =IF(OR($E38<>0,$I38<>0),$E38>=$I38,TRUE) -> TRUE | AY7: =IF(OR($E39<>0,$I39<>0),$E39>=$I39,TRUE) -> TRUE | AZ7: =IF(OR($E40<>0,$I40<>0),$E40>=$I40,TRUE) -> TRUE | BA7: =IF(OR($E41<>0,$I41<>0),$E41>=$I41,TRUE) -> TRUE | BB7: =IF(OR($E42<>0,$I42<>0),$E42>=$I42,TRUE) -> TRUE | BC7: =IF(OR($E43<>0,$I43<>0),$E43>=$I43,TRUE) -> TRUE | BD7: =IF(OR($E44<>0,$I44<>0),$E44>=$I44,TRUE) -> TRUE | BE7: =IF(OR($E45<>0,$I45<>0),$E45>=$I45,TRUE) -> TRUE | BF7: =IF(OR($E46<>0,$I46<>0),$E46>=$I46,TRUE) -> TRUE | BG7: =IF(OR($E47<>0,$I47<>0),$E47>=$I47,TRUE) -> TRUE | BH7: =IF(OR($E48<>0,$I48<>0),$E48>=$I48,TRUE) -> TRUE | BI7: =IF(OR($E49<>0,$I49<>0),$E49>=$I49,TRUE) -> TRUE | BJ7: =IF(OR($E50<>0,$I50<>0),$E50>=$I50,TRUE) -> TRUE | BK7: =IF(OR($E51<>0,$I51<>0),$E51>=$I51,TRUE) -> TRUE | BL7: =IF(OR($E52<>0,$I52<>0),$E52>=$I52,TRUE) -> TRUE | BM7: =IF(OR($E53<>0,$I53<>0),$E53>=$I53,TRUE) -> TRUE | BN7: =IF(OR($E54<>0,$I54<>0),$E54>=$I54,TRUE) -> TRUE | BO7: =IF(OR($E55<>0,$I55<>0),$E55>=$I55,TRUE) -> TRUE | BP7: =IF(OR($E56<>0,$I56<>0),$E56>=$I56,TRUE) -> TRUE | BQ7: =IF(OR($E57<>0,$I57<>0),$E57>=$I57,TRUE) -> TRUE | BR7: =IF(OR($E58<>0,$I58<>0),$E58>=$I58,TRUE) -> TRUE | BS7: =IF(OR($E59<>0,$I59<>0),$E59>=$I59,TRUE) -> TRUE | BT7: =IF(OR($E60<>0,$I60<>0),$E60>=$I60,TRUE) -> TRUE | BU7: =IF(OR($E61<>0,$I61<>0),$E61>=$I61,TRUE) -> TRUE | BV7: =IF(OR($E62<>0,$I62<>0),$E62>=$I62,TRUE) -> TRUE | BW7: =IF(OR($E63<>0,$I63<>0),$E63>=$I63,TRUE) -> TRUE | BX7: =IF(OR($E64<>0,$I64<>0),$E64>=$I64,TRUE) -> TRUE | BY7: =IF(OR($E65<>0,$I65<>0),$E65>=$I65,TRUE) -> TRUE | BZ7: =IF(OR($E66<>0,$I66<>0),$E66>=$I66,TRUE) -> TRUE | CA7: =IF(OR($E67<>0,$I67<>0),$E67>=$I67,TRUE) -> TRUE | CB7: =IF(OR($E68<>0,$I68<>0),$E68>=$I68,TRUE) -> TRUE | CC7: =IF(OR($E69<>0,$I69<>0),$E69>=$I69,TRUE) -> TRUE | CD7: =IF(OR($E70<>0,$I70<>0),$E70>=$I70,TRUE) -> TRUE | CE7: =IF(OR($E71<>0,$I71<>0),$E71>=$I71,TRUE) -> TRUE | CF7: =IF(OR($E72<>0,$I72<>0),$E72>=$I72,TRUE) -> TRUE | CG7: =IF(OR($E73<>0,$I73<>0),$E73>=$I73,TRUE) -> TRUE | CH7: =IF(OR($E74<>0,$I74<>0),$E74>=$I74,TRUE) -> TRUE | CI7: =IF(OR($E75<>0,$I75<>0),$E75>=$I75,TRUE) -> TRUE | CJ7: =IF(OR($E76<>0,$I76<>0),$E76>=$I76,TRUE) -> TRUE | CK7: =IF(OR($E77<>0,$I77<>0),$E77>=$I77,TRUE) -> TRUE | CL7: =IF(OR($E78<>0,$I78<>0),$E78>=$I78,TRUE) -> TRUE
B8: в том числе: туберкулез | C8: 1.1 | D8: А15-А19 | E8: =G8+H8 -> 0 | I8: =K8+M8 -> 0 | J8: =L8+N8 -> 0 | O8: =IF(Q8>0,"гр.5 >= гр.9 по строке "&P8,"ОК") -> ОК | P8: =IF(Q8>0,INDEX($C$7:$C$78,Q8,1),CHAR(151)) -> — | Q8: =IF(ISERROR(MATCH(FALSE,S8:CL8,0)),0,MATCH(FALSE,S8:CL8,0)) -> 0 | S8: =IF(OR($F7<>0,$J7<>0),$F7>=$J7,TRUE) -> TRUE | T8: =IF(OR($F8<>0,$J8<>0),$F8>=$J8,TRUE) -> TRUE | U8: =IF(OR($F9<>0,$J9<>0),$F9>=$J9,TRUE) -> TRUE | V8: =IF(OR($F10<>0,$J10<>0),$F10>=$J10,TRUE) -> TRUE | W8: =IF(OR($F11<>0,$J11<>0),$F11>=$J11,TRUE) -> TRUE | X8: =IF(OR($F12<>0,$J12<>0),$F12>=$J12,TRUE) -> TRUE | Y8: =IF(OR($F13<>0,$J13<>0),$F13>=$J13,TRUE) -> TRUE | Z8: =IF(OR($F14<>0,$J14<>0),$F14>=$J14,TRUE) -> TRUE | AA8: =IF(OR($F15<>0,$J15<>0),$F15>=$J15,TRUE) -> TRUE | AB8: =IF(OR($F16<>0,$J16<>0),$F16>=$J16,TRUE) -> TRUE | AC8: =IF(OR($F17<>0,$J17<>0),$F17>=$J17,TRUE) -> TRUE | AD8: =IF(OR($F18<>0,$J18<>0),$F18>=$J18,TRUE) -> TRUE | AE8: =IF(OR($F19<>0,$J19<>0),$F19>=$J19,TRUE) -> TRUE | AF8: =IF(OR($F20<>0,$J20<>0),$F20>=$J20,TRUE) -> TRUE | AG8: =IF(OR($F21<>0,$J21<>0),$F21>=$J21,TRUE) -> TRUE | AH8: =IF(OR($F22<>0,$J22<>0),$F22>=$J22,TRUE) -> TRUE | AI8: =IF(OR($F23<>0,$J23<>0),$F23>=$J23,TRUE) -> TRUE | AJ8: =IF(OR($F24<>0,$J24<>0),$F24>=$J24,TRUE) -> TRUE | AK8: =IF(OR($F25<>0,$J25<>0),$F25>=$J25,TRUE) -> TRUE | AL8: =IF(OR($F26<>0,$J26<>0),$F26>=$J26,TRUE) -> TRUE | AM8: =IF(OR($F27<>0,$J27<>0),$F27>=$J27,TRUE) -> TRUE | AN8: =IF(OR($F28<>0,$J28<>0),$F28>=$J28,TRUE) -> TRUE | AO8: =IF(OR($F29<>0,$J29<>0),$F29>=$J29,TRUE) -> TRUE | AP8: =IF(OR($F30<>0,$J30<>0),$F30>=$J30,TRUE) -> TRUE | AQ8: =IF(OR($F31<>0,$J31<>0),$F31>=$J31,TRUE) -> TRUE | AR8: =IF(OR($F32<>0,$J32<>0),$F32>=$J32,TRUE) -> TRUE | AS8: =IF(OR($F33<>0,$J33<>0),$F33>=$J33,TRUE) -> TRUE | AT8: =IF(OR($F34<>0,$J34<>0),$F34>=$J34,TRUE) -> TRUE | AU8: =IF(OR($F35<>0,$J35<>0),$F35>=$J35,TRUE) -> TRUE | AV8: =IF(OR($F36<>0,$J36<>0),$F36>=$J36,TRUE) -> TRUE | AW8: =IF(OR($F37<>0,$J37<>0),$F37>=$J37,TRUE) -> TRUE | AX8: =IF(OR($F38<>0,$J38<>0),$F38>=$J38,TRUE) -> TRUE | AY8: =IF(OR($F39<>0,$J39<>0),$F39>=$J39,TRUE) -> TRUE | AZ8: =IF(OR($F40<>0,$J40<>0),$F40>=$J40,TRUE) -> TRUE | BA8: =IF(OR($F41<>0,$J41<>0),$F41>=$J41,TRUE) -> TRUE | BB8: =IF(OR($F42<>0,$J42<>0),$F42>=$J42,TRUE) -> TRUE | BC8: =IF(OR($F43<>0,$J43<>0),$F43>=$J43,TRUE) -> TRUE | BD8: =IF(OR($F44<>0,$J44<>0),$F44>=$J44,TRUE) -> TRUE | BE8: =IF(OR($F45<>0,$J45<>0),$F45>=$J45,TRUE) -> TRUE | BF8: =IF(OR($F46<>0,$J46<>0),$F46>=$J46,TRUE) -> TRUE | BG8: =IF(OR($F47<>0,$J47<>0),$F47>=$J47,TRUE) -> TRUE | BH8: =IF(OR($F48<>0,$J48<>0),$F48>=$J48,TRUE) -> TRUE | BI8: =IF(OR($F49<>0,$J49<>0),$F49>=$J49,TRUE) -> TRUE | BJ8: =IF(OR($F50<>0,$J50<>0),$F50>=$J50,TRUE) -> TRUE | BK8: =IF(OR($F51<>0,$J51<>0),$F51>=$J51,TRUE) -> TRUE | BL8: =IF(OR($F52<>0,$J52<>0),$F52>=$J52,TRUE) -> TRUE | BM8: =IF(OR($F53<>0,$J53<>0),$F53>=$J53,TRUE) -> TRUE | BN8: =IF(OR($F54<>0,$J54<>0),$F54>=$J54,TRUE) -> TRUE | BO8: =IF(OR($F55<>0,$J55<>0),$F55>=$J55,TRUE) -> TRUE | BP8: =IF(OR($F56<>0,$J56<>0),$F56>=$J56,TRUE) -> TRUE | BQ8: =IF(OR($F57<>0,$J57<>0),$F57>=$J57,TRUE) -> TRUE | BR8: =IF(OR($F58<>0,$J58<>0),$F58>=$J58,TRUE) -> TRUE | BS8: =IF(OR($F59<>0,$J59<>0),$F59>=$J59,TRUE) -> TRUE | BT8: =IF(OR($F60<>0,$J60<>0),$F60>=$J60,TRUE) -> TRUE | BU8: =IF(OR($F61<>0,$J61<>0),$F61>=$J61,TRUE) -> TRUE | BV8: =IF(OR($F62<>0,$J62<>0),$F62>=$J62,TRUE) -> TRUE | BW8: =IF(OR($F63<>0,$J63<>0),$F63>=$J63,TRUE) -> TRUE | BX8: =IF(OR($F64<>0,$J64<>0),$F64>=$J64,TRUE) -> TRUE | BY8: =IF(OR($F65<>0,$J65<>0),$F65>=$J65,TRUE) -> TRUE | BZ8: =IF(OR($F66<>0,$J66<>0),$F66>=$J66,TRUE) -> TRUE | CA8: =IF(OR($F67<>0,$J67<>0),$F67>=$J67,TRUE) -> TRUE | CB8: =IF(OR($F68<>0,$J68<>0),$F68>=$J68,TRUE) -> TRUE | CC8: =IF(OR($F69<>0,$J69<>0),$F69>=$J69,TRUE) -> TRUE | CD8: =IF(OR($F70<>0,$J70<>0),$F70>=$J70,TRUE) -> TRUE | CE8: =IF(OR($F71<>0,$J71<>0),$F71>=$J71,TRUE) -> TRUE | CF8: =IF(OR($F72<>0,$J72<>0),$F72>=$J72,TRUE) -> TRUE | CG8: =IF(OR($F73<>0,$J73<>0),$F73>=$J73,TRUE) -> TRUE | CH8: =IF(OR($F74<>0,$J74<>0),$F74>=$J74,TRUE) -> TRUE | CI8: =IF(OR($F75<>0,$J75<>0),$F75>=$J75,TRUE) -> TRUE | CJ8: =IF(OR($F76<>0,$J76<>0),$F76>=$J76,TRUE) -> TRUE | CK8: =IF(OR($F77<>0,$J77<>0),$F77>=$J77,TRUE) -> TRUE | CL8: =IF(OR($F78<>0,$J78<>0),$F78>=$J78,TRUE) -> TRUE
B9: Новообразования | C9: 2 | D9: C00-D48 | E9: 0 | I9: 0 | J9: 0 | O9: =IF(Q9>0,"гр.6 >= гр.10 по строке "&P9,"ОК") -> ОК | P9: =IF(Q9>0,INDEX($C$7:$C$78,Q9,1),CHAR(151)) -> — | Q9: =IF(ISERROR(MATCH(FALSE,S9:CL9,0)),0,MATCH(FALSE,S9:CL9,0)) -> 0 | S9: =IF(OR($G7<>0,$K7<>0),$G7>=$K7,TRUE) -> TRUE | T9: =IF(OR($G8<>0,$K8<>0),$G8>=$K8,TRUE) -> TRUE | U9: =IF(OR($G9<>0,$K9<>0),$G9>=$K9,TRUE) -> TRUE | V9: =IF(OR($G10<>0,$K10<>0),$G10>=$K10,TRUE) -> TRUE | W9: =IF(OR($G11<>0,$K11<>0),$G11>=$K11,TRUE) -> TRUE | X9: =IF(OR($G12<>0,$K12<>0),$G12>=$K12,TRUE) -> TRUE | Y9: =IF(OR($G13<>0,$K13<>0),$G13>=$K13,TRUE) -> TRUE | Z9: =IF(OR($G14<>0,$K14<>0),$G14>=$K14,TRUE) -> TRUE | AA9: =IF(OR($G15<>0,$K15<>0),$G15>=$K15,TRUE) -> TRUE | AB9: =IF(OR($G16<>0,$K16<>0),$G16>=$K16,TRUE) -> TRUE | AC9: =IF(OR($G17<>0,$K17<>0),$G17>=$K17,TRUE) -> TRUE | AD9: =IF(OR($G18<>0,$K18<>0),$G18>=$K18,TRUE) -> TRUE | AE9: =IF(OR($G19<>0,$K19<>0),$G19>=$K19,TRUE) -> TRUE | AF9: =IF(OR($G20<>0,$K20<>0),$G20>=$K20,TRUE) -> TRUE | AG9: =IF(OR($G21<>0,$K21<>0),$G21>=$K21,TRUE) -> TRUE | AH9: =IF(OR($G22<>0,$K22<>0),$G22>=$K22,TRUE) -> TRUE | AI9: =IF(OR($G23<>0,$K23<>0),$G23>=$K23,TRUE) -> TRUE | AJ9: =IF(OR($G24<>0,$K24<>0),$G24>=$K24,TRUE) -> TRUE | AK9: =IF(OR($G25<>0,$K25<>0),$G25>=$K25,TRUE) -> TRUE | AL9: =IF(OR($G26<>0,$K26<>0),$G26>=$K26,TRUE) -> TRUE | AM9: =IF(OR($G27<>0,$K27<>0),$G27>=$K27,TRUE) -> TRUE | AN9: =IF(OR($G28<>0,$K28<>0),$G28>=$K28,TRUE) -> TRUE | AO9: =IF(OR($G29<>0,$K29<>0),$G29>=$K29,TRUE) -> TRUE | AP9: =IF(OR($G30<>0,$K30<>0),$G30>=$K30,TRUE) -> TRUE | AQ9: =IF(OR($G31<>0,$K31<>0),$G31>=$K31,TRUE) -> TRUE | AR9: =IF(OR($G32<>0,$K32<>0),$G32>=$K32,TRUE) -> TRUE | AS9: =IF(OR($G33<>0,$K33<>0),$G33>=$K33,TRUE) -> TRUE | AT9: =IF(OR($G34<>0,$K34<>0),$G34>=$K34,TRUE) -> TRUE | AU9: =IF(OR($G35<>0,$K35<>0),$G35>=$K35,TRUE) -> TRUE | AV9: =IF(OR($G36<>0,$K36<>0),$G36>=$K36,TRUE) -> TRUE | AW9: =IF(OR($G37<>0,$K37<>0),$G37>=$K37,TRUE) -> TRUE | AX9: =IF(OR($G38<>0,$K38<>0),$G38>=$K38,TRUE) -> TRUE | AY9: =IF(OR($G39<>0,$K39<>0),$G39>=$K39,TRUE) -> TRUE | AZ9: =IF(OR($G40<>0,$K40<>0),$G40>=$K40,TRUE) -> TRUE | BA9: =IF(OR($G41<>0,$K41<>0),$G41>=$K41,TRUE) -> TRUE | BB9: =IF(OR($G42<>0,$K42<>0),$G42>=$K42,TRUE) -> TRUE | BC9: =IF(OR($G43<>0,$K43<>0),$G43>=$K43,TRUE) -> TRUE | BD9: =IF(OR($G44<>0,$K44<>0),$G44>=$K44,TRUE) -> TRUE | BE9: =IF(OR($G45<>0,$K45<>0),$G45>=$K45,TRUE) -> TRUE | BF9: =IF(OR($G46<>0,$K46<>0),$G46>=$K46,TRUE) -> TRUE | BG9: =IF(OR($G47<>0,$K47<>0),$G47>=$K47,TRUE) -> TRUE | BH9: =IF(OR($G48<>0,$K48<>0),$G48>=$K48,TRUE) -> TRUE | BI9: =IF(OR($G49<>0,$K49<>0),$G49>=$K49,TRUE) -> TRUE | BJ9: =IF(OR($G50<>0,$K50<>0),$G50>=$K50,TRUE) -> TRUE | BK9: =IF(OR($G51<>0,$K51<>0),$G51>=$K51,TRUE) -> TRUE | BL9: =IF(OR($G52<>0,$K52<>0),$G52>=$K52,TRUE) -> TRUE | BM9: =IF(OR($G53<>0,$K53<>0),$G53>=$K53,TRUE) -> TRUE | BN9: =IF(OR($G54<>0,$K54<>0),$G54>=$K54,TRUE) -> TRUE | BO9: =IF(OR($G55<>0,$K55<>0),$G55>=$K55,TRUE) -> TRUE | BP9: =IF(OR($G56<>0,$K56<>0),$G56>=$K56,TRUE) -> TRUE | BQ9: =IF(OR($G57<>0,$K57<>0),$G57>=$K57,TRUE) -> TRUE | BR9: =IF(OR($G58<>0,$K58<>0),$G58>=$K58,TRUE) -> TRUE | BS9: =IF(OR($G59<>0,$K59<>0),$G59>=$K59,TRUE) -> TRUE | BT9: =IF(OR($G60<>0,$K60<>0),$G60>=$K60,TRUE) -> TRUE | BU9: =IF(OR($G61<>0,$K61<>0),$G61>=$K61,TRUE) -> TRUE | BV9: =IF(OR($G62<>0,$K62<>0),$G62>=$K62,TRUE) -> TRUE | BW9: =IF(OR($G63<>0,$K63<>0),$G63>=$K63,TRUE) -> TRUE | BX9: =IF(OR($G64<>0,$K64<>0),$G64>=$K64,TRUE) -> TRUE | BY9: =IF(OR($G65<>0,$K65<>0),$G65>=$K65,TRUE) -> TRUE | BZ9: =IF(OR($G66<>0,$K66<>0),$G66>=$K66,TRUE) -> TRUE | CA9: =IF(OR($G67<>0,$K67<>0),$G67>=$K67,TRUE) -> TRUE | CB9: =IF(OR($G68<>0,$K68<>0),$G68>=$K68,TRUE) -> TRUE | CC9: =IF(OR($G69<>0,$K69<>0),$G69>=$K69,TRUE) -> TRUE | CD9: =IF(OR($G70<>0,$K70<>0),$G70>=$K70,TRUE) -> TRUE | CE9: =IF(OR($G71<>0,$K71<>0),$G71>=$K71,TRUE) -> TRUE | CF9: =IF(OR($G72<>0,$K72<>0),$G72>=$K72,TRUE) -> TRUE | CG9: =IF(OR($G73<>0,$K73<>0),$G73>=$K73,TRUE) -> TRUE | CH9: =IF(OR($G74<>0,$K74<>0),$G74>=$K74,TRUE) -> TRUE | CI9: =IF(OR($G75<>0,$K75<>0),$G75>=$K75,TRUE) -> TRUE | CJ9: =IF(OR($G76<>0,$K76<>0),$G76>=$K76,TRUE) -> TRUE | CK9: =IF(OR($G77<>0,$K77<>0),$G77>=$K77,TRUE) -> TRUE | CL9: =IF(OR($G78<>0,$K78<>0),$G78>=$K78,TRUE) -> TRUE
B10: Злокачественные новообразования | C10: 2.1 | D10: C00 - С97 | E10: 0 | I10: 0 | J10: 0 | K10: ='профосмотры 124н'!$N$8 -> 0 | L10: ='профосмотры 124н'!$N$16 -> 0 | O10: =IF(Q10>0,"гр.7 >= гр.12 по строке "&P10,"ОК") -> ОК | P10: =IF(Q10>0,INDEX($C$7:$C$78,Q10,1),CHAR(151)) -> — | Q10: =IF(ISERROR(MATCH(FALSE,S10:CL10,0)),0,MATCH(FALSE,S10:CL10,0)) -> 0 | S10: =IF(OR($H7<>0,$M7<>0),$H7>=$M7,TRUE) -> TRUE | T10: =IF(OR($H8<>0,$M8<>0),$H8>=$M8,TRUE) -> TRUE | U10: =IF(OR($H9<>0,$M9<>0),$H9>=$M9,TRUE) -> TRUE | V10: =IF(OR($H10<>0,$M10<>0),$H10>=$M10,TRUE) -> TRUE | W10: =IF(OR($H11<>0,$M11<>0),$H11>=$M11,TRUE) -> TRUE | X10: =IF(OR($H12<>0,$M12<>0),$H12>=$M12,TRUE) -> TRUE | Y10: =IF(OR($H13<>0,$M13<>0),$H13>=$M13,TRUE) -> TRUE | Z10: =IF(OR($H14<>0,$M14<>0),$H14>=$M14,TRUE) -> TRUE | AA10: =IF(OR($H15<>0,$M15<>0),$H15>=$M15,TRUE) -> TRUE | AB10: =IF(OR($H16<>0,$M16<>0),$H16>=$M16,TRUE) -> TRUE | AC10: =IF(OR($H17<>0,$M17<>0),$H17>=$M17,TRUE) -> TRUE | AD10: =IF(OR($H18<>0,$M18<>0),$H18>=$M18,TRUE) -> TRUE | AE10: =IF(OR($H19<>0,$M19<>0),$H19>=$M19,TRUE) -> TRUE | AF10: =IF(OR($H20<>0,$M20<>0),$H20>=$M20,TRUE) -> TRUE | AG10: =IF(OR($H21<>0,$M21<>0),$H21>=$M21,TRUE) -> TRUE | AH10: =IF(OR($H22<>0,$M22<>0),$H22>=$M22,TRUE) -> TRUE | AI10: =IF(OR($H23<>0,$M23<>0),$H23>=$M23,TRUE) -> TRUE | AJ10: =IF(OR($H24<>0,$M24<>0),$H24>=$M24,TRUE) -> TRUE | AK10: =IF(OR($H25<>0,$M25<>0),$H25>=$M25,TRUE) -> TRUE | AL10: =IF(OR($H26<>0,$M26<>0),$H26>=$M26,TRUE) -> TRUE | AM10: =IF(OR($H27<>0,$M27<>0),$H27>=$M27,TRUE) -> TRUE | AN10: =IF(OR($H28<>0,$M28<>0),$H28>=$M28,TRUE) -> TRUE | AO10: =IF(OR($H29<>0,$M29<>0),$H29>=$M29,TRUE) -> TRUE | AP10: =IF(OR($H30<>0,$M30<>0),$H30>=$M30,TRUE) -> TRUE | AQ10: =IF(OR($H31<>0,$M31<>0),$H31>=$M31,TRUE) -> TRUE | AR10: =IF(OR($H32<>0,$M32<>0),$H32>=$M32,TRUE) -> TRUE | AS10: =IF(OR($H33<>0,$M33<>0),$H33>=$M33,TRUE) -> TRUE | AT10: =IF(OR($H34<>0,$M34<>0),$H34>=$M34,TRUE) -> TRUE | AU10: =IF(OR($H35<>0,$M35<>0),$H35>=$M35,TRUE) -> TRUE | AV10: =IF(OR($H36<>0,$M36<>0),$H36>=$M36,TRUE) -> TRUE | AW10: =IF(OR($H37<>0,$M37<>0),$H37>=$M37,TRUE) -> TRUE | AX10: =IF(OR($H38<>0,$M38<>0),$H38>=$M38,TRUE) -> TRUE | AY10: =IF(OR($H39<>0,$M39<>0),$H39>=$M39,TRUE) -> TRUE | AZ10: =IF(OR($H40<>0,$M40<>0),$H40>=$M40,TRUE) -> TRUE | BA10: =IF(OR($H41<>0,$M41<>0),$H41>=$M41,TRUE) -> TRUE | BB10: =IF(OR($H42<>0,$M42<>0),$H42>=$M42,TRUE) -> TRUE | BC10: =IF(OR($H43<>0,$M43<>0),$H43>=$M43,TRUE) -> TRUE | BD10: =IF(OR($H44<>0,$M44<>0),$H44>=$M44,TRUE) -> TRUE | BE10: =IF(OR($H45<>0,$M45<>0),$H45>=$M45,TRUE) -> TRUE | BF10: =IF(OR($H46<>0,$M46<>0),$H46>=$M46,TRUE) -> TRUE | BG10: =IF(OR($H47<>0,$M47<>0),$H47>=$M47,TRUE) -> TRUE | BH10: =IF(OR($H48<>0,$M48<>0),$H48>=$M48,TRUE) -> TRUE | BI10: =IF(OR($H49<>0,$M49<>0),$H49>=$M49,TRUE) -> TRUE | BJ10: =IF(OR($H50<>0,$M50<>0),$H50>=$M50,TRUE) -> TRUE | BK10: =IF(OR($H51<>0,$M51<>0),$H51>=$M51,TRUE) -> TRUE | BL10: =IF(OR($H52<>0,$M52<>0),$H52>=$M52,TRUE) -> TRUE | BM10: =IF(OR($H53<>0,$M53<>0),$H53>=$M53,TRUE) -> TRUE | BN10: =IF(OR($H54<>0,$M54<>0),$H54>=$M54,TRUE) -> TRUE | BO10: =IF(OR($H55<>0,$M55<>0),$H55>=$M55,TRUE) -> TRUE | BP10: =IF(OR($H56<>0,$M56<>0),$H56>=$M56,TRUE) -> TRUE | BQ10: =IF(OR($H57<>0,$M57<>0),$H57>=$M57,TRUE) -> TRUE | BR10: =IF(OR($H58<>0,$M58<>0),$H58>=$M58,TRUE) -> TRUE | BS10: =IF(OR($H59<>0,$M59<>0),$H59>=$M59,TRUE) -> TRUE | BT10: =IF(OR($H60<>0,$M60<>0),$H60>=$M60,TRUE) -> TRUE | BU10: =IF(OR($H61<>0,$M61<>0),$H61>=$M61,TRUE) -> TRUE | BV10: =IF(OR($H62<>0,$M62<>0),$H62>=$M62,TRUE) -> TRUE | BW10: =IF(OR($H63<>0,$M63<>0),$H63>=$M63,TRUE) -> TRUE | BX10: =IF(OR($H64<>0,$M64<>0),$H64>=$M64,TRUE) -> TRUE | BY10: =IF(OR($H65<>0,$M65<>0),$H65>=$M65,TRUE) -> TRUE | BZ10: =IF(OR($H66<>0,$M66<>0),$H66>=$M66,TRUE) -> TRUE | CA10: =IF(OR($H67<>0,$M67<>0),$H67>=$M67,TRUE) -> TRUE | CB10: =IF(OR($H68<>0,$M68<>0),$H68>=$M68,TRUE) -> TRUE | CC10: =IF(OR($H69<>0,$M69<>0),$H69>=$M69,TRUE) -> TRUE | CD10: =IF(OR($H70<>0,$M70<>0),$H70>=$M70,TRUE) -> TRUE | CE10: =IF(OR($H71<>0,$M71<>0),$H71>=$M71,TRUE) -> TRUE | CF10: =IF(OR($H72<>0,$M72<>0),$H72>=$M72,TRUE) -> TRUE | CG10: =IF(OR($H73<>0,$M73<>0),$H73>=$M73,TRUE) -> TRUE | CH10: =IF(OR($H74<>0,$M74<>0),$H74>=$M74,TRUE) -> TRUE | CI10: =IF(OR($H75<>0,$M75<>0),$H75>=$M75,TRUE) -> TRUE | CJ10: =IF(OR($H76<>0,$M76<>0),$H76>=$M76,TRUE) -> TRUE | CK10: =IF(OR($H77<>0,$M77<>0),$H77>=$M77,TRUE) -> TRUE | CL10: =IF(OR($H78<>0,$M78<>0),$H78>=$M78,TRUE) -> TRUE
B11: Из них губы, полости рта и глотки | C11: 2.2 | D11: C00 - С14 | E11: 0 | I11: 0 | J11: 0 | O11: =IF(Q11>0,"стр.2.1 < суммы строк (2.2.+2.4+2.6+2.8+2.10+2.12+2.14+2.16+2.18+2.21+2.24) по графе "&P11,"ОК") -> ОК | P11: =IF(Q11>0,INDEX($F$6:$N$6,1,Q11),CHAR(151)) -> — | Q11: =IF(ISERROR(MATCH(FALSE,S11:AA11,0)),0,MATCH(FALSE,S11:AA11,0)) -> 0 | R11: данные по строке 2.1 д.б. больше или равны суммы строк (2.2.+2.4+2.6+2.8+2.10+2.12+2.14+2.16+2.18+2.21+2.24) по всем графам | S11: =F10>=SUM(F11,F13,F15,F17,F19,F21,F23,F25,F27,F30,F33) -> TRUE | T11: =G10>=SUM(G11,G13,G15,G17,G19,G21,G23,G25,G27,G30,G33) -> TRUE | U11: TRUE | V11: =I10>=SUM(I11,I13,I15,I17,I19,I21,I23,I25,I27,I30,I33) -> TRUE | W11: =J10>=SUM(J11,J13,J15,J17,J19,J21,J23,J25,J27,J30,J33) -> TRUE | X11: TRUE | Y11: TRUE | Z11: TRUE | AA11: TRUE
B12: из них в 1-2 стадии | C12: 2.3 | E12: 0 | I12: 0 | J12: 0 | O12: =IF(Q12>0,"стр.2 < стр.2.1 по графе "&P12,"ОК") -> ОК | P12: =IF(Q12>0,INDEX($F$6:$N$6,1,Q12),CHAR(151)) -> — | Q12: =IF(ISERROR(MATCH(FALSE,S12:AA12,0)),0,MATCH(FALSE,S12:AA12,0)) -> 0 | R12: строка 2 д.б больше или равна строке 2.1 | S12: =F9>=F10 -> TRUE | T12: =G9>=G10 -> TRUE | U12: TRUE | V12: TRUE | W12: TRUE | X12: TRUE | Y12: TRUE | Z12: TRUE | AA12: TRUE
B13: пищевода | C13: 2.4 | D13: С15 | E13: 0 | I13: 0 | J13: 0
B14: из них в 1-2 стадии | C14: 2.5 | E14: 0 | I14: 0 | J14: 0
B15: желудка | C15: 2.6 | D15: С16 | E15: 0 | I15: 0 | J15: 0
B16: из них в 1-2 стадии | C16: 2.7 | E16: 0 | I16: 0 | J16: 0
B17: тонкого кишечника | C17: 2.8 | D17: С17 | E17: 0 | I17: 0 | J17: 0
B18: из них в 1-2 стадии | C18: 2.9 | E18: 0 | I18: 0 | J18: 0
B19: ободочной кишки | C19: 2.10 | D19: С18 | E19: 0 | I19: 0 | J19: 0
B20: из них в 1-2 стадии | C20: 2.11 | E20: 0 | I20: 0 | J20: 0
B21: ректосигмоидного соединения, прямой кишки, заднего прохода (ануса) и анального канала | C21: 2.12 | D21: С19 - С21 | E21: 0 | I21: 0 | J21: 0
B22: из них в 1-2 стадии | C22: 2.13 | E22: 0 | I22: 0 | J22: 0
B23: трахеи, бронхов, легкого | C23: 2.14 | D23: C33, | E23: 0 | I23: 0 | J23: 0
B24: из них в 1-2 стадии | C24: 2.15 | D24: С34 | E24: 0 | I24: 0 | J24: 0
B25: кожи | C25: 2.16 | D25: С43- | E25: 0 | I25: 0 | J25: 0
B26: из них в 1-2 стадии | C26: 2.17 | D26: С44 | E26: 0 | I26: 0 | J26: 0
B27: молочной железы | C27: 2.18 | D27: С50 | E27: 0 | I27: 0 | J27: 0
B28: из них в 0-1 стадии | C28: 2.19 | E28: 0 | I28: 0 | J28: 0
B29: 2 стадии | C29: 2.20 | E29: 0 | I29: 0 | J29: 0
B30: шейки матки | C30: 2.21 | D30: С53 | E30: 0 | I30: 0 | J30: 0
B31: из них в 0-1 стадии | C31: 2.22 | E31: 0 | I31: 0 | J31: 0
B32: 2 стадии | C32: 2.23 | E32: 0 | I32: 0 | J32: 0
B33: предстательной железы | C33: 2.24 | D33: С61 | E33: 0 | I33: 0 | J33: 0
B34: из них в 1-2 стадии | C34: 2.25 | E34: 0 | I34: 0 | J34: 0
B35: Болезни крови, кроветворных органов и отдельные нарушения, вовлекающие иммунный механизм | C35: 3 | D35: D50-D89 | E35: 0 | I35: 0 | J35: 0 | O35: =IF(Q35>0,"стр.3 < стр.3.1 по графе "&P35,"ОК") -> ОК | P35: =IF(Q35>0,INDEX($F$6:$N$6,1,Q35),CHAR(151)) -> — | Q35: =IF(ISERROR(MATCH(FALSE,S35:AA35,0)),0,MATCH(FALSE,S35:AA35,0)) -> 0 | R35: данные по строке 3 должны быть больше или равны по соотв.графам строки 3.1 | S35: =F35>=F36 -> TRUE | T35: =G35>=G36 -> TRUE | U35: TRUE | V35: TRUE | W35: TRUE | X35: TRUE | Y35: TRUE | Z35: TRUE | AA35: TRUE
B36: в том числе: анемии, связанные с питанием, гемолитические анемии, апластические и другие анемии | C36: 3.1 | D36: D50-D64 | E36: 0 | I36: 0 | J36: 0
B37: Болезни эндокринной системы, расстройства питания и нарушения обмена веществ | C37: 4 | D37: Е00-Е90 | E37: 0 | I37: 0 | J37: 0 | O37: =IF(Q37>0,"стр.4 < суммы строк(4.1+4.3+4.4) по графе "&P37,"ОК") -> ОК | P37: =IF(Q37>0,INDEX($F$6:$N$6,1,Q37),CHAR(151)) -> — | Q37: =IF(ISERROR(MATCH(FALSE,S37:AA37,0)),0,MATCH(FALSE,S37:AA37,0)) -> 0 | R37: данные по строке 4 должны быть больше или равны по соотв.графам строки 4.1 и больше или равны суммы строк(4.1+4.3+4.4) | S37: =F37>=SUM(F38,F40:F41) -> TRUE | T37: =G37>=SUM(G38,G40:G41) -> TRUE | U37: TRUE | V37: TRUE | W37: TRUE | X37: TRUE | Y37: TRUE | Z37: TRUE | AA37: TRUE
B38: Сахарный диабет | C38: 4.1 | D38: Е10 - Е14 | E38: 0 | I38: 0 | J38: 0 | K38: ='профосмотры 124н'!$P$8 -> 0 | L38: ='профосмотры 124н'!$P$16 -> 0
B39: из него: инсулиннезависимый сахарный диабет | C39: 4.2 | D39: Е11 | E39: 0 | I39: 0 | J39: 0
B40: ожирение | C40: 4.3 | D40: Е66 | E40: 0 | I40: 0 | J40: 0
B41: нарушения обмена липопротеинов и другие липидемии | C41: 4.4 | D41: Е78 | E41: 0 | I41: 0 | J41: 0
B42: Болезни нервной системы | C42: 5 | D42: G00-G99 | E42: 0 | I42: 0 | J42: 0 | O42: =IF(Q42>0,"стр.5 < стр.5.1 по графе "&P42,"ОК") -> ОК | P42: =IF(Q42>0,INDEX($F$6:$N$6,1,Q42),CHAR(151)) -> — | Q42: =IF(ISERROR(MATCH(FALSE,S42:AA42,0)),0,MATCH(FALSE,S42:AA42,0)) -> 0 | R42: данные по строке 5 должны быть больше или равны по соотв.графам строки 5.1 | S42: =F42>=F43 -> TRUE | T42: =G42>=G43 -> TRUE | U42: TRUE | V42: TRUE | W42: TRUE | X42: TRUE | Y42: TRUE | Z42: TRUE | AA42: TRUE
B43: Преходящие церебральные ишемические приступы (атаки) и родственные синдромы | C43: 5.1 | D43: G45 | E43: 0 | I43: 0 | J43: 0
B44: Болезни глаза и его придаточного аппарата | C44: 6 | D44: Н00-Н59 | E44: 0 | I44: 0 | J44: 0 | O44: =IF(Q44>0,"стр.6 < суммы строк(6.1+6.2+6.3) по графе "&P44,"ОК") -> ОК | P44: =IF(Q44>0,INDEX($F$6:$N$6,1,Q44),CHAR(151)) -> — | Q44: =IF(ISERROR(MATCH(FALSE,S44:AA44,0)),0,MATCH(FALSE,S44:AA44,0)) -> 0 | R44: данные по строке 6 должны быть больше или равны по соотв.графам суммы строк(6.1+6.2+6.3) | S44: =F44>=SUM(F45:F47) -> TRUE | T44: TRUE | U44: TRUE | V44: TRUE | W44: TRUE | X44: TRUE | Y44: TRUE | Z44: TRUE | AA44: TRUE
B45: Старческая катаракта и другие катаракты | C45: 6.1 | D45: Н25, Н26 | E45: 0 | I45: 0 | J45: 0
B46: Глаукома | C46: 6.2 | D46: Н40 | E46: 0 | I46: 0 | J46: 0 | K46: ='профосмотры 124н'!$R$8 -> 0 | L46: ='профосмотры 124н'!$R$16 -> 0
B47: Слепота и пониженное зрение | C47: 6.3 | D47: Н54 | E47: 0 | I47: 0 | J47: 0
B48: Болезни системы кровообращения | C48: 7 | D48: I00-I99 | E48: 1 | F48: 1 | G48: 1 | I48: 1 | J48: 1 | K48: ='профосмотры 124н'!$M$8 -> 1 | L48: ='профосмотры 124н'!$M$16 -> 1 | O48: =IF(Q48>0,"стр.7 < суммы строк(7.1+7.2+7.4+7.6) по графе "&P48,"ОК") -> ОК | P48: =IF(Q48>0,INDEX($F$6:$N$6,1,Q48),CHAR(151)) -> — | Q48: =IF(ISERROR(MATCH(FALSE,S48:AA48,0)),0,MATCH(FALSE,S48:AA48,0)) -> 0 | R48: данные по строке 7 должны быть больше или равны по соотв.графам суммы строк(7.1+7.2+7.4+7.6) | S48: =F48>=SUM(F49:F50,F55,F59) -> TRUE | T48: =G48>=SUM(G49:G50,G55,G59) -> TRUE | U48: TRUE | V48: TRUE | W48: TRUE | X48: TRUE | Y48: TRUE | Z48: TRUE | AA48: TRUE
B49: из них болезни, характеризующиеся повышенным кровяным давлением | C49: 7.1 | D49: I10 - I13 | E49: 0 | I49: 0 | J49: 0
B50: ишемические болезни сердца | C50: 7.2 | D50: I20 - I25 | E50: 0 | I50: 0 | J50: 0
B51: в том числе: стенокардия (грудная жаба) | C51: 7.2.1 | D51: I20 | E51: 0 | I51: 0 | J51: 0
B52: в том числе нестабильная стенокардия | C52: 7.2.2 | D52: I20.0 | E52: 0 | I52: 0 | J52: 0
B53: хроническая ишемическая болезнь сердца | C53: 7.3 | D53: I25 | E53: 0 | I53: 0 | J53: 0
B54: в том числе: перенесенный в прошлом инфаркт миокарда | C54: 7.3.1 | D54: I25.2 | E54: 0 | I54: 0 | J54: 0
B55: другие болезни сердца | C55: 7.4 | D55: I30-I52 | E55: 0 | I55: 0 | J55: 0
B56: цереброваскулярные болезни | C56: 7.5 | D56: I60 - I69 | E56: 0 | I56: 0 | J56: 0
B57: из них: закупорка и стеноз прецеребральных и (или) церебральных артерий, не приводящие к инфаркту мозга | C57: 7.5.1 | D57: I65, I66 | E57: 0 | I57: 0 | J57: 0
B58: другие цереброваскулярные болезни | C58: 7.5.2 | D58: I67 | E58: 0 | I58: 0 | J58: 0
B59: аневризма брюшной аорты | C59: 7.6 | D59: I71.3-I71.4 | E59: 0 | I59: 0 | J59: 0
B60: Болезни органов дыхания | C60: 8.0 | D60: J00-J98 | E60: 0 | I60: 0 | J60: 0 | K60: ='профосмотры 124н'!$S$8 -> 0 | L60: ='профосмотры 124н'!$S$16 -> 0 | O60: =IF(Q60>0,"стр.8 < суммы строк(8.1+8.2+8.3) по графе "&P60,"ОК") -> ОК | P60: =IF(Q60>0,INDEX($F$6:$N$6,1,Q60),CHAR(151)) -> — | Q60: =IF(ISERROR(MATCH(FALSE,S60:AA60,0)),0,MATCH(FALSE,S60:AA60,0)) -> 0 | R60: данные по строке 8 должны быть больше или равны по соотв.графам суммы строк(8.1+8.2+8.3) | S60: =F60>=SUM(F61:F63) -> TRUE | T60: =G60>=SUM(G61:G63) -> TRUE | U60: TRUE | V60: TRUE | W60: TRUE | X60: TRUE | Y60: TRUE | Z60: TRUE | AA60: TRUE
B61: в том числе: вирусная пневмония, пневмония, вызванная Streptococcus pneumonia, пневмония, вызванная Haemophilus influenza, бактериальная пневмония, пневмония, вызванная другими инфекционными возбудителями, пневмония при болезнях, классифицированных в других рубриках, пневмония без уточнения возбудителя | C61: 8.1 | D61: J12-J18 | E61: 0 | I61: 0 | J61: 0
B62: Бронхит, не уточненный как острый и хронический, простой и слизисто-гнойный хронический бронхит, хронический бронхит неуточненный, эмфизема | C62: 8.2 | D62: J40 - J43 | E62: 0 | I62: 0 | J62: 0
B63: Другая хроническая обструктивная легочная болезнь, астма, астматический статус, бронхоэктатическая болезнь | C63: 8.3 | D63: J44 - J47 | E63: 0 | I63: 0 | J63: 0
B64: Болезни органов пищеварения | C64: 9.0 | D64: К00-К93 | E64: 0 | I64: 0 | J64: 0 | K64: ='профосмотры 124н'!$T$8 -> 0 | L64: ='профосмотры 124н'!$T$16 -> 0 | O64: =IF(Q64>0,"стр.9 < суммы строк(9.1+9.2+9.3+9.4) по графе "&P64,"ОК") -> ОК | P64: =IF(Q64>0,INDEX($F$6:$N$6,1,Q64),CHAR(151)) -> — | Q64: =IF(ISERROR(MATCH(FALSE,S64:AA64,0)),0,MATCH(FALSE,S64:AA64,0)) -> 0 | R64: данные по строке 9 должны быть больше или равны по соотв.графам суммы строк(9.1+9.2+9.3+9.4) | S64: =F64>=SUM(F65:F68) -> TRUE | T64: =G64>=SUM(G65:G68) -> TRUE | U64: TRUE | V64: TRUE | W64: TRUE | X64: TRUE | Y64: TRUE | Z64: TRUE | AA64: TRUE
B65: язва желудка, язва двенадцатиперстной кишки | C65: 9.1 | D65: K25, К26 | E65: 0 | I65: 0 | J65: 0
B66: гастрит и дуоденит | C66: 9.2 | D66: K29 | E66: 0 | I66: 0 | J66: 0
B67: неинфекционный энтерит и колит | C67: 9.3 | D67: К50-К52 | E67: 0 | I67: 0 | J67: 0
B68: другие болезни кишечника | C68: 9.4 | D68: К55-К63 | E68: 0 | I68: 0 | J68: 0
B69: Прочие заболевания | C69: 10.0 | E69: =SUM(E70+E74+E76+E77) -> 0 | F69: =SUM(F70+F74+F76+F77) -> 0 | G69: 0 | H69: 0 | I69: 0 | J69: 0 | K69: 0 | L69: 0 | M69: 0 | N69: 0 | O69: =IF(Q69>0,"стр.10.1 < суммы строк(10.1.1+10.1.2+10.1.3) по графе "&P69,"ОК") -> ОК | P69: =IF(Q69>0,INDEX($F$6:$N$6,1,Q69),CHAR(151)) -> — | Q69: =IF(ISERROR(MATCH(FALSE,S69:AA69,0)),0,MATCH(FALSE,S69:AA69,0)) -> 0 | R69: данные по строке 10.1 должны быть больше или равны по соотв.графам суммы строк(10.1.1+10.1.2+10.1.3) | S69: =F70>=SUM(F71:F73) -> TRUE | T69: =G70>=SUM(G71:G73) -> TRUE | U69: TRUE | V69: TRUE | W69: TRUE | X69: TRUE | Y69: TRUE | Z69: TRUE | AA69: TRUE
B70: Болезни мочеполовой системы | C70: 10.1 | D70: N00-N99 | E70: =G70+H70 -> 0 | I70: 0 | J70: 0
B71: в том числе: гиперплазия предстательной железы, воспалительные болезни предстательной железы, другие болезни предстательной железы | C71: 10.1.1 | D71: N40-N42 | E71: 0 | I71: 0 | J71: 0
B72: доброкачественная дисплазия молочной железы | C72: 10.1.2 | D72: N60 | E72: 0 | I72: =K72+M72 -> 0 | J72: =L72+N72 -> 0
B73: воспалительные болезни женских тазовых органов | C73: 10.1.3 | D73: N70-N77 | E73: 0 | I73: 0 | J73: 0
B74: Болезни уха и сосцевидного отростка | C74: 11.0 | D74: Н60-Н95 | E74: 0 | I74: 0 | J74: 0 | O74: =IF(Q74>0,"стр.11.0 < стр.11.1 по графе "&P74,"ОК") -> ОК | P74: =IF(Q74>0,INDEX($F$6:$N$6,1,Q74),CHAR(151)) -> — | Q74: =IF(ISERROR(MATCH(FALSE,S74:AA74,0)),0,MATCH(FALSE,S74:AA74,0)) -> 0 | R74: строка 11.0 д.б больше или равна строке 11.1 | S74: =F74>=F75 -> TRUE | T74: =G74>=G75 -> TRUE | U74: TRUE | V74: TRUE | W74: TRUE | X74: TRUE | Y74: TRUE | Z74: TRUE | AA74: TRUE
B75: Кондуктивная и нейросенсорная потеря слуха | C75: 11.1 | D75: Н90 | E75: 0 | I75: 0 | J75: 0
B76: Болезни кожи и подкожной клетчатки | C76: 12.0 | D76: L00-L98 | E76: 0 | I76: 0 | J76: 0
B77: Болезни костно-мышечной системы | C77: 13.0 | D77: М00-М99 | E77: =G77+H77 -> 0 | I77: 0 | J77: 0
B78: ИТОГО заболеваний | D78: А00-Т98 | E78: =E7+E9+E35+E37+E42+E44+E48+E60+E64+E69 -> 1 | F78: =F7+F9+F35+F37+F42+F44+F48+F60+F64+F69 -> 1 | G78: 1 | H78: 0 | I78: 1 | J78: 1 | K78: 1 | L78: 1 | M78: 0 | N78: 0 | O78: =IF(Q78>0,"стр.14.0 ≠ стр.15.0 по графе "&P78,"ОК") -> ОК | P78: =IF(Q78>0,INDEX($F$6:$N$6,1,Q78),CHAR(151)) -> — | Q78: =IF(ISERROR(MATCH(FALSE,S78:AA78,0)),0,MATCH(FALSE,S78:AA78,0)) -> 0 | R78: Данные строки 14.0 с 8 по13 графы должны быть равны строке 15.0 по тем же графам | S78: TRUE | T78: TRUE | U78: TRUE | V78: =I78=I79 -> TRUE | W78: TRUE | X78: TRUE | Y78: TRUE | Z78: TRUE | AA78: TRUE
B79: ='5000 и 5001 ДВН'!$B$79 -> контрольные цифры | I79: ='профосмотры 124н'!$L$8 -> 1 | J79: ='профосмотры 124н'!$U$16 -> 1 | K79: ='профосмотры 124н'!$L$8 -> 1 | L79: ='профосмотры 124н'!$U$16 -> 1
B80: (5001) | K80: Код по ОКЕИ: человек - 792
B81: Число лиц с артериальным давлением ниже 140/90 мм рт.ст. на фоне приема гипотензивных лекарственных препаратов, при наличии болезней, характеризующихся повышенным кровяным давлением (I10 - I15 по МКБ-10) | M81: 1 | N81: ;

Sheet 5000 и 5001 свод (hidden)
B1: Заболевания, выявленные при проведении профилактического медицинского осмотра (диспансеризации), установление диспансерного наблюдения
B2: (5000) | K2: Код по ОКЕИ: единица - 642
B3: Наименование классов и отдельных заболеваний | C3: N строки | D3: Код МКБ-10 | E3: Выявлено заболеваний | I3: из них: с впервые в жизни установленным диагнозом
E4: всего | G4: в том числе: | I4: всего | K4: в трудоспособном возрасте | M4: в возрасте старше трудоспособного
E5: всего | F5: из них: установлено диспансерное наблюдение | G5: В трудоспособном возрасте | H5: В возрасте старше трудоспособного | I5: всего | J5: из них: установлено диспансерное наблюдение | K5: всего | L5: из них: установлено диспансерное наблюдение | M5: всего | N5: из них: установлено диспансерное наблюдение | O5: Проверка | P5: Сделать проверку на соответствие значений с гр 4 и 8, 5 и 9, 6 и 10, 7 и 12, в паре второе число д. б. <= первого по всем строкам
B6: 1 | C6: 2 | D6: 3 | E6: 4 | F6: 5 | G6: 6 | H6: 7 | I6: 8 | J6: 9 | K6: 10 | L6: 11 | M6: 12 | N6: 13
B7: Некоторые инфекционные и паразитарные болезни | C7: 1 | D7: А00-В99 | E7: ='5000 и 5001 ДВН'!E7+'5000 и 5001 ПО'!E7 -> 1 | F7: ='5000 и 5001 ДВН'!F7+'5000 и 5001 ПО'!F7 -> 1 | G7: ='5000 и 5001 ДВН'!G7+'5000 и 5001 ПО'!G7 -> 1 | H7: ='5000 и 5001 ДВН'!H7+'5000 и 5001 ПО'!H7 -> 0 | I7: =K7+M7 -> 0 | J7: =L7+N7 -> 0 | K7: ='5000 и 5001 ДВН'!K7+'5000 и 5001 ПО'!K7 -> 0 | L7: ='5000 и 5001 ДВН'!L7+'5000 и 5001 ПО'!L7 -> 0 | M7: ='5000 и 5001 ДВН'!M7+'5000 и 5001 ПО'!M7 -> 0 | N7: ='5000 и 5001 ДВН'!N7+'5000 и 5001 ПО'!N7 -> 0 | O7: =IF(Q7>0,"гр.4 >= гр.8 по строке "&P7,"ОК") -> ОК | P7: =IF(Q7>0,INDEX($C$7:$C$78,Q7,1),CHAR(151)) -> — | Q7: =IF(ISERROR(MATCH(FALSE,S7:CL7,0)),0,MATCH(FALSE,S7:CL7,0)) -> 0 | S7: =IF(OR($E7<>0,$I7<>0),$E7>=$I7,TRUE) -> TRUE | T7: =IF(OR($E8<>0,$I8<>0),$E8>=$I8,TRUE) -> TRUE | U7: =IF(OR($E9<>0,$I9<>0),$E9>=$I9,TRUE) -> TRUE | V7: =IF(OR($E10<>0,$I10<>0),$E10>=$I10,TRUE) -> TRUE | W7: =IF(OR($E11<>0,$I11<>0),$E11>=$I11,TRUE) -> TRUE | X7: =IF(OR($E12<>0,$I12<>0),$E12>=$I12,TRUE) -> TRUE | Y7: =IF(OR($E13<>0,$I13<>0),$E13>=$I13,TRUE) -> TRUE | Z7: =IF(OR($E14<>0,$I14<>0),$E14>=$I14,TRUE) -> TRUE | AA7: =IF(OR($E15<>0,$I15<>0),$E15>=$I15,TRUE) -> TRUE | AB7: =IF(OR($E16<>0,$I16<>0),$E16>=$I16,TRUE) -> TRUE | AC7: =IF(OR($E17<>0,$I17<>0),$E17>=$I17,TRUE) -> TRUE | AD7: =IF(OR($E18<>0,$I18<>0),$E18>=$I18,TRUE) -> TRUE | AE7: =IF(OR($E19<>0,$I19<>0),$E19>=$I19,TRUE) -> TRUE | AF7: =IF(OR($E20<>0,$I20<>0),$E20>=$I20,TRUE) -> TRUE | AG7: =IF(OR($E21<>0,$I21<>0),$E21>=$I21,TRUE) -> TRUE | AH7: =IF(OR($E22<>0,$I22<>0),$E22>=$I22,TRUE) -> TRUE | AI7: =IF(OR($E23<>0,$I23<>0),$E23>=$I23,TRUE) -> TRUE | AJ7: =IF(OR($E24<>0,$I24<>0),$E24>=$I24,TRUE) -> TRUE | AK7: =IF(OR($E25<>0,$I25<>0),$E25>=$I25,TRUE) -> TRUE | AL7: =IF(OR($E26<>0,$I26<>0),$E26>=$I26,TRUE) -> TRUE | AM7: =IF(OR($E27<>0,$I27<>0),$E27>=$I27,TRUE) -> TRUE | AN7: =IF(OR($E28<>0,$I28<>0),$E28>=$I28,TRUE) -> TRUE | AO7: =IF(OR($E29<>0,$I29<>0),$E29>=$I29,TRUE) -> TRUE | AP7: =IF(OR($E30<>0,$I30<>0),$E30>=$I30,TRUE) -> TRUE | AQ7: =IF(OR($E31<>0,$I31<>0),$E31>=$I31,TRUE) -> TRUE | AR7: =IF(OR($E32<>0,$I32<>0),$E32>=$I32,TRUE) -> TRUE | AS7: =IF(OR($E33<>0,$I33<>0),$E33>=$I33,TRUE) -> TRUE | AT7: =IF(OR($E34<>0,$I34<>0),$E34>=$I34,TRUE) -> TRUE | AU7: =IF(OR($E35<>0,$I35<>0),$E35>=$I35,TRUE) -> TRUE | AV7: =IF(OR($E36<>0,$I36<>0),$E36>=$I36,TRUE) -> TRUE | AW7: =IF(OR($E37<>0,$I37<>0),$E37>=$I37,TRUE) -> TRUE | AX7: =IF(OR($E38<>0,$I38<>0),$E38>=$I38,TRUE) -> TRUE | AY7: =IF(OR($E39<>0,$I39<>0),$E39>=$I39,TRUE) -> TRUE | AZ7: =IF(OR($E40<>0,$I40<>0),$E40>=$I40,TRUE) -> TRUE | BA7: =IF(OR($E41<>0,$I41<>0),$E41>=$I41,TRUE) -> TRUE | BB7: =IF(OR($E42<>0,$I42<>0),$E42>=$I42,TRUE) -> TRUE | BC7: =IF(OR($E43<>0,$I43<>0),$E43>=$I43,TRUE) -> TRUE | BD7: =IF(OR($E44<>0,$I44<>0),$E44>=$I44,TRUE) -> TRUE | BE7: =IF(OR($E45<>0,$I45<>0),$E45>=$I45,TRUE) -> TRUE | BF7: =IF(OR($E46<>0,$I46<>0),$E46>=$I46,TRUE) -> TRUE | BG7: =IF(OR($E47<>0,$I47<>0),$E47>=$I47,TRUE) -> TRUE | BH7: =IF(OR($E48<>0,$I48<>0),$E48>=$I48,TRUE) -> TRUE | BI7: =IF(OR($E49<>0,$I49<>0),$E49>=$I49,TRUE) -> TRUE | BJ7: =IF(OR($E50<>0,$I50<>0),$E50>=$I50,TRUE) -> TRUE | BK7: =IF(OR($E51<>0,$I51<>0),$E51>=$I51,TRUE) -> TRUE | BL7: =IF(OR($E52<>0,$I52<>0),$E52>=$I52,TRUE) -> TRUE | BM7: =IF(OR($E53<>0,$I53<>0),$E53>=$I53,TRUE) -> TRUE | BN7: =IF(OR($E54<>0,$I54<>0),$E54>=$I54,TRUE) -> TRUE | BO7: =IF(OR($E55<>0,$I55<>0),$E55>=$I55,TRUE) -> TRUE | BP7: =IF(OR($E56<>0,$I56<>0),$E56>=$I56,TRUE) -> TRUE | BQ7: =IF(OR($E57<>0,$I57<>0),$E57>=$I57,TRUE) -> TRUE | BR7: =IF(OR($E58<>0,$I58<>0),$E58>=$I58,TRUE) -> TRUE | BS7: =IF(OR($E59<>0,$I59<>0),$E59>=$I59,TRUE) -> TRUE | BT7: =IF(OR($E60<>0,$I60<>0),$E60>=$I60,TRUE) -> TRUE | BU7: =IF(OR($E61<>0,$I61<>0),$E61>=$I61,TRUE) -> TRUE | BV7: =IF(OR($E62<>0,$I62<>0),$E62>=$I62,TRUE) -> TRUE | BW7: =IF(OR($E63<>0,$I63<>0),$E63>=$I63,TRUE) -> TRUE | BX7: =IF(OR($E64<>0,$I64<>0),$E64>=$I64,TRUE) -> TRUE | BY7: =IF(OR($E65<>0,$I65<>0),$E65>=$I65,TRUE) -> TRUE | BZ7: =IF(OR($E66<>0,$I66<>0),$E66>=$I66,TRUE) -> TRUE | CA7: =IF(OR($E67<>0,$I67<>0),$E67>=$I67,TRUE) -> TRUE | CB7: =IF(OR($E68<>0,$I68<>0),$E68>=$I68,TRUE) -> TRUE | CC7: =IF(OR($E69<>0,$I69<>0),$E69>=$I69,TRUE) -> TRUE | CD7: =IF(OR($E70<>0,$I70<>0),$E70>=$I70,TRUE) -> TRUE | CE7: =IF(OR($E71<>0,$I71<>0),$E71>=$I71,TRUE) -> TRUE | CF7: =IF(OR($E72<>0,$I72<>0),$E72>=$I72,TRUE) -> TRUE | CG7: =IF(OR($E73<>0,$I73<>0),$E73>=$I73,TRUE) -> TRUE | CH7: =IF(OR($E74<>0,$I74<>0),$E74>=$I74,TRUE) -> TRUE | CI7: =IF(OR($E75<>0,$I75<>0),$E75>=$I75,TRUE) -> TRUE | CJ7: =IF(OR($E76<>0,$I76<>0),$E76>=$I76,TRUE) -> TRUE | CK7: =IF(OR($E77<>0,$I77<>0),$E77>=$I77,TRUE) -> TRUE | CL7: =IF(OR($E78<>0,$I78<>0),$E78>=$I78,TRUE) -> TRUE
B8: в том числе: туберкулез | C8: 1.1 | D8: А15-А19 | E8: ='5000 и 5001 ДВН'!E8+'5000 и 5001 ПО'!E8 -> 1 | F8: ='5000 и 5001 ДВН'!F8+'5000 и 5001 ПО'!F8 -> 1 | G8: ='5000 и 5001 ДВН'!G8+'5000 и 5001 ПО'!G8 -> 1 | H8: ='5000 и 5001 ДВН'!H8+'5000 и 5001 ПО'!H8 -> 0 | I8: ='5000 и 5001 ДВН'!I8+'5000 и 5001 ПО'!I8 -> 0 | J8: ='5000 и 5001 ДВН'!J8+'5000 и 5001 ПО'!J8 -> 0 | K8: ='5000 и 5001 ДВН'!K8+'5000 и 5001 ПО'!K8 -> 0 | L8: ='5000 и 5001 ДВН'!L8+'5000 и 5001 ПО'!L8 -> 0 | M8: ='5000 и 5001 ДВН'!M8+'5000 и 5001 ПО'!M8 -> 0 | N8: ='5000 и 5001 ДВН'!N8+'5000 и 5001 ПО'!N8 -> 0 | O8: =IF(Q8>0,"гр.5 >= гр.9 по строке "&P8,"ОК") -> ОК | P8: =IF(Q8>0,INDEX($C$7:$C$78,Q8,1),CHAR(151)) -> — | Q8: =IF(ISERROR(MATCH(FALSE,S8:CL8,0)),0,MATCH(FALSE,S8:CL8,0)) -> 0 | S8: =IF(OR($F7<>0,$J7<>0),$F7>=$J7,TRUE) -> TRUE | T8: =IF(OR($F8<>0,$J8<>0),$F8>=$J8,TRUE) -> TRUE | U8: =IF(OR($F9<>0,$J9<>0),$F9>=$J9,TRUE) -> TRUE | V8: =IF(OR($F10<>0,$J10<>0),$F10>=$J10,TRUE) -> TRUE | W8: =IF(OR($F11<>0,$J11<>0),$F11>=$J11,TRUE) -> TRUE | X8: =IF(OR($F12<>0,$J12<>0),$F12>=$J12,TRUE) -> TRUE | Y8: =IF(OR($F13<>0,$J13<>0),$F13>=$J13,TRUE) -> TRUE | Z8: =IF(OR($F14<>0,$J14<>0),$F14>=$J14,TRUE) -> TRUE | AA8: =IF(OR($F15<>0,$J15<>0),$F15>=$J15,TRUE) -> TRUE | AB8: =IF(OR($F16<>0,$J16<>0),$F16>=$J16,TRUE) -> TRUE | AC8: =IF(OR($F17<>0,$J17<>0),$F17>=$J17,TRUE) -> TRUE | AD8: =IF(OR($F18<>0,$J18<>0),$F18>=$J18,TRUE) -> TRUE | AE8: =IF(OR($F19<>0,$J19<>0),$F19>=$J19,TRUE) -> TRUE | AF8: =IF(OR($F20<>0,$J20<>0),$F20>=$J20,TRUE) -> TRUE | AG8: =IF(OR($F21<>0,$J21<>0),$F21>=$J21,TRUE) -> TRUE | AH8: =IF(OR($F22<>0,$J22<>0),$F22>=$J22,TRUE) -> TRUE | AI8: =IF(OR($F23<>0,$J23<>0),$F23>=$J23,TRUE) -> TRUE | AJ8: =IF(OR($F24<>0,$J24<>0),$F24>=$J24,TRUE) -> TRUE | AK8: =IF(OR($F25<>0,$J25<>0),$F25>=$J25,TRUE) -> TRUE | AL8: =IF(OR($F26<>0,$J26<>0),$F26>=$J26,TRUE) -> TRUE | AM8: =IF(OR($F27<>0,$J27<>0),$F27>=$J27,TRUE) -> TRUE | AN8: =IF(OR($F28<>0,$J28<>0),$F28>=$J28,TRUE) -> TRUE | AO8: =IF(OR($F29<>0,$J29<>0),$F29>=$J29,TRUE) -> TRUE | AP8: =IF(OR($F30<>0,$J30<>0),$F30>=$J30,TRUE) -> TRUE | AQ8: =IF(OR($F31<>0,$J31<>0),$F31>=$J31,TRUE) -> TRUE | AR8: =IF(OR($F32<>0,$J32<>0),$F32>=$J32,TRUE) -> TRUE | AS8: =IF(OR($F33<>0,$J33<>0),$F33>=$J33,TRUE) -> TRUE | AT8: =IF(OR($F34<>0,$J34<>0),$F34>=$J34,TRUE) -> TRUE | AU8: =IF(OR($F35<>0,$J35<>0),$F35>=$J35,TRUE) -> TRUE | AV8: =IF(OR($F36<>0,$J36<>0),$F36>=$J36,TRUE) -> TRUE | AW8: =IF(OR($F37<>0,$J37<>0),$F37>=$J37,TRUE) -> TRUE | AX8: =IF(OR($F38<>0,$J38<>0),$F38>=$J38,TRUE) -> TRUE | AY8: =IF(OR($F39<>0,$J39<>0),$F39>=$J39,TRUE) -> TRUE | AZ8: =IF(OR($F40<>0,$J40<>0),$F40>=$J40,TRUE) -> TRUE | BA8: =IF(OR($F41<>0,$J41<>0),$F41>=$J41,TRUE) -> TRUE | BB8: =IF(OR($F42<>0,$J42<>0),$F42>=$J42,TRUE) -> TRUE | BC8: =IF(OR($F43<>0,$J43<>0),$F43>=$J43,TRUE) -> TRUE | BD8: =IF(OR($F44<>0,$J44<>0),$F44>=$J44,TRUE) -> TRUE | BE8: =IF(OR($F45<>0,$J45<>0),$F45>=$J45,TRUE) -> TRUE | BF8: =IF(OR($F46<>0,$J46<>0),$F46>=$J46,TRUE) -> TRUE | BG8: =IF(OR($F47<>0,$J47<>0),$F47>=$J47,TRUE) -> TRUE | BH8: =IF(OR($F48<>0,$J48<>0),$F48>=$J48,TRUE) -> TRUE | BI8: =IF(OR($F49<>0,$J49<>0),$F49>=$J49,TRUE) -> TRUE | BJ8: =IF(OR($F50<>0,$J50<>0),$F50>=$J50,TRUE) -> TRUE | BK8: =IF(OR($F51<>0,$J51<>0),$F51>=$J51,TRUE) -> TRUE | BL8: =IF(OR($F52<>0,$J52<>0),$F52>=$J52,TRUE) -> TRUE | BM8: =IF(OR($F53<>0,$J53<>0),$F53>=$J53,TRUE) -> TRUE | BN8: =IF(OR($F54<>0,$J54<>0),$F54>=$J54,TRUE) -> TRUE | BO8: =IF(OR($F55<>0,$J55<>0),$F55>=$J55,TRUE) -> TRUE | BP8: =IF(OR($F56<>0,$J56<>0),$F56>=$J56,TRUE) -> TRUE | BQ8: =IF(OR($F57<>0,$J57<>0),$F57>=$J57,TRUE) -> TRUE | BR8: =IF(OR($F58<>0,$J58<>0),$F58>=$J58,TRUE) -> TRUE | BS8: =IF(OR($F59<>0,$J59<>0),$F59>=$J59,TRUE) -> TRUE | BT8: =IF(OR($F60<>0,$J60<>0),$F60>=$J60,TRUE) -> TRUE | BU8: =IF(OR($F61<>0,$J61<>0),$F61>=$J61,TRUE) -> TRUE | BV8: =IF(OR($F62<>0,$J62<>0),$F62>=$J62,TRUE) -> TRUE | BW8: =IF(OR($F63<>0,$J63<>0),$F63>=$J63,TRUE) -> TRUE | BX8: =IF(OR($F64<>0,$J64<>0),$F64>=$J64,TRUE) -> TRUE | BY8: =IF(OR($F65<>0,$J65<>0),$F65>=$J65,TRUE) -> TRUE | BZ8: =IF(OR($F66<>0,$J66<>0),$F66>=$J66,TRUE) -> TRUE | CA8: =IF(OR($F67<>0,$J67<>0),$F67>=$J67,TRUE) -> TRUE | CB8: =IF(OR($F68<>0,$J68<>0),$F68>=$J68,TRUE) -> TRUE | CC8: =IF(OR($F69<>0,$J69<>0),$F69>=$J69,TRUE) -> TRUE | CD8: =IF(OR($F70<>0,$J70<>0),$F70>=$J70,TRUE) -> TRUE | CE8: =IF(OR($F71<>0,$J71<>0),$F71>=$J71,TRUE) -> TRUE | CF8: =IF(OR($F72<>0,$J72<>0),$F72>=$J72,TRUE) -> TRUE | CG8: =IF(OR($F73<>0,$J73<>0),$F73>=$J73,TRUE) -> TRUE | CH8: =IF(OR($F74<>0,$J74<>0),$F74>=$J74,TRUE) -> TRUE | CI8: =IF(OR($F75<>0,$J75<>0),$F75>=$J75,TRUE) -> TRUE | CJ8: =IF(OR($F76<>0,$J76<>0),$F76>=$J76,TRUE) -> TRUE | CK8: =IF(OR($F77<>0,$J77<>0),$F77>=$J77,TRUE) -> TRUE | CL8: =IF(OR($F78<>0,$J78<>0),$F78>=$J78,TRUE) -> TRUE
B9: Новообразования | C9: 2 | D9: C00-D48 | E9: ='5000 и 5001 ДВН'!E9+'5000 и 5001 ПО'!E9 -> 3 | F9: ='5000 и 5001 ДВН'!F9+'5000 и 5001 ПО'!F9 -> 3 | G9: ='5000 и 5001 ДВН'!G9+'5000 и 5001 ПО'!G9 -> 1 | H9: ='5000 и 5001 ДВН'!H9+'5000 и 5001 ПО'!H9 -> 2 | I9: ='5000 и 5001 ДВН'!I9+'5000 и 5001 ПО'!I9 -> 0 | J9: ='5000 и 5001 ДВН'!J9+'5000 и 5001 ПО'!J9 -> 0 | K9: ='5000 и 5001 ДВН'!K9+'5000 и 5001 ПО'!K9 -> 0 | L9: ='5000 и 5001 ДВН'!L9+'5000 и 5001 ПО'!L9 -> 0 | M9: ='5000 и 5001 ДВН'!M9+'5000 и 5001 ПО'!M9 -> 0 | N9: ='5000 и 5001 ДВН'!N9+'5000 и 5001 ПО'!N9 -> 0 | O9: =IF(Q9>0,"гр.6 >= гр.10 по строке "&P9,"ОК") -> ОК | P9: =IF(Q9>0,INDEX($C$7:$C$78,Q9,1),CHAR(151)) -> — | Q9: =IF(ISERROR(MATCH(FALSE,S9:CL9,0)),0,MATCH(FALSE,S9:CL9,0)) -> 0 | S9: =IF(OR($G7<>0,$K7<>0),$G7>=$K7,TRUE) -> TRUE | T9: =IF(OR($G8<>0,$K8<>0),$G8>=$K8,TRUE) -> TRUE | U9: =IF(OR($G9<>0,$K9<>0),$G9>=$K9,TRUE) -> TRUE | V9: =IF(OR($G10<>0,$K10<>0),$G10>=$K10,TRUE) -> TRUE | W9: =IF(OR($G11<>0,$K11<>0),$G11>=$K11,TRUE) -> TRUE | X9: =IF(OR($G12<>0,$K12<>0),$G12>=$K12,TRUE) -> TRUE | Y9: =IF(OR($G13<>0,$K13<>0),$G13>=$K13,TRUE) -> TRUE | Z9: =IF(OR($G14<>0,$K14<>0),$G14>=$K14,TRUE) -> TRUE | AA9: =IF(OR($G15<>0,$K15<>0),$G15>=$K15,TRUE) -> TRUE | AB9: =IF(OR($G16<>0,$K16<>0),$G16>=$K16,TRUE) -> TRUE | AC9: =IF(OR($G17<>0,$K17<>0),$G17>=$K17,TRUE) -> TRUE | AD9: =IF(OR($G18<>0,$K18<>0),$G18>=$K18,TRUE) -> TRUE | AE9: =IF(OR($G19<>0,$K19<>0),$G19>=$K19,TRUE) -> TRUE | AF9: =IF(OR($G20<>0,$K20<>0),$G20>=$K20,TRUE) -> TRUE | AG9: =IF(OR($G21<>0,$K21<>0),$G21>=$K21,TRUE) -> TRUE | AH9: =IF(OR($G22<>0,$K22<>0),$G22>=$K22,TRUE) -> TRUE | AI9: =IF(OR($G23<>0,$K23<>0),$G23>=$K23,TRUE) -> TRUE | AJ9: =IF(OR($G24<>0,$K24<>0),$G24>=$K24,TRUE) -> TRUE | AK9: =IF(OR($G25<>0,$K25<>0),$G25>=$K25,TRUE) -> TRUE | AL9: =IF(OR($G26<>0,$K26<>0),$G26>=$K26,TRUE) -> TRUE | AM9: =IF(OR($G27<>0,$K27<>0),$G27>=$K27,TRUE) -> TRUE | AN9: =IF(OR($G28<>0,$K28<>0),$G28>=$K28,TRUE) -> TRUE | AO9: =IF(OR($G29<>0,$K29<>0),$G29>=$K29,TRUE) -> TRUE | AP9: =IF(OR($G30<>0,$K30<>0),$G30>=$K30,TRUE) -> TRUE | AQ9: =IF(OR($G31<>0,$K31<>0),$G31>=$K31,TRUE) -> TRUE | AR9: =IF(OR($G32<>0,$K32<>0),$G32>=$K32,TRUE) -> TRUE | AS9: =IF(OR($G33<>0,$K33<>0),$G33>=$K33,TRUE) -> TRUE | AT9: =IF(OR($G34<>0,$K34<>0),$G34>=$K34,TRUE) -> TRUE | AU9: =IF(OR($G35<>0,$K35<>0),$G35>=$K35,TRUE) -> TRUE | AV9: =IF(OR($G36<>0,$K36<>0),$G36>=$K36,TRUE) -> TRUE | AW9: =IF(OR($G37<>0,$K37<>0),$G37>=$K37,TRUE) -> TRUE | AX9: =IF(OR($G38<>0,$K38<>0),$G38>=$K38,TRUE) -> TRUE | AY9: =IF(OR($G39<>0,$K39<>0),$G39>=$K39,TRUE) -> TRUE | AZ9: =IF(OR($G40<>0,$K40<>0),$G40>=$K40,TRUE) -> TRUE | BA9: =IF(OR($G41<>0,$K41<>0),$G41>=$K41,TRUE) -> TRUE | BB9: =IF(OR($G42<>0,$K42<>0),$G42>=$K42,TRUE) -> TRUE | BC9: =IF(OR($G43<>0,$K43<>0),$G43>=$K43,TRUE) -> TRUE | BD9: =IF(OR($G44<>0,$K44<>0),$G44>=$K44,TRUE) -> TRUE | BE9: =IF(OR($G45<>0,$K45<>0),$G45>=$K45,TRUE) -> TRUE | BF9: =IF(OR($G46<>0,$K46<>0),$G46>=$K46,TRUE) -> TRUE | BG9: =IF(OR($G47<>0,$K47<>0),$G47>=$K47,TRUE) -> TRUE | BH9: =IF(OR($G48<>0,$K48<>0),$G48>=$K48,TRUE) -> TRUE | BI9: =IF(OR($G49<>0,$K49<>0),$G49>=$K49,TRUE) -> TRUE | BJ9: =IF(OR($G50<>0,$K50<>0),$G50>=$K50,TRUE) -> TRUE | BK9: =IF(OR($G51<>0,$K51<>0),$G51>=$K51,TRUE) -> TRUE | BL9: =IF(OR($G52<>0,$K52<>0),$G52>=$K52,TRUE) -> TRUE | BM9: =IF(OR($G53<>0,$K53<>0),$G53>=$K53,TRUE) -> TRUE | BN9: =IF(OR($G54<>0,$K54<>0),$G54>=$K54,TRUE) -> TRUE | BO9: =IF(OR($G55<>0,$K55<>0),$G55>=$K55,TRUE) -> TRUE | BP9: =IF(OR($G56<>0,$K56<>0),$G56>=$K56,TRUE) -> TRUE | BQ9: =IF(OR($G57<>0,$K57<>0),$G57>=$K57,TRUE) -> TRUE | BR9: =IF(OR($G58<>0,$K58<>0),$G58>=$K58,TRUE) -> TRUE | BS9: =IF(OR($G59<>0,$K59<>0),$G59>=$K59,TRUE) -> TRUE | BT9: =IF(OR($G60<>0,$K60<>0),$G60>=$K60,TRUE) -> TRUE | BU9: =IF(OR($G61<>0,$K61<>0),$G61>=$K61,TRUE) -> TRUE | BV9: =IF(OR($G62<>0,$K62<>0),$G62>=$K62,TRUE) -> TRUE | BW9: =IF(OR($G63<>0,$K63<>0),$G63>=$K63,TRUE) -> TRUE | BX9: =IF(OR($G64<>0,$K64<>0),$G64>=$K64,TRUE) -> TRUE | BY9: =IF(OR($G65<>0,$K65<>0),$G65>=$K65,TRUE) -> TRUE | BZ9: =IF(OR($G66<>0,$K66<>0),$G66>=$K66,TRUE) -> TRUE | CA9: =IF(OR($G67<>0,$K67<>0),$G67>=$K67,TRUE) -> TRUE | CB9: =IF(OR($G68<>0,$K68<>0),$G68>=$K68,TRUE) -> TRUE | CC9: =IF(OR($G69<>0,$K69<>0),$G69>=$K69,TRUE) -> TRUE | CD9: =IF(OR($G70<>0,$K70<>0),$G70>=$K70,TRUE) -> TRUE | CE9: =IF(OR($G71<>0,$K71<>0),$G71>=$K71,TRUE) -> TRUE | CF9: =IF(OR($G72<>0,$K72<>0),$G72>=$K72,TRUE) -> TRUE | CG9: =IF(OR($G73<>0,$K73<>0),$G73>=$K73,TRUE) -> TRUE | CH9: =IF(OR($G74<>0,$K74<>0),$G74>=$K74,TRUE) -> TRUE | CI9: =IF(OR($G75<>0,$K75<>0),$G75>=$K75,TRUE) -> TRUE | CJ9: =IF(OR($G76<>0,$K76<>0),$G76>=$K76,TRUE) -> TRUE | CK9: =IF(OR($G77<>0,$K77<>0),$G77>=$K77,TRUE) -> TRUE | CL9: =IF(OR($G78<>0,$K78<>0),$G78>=$K78,TRUE) -> TRUE
B10: Злокачественные новообразования | C10: 2.1 | D10: C00 - С97 | E10: ='5000 и 5001 ДВН'!E10+'5000 и 5001 ПО'!E10 -> 3 | F10: ='5000 и 5001 ДВН'!F10+'5000 и 5001 ПО'!F10 -> 3 | G10: ='5000 и 5001 ДВН'!G10+'5000 и 5001 ПО'!G10 -> 1 | H10: ='5000 и 5001 ДВН'!H10+'5000 и 5001 ПО'!H10 -> 2 | I10: ='5000 и 5001 ДВН'!I10+'5000 и 5001 ПО'!I10 -> 0 | J10: ='5000 и 5001 ДВН'!J10+'5000 и 5001 ПО'!J10 -> 0 | K10: ='5000 и 5001 ДВН'!K10+'5000 и 5001 ПО'!K10 -> 0 | L10: ='5000 и 5001 ДВН'!L10+'5000 и 5001 ПО'!L10 -> 0 | M10: ='5000 и 5001 ДВН'!M10+'5000 и 5001 ПО'!M10 -> 0 | N10: ='5000 и 5001 ДВН'!N10+'5000 и 5001 ПО'!N10 -> 0 | O10: =IF(Q10>0,"гр.7 >= гр.12 по строке "&P10,"ОК") -> ОК | P10: =IF(Q10>0,INDEX($C$7:$C$78,Q10,1),CHAR(151)) -> — | Q10: =IF(ISERROR(MATCH(FALSE,S10:CL10,0)),0,MATCH(FALSE,S10:CL10,0)) -> 0 | S10: =IF(OR($H7<>0,$M7<>0),$H7>=$M7,TRUE) -> TRUE | T10: =IF(OR($H8<>0,$M8<>0),$H8>=$M8,TRUE) -> TRUE | U10: =IF(OR($H9<>0,$M9<>0),$H9>=$M9,TRUE) -> TRUE | V10: =IF(OR($H10<>0,$M10<>0),$H10>=$M10,TRUE) -> TRUE | W10: =IF(OR($H11<>0,$M11<>0),$H11>=$M11,TRUE) -> TRUE | X10: =IF(OR($H12<>0,$M12<>0),$H12>=$M12,TRUE) -> TRUE | Y10: =IF(OR($H13<>0,$M13<>0),$H13>=$M13,TRUE) -> TRUE | Z10: =IF(OR($H14<>0,$M14<>0),$H14>=$M14,TRUE) -> TRUE | AA10: =IF(OR($H15<>0,$M15<>0),$H15>=$M15,TRUE) -> TRUE | AB10: =IF(OR($H16<>0,$M16<>0),$H16>=$M16,TRUE) -> TRUE | AC10: =IF(OR($H17<>0,$M17<>0),$H17>=$M17,TRUE) -> TRUE | AD10: =IF(OR($H18<>0,$M18<>0),$H18>=$M18,TRUE) -> TRUE | AE10: =IF(OR($H19<>0,$M19<>0),$H19>=$M19,TRUE) -> TRUE | AF10: =IF(OR($H20<>0,$M20<>0),$H20>=$M20,TRUE) -> TRUE | AG10: =IF(OR($H21<>0,$M21<>0),$H21>=$M21,TRUE) -> TRUE | AH10: =IF(OR($H22<>0,$M22<>0),$H22>=$M22,TRUE) -> TRUE | AI10: =IF(OR($H23<>0,$M23<>0),$H23>=$M23,TRUE) -> TRUE | AJ10: =IF(OR($H24<>0,$M24<>0),$H24>=$M24,TRUE) -> TRUE | AK10: =IF(OR($H25<>0,$M25<>0),$H25>=$M25,TRUE) -> TRUE | AL10: =IF(OR($H26<>0,$M26<>0),$H26>=$M26,TRUE) -> TRUE | AM10: =IF(OR($H27<>0,$M27<>0),$H27>=$M27,TRUE) -> TRUE | AN10: =IF(OR($H28<>0,$M28<>0),$H28>=$M28,TRUE) -> TRUE | AO10: =IF(OR($H29<>0,$M29<>0),$H29>=$M29,TRUE) -> TRUE | AP10: =IF(OR($H30<>0,$M30<>0),$H30>=$M30,TRUE) -> TRUE | AQ10: =IF(OR($H31<>0,$M31<>0),$H31>=$M31,TRUE) -> TRUE | AR10: =IF(OR($H32<>0,$M32<>0),$H32>=$M32,TRUE) -> TRUE | AS10: =IF(OR($H33<>0,$M33<>0),$H33>=$M33,TRUE) -> TRUE | AT10: =IF(OR($H34<>0,$M34<>0),$H34>=$M34,TRUE) -> TRUE | AU10: =IF(OR($H35<>0,$M35<>0),$H35>=$M35,TRUE) -> TRUE | AV10: =IF(OR($H36<>0,$M36<>0),$H36>=$M36,TRUE) -> TRUE | AW10: =IF(OR($H37<>0,$M37<>0),$H37>=$M37,TRUE) -> TRUE | AX10: =IF(OR($H38<>0,$M38<>0),$H38>=$M38,TRUE) -> TRUE | AY10: =IF(OR($H39<>0,$M39<>0),$H39>=$M39,TRUE) -> TRUE | AZ10: =IF(OR($H40<>0,$M40<>0),$H40>=$M40,TRUE) -> TRUE | BA10: =IF(OR($H41<>0,$M41<>0),$H41>=$M41,TRUE) -> TRUE | BB10: =IF(OR($H42<>0,$M42<>0),$H42>=$M42,TRUE) -> TRUE | BC10: =IF(OR($H43<>0,$M43<>0),$H43>=$M43,TRUE) -> TRUE | BD10: =IF(OR($H44<>0,$M44<>0),$H44>=$M44,TRUE) -> TRUE | BE10: =IF(OR($H45<>0,$M45<>0),$H45>=$M45,TRUE) -> TRUE | BF10: =IF(OR($H46<>0,$M46<>0),$H46>=$M46,TRUE) -> TRUE | BG10: =IF(OR($H47<>0,$M47<>0),$H47>=$M47,TRUE) -> TRUE | BH10: =IF(OR($H48<>0,$M48<>0),$H48>=$M48,TRUE) -> TRUE | BI10: =IF(OR($H49<>0,$M49<>0),$H49>=$M49,TRUE) -> TRUE | BJ10: =IF(OR($H50<>0,$M50<>0),$H50>=$M50,TRUE) -> TRUE | BK10: =IF(OR($H51<>0,$M51<>0),$H51>=$M51,TRUE) -> TRUE | BL10: =IF(OR($H52<>0,$M52<>0),$H52>=$M52,TRUE) -> TRUE | BM10: =IF(OR($H53<>0,$M53<>0),$H53>=$M53,TRUE) -> TRUE | BN10: =IF(OR($H54<>0,$M54<>0),$H54>=$M54,TRUE) -> TRUE | BO10: =IF(OR($H55<>0,$M55<>0),$H55>=$M55,TRUE) -> TRUE | BP10: =IF(OR($H56<>0,$M56<>0),$H56>=$M56,TRUE) -> TRUE | BQ10: =IF(OR($H57<>0,$M57<>0),$H57>=$M57,TRUE) -> TRUE | BR10: =IF(OR($H58<>0,$M58<>0),$H58>=$M58,TRUE) -> TRUE | BS10: =IF(OR($H59<>0,$M59<>0),$H59>=$M59,TRUE) -> TRUE | BT10: =IF(OR($H60<>0,$M60<>0),$H60>=$M60,TRUE) -> TRUE | BU10: =IF(OR($H61<>0,$M61<>0),$H61>=$M61,TRUE) -> TRUE | BV10: =IF(OR($H62<>0,$M62<>0),$H62>=$M62,TRUE) -> TRUE | BW10: =IF(OR($H63<>0,$M63<>0),$H63>=$M63,TRUE) -> TRUE | BX10: =IF(OR($H64<>0,$M64<>0),$H64>=$M64,TRUE) -> TRUE | BY10: =IF(OR($H65<>0,$M65<>0),$H65>=$M65,TRUE) -> TRUE | BZ10: =IF(OR($H66<>0,$M66<>0),$H66>=$M66,TRUE) -> TRUE | CA10: =IF(OR($H67<>0,$M67<>0),$H67>=$M67,TRUE) -> TRUE | CB10: =IF(OR($H68<>0,$M68<>0),$H68>=$M68,TRUE) -> TRUE | CC10: =IF(OR($H69<>0,$M69<>0),$H69>=$M69,TRUE) -> TRUE | CD10: =IF(OR($H70<>0,$M70<>0),$H70>=$M70,TRUE) -> TRUE | CE10: =IF(OR($H71<>0,$M71<>0),$H71>=$M71,TRUE) -> TRUE | CF10: =IF(OR($H72<>0,$M72<>0),$H72>=$M72,TRUE) -> TRUE | CG10: =IF(OR($H73<>0,$M73<>0),$H73>=$M73,TRUE) -> TRUE | CH10: =IF(OR($H74<>0,$M74<>0),$H74>=$M74,TRUE) -> TRUE | CI10: =IF(OR($H75<>0,$M75<>0),$H75>=$M75,TRUE) -> TRUE | CJ10: =IF(OR($H76<>0,$M76<>0),$H76>=$M76,TRUE) -> TRUE | CK10: =IF(OR($H77<>0,$M77<>0),$H77>=$M77,TRUE) -> TRUE | CL10: =IF(OR($H78<>0,$M78<>0),$H78>=$M78,TRUE) -> TRUE
B11: Из них губы, полости рта и глотки | C11: 2.2 | D11: C00 - С14 | E11: ='5000 и 5001 ДВН'!E11+'5000 и 5001 ПО'!E11 -> 0 | F11: ='5000 и 5001 ДВН'!F11+'5000 и 5001 ПО'!F11 -> 0 | G11: ='5000 и 5001 ДВН'!G11+'5000 и 5001 ПО'!G11 -> 0 | H11: ='5000 и 5001 ДВН'!H11+'5000 и 5001 ПО'!H11 -> 0 | I11: ='5000 и 5001 ДВН'!I11+'5000 и 5001 ПО'!I11 -> 0 | J11: ='5000 и 5001 ДВН'!J11+'5000 и 5001 ПО'!J11 -> 0 | K11: ='5000 и 5001 ДВН'!K11+'5000 и 5001 ПО'!K11 -> 0 | L11: ='5000 и 5001 ДВН'!L11+'5000 и 5001 ПО'!L11 -> 0 | M11: ='5000 и 5001 ДВН'!M11+'5000 и 5001 ПО'!M11 -> 0 | N11: ='5000 и 5001 ДВН'!N11+'5000 и 5001 ПО'!N11 -> 0 | O11: =IF(Q11>0,"стр.2.1 < суммы строк (2.2.+2.4+2.6+2.8+2.10+2.12+2.14+2.16+2.18+2.21+2.24) по графе "&P11,"ОК") -> ОК | P11: =IF(Q11>0,INDEX($F$6:$N$6,1,Q11),CHAR(151)) -> — | Q11: =IF(ISERROR(MATCH(FALSE,S11:AA11,0)),0,MATCH(FALSE,S11:AA11,0)) -> 0 | R11: данные по строке 2.1 д.б. больше или равны суммы строк (2.2.+2.4+2.6+2.8+2.10+2.12+2.14+2.16+2.18+2.21+2.24) по всем графам | S11: =F10>=SUM(F11,F13,F15,F17,F19,F21,F23,F25,F27,F30,F33) -> TRUE | T11: =G10>=SUM(G11,G13,G15,G17,G19,G21,G23,G25,G27,G30,G33) -> TRUE | U11: TRUE | V11: =I10>=SUM(I11,I13,I15,I17,I19,I21,I23,I25,I27,I30,I33) -> TRUE | W11: =J10>=SUM(J11,J13,J15,J17,J19,J21,J23,J25,J27,J30,J33) -> TRUE | X11: TRUE | Y11: TRUE | Z11: TRUE | AA11: TRUE
B12: из них в 1-2 стадии | C12: 2.3 | E12: ='5000 и 5001 ДВН'!E12+'5000 и 5001 ПО'!E12 -> 0 | F12: ='5000 и 5001 ДВН'!F12+'5000 и 5001 ПО'!F12 -> 0 | G12: ='5000 и 5001 ДВН'!G12+'5000 и 5001 ПО'!G12 -> 0 | H12: ='5000 и 5001 ДВН'!H12+'5000 и 5001 ПО'!H12 -> 0 | I12: ='5000 и 5001 ДВН'!I12+'5000 и 5001 ПО'!I12 -> 0 | J12: ='5000 и 5001 ДВН'!J12+'5000 и 5001 ПО'!J12 -> 0 | K12: ='5000 и 5001 ДВН'!K12+'5000 и 5001 ПО'!K12 -> 0 | L12: ='5000 и 5001 ДВН'!L12+'5000 и 5001 ПО'!L12 -> 0 | M12: ='5000 и 5001 ДВН'!M12+'5000 и 5001 ПО'!M12 -> 0 | N12: ='5000 и 5001 ДВН'!N12+'5000 и 5001 ПО'!N12 -> 0 | O12: =IF(Q12>0,"стр.2 < стр.2.1 по графе "&P12,"ОК") -> ОК | P12: =IF(Q12>0,INDEX($F$6:$N$6,1,Q12),CHAR(151)) -> — | Q12: =IF(ISERROR(MATCH(FALSE,S12:AA12,0)),0,MATCH(FALSE,S12:AA12,0)) -> 0 | R12: строка 2 д.б больше или равна строке 2.1 | S12: =F9>=F10 -> TRUE | T12: =G9>=G10 -> TRUE | U12: TRUE | V12: TRUE | W12: TRUE | X12: TRUE | Y12: TRUE | Z12: TRUE | AA12: TRUE
B13: пищевода | C13: 2.4 | D13: С15 | E13: ='5000 и 5001 ДВН'!E13+'5000 и 5001 ПО'!E13 -> 0 | F13: ='5000 и 5001 ДВН'!F13+'5000 и 5001 ПО'!F13 -> 0 | G13: ='5000 и 5001 ДВН'!G13+'5000 и 5001 ПО'!G13 -> 0 | H13: ='5000 и 5001 ДВН'!H13+'5000 и 5001 ПО'!H13 -> 0 | I13: ='5000 и 5001 ДВН'!I13+'5000 и 5001 ПО'!I13 -> 0 | J13: ='5000 и 5001 ДВН'!J13+'5000 и 5001 ПО'!J13 -> 0 | K13: ='5000 и 5001 ДВН'!K13+'5000 и 5001 ПО'!K13 -> 0 | L13: ='5000 и 5001 ДВН'!L13+'5000 и 5001 ПО'!L13 -> 0 | M13: ='5000 и 5001 ДВН'!M13+'5000 и 5001 ПО'!M13 -> 0 | N13: ='5000 и 5001 ДВН'!N13+'5000 и 5001 ПО'!N13 -> 0
B14: из них в 1-2 стадии | C14: 2.5 | E14: ='5000 и 5001 ДВН'!E14+'5000 и 5001 ПО'!E14 -> 0 | F14: ='5000 и 5001 ДВН'!F14+'5000 и 5001 ПО'!F14 -> 0 | G14: ='5000 и 5001 ДВН'!G14+'5000 и 5001 ПО'!G14 -> 0 | H14: ='5000 и 5001 ДВН'!H14+'5000 и 5001 ПО'!H14 -> 0 | I14: ='5000 и 5001 ДВН'!I14+'5000 и 5001 ПО'!I14 -> 0 | J14: ='5000 и 5001 ДВН'!J14+'5000 и 5001 ПО'!J14 -> 0 | K14: ='5000 и 5001 ДВН'!K14+'5000 и 5001 ПО'!K14 -> 0 | L14: ='5000 и 5001 ДВН'!L14+'5000 и 5001 ПО'!L14 -> 0 | M14: ='5000 и 5001 ДВН'!M14+'5000 и 5001 ПО'!M14 -> 0 | N14: ='5000 и 5001 ДВН'!N14+'5000 и 5001 ПО'!N14 -> 0
B15: желудка | C15: 2.6 | D15: С16 | E15: ='5000 и 5001 ДВН'!E15+'5000 и 5001 ПО'!E15 -> 0 | F15: ='5000 и 5001 ДВН'!F15+'5000 и 5001 ПО'!F15 -> 0 | G15: ='5000 и 5001 ДВН'!G15+'5000 и 5001 ПО'!G15 -> 0 | H15: ='5000 и 5001 ДВН'!H15+'5000 и 5001 ПО'!H15 -> 0 | I15: ='5000 и 5001 ДВН'!I15+'5000 и 5001 ПО'!I15 -> 0 | J15: ='5000 и 5001 ДВН'!J15+'5000 и 5001 ПО'!J15 -> 0 | K15: ='5000 и 5001 ДВН'!K15+'5000 и 5001 ПО'!K15 -> 0 | L15: ='5000 и 5001 ДВН'!L15+'5000 и 5001 ПО'!L15 -> 0 | M15: ='5000 и 5001 ДВН'!M15+'5000 и 5001 ПО'!M15 -> 0 | N15: ='5000 и 5001 ДВН'!N15+'5000 и 5001 ПО'!N15 -> 0
B16: из них в 1-2 стадии | C16: 2.7 | E16: ='5000 и 5001 ДВН'!E16+'5000 и 5001 ПО'!E16 -> 0 | F16: ='5000 и 5001 ДВН'!F16+'5000 и 5001 ПО'!F16 -> 0 | G16: ='5000 и 5001 ДВН'!G16+'5000 и 5001 ПО'!G16 -> 0 | H16: ='5000 и 5001 ДВН'!H16+'5000 и 5001 ПО'!H16 -> 0 | I16: ='5000 и 5001 ДВН'!I16+'5000 и 5001 ПО'!I16 -> 0 | J16: ='5000 и 5001 ДВН'!J16+'5000 и 5001 ПО'!J16 -> 0 | K16: ='5000 и 5001 ДВН'!K16+'5000 и 5001 ПО'!K16 -> 0 | L16: ='5000 и 5001 ДВН'!L16+'5000 и 5001 ПО'!L16 -> 0 | M16: ='5000 и 5001 ДВН'!M16+'5000 и 5001 ПО'!M16 -> 0 | N16: ='5000 и 5001 ДВН'!N16+'5000 и 5001 ПО'!N16 -> 0
B17: тонкого кишечника | C17: 2.8 | D17: С17 | E17: ='5000 и 5001 ДВН'!E17+'5000 и 5001 ПО'!E17 -> 0 | F17: ='5000 и 5001 ДВН'!F17+'5000 и 5001 ПО'!F17 -> 0 | G17: ='5000 и 5001 ДВН'!G17+'5000 и 5001 ПО'!G17 -> 0 | H17: ='5000 и 5001 ДВН'!H17+'5000 и 5001 ПО'!H17 -> 0 | I17: ='5000 и 5001 ДВН'!I17+'5000 и 5001 ПО'!I17 -> 0 | J17: ='5000 и 5001 ДВН'!J17+'5000 и 5001 ПО'!J17 -> 0 | K17: ='5000 и 5001 ДВН'!K17+'5000 и 5001 ПО'!K17 -> 0 | L17: ='5000 и 5001 ДВН'!L17+'5000 и 5001 ПО'!L17 -> 0 | M17: ='5000 и 5001 ДВН'!M17+'5000 и 5001 ПО'!M17 -> 0 | N17: ='5000 и 5001 ДВН'!N17+'5000 и 5001 ПО'!N17 -> 0
B18: из них в 1-2 стадии | C18: 2.9 | E18: ='5000 и 5001 ДВН'!E18+'5000 и 5001 ПО'!E18 -> 0 | F18: ='5000 и 5001 ДВН'!F18+'5000 и 5001 ПО'!F18 -> 0 | G18: ='5000 и 5001 ДВН'!G18+'5000 и 5001 ПО'!G18 -> 0 | H18: ='5000 и 5001 ДВН'!H18+'5000 и 5001 ПО'!H18 -> 0 | I18: ='5000 и 5001 ДВН'!I18+'5000 и 5001 ПО'!I18 -> 0 | J18: ='5000 и 5001 ДВН'!J18+'5000 и 5001 ПО'!J18 -> 0 | K18: ='5000 и 5001 ДВН'!K18+'5000 и 5001 ПО'!K18 -> 0 | L18: ='5000 и 5001 ДВН'!L18+'5000 и 5001 ПО'!L18 -> 0 | M18: ='5000 и 5001 ДВН'!M18+'5000 и 5001 ПО'!M18 -> 0 | N18: ='5000 и 5001 ДВН'!N18+'5000 и 5001 ПО'!N18 -> 0
B19: ободочной кишки | C19: 2.10 | D19: С18 | E19: ='5000 и 5001 ДВН'!E19+'5000 и 5001 ПО'!E19 -> 0 | F19: ='5000 и 5001 ДВН'!F19+'5000 и 5001 ПО'!F19 -> 0 | G19: ='5000 и 5001 ДВН'!G19+'5000 и 5001 ПО'!G19 -> 0 | H19: ='5000 и 5001 ДВН'!H19+'5000 и 5001 ПО'!H19 -> 0 | I19: ='5000 и 5001 ДВН'!I19+'5000 и 5001 ПО'!I19 -> 0 | J19: ='5000 и 5001 ДВН'!J19+'5000 и 5001 ПО'!J19 -> 0 | K19: ='5000 и 5001 ДВН'!K19+'5000 и 5001 ПО'!K19 -> 0 | L19: ='5000 и 5001 ДВН'!L19+'5000 и 5001 ПО'!L19 -> 0 | M19: ='5000 и 5001 ДВН'!M19+'5000 и 5001 ПО'!M19 -> 0 | N19: ='5000 и 5001 ДВН'!N19+'5000 и 5001 ПО'!N19 -> 0
B20: из них в 1-2 стадии | C20: 2.11 | E20: ='5000 и 5001 ДВН'!E20+'5000 и 5001 ПО'!E20 -> 0 | F20: ='5000 и 5001 ДВН'!F20+'5000 и 5001 ПО'!F20 -> 0 | G20: ='5000 и 5001 ДВН'!G20+'5000 и 5001 ПО'!G20 -> 0 | H20: ='5000 и 5001 ДВН'!H20+'5000 и 5001 ПО'!H20 -> 0 | I20: ='5000 и 5001 ДВН'!I20+'5000 и 5001 ПО'!I20 -> 0 | J20: ='5000 и 5001 ДВН'!J20+'5000 и 5001 ПО'!J20 -> 0 | K20: ='5000 и 5001 ДВН'!K20+'5000 и 5001 ПО'!K20 -> 0 | L20: ='5000 и 5001 ДВН'!L20+'5000 и 5001 ПО'!L20 -> 0 | M20: ='5000 и 5001 ДВН'!M20+'5000 и 5001 ПО'!M20 -> 0 | N20: ='5000 и 5001 ДВН'!N20+'5000 и 5001 ПО'!N20 -> 0
B21: ректосигмоидного соединения, прямой кишки, заднего прохода (ануса) и анального канала | C21: 2.12 | D21: С19 - С21 | E21: ='5000 и 5001 ДВН'!E21+'5000 и 5001 ПО'!E21 -> 1 | F21: ='5000 и 5001 ДВН'!F21+'5000 и 5001 ПО'!F21 -> 1 | G21: ='5000 и 5001 ДВН'!G21+'5000 и 5001 ПО'!G21 -> 1 | H21: ='5000 и 5001 ДВН'!H21+'5000 и 5001 ПО'!H21 -> 0 | I21: ='5000 и 5001 ДВН'!I21+'5000 и 5001 ПО'!I21 -> 0 | J21: ='5000 и 5001 ДВН'!J21+'5000 и 5001 ПО'!J21 -> 0 | K21: ='5000 и 5001 ДВН'!K21+'5000 и 5001 ПО'!K21 -> 0 | L21: ='5000 и 5001 ДВН'!L21+'5000 и 5001 ПО'!L21 -> 0 | M21: ='5000 и 5001 ДВН'!M21+'5000 и 5001 ПО'!M21 -> 0 | N21: ='5000 и 5001 ДВН'!N21+'5000 и 5001 ПО'!N21 -> 0
B22: из них в 1-2 стадии | C22: 2.13 | E22: ='5000 и 5001 ДВН'!E22+'5000 и 5001 ПО'!E22 -> 1 | F22: ='5000 и 5001 ДВН'!F22+'5000 и 5001 ПО'!F22 -> 1 | G22: ='5000 и 5001 ДВН'!G22+'5000 и 5001 ПО'!G22 -> 1 | H22: ='5000 и 5001 ДВН'!H22+'5000 и 5001 ПО'!H22 -> 0 | I22: ='5000 и 5001 ДВН'!I22+'5000 и 5001 ПО'!I22 -> 0 | J22: ='5000 и 5001 ДВН'!J22+'5000 и 5001 ПО'!J22 -> 0 | K22: ='5000 и 5001 ДВН'!K22+'5000 и 5001 ПО'!K22 -> 0 | L22: ='5000 и 5001 ДВН'!L22+'5000 и 5001 ПО'!L22 -> 0 | M22: ='5000 и 5001 ДВН'!M22+'5000 и 5001 ПО'!M22 -> 0 | N22: ='5000 и 5001 ДВН'!N22+'5000 и 5001 ПО'!N22 -> 0
B23: трахеи, бронхов, легкого | C23: 2.14 | D23: C33, | E23: ='5000 и 5001 ДВН'!E23+'5000 и 5001 ПО'!E23 -> 0 | F23: ='5000 и 5001 ДВН'!F23+'5000 и 5001 ПО'!F23 -> 0 | G23: ='5000 и 5001 ДВН'!G23+'5000 и 5001 ПО'!G23 -> 0 | H23: ='5000 и 5001 ДВН'!H23+'5000 и 5001 ПО'!H23 -> 0 | I23: ='5000 и 5001 ДВН'!I23+'5000 и 5001 ПО'!I23 -> 0 | J23: ='5000 и 5001 ДВН'!J23+'5000 и 5001 ПО'!J23 -> 0 | K23: ='5000 и 5001 ДВН'!K23+'5000 и 5001 ПО'!K23 -> 0 | L23: ='5000 и 5001 ДВН'!L23+'5000 и 5001 ПО'!L23 -> 0 | M23: ='5000 и 5001 ДВН'!M23+'5000 и 5001 ПО'!M23 -> 0 | N23: ='5000 и 5001 ДВН'!N23+'5000 и 5001 ПО'!N23 -> 0
B24: из них в 1-2 стадии | C24: 2.15 | D24: С34 | E24: ='5000 и 5001 ДВН'!E24+'5000 и 5001 ПО'!E24 -> 0 | F24: ='5000 и 5001 ДВН'!F24+'5000 и 5001 ПО'!F24 -> 0 | G24: ='5000 и 5001 ДВН'!G24+'5000 и 5001 ПО'!G24 -> 0 | H24: ='5000 и 5001 ДВН'!H24+'5000 и 5001 ПО'!H24 -> 0 | I24: ='5000 и 5001 ДВН'!I24+'5000 и 5001 ПО'!I24 -> 0 | J24: ='5000 и 5001 ДВН'!J24+'5000 и 5001 ПО'!J24 -> 0 | K24: ='5000 и 5001 ДВН'!K24+'5000 и 5001 ПО'!K24 -> 0 | L24: ='5000 и 5001 ДВН'!L24+'5000 и 5001 ПО'!L24 -> 0 | M24: ='5000 и 5001 ДВН'!M24+'5000 и 5001 ПО'!M24 -> 0 | N24: ='5000 и 5001 ДВН'!N24+'5000 и 5001 ПО'!N24 -> 0
B25: кожи | C25: 2.16 | D25: С43- | E25: ='5000 и 5001 ДВН'!E25+'5000 и 5001 ПО'!E25 -> 0 | F25: ='5000 и 5001 ДВН'!F25+'5000 и 5001 ПО'!F25 -> 0 | G25: ='5000 и 5001 ДВН'!G25+'5000 и 5001 ПО'!G25 -> 0 | H25: ='5000 и 5001 ДВН'!H25+'5000 и 5001 ПО'!H25 -> 0 | I25: ='5000 и 5001 ДВН'!I25+'5000 и 5001 ПО'!I25 -> 0 | J25: ='5000 и 5001 ДВН'!J25+'5000 и 5001 ПО'!J25 -> 0 | K25: ='5000 и 5001 ДВН'!K25+'5000 и 5001 ПО'!K25 -> 0 | L25: ='5000 и 5001 ДВН'!L25+'5000 и 5001 ПО'!L25 -> 0 | M25: ='5000 и 5001 ДВН'!M25+'5000 и 5001 ПО'!M25 -> 0 | N25: ='5000 и 5001 ДВН'!N25+'5000 и 5001 ПО'!N25 -> 0
B26: из них в 1-2 стадии | C26: 2.17 | D26: С44 | E26: ='5000 и 5001 ДВН'!E26+'5000 и 5001 ПО'!E26 -> 0 | F26: ='5000 и 5001 ДВН'!F26+'5000 и 5001 ПО'!F26 -> 0 | G26: ='5000 и 5001 ДВН'!G26+'5000 и 5001 ПО'!G26 -> 0 | H26: ='5000 и 5001 ДВН'!H26+'5000 и 5001 ПО'!H26 -> 0 | I26: ='5000 и 5001 ДВН'!I26+'5000 и 5001 ПО'!I26 -> 0 | J26: ='5000 и 5001 ДВН'!J26+'5000 и 5001 ПО'!J26 -> 0 | K26: ='5000 и 5001 ДВН'!K26+'5000 и 5001 ПО'!K26 -> 0 | L26: ='5000 и 5001 ДВН'!L26+'5000 и 5001 ПО'!L26 -> 0 | M26: ='5000 и 5001 ДВН'!M26+'5000 и 5001 ПО'!M26 -> 0 | N26: ='5000 и 5001 ДВН'!N26+'5000 и 5001 ПО'!N26 -> 0
B27: молочной железы | C27: 2.18 | D27: С50 | E27: ='5000 и 5001 ДВН'!E27+'5000 и 5001 ПО'!E27 -> 1 | F27: ='5000 и 5001 ДВН'!F27+'5000 и 5001 ПО'!F27 -> 1 | G27: ='5000 и 5001 ДВН'!G27+'5000 и 5001 ПО'!G27 -> 0 | H27: ='5000 и 5001 ДВН'!H27+'5000 и 5001 ПО'!H27 -> 1 | I27: ='5000 и 5001 ДВН'!I27+'5000 и 5001 ПО'!I27 -> 0 | J27: ='5000 и 5001 ДВН'!J27+'5000 и 5001 ПО'!J27 -> 0 | K27: ='5000 и 5001 ДВН'!K27+'5000 и 5001 ПО'!K27 -> 0 | L27: ='5000 и 5001 ДВН'!L27+'5000 и 5001 ПО'!L27 -> 0 | M27: ='5000 и 5001 ДВН'!M27+'5000 и 5001 ПО'!M27 -> 0 | N27: ='5000 и 5001 ДВН'!N27+'5000 и 5001 ПО'!N27 -> 0
B28: из них в 0-1 стадии | C28: 2.19 | E28: ='5000 и 5001 ДВН'!E28+'5000 и 5001 ПО'!E28 -> 0 | F28: ='5000 и 5001 ДВН'!F28+'5000 и 5001 ПО'!F28 -> 0 | G28: ='5000 и 5001 ДВН'!G28+'5000 и 5001 ПО'!G28 -> 0 | H28: ='5000 и 5001 ДВН'!H28+'5000 и 5001 ПО'!H28 -> 0 | I28: ='5000 и 5001 ДВН'!I28+'5000 и 5001 ПО'!I28 -> 0 | J28: ='5000 и 5001 ДВН'!J28+'5000 и 5001 ПО'!J28 -> 0 | K28: ='5000 и 5001 ДВН'!K28+'5000 и 5001 ПО'!K28 -> 0 | L28: ='5000 и 5001 ДВН'!L28+'5000 и 5001 ПО'!L28 -> 0 | M28: ='5000 и 5001 ДВН'!M28+'5000 и 5001 ПО'!M28 -> 0 | N28: ='5000 и 5001 ДВН'!N28+'5000 и 5001 ПО'!N28 -> 0
B29: 2 стадии | C29: 2.20 | E29: ='5000 и 5001 ДВН'!E29+'5000 и 5001 ПО'!E29 -> 1 | F29: ='5000 и 5001 ДВН'!F29+'5000 и 5001 ПО'!F29 -> 1 | G29: ='5000 и 5001 ДВН'!G29+'5000 и 5001 ПО'!G29 -> 0 | H29: ='5000 и 5001 ДВН'!H29+'5000 и 5001 ПО'!H29 -> 1 | I29: ='5000 и 5001 ДВН'!I29+'5000 и 5001 ПО'!I29 -> 0 | J29: ='5000 и 5001 ДВН'!J29+'5000 и 5001 ПО'!J29 -> 0 | K29: ='5000 и 5001 ДВН'!K29+'5000 и 5001 ПО'!K29 -> 0 | L29: ='5000 и 5001 ДВН'!L29+'5000 и 5001 ПО'!L29 -> 0 | M29: ='5000 и 5001 ДВН'!M29+'5000 и 5001 ПО'!M29 -> 0 | N29: ='5000 и 5001 ДВН'!N29+'5000 и 5001 ПО'!N29 -> 0
B30: шейки матки | C30: 2.21 | D30: С53 | E30: ='5000 и 5001 ДВН'!E30+'5000 и 5001 ПО'!E30 -> 0 | F30: ='5000 и 5001 ДВН'!F30+'5000 и 5001 ПО'!F30 -> 0 | G30: ='5000 и 5001 ДВН'!G30+'5000 и 5001 ПО'!G30 -> 0 | H30: ='5000 и 5001 ДВН'!H30+'5000 и 5001 ПО'!H30 -> 0 | I30: ='5000 и 5001 ДВН'!I30+'5000 и 5001 ПО'!I30 -> 0 | J30: ='5000 и 5001 ДВН'!J30+'5000 и 5001 ПО'!J30 -> 0 | K30: ='5000 и 5001 ДВН'!K30+'5000 и 5001 ПО'!K30 -> 0 | L30: ='5000 и 5001 ДВН'!L30+'5000 и 5001 ПО'!L30 -> 0 | M30: ='5000 и 5001 ДВН'!M30+'5000 и 5001 ПО'!M30 -> 0 | N30: ='5000 и 5001 ДВН'!N30+'5000 и 5001 ПО'!N30 -> 0
B31: из них в 0-1 стадии | C31: 2.22 | E31: ='5000 и 5001 ДВН'!E31+'5000 и 5001 ПО'!E31 -> 0 | F31: ='5000 и 5001 ДВН'!F31+'5000 и 5001 ПО'!F31 -> 0 | G31: ='5000 и 5001 ДВН'!G31+'5000 и 5001 ПО'!G31 -> 0 | H31: ='5000 и 5001 ДВН'!H31+'5000 и 5001 ПО'!H31 -> 0 | I31: ='5000 и 5001 ДВН'!I31+'5000 и 5001 ПО'!I31 -> 0 | J31: ='5000 и 5001 ДВН'!J31+'5000 и 5001 ПО'!J31 -> 0 | K31: ='5000 и 5001 ДВН'!K31+'5000 и 5001 ПО'!K31 -> 0 | L31: ='5000 и 5001 ДВН'!L31+'5000 и 5001 ПО'!L31 -> 0 | M31: ='5000 и 5001 ДВН'!M31+'5000 и 5001 ПО'!M31 -> 0 | N31: ='5000 и 5001 ДВН'!N31+'5000 и 5001 ПО'!N31 -> 0
B32: 2 стадии | C32: 2.23 | E32: ='5000 и 5001 ДВН'!E32+'5000 и 5001 ПО'!E32 -> 0 | F32: ='5000 и 5001 ДВН'!F32+'5000 и 5001 ПО'!F32 -> 0 | G32: ='5000 и 5001 ДВН'!G32+'5000 и 5001 ПО'!G32 -> 0 | H32: ='5000 и 5001 ДВН'!H32+'5000 и 5001 ПО'!H32 -> 0 | I32: ='5000 и 5001 ДВН'!I32+'5000 и 5001 ПО'!I32 -> 0 | J32: ='5000 и 5001 ДВН'!J32+'5000 и 5001 ПО'!J32 -> 0 | K32: ='5000 и 5001 ДВН'!K32+'5000 и 5001 ПО'!K32 -> 0 | L32: ='5000 и 5001 ДВН'!L32+'5000 и 5001 ПО'!L32 -> 0 | M32: ='5000 и 5001 ДВН'!M32+'5000 и 5001 ПО'!M32 -> 0 | N32: ='5000 и 5001 ДВН'!N32+'5000 и 5001 ПО'!N32 -> 0
B33: предстательной железы | C33: 2.24 | D33: С61 | E33: ='5000 и 5001 ДВН'!E33+'5000 и 5001 ПО'!E33 -> 1 | F33: ='5000 и 5001 ДВН'!F33+'5000 и 5001 ПО'!F33 -> 1 | G33: ='5000 и 5001 ДВН'!G33+'5000 и 5001 ПО'!G33 -> 0 | H33: ='5000 и 5001 ДВН'!H33+'5000 и 5001 ПО'!H33 -> 1 | I33: ='5000 и 5001 ДВН'!I33+'5000 и 5001 ПО'!I33 -> 0 | J33: ='5000 и 5001 ДВН'!J33+'5000 и 5001 ПО'!J33 -> 0 | K33: ='5000 и 5001 ДВН'!K33+'5000 и 5001 ПО'!K33 -> 0 | L33: ='5000 и 5001 ДВН'!L33+'5000 и 5001 ПО'!L33 -> 0 | M33: ='5000 и 5001 ДВН'!M33+'5000 и 5001 ПО'!M33 -> 0 | N33: ='5000 и 5001 ДВН'!N33+'5000 и 5001 ПО'!N33 -> 0
B34: из них в 1-2 стадии | C34: 2.25 | E34: ='5000 и 5001 ДВН'!E34+'5000 и 5001 ПО'!E34 -> 1 | F34: ='5000 и 5001 ДВН'!F34+'5000 и 5001 ПО'!F34 -> 1 | G34: ='5000 и 5001 ДВН'!G34+'5000 и 5001 ПО'!G34 -> 0 | H34: ='5000 и 5001 ДВН'!H34+'5000 и 5001 ПО'!H34 -> 1 | I34: ='5000 и 5001 ДВН'!I34+'5000 и 5001 ПО'!I34 -> 0 | J34: ='5000 и 5001 ДВН'!J34+'5000 и 5001 ПО'!J34 -> 0 | K34: ='5000 и 5001 ДВН'!K34+'5000 и 5001 ПО'!K34 -> 0 | L34: ='5000 и 5001 ДВН'!L34+'5000 и 5001 ПО'!L34 -> 0 | M34: ='5000 и 5001 ДВН'!M34+'5000 и 5001 ПО'!M34 -> 0 | N34: ='5000 и 5001 ДВН'!N34+'5000 и 5001 ПО'!N34 -> 0
B35: Болезни крови, кроветворных органов и отдельные нарушения, вовлекающие иммунный механизм | C35: 3 | D35: D50-D89 | E35: ='5000 и 5001 ДВН'!E35+'5000 и 5001 ПО'!E35 -> 0 | F35: ='5000 и 5001 ДВН'!F35+'5000 и 5001 ПО'!F35 -> 1 | G35: ='5000 и 5001 ДВН'!G35+'5000 и 5001 ПО'!G35 -> 0 | H35: ='5000 и 5001 ДВН'!H35+'5000 и 5001 ПО'!H35 -> 0 | I35: ='5000 и 5001 ДВН'!I35+'5000 и 5001 ПО'!I35 -> 0 | J35: ='5000 и 5001 ДВН'!J35+'5000 и 5001 ПО'!J35 -> 0 | K35: ='5000 и 5001 ДВН'!K35+'5000 и 5001 ПО'!K35 -> 0 | L35: ='5000 и 5001 ДВН'!L35+'5000 и 5001 ПО'!L35 -> 0 | M35: ='5000 и 5001 ДВН'!M35+'5000 и 5001 ПО'!M35 -> 0 | N35: ='5000 и 5001 ДВН'!N35+'5000 и 5001 ПО'!N35 -> 0 | O35: =IF(Q35>0,"стр.3 < стр.3.1 по графе "&P35,"ОК") -> ОК | P35: =IF(Q35>0,INDEX($F$6:$N$6,1,Q35),CHAR(151)) -> — | Q35: =IF(ISERROR(MATCH(FALSE,S35:AA35,0)),0,MATCH(FALSE,S35:AA35,0)) -> 0 | R35: данные по строке 3 должны быть больше или равны по соотв.графам строки 3.1 | S35: =F35>=F36 -> TRUE | T35: =G35>=G36 -> TRUE | U35: TRUE | V35: TRUE | W35: TRUE | X35: TRUE | Y35: TRUE | Z35: TRUE | AA35: TRUE
B36: в том числе: анемии, связанные с питанием, гемолитические анемии, апластические и другие анемии | C36: 3.1 | D36: D50-D64 | E36: ='5000 и 5001 ДВН'!E36+'5000 и 5001 ПО'!E36 -> 0 | F36: ='5000 и 5001 ДВН'!F36+'5000 и 5001 ПО'!F36 -> 1 | G36: ='5000 и 5001 ДВН'!G36+'5000 и 5001 ПО'!G36 -> 0 | H36: ='5000 и 5001 ДВН'!H36+'5000 и 5001 ПО'!H36 -> 0 | I36: ='5000 и 5001 ДВН'!I36+'5000 и 5001 ПО'!I36 -> 0 | J36: ='5000 и 5001 ДВН'!J36+'5000 и 5001 ПО'!J36 -> 0 | K36: ='5000 и 5001 ДВН'!K36+'5000 и 5001 ПО'!K36 -> 0 | L36: ='5000 и 5001 ДВН'!L36+'5000 и 5001 ПО'!L36 -> 0 | M36: ='5000 и 5001 ДВН'!M36+'5000 и 5001 ПО'!M36 -> 0 | N36: ='5000 и 5001 ДВН'!N36+'5000 и 5001 ПО'!N36 -> 0
B37: Болезни эндокринной системы, расстройства питания и нарушения обмена веществ | C37: 4 | D37: Е00-Е90 | E37: ='5000 и 5001 ДВН'!E37+'5000 и 5001 ПО'!E37 -> 205 | F37: ='5000 и 5001 ДВН'!F37+'5000 и 5001 ПО'!F37 -> 137 | G37: ='5000 и 5001 ДВН'!G37+'5000 и 5001 ПО'!G37 -> 46 | H37: ='5000 и 5001 ДВН'!H37+'5000 и 5001 ПО'!H37 -> 159 | I37: ='5000 и 5001 ДВН'!I37+'5000 и 5001 ПО'!I37 -> 11 | J37: ='5000 и 5001 ДВН'!J37+'5000 и 5001 ПО'!J37 -> 11 | K37: ='5000 и 5001 ДВН'!K37+'5000 и 5001 ПО'!K37 -> 0 | L37: ='5000 и 5001 ДВН'!L37+'5000 и 5001 ПО'!L37 -> 0 | M37: ='5000 и 5001 ДВН'!M37+'5000 и 5001 ПО'!M37 -> 11 | N37: ='5000 и 5001 ДВН'!N37+'5000 и 5001 ПО'!N37 -> 11 | O37: =IF(Q37>0,"стр.4 < суммы строк(4.1+4.3+4.4) по графе "&P37,"ОК") -> ОК | P37: =IF(Q37>0,INDEX($F$6:$N$6,1,Q37),CHAR(151)) -> — | Q37: =IF(ISERROR(MATCH(FALSE,S37:AA37,0)),0,MATCH(FALSE,S37:AA37,0)) -> 0 | R37: данные по строке 4 должны быть больше или равны по соотв.графам строки 4.1 и больше или равны суммы строк(4.1+4.3+4.4) | S37: =F37>=SUM(F38,F40:F41) -> TRUE | T37: =G37>=SUM(G38,G40:G41) -> TRUE | U37: TRUE | V37: TRUE | W37: TRUE | X37: TRUE | Y37: TRUE | Z37: TRUE | AA37: TRUE
B38: Сахарный диабет | C38: 4.1 | D38: Е10 - Е14 | E38: ='5000 и 5001 ДВН'!E38+'5000 и 5001 ПО'!E38 -> 103 | F38: ='5000 и 5001 ДВН'!F38+'5000 и 5001 ПО'!F38 -> 97 | G38: ='5000 и 5001 ДВН'!G38+'5000 и 5001 ПО'!G38 -> 9 | H38: ='5000 и 5001 ДВН'!H38+'5000 и 5001 ПО'!H38 -> 94 | I38: ='5000 и 5001 ДВН'!I38+'5000 и 5001 ПО'!I38 -> 11 | J38: ='5000 и 5001 ДВН'!J38+'5000 и 5001 ПО'!J38 -> 11 | K38: ='5000 и 5001 ДВН'!K38+'5000 и 5001 ПО'!K38 -> 0 | L38: ='5000 и 5001 ДВН'!L38+'5000 и 5001 ПО'!L38 -> 0 | M38: ='5000 и 5001 ДВН'!M38+'5000 и 5001 ПО'!M38 -> 11 | N38: ='5000 и 5001 ДВН'!N38+'5000 и 5001 ПО'!N38 -> 11
B39: из него: инсулиннезависимый сахарный диабет | C39: 4.2 | D39: Е11 | E39: ='5000 и 5001 ДВН'!E39+'5000 и 5001 ПО'!E39 -> 103 | F39: ='5000 и 5001 ДВН'!F39+'5000 и 5001 ПО'!F39 -> 97 | G39: ='5000 и 5001 ДВН'!G39+'5000 и 5001 ПО'!G39 -> 9 | H39: ='5000 и 5001 ДВН'!H39+'5000 и 5001 ПО'!H39 -> 94 | I39: ='5000 и 5001 ДВН'!I39+'5000 и 5001 ПО'!I39 -> 11 | J39: ='5000 и 5001 ДВН'!J39+'5000 и 5001 ПО'!J39 -> 11 | K39: ='5000 и 5001 ДВН'!K39+'5000 и 5001 ПО'!K39 -> 0 | L39: ='5000 и 5001 ДВН'!L39+'5000 и 5001 ПО'!L39 -> 0 | M39: ='5000 и 5001 ДВН'!M39+'5000 и 5001 ПО'!M39 -> 11 | N39: ='5000 и 5001 ДВН'!N39+'5000 и 5001 ПО'!N39 -> 11
B40: ожирение | C40: 4.3 | D40: Е66 | E40: ='5000 и 5001 ДВН'!E40+'5000 и 5001 ПО'!E40 -> 58 | F40: ='5000 и 5001 ДВН'!F40+'5000 и 5001 ПО'!F40 -> 29 | G40: ='5000 и 5001 ДВН'!G40+'5000 и 5001 ПО'!G40 -> 20 | H40: ='5000 и 5001 ДВН'!H40+'5000 и 5001 ПО'!H40 -> 38 | I40: ='5000 и 5001 ДВН'!I40+'5000 и 5001 ПО'!I40 -> 0 | J40: ='5000 и 5001 ДВН'!J40+'5000 и 5001 ПО'!J40 -> 0 | K40: ='5000 и 5001 ДВН'!K40+'5000 и 5001 ПО'!K40 -> 0 | L40: ='5000 и 5001 ДВН'!L40+'5000 и 5001 ПО'!L40 -> 0 | M40: ='5000 и 5001 ДВН'!M40+'5000 и 5001 ПО'!M40 -> 0 | N40: ='5000 и 5001 ДВН'!N40+'5000 и 5001 ПО'!N40 -> 0
B41: нарушения обмена липопротеинов и другие липидемии | C41: 4.4 | D41: Е78 | E41: ='5000 и 5001 ДВН'!E41+'5000 и 5001 ПО'!E41 -> 29 | F41: ='5000 и 5001 ДВН'!F41+'5000 и 5001 ПО'!F41 -> 7 | G41: ='5000 и 5001 ДВН'!G41+'5000 и 5001 ПО'!G41 -> 11 | H41: ='5000 и 5001 ДВН'!H41+'5000 и 5001 ПО'!H41 -> 18 | I41: ='5000 и 5001 ДВН'!I41+'5000 и 5001 ПО'!I41 -> 0 | J41: ='5000 и 5001 ДВН'!J41+'5000 и 5001 ПО'!J41 -> 0 | K41: ='5000 и 5001 ДВН'!K41+'5000 и 5001 ПО'!K41 -> 0 | L41: ='5000 и 5001 ДВН'!L41+'5000 и 5001 ПО'!L41 -> 0 | M41: ='5000 и 5001 ДВН'!M41+'5000 и 5001 ПО'!M41 -> 0 | N41: ='5000 и 5001 ДВН'!N41+'5000 и 5001 ПО'!N41 -> 0
B42: Болезни нервной системы | C42: 5 | D42: G00-G99 | E42: ='5000 и 5001 ДВН'!E42+'5000 и 5001 ПО'!E42 -> 138 | F42: ='5000 и 5001 ДВН'!F42+'5000 и 5001 ПО'!F42 -> 11 | G42: ='5000 и 5001 ДВН'!G42+'5000 и 5001 ПО'!G42 -> 94 | H42: ='5000 и 5001 ДВН'!H42+'5000 и 5001 ПО'!H42 -> 44 | I42: ='5000 и 5001 ДВН'!I42+'5000 и 5001 ПО'!I42 -> 0 | J42: ='5000 и 5001 ДВН'!J42+'5000 и 5001 ПО'!J42 -> 0 | K42: ='5000 и 5001 ДВН'!K42+'5000 и 5001 ПО'!K42 -> 0 | L42: ='5000 и 5001 ДВН'!L42+'5000 и 5001 ПО'!L42 -> 0 | M42: ='5000 и 5001 ДВН'!M42+'5000 и 5001 ПО'!M42 -> 0 | N42: ='5000 и 5001 ДВН'!N42+'5000 и 5001 ПО'!N42 -> 0 | O42: =IF(Q42>0,"стр.5 < стр.5.1 по графе "&P42,"ОК") -> ОК | P42: =IF(Q42>0,INDEX($F$6:$N$6,1,Q42),CHAR(151)) -> — | Q42: =IF(ISERROR(MATCH(FALSE,S42:AA42,0)),0,MATCH(FALSE,S42:AA42,0)) -> 0 | R42: данные по строке 5 должны быть больше или равны по соотв.графам строки 5.1 | S42: =F42>=F43 -> TRUE | T42: =G42>=G43 -> TRUE | U42: TRUE | V42: TRUE | W42: TRUE | X42: TRUE | Y42: TRUE | Z42: TRUE | AA42: TRUE
B43: Преходящие церебральные ишемические приступы (атаки) и родственные синдромы | C43: 5.1 | D43: G45 | E43: ='5000 и 5001 ДВН'!E43+'5000 и 5001 ПО'!E43 -> 0 | F43: ='5000 и 5001 ДВН'!F43+'5000 и 5001 ПО'!F43 -> 0 | G43: ='5000 и 5001 ДВН'!G43+'5000 и 5001 ПО'!G43 -> 0 | H43: ='5000 и 5001 ДВН'!H43+'5000 и 5001 ПО'!H43 -> 0 | I43: ='5000 и 5001 ДВН'!I43+'5000 и 5001 ПО'!I43 -> 0 | J43: ='5000 и 5001 ДВН'!J43+'5000 и 5001 ПО'!J43 -> 0 | K43: ='5000 и 5001 ДВН'!K43+'5000 и 5001 ПО'!K43 -> 0 | L43: ='5000 и 5001 ДВН'!L43+'5000 и 5001 ПО'!L43 -> 0 | M43: ='5000 и 5001 ДВН'!M43+'5000 и 5001 ПО'!M43 -> 0 | N43: ='5000 и 5001 ДВН'!N43+'5000 и 5001 ПО'!N43 -> 0
B44: Болезни глаза и его придаточного аппарата | C44: 6 | D44: Н00-Н59 | E44: ='5000 и 5001 ДВН'!E44+'5000 и 5001 ПО'!E44 -> 6 | F44: ='5000 и 5001 ДВН'!F44+'5000 и 5001 ПО'!F44 -> 3 | G44: ='5000 и 5001 ДВН'!G44+'5000 и 5001 ПО'!G44 -> 1 | H44: ='5000 и 5001 ДВН'!H44+'5000 и 5001 ПО'!H44 -> 5 | I44: ='5000 и 5001 ДВН'!I44+'5000 и 5001 ПО'!I44 -> 0 | J44: ='5000 и 5001 ДВН'!J44+'5000 и 5001 ПО'!J44 -> 0 | K44: ='5000 и 5001 ДВН'!K44+'5000 и 5001 ПО'!K44 -> 0 | L44: ='5000 и 5001 ДВН'!L44+'5000 и 5001 ПО'!L44 -> 0 | M44: ='5000 и 5001 ДВН'!M44+'5000 и 5001 ПО'!M44 -> 0 | N44: ='5000 и 5001 ДВН'!N44+'5000 и 5001 ПО'!N44 -> 0 | O44: =IF(Q44>0,"стр.6 < суммы строк(6.1+6.2+6.3) по графе "&P44,"ОК") -> ОК | P44: =IF(Q44>0,INDEX($F$6:$N$6,1,Q44),CHAR(151)) -> — | Q44: =IF(ISERROR(MATCH(FALSE,S44:AA44,0)),0,MATCH(FALSE,S44:AA44,0)) -> 0 | R44: данные по строке 6 должны быть больше или равны по соотв.графам суммы строк(6.1+6.2+6.3) | S44: =F44>=SUM(F45:F47) -> TRUE | T44: TRUE | U44: TRUE | V44: TRUE | W44: TRUE | X44: TRUE | Y44: TRUE | Z44: TRUE | AA44: TRUE
B45: Старческая катаракта и другие катаракты | C45: 6.1 | D45: Н25, Н26 | E45: ='5000 и 5001 ДВН'!E45+'5000 и 5001 ПО'!E45 -> 0 | F45: ='5000 и 5001 ДВН'!F45+'5000 и 5001 ПО'!F45 -> 0 | G45: ='5000 и 5001 ДВН'!G45+'5000 и 5001 ПО'!G45 -> 0 | H45: ='5000 и 5001 ДВН'!H45+'5000 и 5001 ПО'!H45 -> 0 | I45: ='5000 и 5001 ДВН'!I45+'5000 и 5001 ПО'!I45 -> 0 | J45: ='5000 и 5001 ДВН'!J45+'5000 и 5001 ПО'!J45 -> 0 | K45: ='5000 и 5001 ДВН'!K45+'5000 и 5001 ПО'!K45 -> 0 | L45: ='5000 и 5001 ДВН'!L45+'5000 и 5001 ПО'!L45 -> 0 | M45: ='5000 и 5001 ДВН'!M45+'5000 и 5001 ПО'!M45 -> 0 | N45: ='5000 и 5001 ДВН'!N45+'5000 и 5001 ПО'!N45 -> 0
B46: Глаукома | C46: 6.2 | D46: Н40 | E46: ='5000 и 5001 ДВН'!E46+'5000 и 5001 ПО'!E46 -> 5 | F46: ='5000 и 5001 ДВН'!F46+'5000 и 5001 ПО'!F46 -> 2 | G46: ='5000 и 5001 ДВН'!G46+'5000 и 5001 ПО'!G46 -> 1 | H46: ='5000 и 5001 ДВН'!H46+'5000 и 5001 ПО'!H46 -> 4 | I46: ='5000 и 5001 ДВН'!I46+'5000 и 5001 ПО'!I46 -> 0 | J46: ='5000 и 5001 ДВН'!J46+'5000 и 5001 ПО'!J46 -> 0 | K46: ='5000 и 5001 ДВН'!K46+'5000 и 5001 ПО'!K46 -> 0 | L46: ='5000 и 5001 ДВН'!L46+'5000 и 5001 ПО'!L46 -> 0 | M46: ='5000 и 5001 ДВН'!M46+'5000 и 5001 ПО'!M46 -> 0 | N46: ='5000 и 5001 ДВН'!N46+'5000 и 5001 ПО'!N46 -> 0
B47: Слепота и пониженное зрение | C47: 6.3 | D47: Н54 | E47: ='5000 и 5001 ДВН'!E47+'5000 и 5001 ПО'!E47 -> 1 | F47: ='5000 и 5001 ДВН'!F47+'5000 и 5001 ПО'!F47 -> 1 | G47: ='5000 и 5001 ДВН'!G47+'5000 и 5001 ПО'!G47 -> 0 | H47: ='5000 и 5001 ДВН'!H47+'5000 и 5001 ПО'!H47 -> 1 | I47: ='5000 и 5001 ДВН'!I47+'5000 и 5001 ПО'!I47 -> 0 | J47: ='5000 и 5001 ДВН'!J47+'5000 и 5001 ПО'!J47 -> 0 | K47: ='5000 и 5001 ДВН'!K47+'5000 и 5001 ПО'!K47 -> 0 | L47: ='5000 и 5001 ДВН'!L47+'5000 и 5001 ПО'!L47 -> 0 | M47: ='5000 и 5001 ДВН'!M47+'5000 и 5001 ПО'!M47 -> 0 | N47: ='5000 и 5001 ДВН'!N47+'5000 и 5001 ПО'!N47 -> 0
B48: Болезни системы кровообращения | C48: 7 | D48: I00-I99 | E48: ='5000 и 5001 ДВН'!E48+'5000 и 5001 ПО'!E48 -> 1226 | F48: ='5000 и 5001 ДВН'!F48+'5000 и 5001 ПО'!F48 -> 1261 | G48: ='5000 и 5001 ДВН'!G48+'5000 и 5001 ПО'!G48 -> 138 | H48: ='5000 и 5001 ДВН'!H48+'5000 и 5001 ПО'!H48 -> 1088 | I48: ='5000 и 5001 ДВН'!I48+'5000 и 5001 ПО'!I48 -> 57 | J48: ='5000 и 5001 ДВН'!J48+'5000 и 5001 ПО'!J48 -> 57 | K48: ='5000 и 5001 ДВН'!K48+'5000 и 5001 ПО'!K48 -> 19 | L48: ='5000 и 5001 ДВН'!L48+'5000 и 5001 ПО'!L48 -> 19 | M48: ='5000 и 5001 ДВН'!M48+'5000 и 5001 ПО'!M48 -> 38 | N48: ='5000 и 5001 ДВН'!N48+'5000 и 5001 ПО'!N48 -> 38 | O48: =IF(Q48>0,"стр.7 < суммы строк(7.1+7.2+7.4+7.6) по графе "&P48,"ОК") -> ОК | P48: =IF(Q48>0,INDEX($F$6:$N$6,1,Q48),CHAR(151)) -> — | Q48: =IF(ISERROR(MATCH(FALSE,S48:AA48,0)),0,MATCH(FALSE,S48:AA48,0)) -> 0 | R48: данные по строке 7 должны быть больше или равны по соотв.графам суммы строк(7.1+7.2+7.4+7.6) | S48: =F48>=SUM(F49:F50,F55,F59) -> TRUE | T48: =G48>=SUM(G49:G50,G55,G59) -> TRUE | U48: TRUE | V48: TRUE | W48: TRUE | X48: TRUE | Y48: TRUE | Z48: TRUE | AA48: TRUE
B49: из них болезни, характеризующиеся повышенным кровяным давлением | C49: 7.1 | D49: I10 - I13 | E49: ='5000 и 5001 ДВН'!E49+'5000 и 5001 ПО'!E49 -> 656 | F49: ='5000 и 5001 ДВН'!F49+'5000 и 5001 ПО'!F49 -> 702 | G49: ='5000 и 5001 ДВН'!G49+'5000 и 5001 ПО'!G49 -> 98 | H49: ='5000 и 5001 ДВН'!H49+'5000 и 5001 ПО'!H49 -> 558 | I49: ='5000 и 5001 ДВН'!I49+'5000 и 5001 ПО'!I49 -> 32 | J49: ='5000 и 5001 ДВН'!J49+'5000 и 5001 ПО'!J49 -> 32 | K49: ='5000 и 5001 ДВН'!K49+'5000 и 5001 ПО'!K49 -> 10 | L49: ='5000 и 5001 ДВН'!L49+'5000 и 5001 ПО'!L49 -> 10 | M49: ='5000 и 5001 ДВН'!M49+'5000 и 5001 ПО'!M49 -> 22 | N49: ='5000 и 5001 ДВН'!N49+'5000 и 5001 ПО'!N49 -> 22
B50: ишемические болезни сердца | C50: 7.2 | D50: I20 - I25 | E50: ='5000 и 5001 ДВН'!E50+'5000 и 5001 ПО'!E50 -> 387 | F50: ='5000 и 5001 ДВН'!F50+'5000 и 5001 ПО'!F50 -> 403 | G50: ='5000 и 5001 ДВН'!G50+'5000 и 5001 ПО'!G50 -> 23 | H50: ='5000 и 5001 ДВН'!H50+'5000 и 5001 ПО'!H50 -> 364 | I50: ='5000 и 5001 ДВН'!I50+'5000 и 5001 ПО'!I50 -> 24 | J50: ='5000 и 5001 ДВН'!J50+'5000 и 5001 ПО'!J50 -> 24 | K50: ='5000 и 5001 ДВН'!K50+'5000 и 5001 ПО'!K50 -> 8 | L50: ='5000 и 5001 ДВН'!L50+'5000 и 5001 ПО'!L50 -> 8 | M50: ='5000 и 5001 ДВН'!M50+'5000 и 5001 ПО'!M50 -> 16 | N50: ='5000 и 5001 ДВН'!N50+'5000 и 5001 ПО'!N50 -> 16
B51: в том числе: стенокардия (грудная жаба) | C51: 7.2.1 | D51: I20 | E51: ='5000 и 5001 ДВН'!E51+'5000 и 5001 ПО'!E51 -> 56 | F51: ='5000 и 5001 ДВН'!F51+'5000 и 5001 ПО'!F51 -> 60 | G51: ='5000 и 5001 ДВН'!G51+'5000 и 5001 ПО'!G51 -> 6 | H51: ='5000 и 5001 ДВН'!H51+'5000 и 5001 ПО'!H51 -> 50 | I51: ='5000 и 5001 ДВН'!I51+'5000 и 5001 ПО'!I51 -> 0 | J51: ='5000 и 5001 ДВН'!J51+'5000 и 5001 ПО'!J51 -> 0 | K51: ='5000 и 5001 ДВН'!K51+'5000 и 5001 ПО'!K51 -> 0 | L51: ='5000 и 5001 ДВН'!L51+'5000 и 5001 ПО'!L51 -> 0 | M51: ='5000 и 5001 ДВН'!M51+'5000 и 5001 ПО'!M51 -> 0 | N51: ='5000 и 5001 ДВН'!N51+'5000 и 5001 ПО'!N51 -> 0
B52: в том числе нестабильная стенокардия | C52: 7.2.2 | D52: I20.0 | E52: ='5000 и 5001 ДВН'!E52+'5000 и 5001 ПО'!E52 -> 0 | F52: ='5000 и 5001 ДВН'!F52+'5000 и 5001 ПО'!F52 -> 0 | G52: ='5000 и 5001 ДВН'!G52+'5000 и 5001 ПО'!G52 -> 0 | H52: ='5000 и 5001 ДВН'!H52+'5000 и 5001 ПО'!H52 -> 0 | I52: ='5000 и 5001 ДВН'!I52+'5000 и 5001 ПО'!I52 -> 0 | J52: ='5000 и 5001 ДВН'!J52+'5000 и 5001 ПО'!J52 -> 0 | K52: ='5000 и 5001 ДВН'!K52+'5000 и 5001 ПО'!K52 -> 0 | L52: ='5000 и 5001 ДВН'!L52+'5000 и 5001 ПО'!L52 -> 0 | M52: ='5000 и 5001 ДВН'!M52+'5000 и 5001 ПО'!M52 -> 0 | N52: ='5000 и 5001 ДВН'!N52+'5000 и 5001 ПО'!N52 -> 0
B53: хроническая ишемическая болезнь сердца | C53: 7.3 | D53: I25 | E53: ='5000 и 5001 ДВН'!E53+'5000 и 5001 ПО'!E53 -> 331 | F53: ='5000 и 5001 ДВН'!F53+'5000 и 5001 ПО'!F53 -> 343 | G53: ='5000 и 5001 ДВН'!G53+'5000 и 5001 ПО'!G53 -> 17 | H53: ='5000 и 5001 ДВН'!H53+'5000 и 5001 ПО'!H53 -> 314 | I53: ='5000 и 5001 ДВН'!I53+'5000 и 5001 ПО'!I53 -> 24 | J53: ='5000 и 5001 ДВН'!J53+'5000 и 5001 ПО'!J53 -> 24 | K53: ='5000 и 5001 ДВН'!K53+'5000 и 5001 ПО'!K53 -> 8 | L53: ='5000 и 5001 ДВН'!L53+'5000 и 5001 ПО'!L53 -> 8 | M53: ='5000 и 5001 ДВН'!M53+'5000 и 5001 ПО'!M53 -> 16 | N53: ='5000 и 5001 ДВН'!N53+'5000 и 5001 ПО'!N53 -> 16
B54: в том числе: перенесенный в прошлом инфаркт миокарда | C54: 7.3.1 | D54: I25.2 | E54: ='5000 и 5001 ДВН'!E54+'5000 и 5001 ПО'!E54 -> 30 | F54: ='5000 и 5001 ДВН'!F54+'5000 и 5001 ПО'!F54 -> 30 | G54: ='5000 и 5001 ДВН'!G54+'5000 и 5001 ПО'!G54 -> 2 | H54: ='5000 и 5001 ДВН'!H54+'5000 и 5001 ПО'!H54 -> 28 | I54: ='5000 и 5001 ДВН'!I54+'5000 и 5001 ПО'!I54 -> 0 | J54: ='5000 и 5001 ДВН'!J54+'5000 и 5001 ПО'!J54 -> 0 | K54: ='5000 и 5001 ДВН'!K54+'5000 и 5001 ПО'!K54 -> 0 | L54: ='5000 и 5001 ДВН'!L54+'5000 и 5001 ПО'!L54 -> 0 | M54: ='5000 и 5001 ДВН'!M54+'5000 и 5001 ПО'!M54 -> 0 | N54: ='5000 и 5001 ДВН'!N54+'5000 и 5001 ПО'!N54 -> 0
B55: другие болезни сердца | C55: 7.4 | D55: I30-I52 | E55: ='5000 и 5001 ДВН'!E55+'5000 и 5001 ПО'!E55 -> 63 | F55: ='5000 и 5001 ДВН'!F55+'5000 и 5001 ПО'!F55 -> 63 | G55: ='5000 и 5001 ДВН'!G55+'5000 и 5001 ПО'!G55 -> 2 | H55: ='5000 и 5001 ДВН'!H55+'5000 и 5001 ПО'!H55 -> 61 | I55: ='5000 и 5001 ДВН'!I55+'5000 и 5001 ПО'!I55 -> 0 | J55: ='5000 и 5001 ДВН'!J55+'5000 и 5001 ПО'!J55 -> 0 | K55: ='5000 и 5001 ДВН'!K55+'5000 и 5001 ПО'!K55 -> 0 | L55: ='5000 и 5001 ДВН'!L55+'5000 и 5001 ПО'!L55 -> 0 | M55: ='5000 и 5001 ДВН'!M55+'5000 и 5001 ПО'!M55 -> 0 | N55: ='5000 и 5001 ДВН'!N55+'5000 и 5001 ПО'!N55 -> 0
B56: цереброваскулярные болезни | C56: 7.5 | D56: I60 - I69 | E56: ='5000 и 5001 ДВН'!E56+'5000 и 5001 ПО'!E56 -> 102 | F56: ='5000 и 5001 ДВН'!F56+'5000 и 5001 ПО'!F56 -> 84 | G56: ='5000 и 5001 ДВН'!G56+'5000 и 5001 ПО'!G56 -> 10 | H56: ='5000 и 5001 ДВН'!H56+'5000 и 5001 ПО'!H56 -> 92 | I56: ='5000 и 5001 ДВН'!I56+'5000 и 5001 ПО'!I56 -> 0 | J56: ='5000 и 5001 ДВН'!J56+'5000 и 5001 ПО'!J56 -> 0 | K56: ='5000 и 5001 ДВН'!K56+'5000 и 5001 ПО'!K56 -> 0 | L56: ='5000 и 5001 ДВН'!L56+'5000 и 5001 ПО'!L56 -> 0 | M56: ='5000 и 5001 ДВН'!M56+'5000 и 5001 ПО'!M56 -> 0 | N56: ='5000 и 5001 ДВН'!N56+'5000 и 5001 ПО'!N56 -> 0
B57: из них: закупорка и стеноз прецеребральных и (или) церебральных артерий, не приводящие к инфаркту мозга | C57: 7.5.1 | D57: I65, I66 | E57: ='5000 и 5001 ДВН'!E57+'5000 и 5001 ПО'!E57 -> 2 | F57: ='5000 и 5001 ДВН'!F57+'5000 и 5001 ПО'!F57 -> 2 | G57: ='5000 и 5001 ДВН'!G57+'5000 и 5001 ПО'!G57 -> 0 | H57: ='5000 и 5001 ДВН'!H57+'5000 и 5001 ПО'!H57 -> 2 | I57: ='5000 и 5001 ДВН'!I57+'5000 и 5001 ПО'!I57 -> 0 | J57: ='5000 и 5001 ДВН'!J57+'5000 и 5001 ПО'!J57 -> 0 | K57: ='5000 и 5001 ДВН'!K57+'5000 и 5001 ПО'!K57 -> 0 | L57: ='5000 и 5001 ДВН'!L57+'5000 и 5001 ПО'!L57 -> 0 | M57: ='5000 и 5001 ДВН'!M57+'5000 и 5001 ПО'!M57 -> 0 | N57: ='5000 и 5001 ДВН'!N57+'5000 и 5001 ПО'!N57 -> 0
B58: другие цереброваскулярные болезни | C58: 7.5.2 | D58: I67 | E58: ='5000 и 5001 ДВН'!E58+'5000 и 5001 ПО'!E58 -> 76 | F58: ='5000 и 5001 ДВН'!F58+'5000 и 5001 ПО'!F58 -> 57 | G58: ='5000 и 5001 ДВН'!G58+'5000 и 5001 ПО'!G58 -> 6 | H58: ='5000 и 5001 ДВН'!H58+'5000 и 5001 ПО'!H58 -> 70 | I58: ='5000 и 5001 ДВН'!I58+'5000 и 5001 ПО'!I58 -> 0 | J58: ='5000 и 5001 ДВН'!J58+'5000 и 5001 ПО'!J58 -> 0 | K58: ='5000 и 5001 ДВН'!K58+'5000 и 5001 ПО'!K58 -> 0 | L58: ='5000 и 5001 ДВН'!L58+'5000 и 5001 ПО'!L58 -> 0 | M58: ='5000 и 5001 ДВН'!M58+'5000 и 5001 ПО'!M58 -> 0 | N58: ='5000 и 5001 ДВН'!N58+'5000 и 5001 ПО'!N58 -> 0
B59: аневризма брюшной аорты | C59: 7.6 | D59: I71.3-I71.4 | E59: ='5000 и 5001 ДВН'!E59+'5000 и 5001 ПО'!E59 -> 0 | F59: ='5000 и 5001 ДВН'!F59+'5000 и 5001 ПО'!F59 -> 0 | G59: ='5000 и 5001 ДВН'!G59+'5000 и 5001 ПО'!G59 -> 0 | H59: ='5000 и 5001 ДВН'!H59+'5000 и 5001 ПО'!H59 -> 0 | I59: ='5000 и 5001 ДВН'!I59+'5000 и 5001 ПО'!I59 -> 0 | J59: ='5000 и 5001 ДВН'!J59+'5000 и 5001 ПО'!J59 -> 0 | K59: ='5000 и 5001 ДВН'!K59+'5000 и 5001 ПО'!K59 -> 0 | L59: ='5000 и 5001 ДВН'!L59+'5000 и 5001 ПО'!L59 -> 0 | M59: ='5000 и 5001 ДВН'!M59+'5000 и 5001 ПО'!M59 -> 0 | N59: ='5000 и 5001 ДВН'!N59+'5000 и 5001 ПО'!N59 -> 0
B60: Болезни органов дыхания | C60: 8.0 | D60: J00-J98 | E60: ='5000 и 5001 ДВН'!E60+'5000 и 5001 ПО'!E60 -> 51 | F60: ='5000 и 5001 ДВН'!F60+'5000 и 5001 ПО'!F60 -> 53 | G60: ='5000 и 5001 ДВН'!G60+'5000 и 5001 ПО'!G60 -> 15 | H60: ='5000 и 5001 ДВН'!H60+'5000 и 5001 ПО'!H60 -> 36 | I60: ='5000 и 5001 ДВН'!I60+'5000 и 5001 ПО'!I60 -> 13 | J60: ='5000 и 5001 ДВН'!J60+'5000 и 5001 ПО'!J60 -> 2 | K60: ='5000 и 5001 ДВН'!K60+'5000 и 5001 ПО'!K60 -> 6 | L60: ='5000 и 5001 ДВН'!L60+'5000 и 5001 ПО'!L60 -> 1 | M60: ='5000 и 5001 ДВН'!M60+'5000 и 5001 ПО'!M60 -> 7 | N60: ='5000 и 5001 ДВН'!N60+'5000 и 5001 ПО'!N60 -> 1 | O60: =IF(Q60>0,"стр.8 < суммы строк(8.1+8.2+8.3) по графе "&P60,"ОК") -> ОК | P60: =IF(Q60>0,INDEX($F$6:$N$6,1,Q60),CHAR(151)) -> — | Q60: =IF(ISERROR(MATCH(FALSE,S60:AA60,0)),0,MATCH(FALSE,S60:AA60,0)) -> 0 | R60: данные по строке 8 должны быть больше или равны по соотв.графам суммы строк(8.1+8.2+8.3) | S60: =F60>=SUM(F61:F63) -> TRUE | T60: =G60>=SUM(G61:G63) -> TRUE | U60: TRUE | V60: TRUE | W60: TRUE | X60: TRUE | Y60: TRUE | Z60: TRUE | AA60: TRUE
B61: в том числе: вирусная пневмония, пневмония, вызванная Streptococcus pneumonia, пневмония, вызванная Haemophilus influenza, бактериальная пневмония, пневмония, вызванная другими инфекционными возбудителями, пневмония при болезнях, классифицированных в других рубриках, пневмония без уточнения возбудителя | C61: 8.1 | D61: J12-J18 | E61: ='5000 и 5001 ДВН'!E61+'5000 и 5001 ПО'!E61 -> 0 | F61: ='5000 и 5001 ДВН'!F61+'5000 и 5001 ПО'!F61 -> 0 | G61: ='5000 и 5001 ДВН'!G61+'5000 и 5001 ПО'!G61 -> 0 | H61: ='5000 и 5001 ДВН'!H61+'5000 и 5001 ПО'!H61 -> 0 | I61: ='5000 и 5001 ДВН'!I61+'5000 и 5001 ПО'!I61 -> 0 | J61: ='5000 и 5001 ДВН'!J61+'5000 и 5001 ПО'!J61 -> 0 | K61: ='5000 и 5001 ДВН'!K61+'5000 и 5001 ПО'!K61 -> 0 | L61: ='5000 и 5001 ДВН'!L61+'5000 и 5001 ПО'!L61 -> 0 | M61: ='5000 и 5001 ДВН'!M61+'5000 и 5001 ПО'!M61 -> 0 | N61: ='5000 и 5001 ДВН'!N61+'5000 и 5001 ПО'!N61 -> 0
B62: Бронхит, не уточненный как острый и хронический, простой и слизисто-гнойный хронический бронхит, хронический бронхит неуточненный, эмфизема | C62: 8.2 | D62: J40 - J43 | E62: ='5000 и 5001 ДВН'!E62+'5000 и 5001 ПО'!E62 -> 22 | F62: ='5000 и 5001 ДВН'!F62+'5000 и 5001 ПО'!F62 -> 22 | G62: ='5000 и 5001 ДВН'!G62+'5000 и 5001 ПО'!G62 -> 9 | H62: ='5000 и 5001 ДВН'!H62+'5000 и 5001 ПО'!H62 -> 13 | I62: ='5000 и 5001 ДВН'!I62+'5000 и 5001 ПО'!I62 -> 13 | J62: ='5000 и 5001 ДВН'!J62+'5000 и 5001 ПО'!J62 -> 2 | K62: ='5000 и 5001 ДВН'!K62+'5000 и 5001 ПО'!K62 -> 6 | L62: ='5000 и 5001 ДВН'!L62+'5000 и 5001 ПО'!L62 -> 1 | M62: ='5000 и 5001 ДВН'!M62+'5000 и 5001 ПО'!M62 -> 7 | N62: ='5000 и 5001 ДВН'!N62+'5000 и 5001 ПО'!N62 -> 1
B63: Другая хроническая обструктивная легочная болезнь, астма, астматический статус, бронхоэктатическая болезнь | C63: 8.3 | D63: J44 - J47 | E63: ='5000 и 5001 ДВН'!E63+'5000 и 5001 ПО'!E63 -> 29 | F63: ='5000 и 5001 ДВН'!F63+'5000 и 5001 ПО'!F63 -> 31 | G63: ='5000 и 5001 ДВН'!G63+'5000 и 5001 ПО'!G63 -> 6 | H63: ='5000 и 5001 ДВН'!H63+'5000 и 5001 ПО'!H63 -> 23 | I63: ='5000 и 5001 ДВН'!I63+'5000 и 5001 ПО'!I63 -> 0 | J63: ='5000 и 5001 ДВН'!J63+'5000 и 5001 ПО'!J63 -> 0 | K63: ='5000 и 5001 ДВН'!K63+'5000 и 5001 ПО'!K63 -> 0 | L63: ='5000 и 5001 ДВН'!L63+'5000 и 5001 ПО'!L63 -> 0 | M63: ='5000 и 5001 ДВН'!M63+'5000 и 5001 ПО'!M63 -> 0 | N63: ='5000 и 5001 ДВН'!N63+'5000 и 5001 ПО'!N63 -> 0
B64: Болезни органов пищеварения | C64: 9.0 | D64: К00-К93 | E64: ='5000 и 5001 ДВН'!E64+'5000 и 5001 ПО'!E64 -> 68 | F64: ='5000 и 5001 ДВН'!F64+'5000 и 5001 ПО'!F64 -> 49 | G64: ='5000 и 5001 ДВН'!G64+'5000 и 5001 ПО'!G64 -> 32 | H64: ='5000 и 5001 ДВН'!H64+'5000 и 5001 ПО'!H64 -> 36 | I64: ='5000 и 5001 ДВН'!I64+'5000 и 5001 ПО'!I64 -> 13 | J64: ='5000 и 5001 ДВН'!J64+'5000 и 5001 ПО'!J64 -> 0 | K64: ='5000 и 5001 ДВН'!K64+'5000 и 5001 ПО'!K64 -> 5 | L64: ='5000 и 5001 ДВН'!L64+'5000 и 5001 ПО'!L64 -> 0 | M64: ='5000 и 5001 ДВН'!M64+'5000 и 5001 ПО'!M64 -> 8 | N64: ='5000 и 5001 ДВН'!N64+'5000 и 5001 ПО'!N64 -> 0 | O64: =IF(Q64>0,"стр.9 < суммы строк(9.1+9.2+9.3+9.4) по графе "&P64,"ОК") -> ОК | P64: =IF(Q64>0,INDEX($F$6:$N$6,1,Q64),CHAR(151)) -> — | Q64: =IF(ISERROR(MATCH(FALSE,S64:AA64,0)),0,MATCH(FALSE,S64:AA64,0)) -> 0 | R64: данные по строке 9 должны быть больше или равны по соотв.графам суммы строк(9.1+9.2+9.3+9.4) | S64: =F64>=SUM(F65:F68) -> TRUE | T64: =G64>=SUM(G65:G68) -> TRUE | U64: TRUE | V64: TRUE | W64: TRUE | X64: TRUE | Y64: TRUE | Z64: TRUE | AA64: TRUE
B65: язва желудка, язва двенадцатиперстной кишки | C65: 9.1 | D65: K25, К26 | E65: ='5000 и 5001 ДВН'!E65+'5000 и 5001 ПО'!E65 -> 15 | F65: ='5000 и 5001 ДВН'!F65+'5000 и 5001 ПО'!F65 -> 11 | G65: ='5000 и 5001 ДВН'!G65+'5000 и 5001 ПО'!G65 -> 9 | H65: ='5000 и 5001 ДВН'!H65+'5000 и 5001 ПО'!H65 -> 6 | I65: ='5000 и 5001 ДВН'!I65+'5000 и 5001 ПО'!I65 -> 0 | J65: ='5000 и 5001 ДВН'!J65+'5000 и 5001 ПО'!J65 -> 0 | K65: ='5000 и 5001 ДВН'!K65+'5000 и 5001 ПО'!K65 -> 0 | L65: ='5000 и 5001 ДВН'!L65+'5000 и 5001 ПО'!L65 -> 0 | M65: ='5000 и 5001 ДВН'!M65+'5000 и 5001 ПО'!M65 -> 0 | N65: ='5000 и 5001 ДВН'!N65+'5000 и 5001 ПО'!N65 -> 0
B66: гастрит и дуоденит | C66: 9.2 | D66: K29 | E66: ='5000 и 5001 ДВН'!E66+'5000 и 5001 ПО'!E66 -> 27 | F66: ='5000 и 5001 ДВН'!F66+'5000 и 5001 ПО'!F66 -> 20 | G66: ='5000 и 5001 ДВН'!G66+'5000 и 5001 ПО'!G66 -> 10 | H66: ='5000 и 5001 ДВН'!H66+'5000 и 5001 ПО'!H66 -> 17 | I66: ='5000 и 5001 ДВН'!I66+'5000 и 5001 ПО'!I66 -> 3 | J66: ='5000 и 5001 ДВН'!J66+'5000 и 5001 ПО'!J66 -> 0 | K66: ='5000 и 5001 ДВН'!K66+'5000 и 5001 ПО'!K66 -> 1 | L66: ='5000 и 5001 ДВН'!L66+'5000 и 5001 ПО'!L66 -> 0 | M66: ='5000 и 5001 ДВН'!M66+'5000 и 5001 ПО'!M66 -> 2 | N66: ='5000 и 5001 ДВН'!N66+'5000 и 5001 ПО'!N66 -> 0
B67: неинфекционный энтерит и колит | C67: 9.3 | D67: К50-К52 | E67: ='5000 и 5001 ДВН'!E67+'5000 и 5001 ПО'!E67 -> 0 | F67: ='5000 и 5001 ДВН'!F67+'5000 и 5001 ПО'!F67 -> 1 | G67: ='5000 и 5001 ДВН'!G67+'5000 и 5001 ПО'!G67 -> 0 | H67: ='5000 и 5001 ДВН'!H67+'5000 и 5001 ПО'!H67 -> 0 | I67: ='5000 и 5001 ДВН'!I67+'5000 и 5001 ПО'!I67 -> 0 | J67: ='5000 и 5001 ДВН'!J67+'5000 и 5001 ПО'!J67 -> 0 | K67: ='5000 и 5001 ДВН'!K67+'5000 и 5001 ПО'!K67 -> 0 | L67: ='5000 и 5001 ДВН'!L67+'5000 и 5001 ПО'!L67 -> 0 | M67: ='5000 и 5001 ДВН'!M67+'5000 и 5001 ПО'!M67 -> 0 | N67: ='5000 и 5001 ДВН'!N67+'5000 и 5001 ПО'!N67 -> 0
B68: другие болезни кишечника | C68: 9.4 | D68: К55-К63 | E68: ='5000 и 5001 ДВН'!E68+'5000 и 5001 ПО'!E68 -> 0 | F68: ='5000 и 5001 ДВН'!F68+'5000 и 5001 ПО'!F68 -> 0 | G68: ='5000 и 5001 ДВН'!G68+'5000 и 5001 ПО'!G68 -> 0 | H68: ='5000 и 5001 ДВН'!H68+'5000 и 5001 ПО'!H68 -> 0 | I68: ='5000 и 5001 ДВН'!I68+'5000 и 5001 ПО'!I68 -> 0 | J68: ='5000 и 5001 ДВН'!J68+'5000 и 5001 ПО'!J68 -> 0 | K68: ='5000 и 5001 ДВН'!K68+'5000 и 5001 ПО'!K68 -> 0 | L68: ='5000 и 5001 ДВН'!L68+'5000 и 5001 ПО'!L68 -> 0 | M68: ='5000 и 5001 ДВН'!M68+'5000 и 5001 ПО'!M68 -> 0 | N68: ='5000 и 5001 ДВН'!N68+'5000 и 5001 ПО'!N68 -> 0
B69: Прочие заболевания | C69: 10.0 | E69: =SUM(E70+E74+E76+E77) -> 435 | F69: =SUM(F70+F74+F76+F77) -> 159 | G69: 239 | H69: 196 | I69: 239 | J69: 0 | K69: 94 | L69: 0 | M69: 145 | N69: 0 | O69: =IF(Q69>0,"стр.10.1 < суммы строк(10.1.1+10.1.2+10.1.3) по графе "&P69,"ОК") -> ОК | P69: =IF(Q69>0,INDEX($F$6:$N$6,1,Q69),CHAR(151)) -> — | Q69: =IF(ISERROR(MATCH(FALSE,S69:AA69,0)),0,MATCH(FALSE,S69:AA69,0)) -> 0 | R69: данные по строке 10.1 должны быть больше или равны по соотв.графам суммы строк(10.1.1+10.1.2+10.1.3) | S69: =F70>=SUM(F71:F73) -> TRUE | T69: =G70>=SUM(G71:G73) -> TRUE | U69: TRUE | V69: TRUE | W69: TRUE | X69: TRUE | Y69: TRUE | Z69: TRUE | AA69: TRUE
B70: Болезни мочеполовой системы | C70: 10.1 | D70: N00-N99 | E70: ='5000 и 5001 ДВН'!E70+'5000 и 5001 ПО'!E70 -> 167 | F70: ='5000 и 5001 ДВН'!F70+'5000 и 5001 ПО'!F70 -> 36 | G70: ='5000 и 5001 ДВН'!G70+'5000 и 5001 ПО'!G70 -> 145 | H70: ='5000 и 5001 ДВН'!H70+'5000 и 5001 ПО'!H70 -> 22 | I70: ='5000 и 5001 ДВН'!I70+'5000 и 5001 ПО'!I70 -> 0 | J70: ='5000 и 5001 ДВН'!J70+'5000 и 5001 ПО'!J70 -> 0 | K70: ='5000 и 5001 ДВН'!K70+'5000 и 5001 ПО'!K70 -> 0 | L70: ='5000 и 5001 ДВН'!L70+'5000 и 5001 ПО'!L70 -> 0 | M70: ='5000 и 5001 ДВН'!M70+'5000 и 5001 ПО'!M70 -> 0 | N70: ='5000 и 5001 ДВН'!N70+'5000 и 5001 ПО'!N70 -> 0
B71: в том числе: гиперплазия предстательной железы, воспалительные болезни предстательной железы, другие болезни предстательной железы | C71: 10.1.1 | D71: N40-N42 | E71: ='5000 и 5001 ДВН'!E71+'5000 и 5001 ПО'!E71 -> 5 | F71: ='5000 и 5001 ДВН'!F71+'5000 и 5001 ПО'!F71 -> 1 | G71: ='5000 и 5001 ДВН'!G71+'5000 и 5001 ПО'!G71 -> 1 | H71: ='5000 и 5001 ДВН'!H71+'5000 и 5001 ПО'!H71 -> 4 | I71: ='5000 и 5001 ДВН'!I71+'5000 и 5001 ПО'!I71 -> 0 | J71: ='5000 и 5001 ДВН'!J71+'5000 и 5001 ПО'!J71 -> 0 | K71: ='5000 и 5001 ДВН'!K71+'5000 и 5001 ПО'!K71 -> 0 | L71: ='5000 и 5001 ДВН'!L71+'5000 и 5001 ПО'!L71 -> 0 | M71: ='5000 и 5001 ДВН'!M71+'5000 и 5001 ПО'!M71 -> 0 | N71: ='5000 и 5001 ДВН'!N71+'5000 и 5001 ПО'!N71 -> 0
B72: доброкачественная дисплазия молочной железы | C72: 10.1.2 | D72: N60 | E72: ='5000 и 5001 ДВН'!E72+'5000 и 5001 ПО'!E72 -> 0 | F72: ='5000 и 5001 ДВН'!F72+'5000 и 5001 ПО'!F72 -> 0 | G72: ='5000 и 5001 ДВН'!G72+'5000 и 5001 ПО'!G72 -> 0 | H72: ='5000 и 5001 ДВН'!H72+'5000 и 5001 ПО'!H72 -> 0 | I72: ='5000 и 5001 ДВН'!I72+'5000 и 5001 ПО'!I72 -> 0 | J72: ='5000 и 5001 ДВН'!J72+'5000 и 5001 ПО'!J72 -> 0 | K72: ='5000 и 5001 ДВН'!K72+'5000 и 5001 ПО'!K72 -> 0 | L72: ='5000 и 5001 ДВН'!L72+'5000 и 5001 ПО'!L72 -> 0 | M72: ='5000 и 5001 ДВН'!M72+'5000 и 5001 ПО'!M72 -> 0 | N72: ='5000 и 5001 ДВН'!N72+'5000 и 5001 ПО'!N72 -> 0
B73: воспалительные болезни женских тазовых органов | C73: 10.1.3 | D73: N70-N77 | E73: ='5000 и 5001 ДВН'!E73+'5000 и 5001 ПО'!E73 -> 0 | F73: ='5000 и 5001 ДВН'!F73+'5000 и 5001 ПО'!F73 -> 0 | G73: ='5000 и 5001 ДВН'!G73+'5000 и 5001 ПО'!G73 -> 0 | H73: ='5000 и 5001 ДВН'!H73+'5000 и 5001 ПО'!H73 -> 0 | I73: ='5000 и 5001 ДВН'!I73+'5000 и 5001 ПО'!I73 -> 0 | J73: ='5000 и 5001 ДВН'!J73+'5000 и 5001 ПО'!J73 -> 0 | K73: ='5000 и 5001 ДВН'!K73+'5000 и 5001 ПО'!K73 -> 0 | L73: ='5000 и 5001 ДВН'!L73+'5000 и 5001 ПО'!L73 -> 0 | M73: ='5000 и 5001 ДВН'!M73+'5000 и 5001 ПО'!M73 -> 0 | N73: ='5000 и 5001 ДВН'!N73+'5000 и 5001 ПО'!N73 -> 0
B74: Болезни уха и сосцевидного отростка | C74: 11.0 | D74: Н60-Н95 | E74: ='5000 и 5001 ДВН'!E74+'5000 и 5001 ПО'!E74 -> 0 | F74: ='5000 и 5001 ДВН'!F74+'5000 и 5001 ПО'!F74 -> 0 | G74: ='5000 и 5001 ДВН'!G74+'5000 и 5001 ПО'!G74 -> 0 | H74: ='5000 и 5001 ДВН'!H74+'5000 и 5001 ПО'!H74 -> 0 | I74: ='5000 и 5001 ДВН'!I74+'5000 и 5001 ПО'!I74 -> 0 | J74: ='5000 и 5001 ДВН'!J74+'5000 и 5001 ПО'!J74 -> 0 | K74: ='5000 и 5001 ДВН'!K74+'5000 и 5001 ПО'!K74 -> 0 | L74: ='5000 и 5001 ДВН'!L74+'5000 и 5001 ПО'!L74 -> 0 | M74: ='5000 и 5001 ДВН'!M74+'5000 и 5001 ПО'!M74 -> 0 | N74: ='5000 и 5001 ДВН'!N74+'5000 и 5001 ПО'!N74 -> 0 | O74: =IF(Q74>0,"стр.11.0 < стр.11.1 по графе "&P74,"ОК") -> ОК | P74: =IF(Q74>0,INDEX($F$6:$N$6,1,Q74),CHAR(151)) -> — | Q74: =IF(ISERROR(MATCH(FALSE,S74:AA74,0)),0,MATCH(FALSE,S74:AA74,0)) -> 0 | R74: строка 11.0 д.б больше или равна строке 11.1 | S74: =F74>=F75 -> TRUE | T74: =G74>=G75 -> TRUE | U74: TRUE | V74: TRUE | W74: TRUE | X74: TRUE | Y74: TRUE | Z74: TRUE | AA74: TRUE
B75: Кондуктивная и нейросенсорная потеря слуха | C75: 11.1 | D75: Н90 | E75: ='5000 и 5001 ДВН'!E75+'5000 и 5001 ПО'!E75 -> 0 | F75: ='5000 и 5001 ДВН'!F75+'5000 и 5001 ПО'!F75 -> 0 | G75: ='5000 и 5001 ДВН'!G75+'5000 и 5001 ПО'!G75 -> 0 | H75: ='5000 и 5001 ДВН'!H75+'5000 и 5001 ПО'!H75 -> 0 | I75: ='5000 и 5001 ДВН'!I75+'5000 и 5001 ПО'!I75 -> 0 | J75: ='5000 и 5001 ДВН'!J75+'5000 и 5001 ПО'!J75 -> 0 | K75: ='5000 и 5001 ДВН'!K75+'5000 и 5001 ПО'!K75 -> 0 | L75: ='5000 и 5001 ДВН'!L75+'5000 и 5001 ПО'!L75 -> 0 | M75: ='5000 и 5001 ДВН'!M75+'5000 и 5001 ПО'!M75 -> 0 | N75: ='5000 и 5001 ДВН'!N75+'5000 и 5001 ПО'!N75 -> 0
B76: Болезни кожи и подкожной клетчатки | C76: 12.0 | D76: L00-L98 | E76: ='5000 и 5001 ДВН'!E76+'5000 и 5001 ПО'!E76 -> 0 | F76: ='5000 и 5001 ДВН'!F76+'5000 и 5001 ПО'!F76 -> 0 | G76: ='5000 и 5001 ДВН'!G76+'5000 и 5001 ПО'!G76 -> 0 | H76: ='5000 и 5001 ДВН'!H76+'5000 и 5001 ПО'!H76 -> 0 | I76: ='5000 и 5001 ДВН'!I76+'5000 и 5001 ПО'!I76 -> 0 | J76: ='5000 и 5001 ДВН'!J76+'5000 и 5001 ПО'!J76 -> 0 | K76: ='5000 и 5001 ДВН'!K76+'5000 и 5001 ПО'!K76 -> 0 | L76: ='5000 и 5001 ДВН'!L76+'5000 и 5001 ПО'!L76 -> 0 | M76: ='5000 и 5001 ДВН'!M76+'5000 и 5001 ПО'!M76 -> 0 | N76: ='5000 и 5001 ДВН'!N76+'5000 и 5001 ПО'!N76 -> 0
B77: Болезни костно-мышечной системы | C77: 13.0 | D77: М00-М99 | E77: ='5000 и 5001 ДВН'!E77+'5000 и 5001 ПО'!E77 -> 268 | F77: ='5000 и 5001 ДВН'!F77+'5000 и 5001 ПО'!F77 -> 123 | G77: ='5000 и 5001 ДВН'!G77+'5000 и 5001 ПО'!G77 -> 94 | H77: ='5000 и 5001 ДВН'!H77+'5000 и 5001 ПО'!H77 -> 174 | I77: ='5000 и 5001 ДВН'!I77+'5000 и 5001 ПО'!I77 -> 239 | J77: ='5000 и 5001 ДВН'!J77+'5000 и 5001 ПО'!J77 -> 0 | K77: ='5000 и 5001 ДВН'!K77+'5000 и 5001 ПО'!K77 -> 94 | L77: ='5000 и 5001 ДВН'!L77+'5000 и 5001 ПО'!L77 -> 0 | M77: ='5000 и 5001 ДВН'!M77+'5000 и 5001 ПО'!M77 -> 145 | N77: ='5000 и 5001 ДВН'!N77+'5000 и 5001 ПО'!N77 -> 0
B78: ИТОГО заболеваний | D78: А00-Т98 | E78: =E7+E9+E35+E37+E42+E44+E48+E60+E64+E69 -> 2133 | F78: =F7+F9+F35+F37+F42+F44+F48+F60+F64+F69 -> 1678 | G78: 567 | H78: 1566 | I78: 333 | J78: 70 | K78: 124 | L78: 20 | M78: 209 | N78: 50 | O78: =IF(Q78>0,"стр.14.0 ≠ стр.15.0 по графе "&P78,"ОК") -> ОК | P78: =IF(Q78>0,INDEX($F$6:$N$6,1,Q78),CHAR(151)) -> — | Q78: =IF(ISERROR(MATCH(FALSE,S78:AA78,0)),0,MATCH(FALSE,S78:AA78,0)) -> 0 | R78: Данные строки 14.0 с 8 по13 графы должны быть равны строке 15.0 по тем же графам | S78: TRUE | T78: TRUE | U78: TRUE | V78: =I78=I79 -> TRUE | W78: TRUE | X78: TRUE | Y78: TRUE | Z78: TRUE | AA78: TRUE
B79: контрольные цифры | I79: ='ДВН-124н'!L8+'профосмотры 124н'!L8 -> 333 | J79: ='ДВН-124н'!U18+'профосмотры 124н'!U16 -> 70 | K79: ='5000 и 5001 ДВН'!K79+'5000 и 5001 ПО'!K79 -> 124 | L79: ='5000 и 5001 ДВН'!L79+'5000 и 5001 ПО'!L79 -> 20 | M79: ='5000 и 5001 ДВН'!M79+'5000 и 5001 ПО'!M79 -> 209 | N79: ='5000 и 5001 ДВН'!N79+'5000 и 5001 ПО'!N79 -> 50
B80: (5001) | K80: Код по ОКЕИ: человек - 792
B81: Число лиц с артериальным давлением ниже 140/90 мм рт.ст. на фоне приема гипотензивных лекарственных препаратов, при наличии болезней, характеризующихся повышенным кровяным давлением (I10 - I15 по МКБ-10) | M81: ='5000 и 5001 ДВН'!M81+'5000 и 5001 ПО'!M81 -> 614 | N81: ;

Sheet 6000-6010 (hidden)
A1: =AND('Титульный лист'!$D$14<>"",'Титульный лист'!$C$22<>"",'Титульный лист'!$B$29<>"",'Титульный лист'!$B$30<>"",'Титульный лист'!$B$31<>"",'Титульный лист'!$B$32<>"",'Титульный лист'!$B$33<>"") -> TRUE
B2: Общие результаты профилактического медицинского осмотра, диспансеризации
B3: (6000) | D3: Код по ОКЕИ: человек - 792
B4: Общие результаты | C4: N строки | D4: Число лиц взрослого населения:
D5: Всего | E5: в том числе:
E6: В трудоспособном возрасте | F6: В возрасте старше трудоспособного
B7: 1 | C7: 2 | D7: 3 | E7: 4 | F7: 5
B8: Определена I группа здоровья | C8: 1 | D8: =SUM(E8:F8) -> 179 | E8: ='ДВН и профосмотр_общая '!$AW$11 -> 174 | F8: ='ДВН и профосмотр_общая '!$BC$11 -> 5
B9: Определена II группа здоровья | C9: 2 | D9: =SUM(E9:F9) -> 382 | E9: ='ДВН и профосмотр_общая '!$AX$11 -> 353 | F9: ='ДВН и профосмотр_общая '!$BD$11 -> 29
B10: Определена IIIA группа здоровья | C10: 3 | D10: =SUM(E10:F10) -> 872 | E10: ='ДВН и профосмотр_общая '!$AZ$11 -> 188 | F10: ='ДВН и профосмотр_общая '!$BF$11 -> 684 | G10: =IF(SUM(E8:E11)=SUM('1000, 1001'!G21+'1000, 1001'!G25),"ОК","гр.4 сумма строк с 1 по 4 НЕ РАВНА табл.1001 стр.1+стр.4") -> ОК
B11: Определена IIIБ группа здоровья | C11: 4 | D11: =SUM(E11:F11) -> 33 | E11: ='ДВН и профосмотр_общая '!$BA$11 -> 18 | F11: ='ДВН и профосмотр_общая '!$BG$11 -> 15 | G11: =IF(SUM(D8:D11)=SUM('1000, 1001'!F17:G17),"ОК","гр.3 сумма строк с 1 по 4 НЕ РАВНА табл.1000 стр.8 гр.5 + стр.8 гр.6") -> ОК
B12: Направлены при наличии медицинских показаний на дополнительное обследование, не входящее в объем диспансеризации, в том числе направлены на осмотр (консультацию) врачом-онкологом при подозрении на онкологическое заболевание | C12: 5 | D12: =SUM(E12:F12) -> 0
B13: Установлено диспансерное наблюдение, всего | C13: 6 | D13: ='5000 и 5001 свод'!J78 -> 70 | E13: ='5000 и 5001 свод'!L78 -> 20 | F13: ='5000 и 5001 свод'!N78 -> 50
B14: врачом (фельдшером) отделения (кабинета) медицинской профилактики или центра здоровья | C14: 6.1 | D14: =SUM(E14:F14) -> 0 | G14: =IF(SUM(E14:E17)=E13,IF(SUM(F14:F17)=F13,"ОК","сумма строк 6.1+6.2+6.3+6.4 НЕ РАВНА 6 строке по графе 5"),"сумма строк 6.1+6.2+6.3+6.4 НЕ РАВНА 6 строке по графе 4") -> ОК
B15: врачом-терапевтом | C15: 6.2 | D15: 70 | E15: 20 | F15: 50
B16: врачом-специалистом | C16: 6.3 | D16: 0
B17: фельдшером фельдшерского здравпункта или фельдшерско-акушерского пункта | C17: 6.4 | D17: 0
B18: Направлены для получения специализированной, в том числе высокотехнологичной, медицинской помощи | C18: 7 | D18: 0
B19: Направлены на санаторно-курортное лечение | C19: 8 | D19: 0
B22: (6001) Общее число работающих лиц, прошедших профилактический медицинский осмотр, диспансеризацию | C22: =SUM(E8:E11) -> 733 | D22: человек. | E22: =IF(SUM(C22:C24)=SUM('1000, 1001'!F17:G17),"ОК","Сумма строк 6001+6002+6003 НЕ РАВНА в табл.1000 сумме граф 5+6 по строке 8") -> ОК
B23: (6002) Общее число неработающих лиц, прошедших профилактический медицинский осмотр, диспансеризацию | C23: =SUM(F8:F11)-C24 -> 733 | D23: человек.
B24: (6003) Общее число лиц, обучающихся в образовательных организациях по очной форме, прошедших профилактический медицинский осмотр, диспансеризацию | D24: человек.
B25: (6004) Общее число лиц, имеющих право на получение государственной социальной помощи в виде набора социальных услуг, прошедших профилактический медицинский осмотр, диспансеризацию | C25: ='ДВН и профосмотр_общая '!O11+'ДВН и профосмотр_общая '!P11 -> 31 | D25: человек.
B26: (6005) Общее число лиц, принадлежащих к коренным малочисленным народам Севера, Сибири и Дальнего Востока Российской Федерации, прошедших профилактический медицинский осмотр, диспансеризацию | D26: человек.
B27: (6006) Общее число мобильных медицинских бригад, принимавших участие в проведении профилактического медицинского осмотра, диспансеризации | D27: единиц. | E27: =IF(C28=0,IF(C27="","ОК","если нет значений в таблице 6007, в таблице 6006 тоже не должно быть значений"),"ОК") -> ОК
B28: (6007) Общее число лиц, профилактический медицинский осмотр или первый этап диспансеризация которых были проведены мобильными медицинскими бригадами | C28: ='ДВН и профосмотр_общая '!$Q$11+'ДВН и профосмотр_общая '!$AG$11 -> 0 | D28: человек. | E28: =IF(C28<>0,IF(C27<>"","ОК","если заполнена таблица 6007, должна быть заполнена набл.6006"),"ОК") -> ОК
B29: (6008) Число лиц с отказами от прохождения отдельных медицинских мероприятий в рамках профилактического медицинского осмотра, диспансеризации | D29: человек.
B30: (6009) Число лиц с отказами от прохождения профилактического медицинского осмотра в целом, от диспансеризации в целом | D30: человек.
B31: (6010) Число лиц, проживающих в сельской местности, прошедших профилактический медицинский осмотр, диспансеризацию | C31: ='ДВН и профосмотр_общая '!$H$11+'ДВН и профосмотр_общая '!$AH$11 -> 1466 | D31: человек.

Sheet 5000, 5001 (hidden)
B2: Заболевания, выявленные при проведении профилактического медицинского осмотра (диспансеризации), установление диспансерного наблюдения
B3: (5000) | K3: Код по ОКЕИ: единица - 642
B4: Наименование классов и отдельных заболеваний | C4: N строки | D4: Код МКБ-10 | E4: Выявлено заболеваний | I4: из них: с впервые в жизни установленным диагнозом
E5: всего | G5: в том числе: | I5: всего | K5: в трудоспособном возрасте | M5: в возрасте старше трудоспособного
E6: всего | F6: из них: установлено диспансерное наблюдение | G6: В трудоспособном возрасте | H6: В возрасте старше трудоспособного | I6: всего | J6: из них: установлено диспансерное наблюдение | K6: всего | L6: из них: установлено диспансерное наблюдение | M6: всего | N6: из них: установлено диспансерное наблюдение
B7: 1 | C7: 2 | D7: 3 | E7: 4 | F7: 5 | G7: 6 | H7: 7 | I7: 8 | J7: 9 | K7: 10 | L7: 11 | M7: 12 | N7: 13
B8: Туберкулез органов дыхания | C8: 1 | D8: А15 - А16 | E8: ='5000 и 5001 свод'!E8 -> 1 | F8: ='5000 и 5001 свод'!F8 -> 1 | G8: ='5000 и 5001 свод'!G8 -> 1 | H8: ='5000 и 5001 свод'!H8 -> 0 | I8: ='5000 и 5001 свод'!I8 -> 0 | J8: ='5000 и 5001 свод'!J8 -> 0 | K8: ='5000 и 5001 свод'!K8 -> 0 | L8: ='5000 и 5001 свод'!L8 -> 0 | M8: ='5000 и 5001 свод'!M8 -> 0 | N8: ='5000 и 5001 свод'!N8 -> 0
B9: Злокачественные новообразования | C9: 2 | D9: C00 - С97 | E9: ='5000 и 5001 свод'!E10 -> 3 | F9: ='5000 и 5001 свод'!F10 -> 3 | G9: ='5000 и 5001 свод'!G10 -> 1 | H9: ='5000 и 5001 свод'!H10 -> 2 | I9: ='5000 и 5001 свод'!I10 -> 0 | J9: ='5000 и 5001 свод'!J10 -> 0 | K9: ='5000 и 5001 свод'!K10 -> 0 | L9: ='5000 и 5001 свод'!L10 -> 0 | M9: ='5000 и 5001 свод'!M10 -> 0 | N9: ='5000 и 5001 свод'!N10 -> 0
B10: Из них губы, полости рта и глотки | C10: 2.1 | D10: C00 - С14 | E10: ='5000 и 5001 свод'!E11 -> 0 | F10: ='5000 и 5001 свод'!F11 -> 0 | G10: ='5000 и 5001 свод'!G11 -> 0 | H10: ='5000 и 5001 свод'!H11 -> 0 | I10: ='5000 и 5001 свод'!I11 -> 0 | J10: ='5000 и 5001 свод'!J11 -> 0 | K10: ='5000 и 5001 свод'!K11 -> 0 | L10: ='5000 и 5001 свод'!L11 -> 0 | M10: ='5000 и 5001 свод'!M11 -> 0 | N10: ='5000 и 5001 свод'!N11 -> 0
B11: из них в 1-2 стадии | C11: 2.2 | E11: ='5000 и 5001 свод'!E12 -> 0 | F11: ='5000 и 5001 свод'!F12 -> 0 | G11: ='5000 и 5001 свод'!G12 -> 0 | H11: ='5000 и 5001 свод'!H12 -> 0 | I11: ='5000 и 5001 свод'!I12 -> 0 | J11: ='5000 и 5001 свод'!J12 -> 0 | K11: ='5000 и 5001 свод'!K12 -> 0 | L11: ='5000 и 5001 свод'!L12 -> 0 | M11: ='5000 и 5001 свод'!M12 -> 0 | N11: ='5000 и 5001 свод'!N12 -> 0
B12: пищевода | C12: 2.3 | D12: С15 | E12: ='5000 и 5001 свод'!E13 -> 0 | F12: ='5000 и 5001 свод'!F13 -> 0 | G12: ='5000 и 5001 свод'!G13 -> 0 | H12: ='5000 и 5001 свод'!H13 -> 0 | I12: ='5000 и 5001 свод'!I13 -> 0 | J12: ='5000 и 5001 свод'!J13 -> 0 | K12: ='5000 и 5001 свод'!K13 -> 0 | L12: ='5000 и 5001 свод'!L13 -> 0 | M12: ='5000 и 5001 свод'!M13 -> 0 | N12: ='5000 и 5001 свод'!N13 -> 0
B13: из них в 1-2 стадии | C13: 2.4 | E13: ='5000 и 5001 свод'!E14 -> 0 | F13: ='5000 и 5001 свод'!F14 -> 0 | G13: ='5000 и 5001 свод'!G14 -> 0 | H13: ='5000 и 5001 свод'!H14 -> 0 | I13: ='5000 и 5001 свод'!I14 -> 0 | J13: ='5000 и 5001 свод'!J14 -> 0 | K13: ='5000 и 5001 свод'!K14 -> 0 | L13: ='5000 и 5001 свод'!L14 -> 0 | M13: ='5000 и 5001 свод'!M14 -> 0 | N13: ='5000 и 5001 свод'!N14 -> 0
B14: желудка | C14: 2.5 | D14: С16 | E14: ='5000 и 5001 свод'!E15 -> 0 | F14: ='5000 и 5001 свод'!F15 -> 0 | G14: ='5000 и 5001 свод'!G15 -> 0 | H14: ='5000 и 5001 свод'!H15 -> 0 | I14: ='5000 и 5001 свод'!I15 -> 0 | J14: ='5000 и 5001 свод'!J15 -> 0 | K14: ='5000 и 5001 свод'!K15 -> 0 | L14: ='5000 и 5001 свод'!L15 -> 0 | M14: ='5000 и 5001 свод'!M15 -> 0 | N14: ='5000 и 5001 свод'!N15 -> 0
B15: из них в 1-2 стадии | C15: 2.6 | E15: ='5000 и 5001 свод'!E16 -> 0 | F15: ='5000 и 5001 свод'!F16 -> 0 | G15: ='5000 и 5001 свод'!G16 -> 0 | H15: ='5000 и 5001 свод'!H16 -> 0 | I15: ='5000 и 5001 свод'!I16 -> 0 | J15: ='5000 и 5001 свод'!J16 -> 0 | K15: ='5000 и 5001 свод'!K16 -> 0 | L15: ='5000 и 5001 свод'!L16 -> 0 | M15: ='5000 и 5001 свод'!M16 -> 0 | N15: ='5000 и 5001 свод'!N16 -> 0
B16: тонкого кишечника | C16: 2.7 | D16: С17 | E16: ='5000 и 5001 свод'!E17 -> 0 | F16: ='5000 и 5001 свод'!F17 -> 0 | G16: ='5000 и 5001 свод'!G17 -> 0 | H16: ='5000 и 5001 свод'!H17 -> 0 | I16: ='5000 и 5001 свод'!I17 -> 0 | J16: ='5000 и 5001 свод'!J17 -> 0 | K16: ='5000 и 5001 свод'!K17 -> 0 | L16: ='5000 и 5001 свод'!L17 -> 0 | M16: ='5000 и 5001 свод'!M17 -> 0 | N16: ='5000 и 5001 свод'!N17 -> 0
B17: из них в 1-2 стадии | C17: 2.8 | E17: ='5000 и 5001 свод'!E18 -> 0 | F17: ='5000 и 5001 свод'!F18 -> 0 | G17: ='5000 и 5001 свод'!G18 -> 0 | H17: ='5000 и 5001 свод'!H18 -> 0 | I17: ='5000 и 5001 свод'!I18 -> 0 | J17: ='5000 и 5001 свод'!J18 -> 0 | K17: ='5000 и 5001 свод'!K18 -> 0 | L17: ='5000 и 5001 свод'!L18 -> 0 | M17: ='5000 и 5001 свод'!M18 -> 0 | N17: ='5000 и 5001 свод'!N18 -> 0
B18: ободочной кишки | C18: 2.9 | D18: С18 | E18: ='5000 и 5001 свод'!E19 -> 0 | F18: ='5000 и 5001 свод'!F19 -> 0 | G18: ='5000 и 5001 свод'!G19 -> 0 | H18: ='5000 и 5001 свод'!H19 -> 0 | I18: ='5000 и 5001 свод'!I19 -> 0 | J18: ='5000 и 5001 свод'!J19 -> 0 | K18: ='5000 и 5001 свод'!K19 -> 0 | L18: ='5000 и 5001 свод'!L19 -> 0 | M18: ='5000 и 5001 свод'!M19 -> 0 | N18: ='5000 и 5001 свод'!N19 -> 0
B19: из них в 1-2 стадии | C19: 2.10 | E19: ='5000 и 5001 свод'!E20 -> 0 | F19: ='5000 и 5001 свод'!F20 -> 0 | G19: ='5000 и 5001 свод'!G20 -> 0 | H19: ='5000 и 5001 свод'!H20 -> 0 | I19: ='5000 и 5001 свод'!I20 -> 0 | J19: ='5000 и 5001 свод'!J20 -> 0 | K19: ='5000 и 5001 свод'!K20 -> 0 | L19: ='5000 и 5001 свод'!L20 -> 0 | M19: ='5000 и 5001 свод'!M20 -> 0 | N19: ='5000 и 5001 свод'!N20 -> 0
B20: ректосигмоидного соединения, прямой кишки, заднего прохода (ануса) и анального канала | C20: 2.11 | D20: С19 - С21 | E20: ='5000 и 5001 свод'!E21 -> 1 | F20: ='5000 и 5001 свод'!F21 -> 1 | G20: ='5000 и 5001 свод'!G21 -> 1 | H20: ='5000 и 5001 свод'!H21 -> 0 | I20: ='5000 и 5001 свод'!I21 -> 0 | J20: ='5000 и 5001 свод'!J21 -> 0 | K20: ='5000 и 5001 свод'!K21 -> 0 | L20: ='5000 и 5001 свод'!L21 -> 0 | M20: ='5000 и 5001 свод'!M21 -> 0 | N20: ='5000 и 5001 свод'!N21 -> 0
B21: из них в 1-2 стадии | C21: 2.12 | E21: ='5000 и 5001 свод'!E22 -> 1 | F21: ='5000 и 5001 свод'!F22 -> 1 | G21: ='5000 и 5001 свод'!G22 -> 1 | H21: ='5000 и 5001 свод'!H22 -> 0 | I21: ='5000 и 5001 свод'!I22 -> 0 | J21: ='5000 и 5001 свод'!J22 -> 0 | K21: ='5000 и 5001 свод'!K22 -> 0 | L21: ='5000 и 5001 свод'!L22 -> 0 | M21: ='5000 и 5001 свод'!M22 -> 0 | N21: ='5000 и 5001 свод'!N22 -> 0
B22: трахеи, бронхов, легкого | C22: 2.13 | D22: C33, | E22: ='5000 и 5001 свод'!E23 -> 0 | F22: ='5000 и 5001 свод'!F23 -> 0 | G22: ='5000 и 5001 свод'!G23 -> 0 | H22: ='5000 и 5001 свод'!H23 -> 0 | I22: ='5000 и 5001 свод'!I23 -> 0 | J22: ='5000 и 5001 свод'!J23 -> 0 | K22: ='5000 и 5001 свод'!K23 -> 0 | L22: ='5000 и 5001 свод'!L23 -> 0 | M22: ='5000 и 5001 свод'!M23 -> 0 | N22: ='5000 и 5001 свод'!N23 -> 0
B23: из них в 1-2 стадии | C23: 2.14 | D23: С34 | E23: ='5000 и 5001 свод'!E24 -> 0 | F23: ='5000 и 5001 свод'!F24 -> 0 | G23: ='5000 и 5001 свод'!G24 -> 0 | H23: ='5000 и 5001 свод'!H24 -> 0 | I23: ='5000 и 5001 свод'!I24 -> 0 | J23: ='5000 и 5001 свод'!J24 -> 0 | K23: ='5000 и 5001 свод'!K24 -> 0 | L23: ='5000 и 5001 свод'!L24 -> 0 | M23: ='5000 и 5001 свод'!M24 -> 0 | N23: ='5000 и 5001 свод'!N24 -> 0
B24: кожи | C24: 2.15 | D24: С43- | E24: ='5000 и 5001 свод'!E25 -> 0 | F24: ='5000 и 5001 свод'!F25 -> 0 | G24: ='5000 и 5001 свод'!G25 -> 0 | H24: ='5000 и 5001 свод'!H25 -> 0 | I24: ='5000 и 5001 свод'!I25 -> 0 | J24: ='5000 и 5001 свод'!J25 -> 0 | K24: ='5000 и 5001 свод'!K25 -> 0 | L24: ='5000 и 5001 свод'!L25 -> 0 | M24: ='5000 и 5001 свод'!M25 -> 0 | N24: ='5000 и 5001 свод'!N25 -> 0
B25: из них в 1-2 стадии | C25: 2.16 | D25: С44 | E25: ='5000 и 5001 свод'!E26 -> 0 | F25: ='5000 и 5001 свод'!F26 -> 0 | G25: ='5000 и 5001 свод'!G26 -> 0 | H25: ='5000 и 5001 свод'!H26 -> 0 | I25: ='5000 и 5001 свод'!I26 -> 0 | J25: ='5000 и 5001 свод'!J26 -> 0 | K25: ='5000 и 5001 свод'!K26 -> 0 | L25: ='5000 и 5001 свод'!L26 -> 0 | M25: ='5000 и 5001 свод'!M26 -> 0 | N25: ='5000 и 5001 свод'!N26 -> 0
B26: молочной железы | C26: 2.17 | D26: С50 | E26: ='5000 и 5001 свод'!E27 -> 1 | F26: ='5000 и 5001 свод'!F27 -> 1 | G26: ='5000 и 5001 свод'!G27 -> 0 | H26: ='5000 и 5001 свод'!H27 -> 1 | I26: ='5000 и 5001 свод'!I27 -> 0 | J26: ='5000 и 5001 свод'!J27 -> 0 | K26: ='5000 и 5001 свод'!K27 -> 0 | L26: ='5000 и 5001 свод'!L27 -> 0 | M26: ='5000 и 5001 свод'!M27 -> 0 | N26: ='5000 и 5001 свод'!N27 -> 0
B27: из них в 0-1 стадии | C27: 2.18 | E27: ='5000 и 5001 свод'!E28 -> 0 | F27: ='5000 и 5001 свод'!F28 -> 0 | G27: ='5000 и 5001 свод'!G28 -> 0 | H27: ='5000 и 5001 свод'!H28 -> 0 | I27: ='5000 и 5001 свод'!I28 -> 0 | J27: ='5000 и 5001 свод'!J28 -> 0 | K27: ='5000 и 5001 свод'!K28 -> 0 | L27: ='5000 и 5001 свод'!L28 -> 0 | M27: ='5000 и 5001 свод'!M28 -> 0 | N27: ='5000 и 5001 свод'!N28 -> 0
B28: 2 стадии | C28: 2.19 | E28: ='5000 и 5001 свод'!E29 -> 1 | F28: ='5000 и 5001 свод'!F29 -> 1 | G28: ='5000 и 5001 свод'!G29 -> 0 | H28: ='5000 и 5001 свод'!H29 -> 1 | I28: ='5000 и 5001 свод'!I29 -> 0 | J28: ='5000 и 5001 свод'!J29 -> 0 | K28: ='5000 и 5001 свод'!K29 -> 0 | L28: ='5000 и 5001 свод'!L29 -> 0 | M28: ='5000 и 5001 свод'!M29 -> 0 | N28: ='5000 и 5001 свод'!N29 -> 0
B29: шейки матки | C29: 2.20 | D29: С53 | E29: ='5000 и 5001 свод'!E30 -> 0 | F29: ='5000 и 5001 свод'!F30 -> 0 | G29: ='5000 и 5001 свод'!G30 -> 0 | H29: ='5000 и 5001 свод'!H30 -> 0 | I29: ='5000 и 5001 свод'!I30 -> 0 | J29: ='5000 и 5001 свод'!J30 -> 0 | K29: ='5000 и 5001 свод'!K30 -> 0 | L29: ='5000 и 5001 свод'!L30 -> 0 | M29: ='5000 и 5001 свод'!M30 -> 0 | N29: ='5000 и 5001 свод'!N30 -> 0
B30: из них в 0-1 стадии | C30: 2.21 | E30: ='5000 и 5001 свод'!E31 -> 0 | F30: ='5000 и 5001 свод'!F31 -> 0 | G30: ='5000 и 5001 свод'!G31 -> 0 | H30: ='5000 и 5001 свод'!H31 -> 0 | I30: ='5000 и 5001 свод'!I31 -> 0 | J30: ='5000 и 5001 свод'!J31 -> 0 | K30: ='5000 и 5001 свод'!K31 -> 0 | L30: ='5000 и 5001 свод'!L31 -> 0 | M30: ='5000 и 5001 свод'!M31 -> 0 | N30: ='5000 и 5001 свод'!N31 -> 0
B31: 2 стадии | C31: 2.22 | E31: ='5000 и 5001 свод'!E32 -> 0 | F31: ='5000 и 5001 свод'!F32 -> 0 | G31: ='5000 и 5001 свод'!G32 -> 0 | H31: ='5000 и 5001 свод'!H32 -> 0 | I31: ='5000 и 5001 свод'!I32 -> 0 | J31: ='5000 и 5001 свод'!J32 -> 0 | K31: ='5000 и 5001 свод'!K32 -> 0 | L31: ='5000 и 5001 свод'!L32 -> 0 | M31: ='5000 и 5001 свод'!M32 -> 0 | N31: ='5000 и 5001 свод'!N32 -> 0
B32: предстательной железы | C32: 2.23 | D32: С61 | E32: ='5000 и 5001 свод'!E33 -> 1 | F32: ='5000 и 5001 свод'!F33 -> 1 | G32: ='5000 и 5001 свод'!G33 -> 0 | H32: ='5000 и 5001 свод'!H33 -> 1 | I32: ='5000 и 5001 свод'!I33 -> 0 | J32: ='5000 и 5001 свод'!J33 -> 0 | K32: ='5000 и 5001 свод'!K33 -> 0 | L32: ='5000 и 5001 свод'!L33 -> 0 | M32: ='5000 и 5001 свод'!M33 -> 0 | N32: ='5000 и 5001 свод'!N33 -> 0
B33: из них в 1-2 стадии | C33: 2.24 | E33: ='5000 и 5001 свод'!E34 -> 1 | F33: ='5000 и 5001 свод'!F34 -> 1 | G33: ='5000 и 5001 свод'!G34 -> 0 | H33: ='5000 и 5001 свод'!H34 -> 1 | I33: ='5000 и 5001 свод'!I34 -> 0 | J33: ='5000 и 5001 свод'!J34 -> 0 | K33: ='5000 и 5001 свод'!K34 -> 0 | L33: ='5000 и 5001 свод'!L34 -> 0 | M33: ='5000 и 5001 свод'!M34 -> 0 | N33: ='5000 и 5001 свод'!N34 -> 0
B34: Сахарный диабет | C34: 3 | D34: Е10 - Е14 | E34: ='5000 и 5001 свод'!E38 -> 103 | F34: ='5000 и 5001 свод'!F38 -> 97 | G34: ='5000 и 5001 свод'!G38 -> 9 | H34: ='5000 и 5001 свод'!H38 -> 94 | I34: ='5000 и 5001 свод'!I38 -> 11 | J34: ='5000 и 5001 свод'!J38 -> 11 | K34: ='5000 и 5001 свод'!K38 -> 0 | L34: ='5000 и 5001 свод'!L38 -> 0 | M34: ='5000 и 5001 свод'!M38 -> 11 | N34: ='5000 и 5001 свод'!N38 -> 11
B35: из него: инсулиннезависимый сахарный диабет | C35: 3.1 | D35: Е11 | E35: ='5000 и 5001 свод'!E39 -> 103 | F35: ='5000 и 5001 свод'!F39 -> 97 | G35: ='5000 и 5001 свод'!G39 -> 9 | H35: ='5000 и 5001 свод'!H39 -> 94 | I35: ='5000 и 5001 свод'!I39 -> 11 | J35: ='5000 и 5001 свод'!J39 -> 11 | K35: ='5000 и 5001 свод'!K39 -> 0 | L35: ='5000 и 5001 свод'!L39 -> 0 | M35: ='5000 и 5001 свод'!M39 -> 11 | N35: ='5000 и 5001 свод'!N39 -> 11
B36: Преходящие церебральные ишемические приступы (атаки) и родственные синдромы | C36: 4 | D36: G45 | E36: ='5000 и 5001 свод'!E43 -> 0 | F36: ='5000 и 5001 свод'!F43 -> 0 | G36: ='5000 и 5001 свод'!G43 -> 0 | H36: ='5000 и 5001 свод'!H43 -> 0 | I36: ='5000 и 5001 свод'!I43 -> 0 | J36: ='5000 и 5001 свод'!J43 -> 0 | K36: ='5000 и 5001 свод'!K43 -> 0 | L36: ='5000 и 5001 свод'!L43 -> 0 | M36: ='5000 и 5001 свод'!M43 -> 0 | N36: ='5000 и 5001 свод'!N43 -> 0
B37: Старческая катаракта и другие катаракты | C37: 5 | D37: Н25, Н26 | E37: ='5000 и 5001 свод'!E45 -> 0 | F37: ='5000 и 5001 свод'!F45 -> 0 | G37: ='5000 и 5001 свод'!G45 -> 0 | H37: ='5000 и 5001 свод'!H45 -> 0 | I37: ='5000 и 5001 свод'!I45 -> 0 | J37: ='5000 и 5001 свод'!J45 -> 0 | K37: ='5000 и 5001 свод'!K45 -> 0 | L37: ='5000 и 5001 свод'!L45 -> 0 | M37: ='5000 и 5001 свод'!M45 -> 0 | N37: ='5000 и 5001 свод'!N45 -> 0
B38: Глаукома | C38: 6 | D38: Н40 | E38: ='5000 и 5001 свод'!E46 -> 5 | F38: ='5000 и 5001 свод'!F46 -> 2 | G38: ='5000 и 5001 свод'!G46 -> 1 | H38: ='5000 и 5001 свод'!H46 -> 4 | I38: ='5000 и 5001 свод'!I46 -> 0 | J38: ='5000 и 5001 свод'!J46 -> 0 | K38: ='5000 и 5001 свод'!K46 -> 0 | L38: ='5000 и 5001 свод'!L46 -> 0 | M38: ='5000 и 5001 свод'!M46 -> 0 | N38: ='5000 и 5001 свод'!N46 -> 0
B39: Слепота и пониженное зрение | C39: 7 | D39: Н54 | E39: ='5000 и 5001 свод'!E47 -> 1 | F39: ='5000 и 5001 свод'!F47 -> 1 | G39: ='5000 и 5001 свод'!G47 -> 0 | H39: ='5000 и 5001 свод'!H47 -> 1 | I39: ='5000 и 5001 свод'!I47 -> 0 | J39: ='5000 и 5001 свод'!J47 -> 0 | K39: ='5000 и 5001 свод'!K47 -> 0 | L39: ='5000 и 5001 свод'!L47 -> 0 | M39: ='5000 и 5001 свод'!M47 -> 0 | N39: ='5000 и 5001 свод'!N47 -> 0
B40: Кондуктивная и нейросенсорная потеря слуха | C40: 8 | D40: Н90 | E40: ='5000 и 5001 свод'!E75 -> 0 | F40: ='5000 и 5001 свод'!F75 -> 0 | G40: ='5000 и 5001 свод'!G75 -> 0 | H40: ='5000 и 5001 свод'!H75 -> 0 | I40: ='5000 и 5001 свод'!I75 -> 0 | J40: ='5000 и 5001 свод'!J75 -> 0 | K40: ='5000 и 5001 свод'!K75 -> 0 | L40: ='5000 и 5001 свод'!L75 -> 0 | M40: ='5000 и 5001 свод'!M75 -> 0 | N40: ='5000 и 5001 свод'!N75 -> 0
B41: Болезни системы кровообращения | C41: 9 | D41: I00 - I99 | E41: ='5000 и 5001 свод'!E48 -> 1226 | F41: ='5000 и 5001 свод'!F48 -> 1261 | G41: ='5000 и 5001 свод'!G48 -> 138 | H41: ='5000 и 5001 свод'!H48 -> 1088 | I41: ='5000 и 5001 свод'!I48 -> 57 | J41: ='5000 и 5001 свод'!J48 -> 57 | K41: ='5000 и 5001 свод'!K48 -> 19 | L41: ='5000 и 5001 свод'!L48 -> 19 | M41: ='5000 и 5001 свод'!M48 -> 38 | N41: ='5000 и 5001 свод'!N48 -> 38
B42: из них болезни, характеризующиеся повышенным кровяным давлением | C42: 9.1 | D42: I10 - I13 | E42: ='5000 и 5001 свод'!E49 -> 656 | F42: ='5000 и 5001 свод'!F49 -> 702 | G42: ='5000 и 5001 свод'!G49 -> 98 | H42: ='5000 и 5001 свод'!H49 -> 558 | I42: ='5000 и 5001 свод'!I49 -> 32 | J42: ='5000 и 5001 свод'!J49 -> 32 | K42: ='5000 и 5001 свод'!K49 -> 10 | L42: ='5000 и 5001 свод'!L49 -> 10 | M42: ='5000 и 5001 свод'!M49 -> 22 | N42: ='5000 и 5001 свод'!N49 -> 22
B43: ишемические болезни сердца | C43: 9.2 | D43: I20 - I25 | E43: ='5000 и 5001 свод'!E50 -> 387 | F43: ='5000 и 5001 свод'!F50 -> 403 | G43: ='5000 и 5001 свод'!G50 -> 23 | H43: ='5000 и 5001 свод'!H50 -> 364 | I43: ='5000 и 5001 свод'!I50 -> 24 | J43: ='5000 и 5001 свод'!J50 -> 24 | K43: ='5000 и 5001 свод'!K50 -> 8 | L43: ='5000 и 5001 свод'!L50 -> 8 | M43: ='5000 и 5001 свод'!M50 -> 16 | N43: ='5000 и 5001 свод'!N50 -> 16
B44: цереброваскулярные болезни | C44: 9.3 | D44: I60 - I69 | E44: ='5000 и 5001 свод'!E56 -> 102 | F44: ='5000 и 5001 свод'!F56 -> 84 | G44: ='5000 и 5001 свод'!G56 -> 10 | H44: ='5000 и 5001 свод'!H56 -> 92 | I44: ='5000 и 5001 свод'!I56 -> 0 | J44: ='5000 и 5001 свод'!J56 -> 0 | K44: ='5000 и 5001 свод'!K56 -> 0 | L44: ='5000 и 5001 свод'!L56 -> 0 | M44: ='5000 и 5001 свод'!M56 -> 0 | N44: ='5000 и 5001 свод'!N56 -> 0
B45: из них: закупорка и стеноз прецеребральных и (или) церебральных артерий, не приводящие к инфаркту мозга | C45: 9.4 | D45: I65, I66 | E45: ='5000 и 5001 свод'!E57 -> 2 | F45: ='5000 и 5001 свод'!F57 -> 2 | G45: ='5000 и 5001 свод'!G57 -> 0 | H45: ='5000 и 5001 свод'!H57 -> 2 | I45: ='5000 и 5001 свод'!I57 -> 0 | J45: ='5000 и 5001 свод'!J57 -> 0 | K45: ='5000 и 5001 свод'!K57 -> 0 | L45: ='5000 и 5001 свод'!L57 -> 0 | M45: ='5000 и 5001 свод'!M57 -> 0 | N45: ='5000 и 5001 свод'!N57 -> 0
B46: Болезни органов дыхания | C46: 10 | D46: J00 - J99 | E46: ='5000 и 5001 свод'!E60 -> 51 | F46: ='5000 и 5001 свод'!F60 -> 53 | G46: ='5000 и 5001 свод'!G60 -> 15 | H46: ='5000 и 5001 свод'!H60 -> 36 | I46: ='5000 и 5001 свод'!I60 -> 13 | J46: ='5000 и 5001 свод'!J60 -> 2 | K46: ='5000 и 5001 свод'!K60 -> 6 | L46: ='5000 и 5001 свод'!L60 -> 1 | M46: ='5000 и 5001 свод'!M60 -> 7 | N46: ='5000 и 5001 свод'!N60 -> 1
B47: Бронхит, не уточненный как острый и хронический, простой и слизисто-гнойный хронический бронхит, хронический бронхит неуточненный, эмфизема | C47: 10.1 | D47: J40 - J43 | E47: ='5000 и 5001 свод'!E62 -> 22 | F47: ='5000 и 5001 свод'!F62 -> 22 | G47: ='5000 и 5001 свод'!G62 -> 9 | H47: ='5000 и 5001 свод'!H62 -> 13 | I47: ='5000 и 5001 свод'!I62 -> 13 | J47: ='5000 и 5001 свод'!J62 -> 2 | K47: ='5000 и 5001 свод'!K62 -> 6 | L47: ='5000 и 5001 свод'!L62 -> 1 | M47: ='5000 и 5001 свод'!M62 -> 7 | N47: ='5000 и 5001 свод'!N62 -> 1
B48: Другая хроническая обструктивная легочная болезнь, астма, астматический статус, бронхоэктатическая болезнь | C48: 10.2 | D48: J44 - J47 | E48: ='5000 и 5001 свод'!E63 -> 29 | F48: ='5000 и 5001 свод'!F63 -> 31 | G48: ='5000 и 5001 свод'!G63 -> 6 | H48: ='5000 и 5001 свод'!H63 -> 23 | I48: ='5000 и 5001 свод'!I63 -> 0 | J48: ='5000 и 5001 свод'!J63 -> 0 | K48: ='5000 и 5001 свод'!K63 -> 0 | L48: ='5000 и 5001 свод'!L63 -> 0 | M48: ='5000 и 5001 свод'!M63 -> 0 | N48: ='5000 и 5001 свод'!N63 -> 0
B49: Болезни органов пищеварения | C49: 11 | D49: K00 - К93 | E49: ='5000 и 5001 свод'!E64 -> 68 | F49: ='5000 и 5001 свод'!F64 -> 49 | G49: ='5000 и 5001 свод'!G64 -> 32 | H49: ='5000 и 5001 свод'!H64 -> 36 | I49: ='5000 и 5001 свод'!I64 -> 13 | J49: ='5000 и 5001 свод'!J64 -> 0 | K49: ='5000 и 5001 свод'!K64 -> 5 | L49: ='5000 и 5001 свод'!L64 -> 0 | M49: ='5000 и 5001 свод'!M64 -> 8 | N49: ='5000 и 5001 свод'!N64 -> 0
B50: язва желудка, язва двенадцатиперстной кишки | C50: 11.1 | D50: K25, К26 | E50: ='5000 и 5001 свод'!E65 -> 15 | F50: ='5000 и 5001 свод'!F65 -> 11 | G50: ='5000 и 5001 свод'!G65 -> 9 | H50: ='5000 и 5001 свод'!H65 -> 6 | I50: ='5000 и 5001 свод'!I65 -> 0 | J50: ='5000 и 5001 свод'!J65 -> 0 | K50: ='5000 и 5001 свод'!K65 -> 0 | L50: ='5000 и 5001 свод'!L65 -> 0 | M50: ='5000 и 5001 свод'!M65 -> 0 | N50: ='5000 и 5001 свод'!N65 -> 0
B51: гастрит и дуоденит | C51: 12 | D51: K29 | E51: ='5000 и 5001 свод'!E66 -> 27 | F51: ='5000 и 5001 свод'!F66 -> 20 | G51: ='5000 и 5001 свод'!G66 -> 10 | H51: ='5000 и 5001 свод'!H66 -> 17 | I51: ='5000 и 5001 свод'!I66 -> 3 | J51: ='5000 и 5001 свод'!J66 -> 0 | K51: ='5000 и 5001 свод'!K66 -> 1 | L51: ='5000 и 5001 свод'!L66 -> 0 | M51: ='5000 и 5001 свод'!M66 -> 2 | N51: ='5000 и 5001 свод'!N66 -> 0
B52: Прочие | C52: 13 | E52: ='5000 и 5001 свод'!E69 -> 435 | F52: ='5000 и 5001 свод'!F69 -> 159 | G52: ='5000 и 5001 свод'!G69 -> 239 | H52: ='5000 и 5001 свод'!H69 -> 196 | I52: ='5000 и 5001 свод'!I69 -> 239 | J52: ='5000 и 5001 свод'!J69 -> 0 | K52: ='5000 и 5001 свод'!K69 -> 94 | L52: ='5000 и 5001 свод'!L69 -> 0 | M52: ='5000 и 5001 свод'!M69 -> 145 | N52: ='5000 и 5001 свод'!N69 -> 0
B54: (5001) | K54: Код по ОКЕИ: человек - 792
B55: Число лиц с артериальным давлением ниже 140/90 мм рт.ст. на фоне приема гипотензивных лекарственных препаратов, при наличии болезней, характеризующихся повышенным кровяным давлением (I10 - I15 по МКБ-10) | M55: ='5000 и 5001 свод'!M81 -> 614 | N55: ;

Sheet Список МО (hidden)
A1: ГУЗ "Поликлиника № 4"
A2: ГУЗ "Клиническая поликлиника № 28"
A3: ГУЗ "Поликлиника № 30"
A4: ГУЗ "Поликлиника № 5"
A5: ГУЗ "Больница № 16"
A6: ГУЗ "Больница №22"
A7: ГУЗ "КБСМП № 15"
A8: ГУЗ "Больница № 24"
A9: ГУЗ "Поликлиника № 2"
A10: ГУЗ "КБ СМП № 7"
A11: ГУЗ "Клиническая больница № 11"
A12: ГУЗ "Клиническая поликлиника № 1"
A13: ГУЗ "Клиническая поликлиника №12"
A14: ГАУЗ "Клиническая поликлиника №3"
A15: ГБУЗ "ГКБ № 1 им. С.З.Фишера"
A16: ГБУЗ "Городская клиническая больница №3"
A17: ГБУЗ "Городская больница № 2"
A18: ГБУЗ "Городская поликлиника №5"
A19: ГБУЗ "Алексеевская ЦРБ"
A20: ГБУЗ "Быковская ЦРБ"
A21: ГБУЗ "Городищенская ЦРБ"
A22: ГБУЗ "Даниловская ЦРБ"
A23: ГБУЗ "ЦРБ Дубовского муниципального района"
A24: ГБУЗ Еланская ЦРБ
A25: ГУЗ "Жирновская ЦРБ"
A26: ГБУЗ "Иловлинская ЦРБ"
A27: ГБУЗ "Калачевская ЦРБ"
A28: ГБУЗ г.Камышина "Городская больница № 1"
A29: ГБУЗ ЦГБ г.Камышина
A30: ГБУЗ "Киквидзенская ЦРБ"
A31: ГБУЗ "ЦРБ Клетского муниципального района"
A32: ГБУЗ "Котельниковская ЦРБ"
A33: ГБУЗ ЦРБ Котовского муниципального района
A34: ГБУЗ "Ленинская ЦРБ"
A35: ГБУЗ "Михайловская ЦРБ"
A36: ГБУЗ "Нехаевская ЦРБ"
A37: ГБУЗ "Николаевская ЦРБ"
A38: ГБУЗ "Новоаннинская ЦРБ"
A39: ГБУЗ "Новониколаевская ЦРБ"
A40: ГБУЗ "Октябрьская ЦРБ"
A41: ГБУЗ "ЦРБ Ольховского муниципального района"
A42: ГБУЗ "Палласовская ЦРБ"
A43: ГБУЗ "Кумылженская ЦРБ"
A44: ГБУ "ЦРБ Руднянского муниципального района"
A45: ГБУЗ "Светлоярская ЦРБ"
A46: ГБУЗ "Серафимовичская ЦРБ"
A47: ГБУЗ "Среднеахтубинская ЦРБ"
A48: ГБУЗ "Старополтавская ЦРБ"
A49: ГБУЗ "ЦРБ Суровикинского муниципального района"
A50: ГБУЗ Урюпинская ЦРБ
A51: ГБУЗ "Фроловская ЦРБ"
A52: ГБУЗ "Чернышковская ЦРБ"
A53: Клиника семейной медицины ФГБОУ ВО ВолгГМУ Минздрава России
A54: ЧУЗ КБ РЖД-Медицина

Sheet Проверочный лист (hidden)
A1: № п/п | B1: Наименование медицинской организации | C1: Плановые показатели гр.1 | D1: в том числе граждан старше трудоспособного возраста* гр.2 | E1: Граждане 65 лет гр.3 | F1: Граждане 66 лет и старше гр.4 | G1: Плановые показатели взрослого населения гр.19 | J1: Наименование медицинской организации | K1: 18-34 | L1: 35-39 | M1: 40-54 | N1: 55-59 | O1: 60-64 | P1: 65-74 | Q1: 75 и старше | R1: 18-34 | S1: 35-39 | T1: 40-54 | U1: 55-59 | V1: 60-64 | W1: 65-74 | X1: 75 и старше | Y1: 18-34 | Z1: 35-39 | AA1: 40-54 | AB1: 55-59 | AC1: 60-64 | AD1: 65-74 | AE1: 75 и старше | AF1: 18-34 | AG1: 35-39 | AH1: 40-54 | AI1: 55-59 | AJ1: 60-64 | AK1: 65-74 | AL1: 75 и старше
A2: 1 | B2: ГУЗ "Поликлиника № 4" | C2: 15841 | D2: 9520 | E2: 460 | F2: 6463 | G2: 7435 | K2: 7 | L2: 7 | M2: 7 | N2: 7 | O2: 7 | P2: 7 | Q2: 7 | R2: 8 | S2: 8 | T2: 8 | U2: 8 | V2: 8 | W2: 8 | X2: 8 | Y2: 11 | Z2: 11 | AA2: 11 | AB2: 11 | AC2: 11 | AD2: 11 | AE2: 11 | AF2: 12 | AG2: 12 | AH2: 12 | AI2: 12 | AJ2: 12 | AK2: 12 | AL2: 12
A3: 2 | B3: ГУЗ "Клиническая поликлиника № 28" | C3: 22419 | D3: 15515 | E3: 784 | F3: 10642 | G3: 10395 | J3: ГУЗ "Поликлиника № 4" | K3: 8525 | L3: 3352 | M3: 7324 | N3: 2301 | O3: 2201 | P3: 3089 | Q3: 2884 | R3: 2309 | S3: 1343 | T3: 1909 | U3: 968 | V3: 1070 | W3: 1043 | X3: 580 | Y3: 9605 | Z3: 3693 | AA3: 10363 | AB3: 3502 | AC3: 3670 | AD3: 6218 | AE3: 2158 | AF3: 3463 | AG3: 1866 | AH3: 2918 | AI3: 1104 | AJ3: 1325 | AK3: 1971 | AL3: 1407 | AM3: =SUM(R3:X3)+SUM(AF3:AL3)=C2+G2 -> TRUE
A4: 3 | B4: ГУЗ "Поликлиника № 30" | C4: 11223 | D4: 6326 | E4: 344 | F4: 4028 | G4: 5300 | J4: ГУЗ "Клиническая поликлиника № 28" | K4: 11318 | L4: 9195 | M4: 7072 | N4: 4127 | O4: 3932 | P4: 3743 | Q4: 3528 | R4: 2865 | S4: 2307 | T4: 2279 | U4: 1684 | V4: 1382 | W4: 1026 | X4: 639 | Y4: 16656 | Z4: 13792 | AA4: 10928 | AB4: 6032 | AC4: 5847 | AD4: 5651 | AE4: 5461 | AF4: 4073 | AG4: 3682 | AH4: 3873 | AI4: 3168 | AJ4: 2253 | AK4: 2005 | AL4: 1578 | AM4: =SUM(R4:X4)+SUM(AF4:AL4)=C3+G3 -> TRUE
A5: 4 | B5: ГУЗ "Поликлиника № 5" | C5: 19152 | D5: 12033 | E5: 586 | F5: 8066 | G5: 8538 | J5: ГУЗ "Поликлиника № 30" | K5: 5235 | L5: 1757 | M5: 4620 | N5: 1682 | O5: 1190 | P5: 2065 | Q5: 1060 | R5: 1846 | S5: 685 | T5: 1892 | U5: 711 | V5: 576 | W5: 982 | X5: 527 | Y5: 6362 | Z5: 1850 | AA5: 5181 | AB5: 1950 | AC5: 2008 | AD5: 3475 | AE5: 1574 | AF5: 2240 | AG5: 700 | AH5: 1958 | AI5: 950 | AJ5: 931 | AK5: 1687 | AL5: 838 | AM5: TRUE
A6: 5 | B6: ГУЗ "Больница № 16" | C6: 16187 | D6: 10201 | E6: 412 | F6: 6942 | G6: 6820 | J6: ГУЗ "Поликлиника № 5" | K6: 7902 | L6: 4768 | M6: 7790 | N6: 3728 | O6: 2424 | P6: 3481 | Q6: 1978 | R6: 2082 | S6: 2197 | T6: 2067 | U6: 1612 | V6: 1502 | W6: 1949 | X6: 1180 | Y6: 11481 | Z6: 5650 | AA6: 9324 | AB6: 4341 | AC6: 4256 | AD6: 6271 | AE6: 5346 | AF6: 2241 | AG6: 2238 | AH6: 2232 | AI6: 1969 | AJ6: 2075 | AK6: 2150 | AL6: 2196 | AM6: TRUE
A7: 6 | B7: ГУЗ "Больница №22" | C7: 10689 | D7: 6058 | E7: 283 | F7: 4061 | G7: 4344 | J7: ГУЗ "Больница № 16" | K7: 7548 | L7: 3026 | M7: 8927 | N7: 2973 | O7: 2246 | P7: 2001 | Q7: 2042 | R7: 1609 | S7: 1589 | T7: 1923 | U7: 971 | V7: 702 | W7: 1834 | X7: 1361 | Y7: 8259 | Z7: 3273 | AA7: 10184 | AB7: 3684 | AC7: 3207 | AD7: 4008 | AE7: 4049 | AF7: 2072 | AG7: 2014 | AH7: 2265 | AI7: 1330 | AJ7: 1178 | AK7: 2358 | AL7: 1801 | AM7: TRUE
A8: 7 | B8: ГУЗ "КБСМП № 15" | C8: 10231 | D8: 6939 | E8: 323 | F8: 4782 | G8: 3895 | J8: ГУЗ "Больница №22" | K8: 1983 | L8: 2776 | M8: 3795 | N8: 2774 | O8: 1444 | P8: 2344 | Q8: 348 | R8: 694 | S8: 968 | T8: 1321 | U8: 968 | V8: 755 | W8: 1678 | X8: 235 | Y8: 2575 | Z8: 3582 | AA8: 4878 | AB8: 3581 | AC8: 1890 | AD8: 2709 | AE8: 443 | AF8: 883 | AG8: 1231 | AH8: 1680 | AI8: 1230 | AJ8: 959 | AK8: 2132 | AL8: 299 | AM8: TRUE
A9: 8 | B9: ГУЗ "Больница № 24" | J9: ГУЗ "КБСМП № 15" | K9: 4235 | L9: 2760 | M9: 3598 | N9: 1520 | O9: 2318 | P9: 2235 | Q9: 1250 | R9: 1200 | S9: 600 | T9: 700 | U9: 440 | V9: 1000 | W9: 1300 | X9: 600 | Y9: 5465 | Z9: 3060 | AA9: 4752 | AB9: 2930 | AC9: 2585 | AD9: 2750 | AE9: 1542 | AF9: 2100 | AG9: 695 | AH9: 892 | AI9: 560 | AJ9: 1400 | AK9: 1600 | AL9: 1039 | AM9: TRUE
A10: 9 | B10: ГУЗ "Поликлиника № 2" | C10: 29340 | D10: 19422 | E10: 763 | F10: 14061 | G10: 11447 | J10: ГУЗ "Больница № 24" | AM10: TRUE
A11: 10 | B11: ГУЗ "КБ СМП № 7" | C11: 9978 | D11: 5829 | E11: 252 | F11: 3848 | G11: 5030 | J11: ГУЗ "Поликлиника № 2" | K11: 5831 | L11: 5289 | M11: 17560 | N11: 6590 | O11: 7803 | P11: 7787 | Q11: 9123 | R11: 3693 | S11: 2268 | T11: 2261 | U11: 584 | V11: 984 | W11: 2463 | X11: 1149 | Y11: 5901 | Z11: 5280 | AA11: 17800 | AB11: 7120 | AC11: 8757 | AD11: 7988 | AE11: 9199 | AF11: 3875 | AG11: 3563 | AH11: 9981 | AI11: 1062 | AJ11: 1399 | AK11: 4319 | AL11: 3186 | AM11: TRUE
A12: 11 | B12: ГУЗ "Клиническая больница № 11" | C12: 12165 | D12: 6771 | E12: 359 | F12: 4348 | G12: 5032 | J12: ГУЗ "КБ СМП № 7" | K12: 3042 | L12: 3009 | M12: 3684 | N12: 2390 | O12: 1454 | P12: 1192 | Q12: 1073 | R12: 1657 | S12: 896 | T12: 2154 | U12: 410 | V12: 536 | W12: 883 | X12: 589 | Y12: 3242 | Z12: 3609 | AA12: 4179 | AB12: 1975 | AC12: 3862 | AD12: 2160 | AE12: 2213 | AF12: 1957 | AG12: 1504 | AH12: 2256 | AI12: 228 | AJ12: 336 | AK12: 982 | AL12: 620 | AM12: TRUE
A13: 12 | B13: ГУЗ "Клиническая поликлиника № 1" | C13: 26199 | D13: 16232 | E13: 792 | F13: 10879 | G13: 10109 | J13: ГУЗ "Клиническая больница № 11" | K13: 4050 | L13: 3146 | M13: 2324 | N13: 1030 | O13: 2700 | P13: 2040 | Q13: 1318 | R13: 1748 | S13: 1038 | T13: 1184 | U13: 336 | V13: 484 | W13: 855 | X13: 378 | Y13: 4510 | Z13: 3450 | AA13: 5426 | AB13: 2052 | AC13: 1524 | AD13: 2510 | AE13: 1504 | AF13: 1860 | AG13: 1529 | AH13: 4422 | AI13: 464 | AJ13: 600 | AK13: 1334 | AL13: 965 | AM13: TRUE
A14: 13 | B14: ГАУЗ "Клиническая поликлиника №3" | C14: 17369 | D14: 11444 | E14: 481 | F14: 8098 | G14: 7985 | J14: ГУЗ "Клиническая поликлиника № 1" | K14: 12743 | L14: 3659 | M14: 10932 | N14: 2829 | O14: 6494 | P14: 7349 | Q14: 3297 | R14: 2699 | S14: 2215 | T14: 3093 | U14: 660 | V14: 1969 | W14: 4820 | X14: 513 | Y14: 17100 | Z14: 4909 | AA14: 14669 | AB14: 3796 | AC14: 8715 | AD14: 9861 | AE14: 4944 | AF14: 3621 | AG14: 2974 | AH14: 4152 | AI14: 662 | AJ14: 2642 | AK14: 5660 | AL14: 628 | AM14: TRUE
A15: 14 | B15: ГБУЗ "ГКБ № 1 им. С.З.Фишера" | C15: 19977 | D15: 11699 | E15: 511 | F15: 7931 | G15: 7755 | J15: ГАУЗ "Клиническая поликлиника №3" | K15: 10395 | L15: 3069 | M15: 6977 | N15: 3423 | O15: 1694 | P15: 2896 | Q15: 2144 | R15: 4268 | S15: 958 | T15: 3701 | U15: 507 | V15: 791 | W15: 878 | X15: 1200 | Y15: 6880 | Z15: 3014 | AA15: 7894 | AB15: 4183 | AC15: 1970 | AD15: 4663 | AE15: 5940 | AF15: 2342 | AG15: 1348 | AH15: 5551 | AI15: 900 | AJ15: 1090 | AK15: 820 | AL15: 1000 | AM15: TRUE
A16: 15 | B16: ГБУЗ "Городская клиническая больница №3" | C16: 14372 | D16: 8810 | E16: 367 | F16: 5871 | G16: 4977 | J16: ГБУЗ "ГКБ № 1 им. С.З.Фишера" | K16: 8857 | L16: 4523 | M16: 4867 | N16: 3008 | O16: 2799 | P16: 2504 | Q16: 1402 | R16: 3661 | S16: 1756 | T16: 1937 | U16: 910 | V16: 885 | W16: 1742 | X16: 678 | Y16: 7245 | Z16: 4013 | AA16: 6152 | AB16: 3021 | AC16: 5275 | AD16: 7904 | AE16: 3001 | AF16: 4262 | AG16: 1356 | AH16: 2023 | AI16: 1310 | AJ16: 1190 | AK16: 4345 | AL16: 1677 | AM16: TRUE
A17: 16 | B17: ГБУЗ "Городская больница № 2" | C17: 19945 | D17: 12691 | E17: 592 | F17: 9003 | G17: 6919 | J17: ГБУЗ "Городская клиническая больница №3" | K17: 4995 | L17: 1638 | M17: 5090 | N17: 1582 | O17: 1464 | P17: 2434 | Q17: 3021 | R17: 1123 | S17: 823 | T17: 1384 | U17: 1266 | V17: 1316 | W17: 1265 | X17: 1348 | Y17: 5012 | Z17: 2064 | AA17: 5849 | AB17: 2303 | AC17: 2194 | AD17: 3213 | AE17: 3238 | AF17: 1378 | AG17: 1180 | AH17: 1881 | AI17: 1436 | AJ17: 1324 | AK17: 1829 | AL17: 1796 | AM17: TRUE
A18: 17 | B18: ГБУЗ "Городская поликлиника №5" | C18: 14398 | D18: 9135 | E18: 618 | F18: 4856 | G18: 6664 | J18: ГБУЗ "Городская больница № 2" | K18: 6491 | L18: 2758 | M18: 8025 | N18: 3035 | O18: 2561 | P18: 3413 | Q18: 852 | R18: 2769 | S18: 1956 | T18: 3001 | U18: 1623 | V18: 1437 | W18: 856 | X18: 202 | Y18: 8166 | Z18: 4158 | AA18: 9617 | AB18: 3542 | AC18: 2884 | AD18: 4626 | AE18: 1742 | AF18: 3109 | AG18: 2876 | AH18: 2862 | AI18: 2163 | AJ18: 1852 | AK18: 1516 | AL18: 642 | AM18: TRUE
A19: 18 | B19: ГБУЗ "Алексеевская ЦРБ" | C19: 3817 | D19: 2484 | E19: 122 | F19: 1610 | G19: 1234 | J19: ГБУЗ "Городская поликлиника №5" | K19: 5216 | L19: 5113 | M19: 4699 | N19: 1272 | O19: 2927 | P19: 2119 | Q19: 1502 | R19: 2154 | S19: 1653 | T19: 1387 | U19: 553 | V19: 896 | W19: 1105 | X19: 221 | Y19: 5436 | Z19: 5392 | AA19: 5798 | AB19: 1995 | AC19: 4176 | AD19: 4077 | AE19: 2059 | AF19: 2361 | AG19: 1936 | AH19: 2076 | AI19: 922 | AJ19: 1650 | AK19: 3461 | AL19: 687 | AM19: TRUE
A20: 19 | B20: ГБУЗ "Быковская ЦРБ" | C20: 6076 | D20: 3464 | E20: 195 | F20: 2165 | G20: 2213 | J20: ГБУЗ "Алексеевская ЦРБ" | K20: 1409 | L20: 675 | M20: 1621 | N20: 573 | O20: 571 | P20: 803 | Q20: 295 | R20: 474 | S20: 242 | T20: 500 | U20: 298 | V20: 245 | W20: 324 | X20: 279 | Y20: 1201 | Z20: 509 | AA20: 1501 | AB20: 302 | AC20: 710 | AD20: 1153 | AE20: 545 | AF20: 326 | AG20: 158 | AH20: 450 | AI20: 286 | AJ20: 335 | AK20: 592 | AL20: 542 | AM20: TRUE
A21: 20 | B21: ГБУЗ "Городищенская ЦРБ" | C21: 13154 | D21: 7347 | E21: 411 | F21: 4268 | G21: 5595 | J21: ГБУЗ "Быковская ЦРБ" | K21: 2622 | L21: 878 | M21: 2312 | N21: 738 | O21: 760 | P21: 884 | Q21: 486 | R21: 1175 | S21: 394 | T21: 1036 | U21: 331 | V21: 341 | W21: 396 | X21: 218 | Y21: 2676 | Z21: 859 | AA21: 2459 | AB21: 896 | AC21: 864 | AD21: 1220 | AE21: 834 | AF21: 1200 | AG21: 385 | AH21: 1102 | AI21: 403 | AJ21: 387 | AK21: 547 | AL21: 374 | AM21: TRUE
A22: 21 | B22: ГБУЗ "Даниловская ЦРБ" | C22: 3701 | D22: 2567 | E22: 131 | F22: 1728 | G22: 1280 | J22: ГБУЗ "Городищенская ЦРБ" | K22: 10995 | L22: 2942 | M22: 6350 | N22: 1910 | O22: 2164 | P22: 5090 | Q22: 921 | R22: 3784 | S22: 982 | T22: 1410 | U22: 271 | V22: 877 | W22: 1202 | X22: 210 | Y22: 9898 | Z22: 2696 | AA22: 6537 | AB22: 2294 | AC22: 2733 | AD22: 5859 | AE22: 2559 | AF22: 4122 | AG22: 1006 | AH22: 1827 | AI22: 432 | AJ22: 726 | AK22: 1423 | AL22: 477 | AM22: TRUE
A23: 22 | B23: ГБУЗ "ЦРБ Дубовского муниципального района" | C23: 6227 | D23: 3893 | E23: 211 | F23: 2549 | G23: 2285 | J23: ГБУЗ "Даниловская ЦРБ" | K23: 1232 | L23: 415 | M23: 1365 | N23: 588 | O23: 610 | P23: 822 | Q23: 561 | R23: 282 | S23: 206 | T23: 334 | U23: 300 | V23: 305 | W23: 415 | X23: 326 | Y23: 1093 | Z23: 420 | AA23: 1546 | AB23: 728 | AC23: 767 | AD23: 1113 | AE23: 788 | AF23: 202 | AG23: 256 | AH23: 499 | AI23: 335 | AJ23: 403 | AK23: 615 | AL23: 503 | AM23: TRUE
A24: 23 | B24: ГБУЗ Еланская ЦРБ | C24: 7827 | D24: 4792 | E24: 249 | F24: 3137 | G24: 2306 | J24: ГБУЗ "ЦРБ Дубовского муниципального района" | K24: 2763 | L24: 1043 | M24: 2017 | N24: 1020 | O24: 1198 | P24: 1243 | Q24: 621 | R24: 1201 | S24: 521 | T24: 981 | U24: 311 | V24: 399 | W24: 521 | X24: 142 | Y24: 2254 | Z24: 911 | AA24: 2058 | AB24: 1042 | AC24: 1235 | AD24: 2031 | AE24: 1619 | AF24: 1032 | AG24: 451 | AH24: 1054 | AI24: 459 | AJ24: 531 | AK24: 681 | AL24: 228 | AM24: TRUE
A25: 24 | B25: ГУЗ "Жирновская ЦРБ" | C25: 9377 | D25: 6020 | E25: 303 | F25: 3978 | G25: 3372 | J25: ГБУЗ Еланская ЦРБ | K25: 2883 | L25: 1060 | M25: 2720 | N25: 1071 | O25: 1072 | P25: 1392 | Q25: 790 | R25: 1317 | S25: 780 | T25: 420 | U25: 450 | V25: 624 | W25: 570 | X25: 250 | Y25: 3199 | Z25: 926 | AA25: 2990 | AB25: 1162 | AC25: 1258 | AD25: 2525 | AE25: 753 | AF25: 1410 | AG25: 800 | AH25: 711 | AI25: 400 | AJ25: 931 | AK25: 740 | AL25: 730 | AM25: TRUE
A26: 25 | B26: ГБУЗ "Иловлинская ЦРБ" | C26: 7177 | D26: 4410 | E26: 225 | F26: 2831 | G26: 2807 | J26: ГУЗ "Жирновская ЦРБ" | K26: 3239 | L26: 2284 | M26: 2111 | N26: 2495 | O26: 851 | P26: 1581 | Q26: 1561 | R26: 1484 | S26: 1009 | T26: 945 | U26: 1135 | V26: 360 | W26: 680 | X26: 670 | Y26: 3468 | Z26: 2507 | AA26: 2534 | AB26: 2722 | AC26: 1084 | AD26: 1894 | AE26: 1794 | AF26: 1527 | AG26: 1006 | AH26: 1042 | AI26: 1136 | AJ26: 361 | AK26: 722 | AL26: 672 | AM26: TRUE
A27: 26 | B27: ГБУЗ "Калачевская ЦРБ" | C27: 13810 | D27: 8257 | E27: 456 | F27: 5304 | G27: 5052 | J27: ГБУЗ "Иловлинская ЦРБ" | K27: 2593 | L27: 920 | M27: 2493 | N27: 1199 | O27: 1100 | P27: 805 | Q27: 1166 | R27: 671 | S27: 692 | T27: 631 | U27: 627 | V27: 757 | W27: 460 | X27: 621 | Y27: 3200 | Z27: 1201 | AA27: 3711 | AB27: 1331 | AC27: 1299 | AD27: 1205 | AE27: 1314 | AF27: 941 | AG27: 856 | AH27: 790 | AI27: 881 | AJ27: 785 | AK27: 502 | AL27: 770 | AM27: TRUE
A28: 27 | B28: ГБУЗ г.Камышина "Городская больница № 1" | C28: 20540 | D28: 12926 | E28: 662 | F28: 8506 | G28: 7465 | J28: ГБУЗ "Калачевская ЦРБ" | K28: 7041 | L28: 1743 | M28: 2898 | N28: 1751 | O28: 1879 | P28: 1625 | Q28: 2514 | R28: 2043 | S28: 1124 | T28: 1164 | U28: 901 | V28: 969 | W28: 1511 | X28: 1271 | Y28: 5712 | Z28: 1679 | AA28: 3537 | AB28: 2159 | AC28: 2244 | AD28: 2128 | AE28: 4043 | AF28: 2011 | AG28: 1291 | AH28: 2091 | AI28: 807 | AJ28: 701 | AK28: 1503 | AL28: 1475 | AM28: TRUE
A29: 28 | B29: ГБУЗ ЦГБ г.Камышина | C29: 14614 | D29: 9164 | E29: 385 | F29: 6300 | G29: 4691 | J29: ГБУЗ г.Камышина "Городская больница № 1" | K29: 7088 | L29: 2492 | M29: 7551 | N29: 2972 | O29: 1616 | P29: 2973 | Q29: 2585 | R29: 3164 | S29: 1200 | T29: 3278 | U29: 1397 | V29: 486 | W29: 895 | X29: 779 | Y29: 10634 | Z29: 3737 | AA29: 11327 | AB29: 4458 | AC29: 2426 | AD29: 4460 | AE29: 3879 | AF29: 4747 | AG29: 1802 | AH29: 4918 | AI29: 2096 | AJ29: 731 | AK29: 1344 | AL29: 1168 | AM29: TRUE
A30: 29 | B30: ГБУЗ "Киквидзенская ЦРБ" | C30: 3919 | D30: 2522 | E30: 135 | F30: 1619 | G30: 1215 | J30: ГБУЗ ЦГБ г.Камышина | K30: 5673 | L30: 2184 | M30: 5518 | N30: 2105 | O30: 2180 | P30: 2342 | Q30: 2049 | R30: 1643 | S30: 974 | T30: 1192 | U30: 447 | V30: 559 | W30: 1005 | X30: 580 | Y30: 5530 | Z30: 2593 | AA30: 6604 | AB30: 2133 | AC30: 2112 | AD30: 4380 | AE30: 5084 | AF30: 1575 | AG30: 1485 | AH30: 5117 | AI30: 627 | AJ30: 672 | AK30: 1756 | AL30: 1673 | AM30: TRUE
A31: 30 | B31: ГБУЗ "ЦРБ Клетского муниципального района" | C31: 3150 | D31: 2186 | E31: 123 | F31: 1453 | G31: 1344 | J31: ГБУЗ "Киквидзенская ЦРБ" | K31: 1669 | L31: 534 | M31: 1565 | N31: 614 | O31: 542 | P31: 581 | Q31: 390 | R31: 462 | S31: 316 | T31: 700 | U31: 214 | V31: 296 | W31: 370 | X31: 100 | Y31: 1383 | Z31: 505 | AA31: 1682 | AB31: 667 | AC31: 662 | AD31: 989 | AE31: 768 | AF31: 516 | AG31: 315 | AH31: 670 | AI31: 263 | AJ31: 325 | AK31: 486 | AL31: 101 | AM31: TRUE
A32: 31 | B32: ГБУЗ "Котельниковская ЦРБ" | C32: 8223 | D32: 4730 | E32: 217 | F32: 3036 | G32: 3305 | J32: ГБУЗ "ЦРБ Клетского муниципального района" | K32: 1620 | L32: 713 | M32: 1629 | N32: 572 | O32: 652 | P32: 936 | Q32: 485 | R32: 488 | S32: 451 | T32: 148 | U32: 115 | V32: 278 | W32: 410 | X32: 248 | Y32: 1401 | Z32: 631 | AA32: 1607 | AB32: 576 | AC32: 674 | AD32: 1131 | AE32: 1085 | AF32: 400 | AG32: 408 | AH32: 159 | AI32: 139 | AJ32: 332 | AK32: 572 | AL32: 346 | AM32: TRUE
A33: 32 | B33: ГБУЗ ЦРБ Котовского муниципального района | C33: 7325 | D33: 4873 | E33: 236 | F33: 3249 | G33: 2855 | J33: ГБУЗ "Котельниковская ЦРБ" | K33: 3203 | L33: 1208 | M33: 3259 | N33: 1108 | O33: 989 | P33: 1147 | Q33: 937 | R33: 1000 | S33: 751 | T33: 927 | U33: 710 | V33: 618 | W33: 577 | X33: 653 | Y33: 2687 | Z33: 1055 | AA33: 2737 | AB33: 1004 | AC33: 1376 | AD33: 3587 | AE33: 1076 | AF33: 1088 | AG33: 903 | AH33: 1083 | AI33: 861 | AJ33: 887 | AK33: 859 | AL33: 611 | AM33: TRUE
A34: 33 | B34: ГБУЗ "Ленинская ЦРБ" | C34: 6751 | D34: 3940 | E34: 227 | F34: 2497 | G34: 2524 | J34: ГБУЗ ЦРБ Котовского муниципального района | K34: 2191 | L34: 2064 | M34: 2172 | N34: 1984 | O34: 1213 | P34: 1134 | Q34: 710 | R34: 1075 | S34: 1054 | T34: 896 | U34: 685 | V34: 521 | W34: 626 | X34: 257 | Y34: 2411 | Z34: 2326 | AA34: 2415 | AB34: 1785 | AC34: 1312 | AD34: 1325 | AE34: 1146 | AF34: 1105 | AG34: 1146 | AH34: 947 | AI34: 567 | AJ34: 478 | AK34: 436 | AL34: 387 | AM34: TRUE
A35: 34 | B35: ГБУЗ "Михайловская ЦРБ" | C35: 17805 | D35: 10911 | E35: 541 | F35: 6919 | G35: 6773 | J35: ГБУЗ "Ленинская ЦРБ" | K35: 2722 | L35: 1017 | M35: 2605 | N35: 864 | O35: 874 | P35: 1274 | Q35: 698 | R35: 761 | S35: 700 | T35: 690 | U35: 702 | V35: 628 | W35: 634 | X35: 596 | Y35: 2736 | Z35: 919 | AA35: 2785 | AB35: 985 | AC35: 1026 | AD35: 1587 | AE35: 1113 | AF35: 680 | AG35: 623 | AH35: 614 | AI35: 750 | AJ35: 630 | AK35: 641 | AL35: 626 | AM35: TRUE
A36: 35 | B36: ГБУЗ "Нехаевская ЦРБ" | C36: 3489 | D36: 2345 | E36: 103 | F36: 1571 | G36: 1116 | J36: ГБУЗ "Михайловская ЦРБ" | K36: 12183 | L36: 4096 | M36: 4589 | N36: 3775 | O36: 2618 | P36: 2021 | Q36: 1435 | R36: 1905 | S36: 1468 | T36: 1740 | U36: 1235 | V36: 1116 | W36: 1359 | X36: 863 | Y36: 9629 | Z36: 3671 | AA36: 6729 | AB36: 3255 | AC36: 3797 | AD36: 6900 | AE36: 3232 | AF36: 1919 | AG36: 1539 | AH36: 2476 | AI36: 1793 | AJ36: 1927 | AK36: 3303 | AL36: 1935 | AM36: TRUE
A37: 36 | B37: ГБУЗ "Николаевская ЦРБ" | C37: 7092 | D37: 4070 | E37: 215 | F37: 2623 | G37: 2727 | J37: ГБУЗ "Нехаевская ЦРБ" | K37: 1125 | L37: 270 | M37: 1522 | N37: 497 | O37: 303 | P37: 595 | Q37: 394 | R37: 243 | S37: 96 | T37: 613 | U37: 209 | V37: 164 | W37: 492 | X37: 215 | Y37: 1076 | Z37: 377 | AA37: 1308 | AB37: 519 | AC37: 467 | AD37: 904 | AE37: 607 | AF37: 239 | AG37: 98 | AH37: 648 | AI37: 267 | AJ37: 252 | AK37: 732 | AL37: 337 | AM37: TRUE
A38: 37 | B38: ГБУЗ "Новоаннинская ЦРБ" | C38: 8498 | D38: 5207 | E38: 283 | F38: 3241 | G38: 2908 | J38: ГБУЗ "Николаевская ЦРБ" | K38: 1887 | L38: 691 | M38: 2603 | N38: 1008 | O38: 1096 | P38: 1251 | Q38: 728 | R38: 1051 | S38: 574 | T38: 962 | U38: 443 | V38: 735 | W38: 710 | X38: 420 | Y38: 1847 | Z38: 760 | AA38: 2848 | AB38: 1157 | AC38: 1163 | AD38: 1646 | AE38: 1157 | AF38: 1068 | AG38: 574 | AH38: 962 | AI38: 448 | AJ38: 742 | AK38: 710 | AL38: 420 | AM38: TRUE
A39: 38 | B39: ГБУЗ "Новониколаевская ЦРБ" | C39: 5531 | D39: 3305 | E39: 166 | F39: 2104 | G39: 2009 | J39: ГБУЗ "Новоаннинская ЦРБ" | K39: 2869 | L39: 1019 | M39: 2603 | N39: 1056 | O39: 1000 | P39: 1589 | Q39: 878 | R39: 927 | S39: 703 | T39: 790 | U39: 404 | V39: 872 | W39: 472 | X39: 448 | Y39: 2691 | Z39: 1184 | AA39: 3380 | AB39: 1268 | AC39: 1447 | AD39: 1799 | AE39: 1495 | AF39: 1058 | AG39: 814 | AH39: 1457 | AI39: 937 | AJ39: 1020 | AK39: 997 | AL39: 507 | AM39: TRUE
A40: 39 | B40: ГБУЗ "Октябрьская ЦРБ" | C40: 5423 | D40: 3199 | E40: 165 | F40: 2048 | G40: 1898 | J40: ГБУЗ "Новониколаевская ЦРБ" | K40: 2222 | L40: 725 | M40: 2375 | N40: 882 | O40: 674 | P40: 654 | Q40: 265 | R40: 532 | S40: 217 | T40: 1489 | U40: 432 | V40: 294 | W40: 497 | X40: 215 | Y40: 2198 | Z40: 653 | AA40: 2203 | AB40: 811 | AC40: 762 | AD40: 1310 | AE40: 512 | AF40: 512 | AG40: 208 | AH40: 1334 | AI40: 388 | AJ40: 313 | AK40: 736 | AL40: 373 | AM40: TRUE
A41: 40 | B41: ГБУЗ "ЦРБ Ольховского муниципального района" | C41: 3709 | D41: 2170 | E41: 116 | F41: 1347 | G41: 1383 | J41: ГБУЗ "Октябрьская ЦРБ" | K41: 1881 | L41: 498 | M41: 1540 | N41: 567 | O41: 590 | P41: 1186 | Q41: 623 | R41: 956 | S41: 234 | T41: 850 | U41: 259 | V41: 261 | W41: 571 | X41: 318 | Y41: 2197 | Z41: 604 | AA41: 1763 | AB41: 713 | AC41: 732 | AD41: 1397 | AE41: 884 | AF41: 1057 | AG41: 278 | AH41: 912 | AI41: 322 | AJ41: 307 | AK41: 614 | AL41: 382 | AM41: TRUE
A42: 41 | B42: ГБУЗ "Палласовская ЦРБ" | C42: 9465 | D42: 4904 | E42: 264 | F42: 2961 | G42: 3787 | J42: ГБУЗ "ЦРБ Ольховского муниципального района" | K42: 1483 | L42: 564 | M42: 1152 | N42: 564 | O42: 449 | P42: 810 | Q42: 658 | R42: 480 | S42: 201 | T42: 355 | U42: 177 | V42: 135 | W42: 655 | X42: 256 | Y42: 1567 | Z42: 728 | AA42: 1306 | AB42: 688 | AC42: 599 | AD42: 1020 | AE42: 702 | AF42: 565 | AG42: 245 | AH42: 422 | AI42: 219 | AJ42: 180 | AK42: 812 | AL42: 390 | AM42: TRUE
A43: 42 | B43: ГБУЗ "Кумылженская ЦРБ" | C43: 4294 | D43: 2736 | E43: 146 | F43: 1680 | G43: 1564 | J43: ГБУЗ "Палласовская ЦРБ" | K43: 3756 | L43: 1378 | M43: 3376 | N43: 1195 | O43: 1190 | P43: 1312 | Q43: 396 | R43: 1050 | S43: 822 | T43: 1846 | U43: 565 | V43: 676 | W43: 970 | X43: 310 | Y43: 3655 | Z43: 1359 | AA43: 3887 | AB43: 1481 | AC43: 1504 | AD43: 2129 | AE43: 1161 | AF43: 1053 | AG43: 862 | AH43: 1758 | AI43: 558 | AJ43: 878 | AK43: 1320 | AL43: 584 | AM43: TRUE
A44: 43 | B44: ГБУ "ЦРБ Руднянского муниципального района" | C44: 4167 | D44: 2764 | E44: 149 | F44: 1814 | G44: 1287 | J44: ГБУЗ "Кумылженская ЦРБ" | K44: 2067 | L44: 1293 | M44: 1117 | N44: 669 | O44: 439 | P44: 434 | Q44: 489 | R44: 479 | S44: 549 | T44: 417 | U44: 294 | V44: 273 | W44: 237 | X44: 445 | Y44: 2300 | Z44: 1630 | AA44: 2037 | AB44: 849 | AC44: 457 | AD44: 456 | AE44: 648 | AF44: 517 | AG44: 669 | AH44: 518 | AI44: 357 | AJ44: 317 | AK44: 256 | AL44: 530 | AM44: TRUE
A45: 44 | B45: ГБУЗ "Светлоярская ЦРБ" | C45: 7907 | D45: 4655 | E45: 243 | F45: 2988 | G45: 3518 | J45: ГБУ "ЦРБ Руднянского муниципального района" | K45: 1102 | L45: 416 | M45: 1395 | N45: 550 | O45: 505 | P45: 475 | Q45: 562 | R45: 650 | S45: 200 | T45: 700 | U45: 200 | V45: 180 | W45: 225 | X45: 170 | Y45: 1392 | Z45: 436 | AA45: 1596 | AB45: 603 | AC45: 705 | AD45: 675 | AE45: 1337 | AF45: 850 | AG45: 200 | AH45: 800 | AI45: 250 | AJ45: 270 | AK45: 425 | AL45: 334 | AM45: TRUE
A46: 45 | B46: ГБУЗ "Серафимовичская ЦРБ" | C46: 5323 | D46: 3257 | E46: 164 | F46: 2057 | G46: 1633 | J46: ГБУЗ "Светлоярская ЦРБ" | K46: 2602 | L46: 2058 | M46: 1844 | N46: 1803 | O46: 1731 | P46: 1147 | Q46: 441 | R46: 970 | S46: 937 | T46: 667 | U46: 645 | V46: 703 | W46: 631 | X46: 330 | Y46: 3037 | Z46: 3046 | AA46: 2997 | AB46: 2956 | AC46: 2345 | AD46: 1957 | AE46: 811 | AF46: 1023 | AG46: 1077 | AH46: 987 | AI46: 905 | AJ46: 1021 | AK46: 976 | AL46: 553 | AM46: TRUE
A47: 46 | B47: ГБУЗ "Среднеахтубинская ЦРБ" | C47: 11536 | D47: 7010 | E47: 361 | F47: 4449 | G47: 4818 | J47: ГБУЗ "Серафимовичская ЦРБ" | K47: 1735 | L47: 1740 | M47: 1759 | N47: 1369 | O47: 669 | P47: 673 | Q47: 671 | R47: 865 | S47: 600 | T47: 598 | U47: 314 | V47: 320 | W47: 368 | X47: 418 | Y47: 1769 | Z47: 1726 | AA47: 1759 | AB47: 1049 | AC47: 1044 | AD47: 1045 | AE47: 1061 | AF47: 857 | AG47: 598 | AH47: 589 | AI47: 314 | AJ47: 371 | AK47: 378 | AL47: 366 | AM47: TRUE
A48: 47 | B48: ГБУЗ "Старополтавская ЦРБ" | C48: 4640 | D48: 2680 | E48: 140 | F48: 1684 | G48: 1667 | J48: ГБУЗ "Среднеахтубинская ЦРБ" | K48: 6451 | L48: 2808 | M48: 2664 | N48: 2507 | O48: 1407 | P48: 1599 | Q48: 1951 | R48: 2527 | S48: 1095 | T48: 1043 | U48: 987 | V48: 565 | W48: 623 | X48: 765 | Y48: 6135 | Z48: 2969 | AA48: 2866 | AB48: 2469 | AC48: 1511 | AD48: 1696 | AE48: 4714 | AF48: 2392 | AG48: 1162 | AH48: 1118 | AI48: 976 | AJ48: 599 | AK48: 664 | AL48: 1838 | AM48: TRUE
A49: 48 | B49: ГБУЗ "ЦРБ Суровикинского муниципального района" | C49: 7516 | D49: 4548 | E49: 235 | F49: 2893 | G49: 2827 | J49: ГБУЗ "Старополтавская ЦРБ" | K49: 1221 | L49: 1361 | M49: 1189 | N49: 400 | O49: 1048 | P49: 672 | Q49: 519 | R49: 446 | S49: 500 | T49: 500 | U49: 260 | V49: 400 | W49: 300 | X49: 300 | Y49: 1419 | Z49: 1367 | AA49: 1354 | AB49: 600 | AC49: 1196 | AD49: 635 | AE49: 800 | AF49: 623 | AG49: 517 | AH49: 518 | AI49: 480 | AJ49: 759 | AK49: 366 | AL49: 338 | AM49: TRUE
A50: 49 | B50: ГБУЗ Урюпинская ЦРБ | C50: 16000 | D50: 9811 | E50: 520 | F50: 6277 | G50: 4974 | J50: ГБУЗ "ЦРБ Суровикинского муниципального района" | K50: 3565 | L50: 1216 | M50: 3343 | N50: 1298 | O50: 1092 | P50: 1001 | Q50: 1011 | R50: 1312 | S50: 953 | T50: 514 | U50: 620 | V50: 482 | W50: 447 | X50: 385 | Y50: 3003 | Z50: 1272 | AA50: 3095 | AB50: 1342 | AC50: 1223 | AD50: 1803 | AE50: 1304 | AF50: 1521 | AG50: 1048 | AH50: 781 | AI50: 755 | AJ50: 616 | AK50: 338 | AL50: 571 | AM50: TRUE
A51: 50 | B51: ГБУЗ "Фроловская ЦРБ" | C51: 10779 | D51: 6130 | E51: 338 | F51: 3950 | G51: 4027 | J51: ГБУЗ Урюпинская ЦРБ | K51: 5570 | L51: 2355 | M51: 5671 | N51: 2304 | O51: 1985 | P51: 1578 | Q51: 2961 | R51: 1944 | S51: 1092 | T51: 1418 | U51: 476 | V51: 788 | W51: 1157 | X51: 434 | Y51: 5765 | Z51: 3367 | AA51: 6783 | AB51: 2905 | AC51: 2484 | AD51: 2000 | AE51: 3518 | AF51: 1746 | AG51: 1533 | AH51: 5967 | AI51: 630 | AJ51: 879 | AK51: 1722 | AL51: 1188 | AM51: TRUE
A52: 51 | B52: ГБУЗ "Чернышковская ЦРБ" | C52: 3160 | D52: 1971 | E52: 121 | F52: 1244 | G52: 1348 | J52: ГБУЗ "Фроловская ЦРБ" | K52: 4612 | L52: 1783 | M52: 4312 | N52: 1312 | O52: 964 | P52: 2018 | Q52: 728 | R52: 2274 | S52: 812 | T52: 1692 | U52: 592 | V52: 422 | W52: 922 | X52: 341 | Y52: 4263 | Z52: 1356 | AA52: 4775 | AB52: 1128 | AC52: 1232 | AD52: 3428 | AE52: 1168 | AF52: 2178 | AG52: 804 | AH52: 2048 | AI52: 582 | AJ52: 512 | AK52: 1104 | AL52: 523 | AM52: TRUE
A53: 52 | B53: ЧУЗ КБ РЖД-Медицина | C53: 8334 | D53: 4579 | E53: 261 | F53: 2728 | G53: 3230 | J53: ГБУЗ "Чернышковская ЦРБ" | K53: 1708 | L53: 517 | M53: 1713 | N53: 553 | O53: 447 | P53: 475 | Q53: 294 | R53: 404 | S53: 211 | T53: 299 | U53: 292 | V53: 305 | W53: 392 | X53: 64 | Y53: 1506 | Z53: 444 | AA53: 1378 | AB53: 461 | AC53: 1647 | AD53: 804 | AE53: 197 | AF53: 417 | AG53: 293 | AH53: 322 | AI53: 329 | AJ53: 392 | AK53: 691 | AL53: 97 | AM53: TRUE
B54: ИТОГО | C54: =SUM(C2:C53) -> 549841 | D54: =SUM(D2:D53) -> 338452 | E54: =SUM(E2:E53) -> 16746 | F54: =SUM(F2:F53) -> 222687 | G54: =SUM(G2:G53) -> 215682 | J54: ЧУЗ КБ РЖД-Медицина | K54: 4092 | L54: 2100 | M54: 4450 | N54: 1395 | O54: 1235 | P54: 1490 | Q54: 370 | R54: 950 | S54: 880 | T54: 1250 | U54: 720 | V54: 700 | W54: 1030 | X54: 312 | Y54: 3055 | Z54: 1427 | AA54: 3290 | AB54: 1830 | AC54: 2010 | AD54: 1330 | AE54: 865 | AF54: 870 | AG54: 750 | AH54: 1145 | AI54: 650 | AJ54: 660 | AK54: 1005 | AL54: 642 | AM54: TRUE
C55: 620247 | D55: 301515 | E55: 13957 | F55: 181048 | G55: 241047 | J55: ИТОГО | K55: =SUM(K3:K54) -> 229440 | L55: =SUM(L3:L54) -> 108898 | M55: 204687 | N55: 89532 | O55: 83364 | P55: 96304 | Q55: 68965 | R55: 77366 | S55: 46792 | T55: 65188 | U55: 32221 | V55: 33939 | W55: 47333 | X55: 25609 | Y55: 241882 | Z55: 122639 | AA55: 244378 | AB55: 106335 | AC55: 110927 | AD55: 147605 | AE55: 108986 | AF55: 85184 | AG55: 56852 | AH55: 98858 | AI55: 41060 | AJ55: 43434 | AK55: 68737 | AL55: 42950 | AM55: TRUE
G59: =C54+G54 -> 765523
G60: =C55+G55 -> 861294

Sheet ДВН и профосмотр_общая (hidden)
A1: Сведения о диспансеризации и профосмотрах взрослого населения
D2: по состоянию на | F2: =IF('Титульный лист'!H11<>"",'Титульный лист'!H11,"") -> 2023-03-30
F4: =IF('Титульный лист'!C22<>"",'Титульный лист'!C22,"") -> ГБУЗ "Кумылженская ЦРБ"
F5: Название учреждения
A7: Число граждан, подлежащих диспансеризации (ПЛАН) | G7: Число граждан, прошедших 1 этап диспансеризации (ФАКТ) | R7: Распределение граждан, прошедших 1 этап диспансеризации, по группам состояния здоровья ВСЕГО | W7: Распределение граждан, прошедших 1 этап диспансеризации, по группам состояния здоровья лиц старше трудоспособного возраста | AB7: Число граждан, направлен. на 2 этап | AC7: из них завершили 2 этап | AD7: Чилсо граждан подлежащих профосмотрам (ПЛАН) | AF7: Число граждан, осмотренных на профилактическом медицинском осмотре (ФАКТ) | AN7: Проверка
A8: ВСЕГО (план) | B8: из них сельские жители (из гр.1) | C8: в т.ч. лица старше трудоспособ. возраста (56 лет и старше у женщин и старше 61 года у мужчин) (из гр.1) | D8: из них сельские жители (из гр.2) | E8: Граждане 65 лет | F8: Граждане 66 лет и старше | G8: ВСЕГО | H8: из них сельские жители (из гр.5) | I8: в т.ч. лица старше трудоспособ. возраста (56 лет и старше у женщин и старше 61 года у мужчин) (из гр.5) | J8: из них сельские жители (из гр.6) | K8: лица старше 65 лет, доставл. транспортом учреждения соцзащиты (из гр.6) | L8: доставлено маломобильных граждан старше 60 лет из удаленных пунктов, перенесших тяжелое и ср.тяжелое течение Covid, для проведения диспансеризации | M8: Граждане 65 лет | N8: Граждане 66 лет и старше | O8: из графы 5 | R8: I группа | S8: II группа | T8: III группа | U8: из графы 14: | W8: I группа | X8: II группа | Y8: III группа | Z8: из графы 17: | AD8: ВСЕГО | AE8: из них сельские жители (из гр.19) | AF8: ВСЕГО | AG8: с применением мобильных бригад | AH8: из них сельские жители (из гр.20) | AI8: распределение по группам здоровья (из гр.20)
O9: инвалиды, участники ВОВ и лица приравн. к ним* | P9: инвалиды по общему заболеванию* | Q9: с применением мобильных медиц. комплексов и мобильных бригад для диспансер. | U9: III a группа | V9: III б группа | Z9: III a группа | AA9: III б группа | AI9: I группа | AJ9: II группа | AK9: III группа | AL9: III а группа | AM9: III б группа | AQ9: I группа | AR9: II группа | AS9: III группа | AT9: III а группа | AU9: III б группа | AW9: I группа | AX9: II группа | AY9: III группа | AZ9: III а группа | BA9: III б группа | BC9: I группа | BD9: II группа | BE9: III группа | BF9: III а группа | BG9: III б группа
A10: 1 | B10: 1.1 | C10: 2 | D10: 2.1 | E10: 3 | F10: 4 | G10: 5 | H10: 5.1 | I10: 6 | J10: 6.1 | K10: 6.2 | L10: 6.2.1 | M10: 7 | N10: 8 | O10: 9 | P10: 10 | Q10: 11 | R10: 12 | S10: 13 | T10: 14 | U10: 14.1 | V10: 14.2 | W10: 15 | X10: 16 | Y10: 17 | Z10: 17.1 | AA10: 17.2 | AB10: 18 | AC10: 18.1 | AD10: 19 | AE10: 19.1 | AF10: 20 | AG10: 20.0 | AH10: 20.1 | AI10: 21 | AJ10: 22 | AK10: 23 | AL10: 23.1 | AM10: 23.2 | AQ10: по группам здоровья всего | AW10: по группам здоровья трудоспособного возраста | BC10: старше трудоспособного
A11: =IF($F$4<>"",VLOOKUP($F$4,'Проверочный лист'!$B$2:$G$53,2,FALSE),"") -> 4294 | B11: 4294 | C11: =IF($F$4<>"",VLOOKUP($F$4,'Проверочный лист'!$B$2:$G$53,3,FALSE),"") -> 2736 | D11: 2736 | E11: =IF($F$4<>"",VLOOKUP($F$4,'Проверочный лист'!$B$2:$G$53,4,FALSE),"") -> 146 | F11: =IF($F$4<>"",VLOOKUP($F$4,'Проверочный лист'!$B$2:$G$53,5,FALSE),"") -> 1680 | G11: =R11+S11+T11 -> 1075 | H11: 1075 | I11: =W11+X11+Y11 -> 733 | J11: 733 | M11: 44 | N11: 534 | O11: 8 | P11: 23 | R11: 35 | S11: 195 | T11: =U11+V11 -> 845 | U11: 814 | V11: 31 | W11: 5 | X11: 29 | Y11: =Z11+AA11 -> 699 | Z11: 684 | AA11: 15 | AB11: 452 | AC11: 322 | AD11: =IF($F$4<>"",VLOOKUP($F$4,'Проверочный лист'!$B$2:$G$53,6,FALSE),"") -> 1564 | AE11: 1564 | AF11: =AI11+AJ11+AK11 -> 391 | AH11: 391 | AI11: 144 | AJ11: 187 | AK11: =AL11+AM11 -> 60 | AL11: 58 | AM11: 2 | AN11: =IF(OR(B11<>0,A11<>0),IF(B11<=A11,"ОК","гр.1.1 > гр.1"),"ОК") -> ОК | AO11: гр. 1.1. меньше либо равна гр.1 | AQ11: =R11+AI11 -> 179 | AR11: =S11+AJ11 -> 382 | AS11: =T11+AK11 -> 905 | AT11: =U11+AL11 -> 872 | AU11: =V11+AM11 -> 33 | AW11: =AQ11-BC11 -> 174 | AX11: 353 | AY11: 206 | AZ11: 188 | BA11: 18 | BC11: =W11 -> 5 | BD11: =X11 -> 29 | BE11: =Y11 -> 699 | BF11: =Z11 -> 684 | BG11: =AA11 -> 15
AN12: =IF(OR(D11<>0,C11<>0),IF(D11<=C11,"ОК","гр.2.1 > гр.2"),"ОК") -> ОК | AO12: гр. 2.1. меньше либо равна гр.2 | AQ12: =R11 -> 35 | AR12: =S11 -> 195 | AS12: =T11 -> 845 | AT12: =U11 -> 814 | AU12: =V11 -> 31 | AW12: 30 | AX12: 166 | AY12: 146 | AZ12: 130 | BA12: 16 | BC12: =W11 -> 5 | BD12: =X11 -> 29 | BE12: =Y11 -> 699 | BF12: =Z11 -> 684 | BG12: =AA11 -> 15
A13: Ф.И.О. главного врача | D13: =IF('Титульный лист'!B30<>"",'Титульный лист'!B30,"") -> Шиповская Юлия Дмитриевна | AN13: =IF(OR(J11<>0,I11<>0),IF(J11<=I11,"ОК","гр.6.1 > гр.6"),"ОК") -> ОК | AO13: гр. 6.1. меньше либо равна гр.6 | AQ13: =AI11 -> 144 | AR13: =AJ11 -> 187 | AS13: =AK11 -> 60 | AT13: =AL11 -> 58 | AU13: =AM11 -> 2 | AW13: =AI11 -> 144 | AX13: 187 | AY13: 60 | AZ13: 58 | BA13: 2
A14: Ф.И.О. исполнителя | D14: =IF('Титульный лист'!B31<>"",'Титульный лист'!B31,"") -> Ростовцева Ирина Федоровна | AN14: =IF(OR(K11<>0,I11<>0),IF(K11<=I11,"ОК","гр.6.2 > гр.6"),"ОК") -> ОК | AO14: гр. 6.2. меньше либо равна гр.6
A15: телефон исполнителя | D15: =IF('Титульный лист'!B32<>"",'Титульный лист'!B32,"") -> 89044132260 | AN15: =IF(OR(U11<>0,T11<>0),IF(U11<=T11,"ОК","гр.14.1 > гр.14"),"ОК") -> ОК | AO15: гр. 14.1. меньше либо равна гр.14
AN16: =IF(OR(V11<>0,T11<>0),IF(V11<=T11,"ОК","гр.14.2 > гр.14"),"ОК") -> ОК | AO16: гр. 14.2. меньше либо равна гр.14
AN17: =IF(OR(Z11<>0,Y11<>0),IF(Z11<=Y11,"ОК","гр.17.1 > гр.17"),"ОК") -> ОК | AO17: гр. 17.1. меньше либо равна гр.17
AN18: =IF(OR(AA11<>0,Y11<>0),IF(AA11<=Y11,"ОК","гр.17.2 > гр.17"),"ОК") -> ОК | AO18: гр. 17.2. меньше либо равна гр.17
AN19: =IF(OR(AC11<>0,AB11<>0),IF(AC11<=AB11,"ОК","гр.18.1 > гр.18"),"ОК") -> ОК | AO19: гр. 18.1. меньше либо равна гр.18
AN20: =IF(OR(AE11<>0,AD11<>0),IF(AE11<=AD11,"ОК","гр.19.1 > гр.19"),"ОК") -> ОК | AO20: гр. 19.1. меньше либо равна гр.19
AN21: =IF(OR(AH11<>0,AF11<>0),IF(AH11<=AF11,"ОК","гр.20.1 > гр.20"),"ОК") -> ОК | AO21: гр. 20.1. меньше либо равна гр.20
AN22: =IF(OR(I11<>0,G11<>0),IF(I11<=G11,"ОК","гр.6 > гр.5"),"ОК") -> ОК | AO22: гр. 6. меньше либо равна гр.5
AN23: =IF(OR(M11<>0,I11<>0),IF(M11<=I11,"ОК","гр.7 > гр.6"),"ОК") -> ОК | AO23: гр. 7. меньше либо равна гр.6
AN24: =IF(OR(N11<>0,I11<>0),IF(N11<=I11,"ОК","гр.8 > гр.6"),"ОК") -> ОК | AO24: гр. 8. меньше либо равна гр.6

Sheet ДВН-124н (hidden)
A1: =AND('ДВН и профосмотр_общая '!F2<>0,'ДВН и профосмотр_общая '!F4<>0,'ДВН и профосмотр_общая '!D13<>0,'ДВН и профосмотр_общая '!D14<>0,'ДВН и профосмотр_общая '!D15<>0) -> TRUE | D1: Сведения о диспансеризации взрослого населения
A3: Национальный проект "Здравоохранение" Развитие системы первичной медико -санитарной помощи
A4: заполняется ЕЖЕНЕДЕЛЬНО | X4: Проверка
A5: Контингенты | B5: № | C5: ВСЕГО (план) | D5: Осмотрено (завершили 1 этап) | H5: из них сельских жителей | K5: Число ГРАЖДАН, у которых в ходе диспансериз. ВПЕРВЫЕ выявлены неинфекцион. заболевания ВСЕГО | L5: Число впервые выявлен. заболеваний в ходе диспансериз. ВСЕГО | M5: число ГРАЖДАН, у которых ВПЕРВЫЕ выявлены (из гр. 9):* | U5: Из числа ГРАЖДАН, у которых выявлены неинфекц. заболевания (из гр. 9), взяты на диспансерное наблюдение | V5: Из числа ГРАЖДАН, у которых впервые выявлены неинфекц. заболевания (из гр.9), было начато лечение | W5: из них сельских жителей (из гр. 19)
D6: ВСЕГО | E6: в вечернее время (после 18:00) (из гр.2) | F6: в субботу (из гр.2) | G6: Количество граждан, прошедших 1 этап диспансеризации в день обращения (прошедших ВСЕ ИССЛЕДОВАНИЯ за один день) (из гр.2) | H6: всего (из гр.2) | I6: в вечернее время (после 18:00) (из гр. 6) | J6: в субботу (из гр. 6) | M6: БОЛЕЗНИ СИСТЕМЫ КРОВОБРАЩЕНИЯ | N6: ЗЛОКАЧЕСТВЕН. НОВООБРАЗОВАНИЯ | O6: в том числе в I и П стадиях (из гр. 11) | P6: САХАРНЫЙ ДИАБЕТ | Q6: в т.ч. сахарный диабет 1 типа | R6: ГЛАУКОМА | S6: ХРОНИЧЕСКИЕ БОЛЕЗНИ ОРГАНОВ ДЫХАНИЯ | T6: БОЛЕЗНИ ОРГАНОВ ПИЩЕВАРЕНИЯ
C7: 1 | D7: 2 | E7: 3 | F7: 4 | G7: 5 | H7: 6 | I7: 7 | J7: 8 | K7: 9 | L7: 10 | M7: 11 | N7: 12 | O7: 13 | P7: 14 | Q7: 15 | R7: 16 | S7: 17 | T7: 18 | U7: 19 | V7: 20 | W7: 21
A8: Число лиц, прошедших диспансеризацию в т.ч.: | B8: 1. | C8: ='ДВН и профосмотр_общая '!$A$11 -> 4294 | D8: ='ДВН и профосмотр_общая '!$G$11 -> 1075 | E8: =SUM(E9:E15) -> 41 | F8: =SUM(F9:F15) -> 51 | G8: =SUM(G9:G15) -> 311 | H8: ='ДВН и профосмотр_общая '!$H$11 -> 1075 | I8: =SUM(I9:I15) -> 41 | J8: 51 | K8: 332 | L8: 332 | M8: 56 | N8: 0 | O8: 0 | P8: 11 | Q8: 0 | R8: 0 | S8: 13 | T8: 13 | U8: 69 | V8: =SUM(V9:V15) -> 69 | W8: =SUM(W9:W15) -> 69 | X8: =IF(Z8>0,"гр.2 < гр.3+гр.4 по строке «"&Y8&"»","ОК") -> ОК | Y8: =IF(Z8>0,INDEX($B$9:$B$20,Z8,1),CHAR(151)) -> — | Z8: =IF(ISERROR(MATCH(FALSE,AB8:AM8,0)),0,MATCH(FALSE,AB8:AM8,0)) -> 0 | AA8: гр.2 больше либо равна гр 3+ гр.4 | AB8: =IF(OR($D9<>0,SUM($E9:$F9)<>0),IF($D9>=SUM($E9:$F9),TRUE,FALSE),TRUE) -> TRUE | AC8: =IF(OR($D10<>0,SUM($E10:$F10)<>0),IF($D10>=SUM($E10:$F10),TRUE,FALSE),TRUE) -> TRUE | AD8: =IF(OR($D11<>0,SUM($E11:$F11)<>0),IF($D11>=SUM($E11:$F11),TRUE,FALSE),TRUE) -> TRUE | AE8: =IF(OR($D12<>0,SUM($E12:$F12)<>0),IF($D12>=SUM($E12:$F12),TRUE,FALSE),TRUE) -> TRUE | AF8: =IF(OR($D13<>0,SUM($E13:$F13)<>0),IF($D13>=SUM($E13:$F13),TRUE,FALSE),TRUE) -> TRUE | AG8: =IF(OR($D14<>0,SUM($E14:$F14)<>0),IF($D14>=SUM($E14:$F14),TRUE,FALSE),TRUE) -> TRUE | AH8: =IF(OR($D15<>0,SUM($E15:$F15)<>0),IF($D15>=SUM($E15:$F15),TRUE,FALSE),TRUE) -> TRUE | AI8: =IF(OR($D16<>0,SUM($E16:$F16)<>0),IF($D16>=SUM($E16:$F16),TRUE,FALSE),TRUE) -> TRUE | AJ8: =IF(OR($D17<>0,SUM($E17:$F17)<>0),IF($D17>=SUM($E17:$F17),TRUE,FALSE),TRUE) -> TRUE | AK8: =IF(OR($D18<>0,SUM($E18:$F18)<>0),IF($D18>=SUM($E18:$F18),TRUE,FALSE),TRUE) -> TRUE | AL8: =IF(OR($D19<>0,SUM($E19:$F19)<>0),IF($D19>=SUM($E19:$F19),TRUE,FALSE),TRUE) -> TRUE | AM8: =IF(OR($D20<>0,SUM($E20:$F20)<>0),IF($D20>=SUM($E20:$F20),TRUE,FALSE),TRUE) -> TRUE
A9: в возрасте 18-34 | B9: 1.1 | C9: 996 | D9: 78 | E9: 6 | F9: 4 | G9: 7 | H9: 78 | I9: 6 | J9: 4 | K9: 3 | L9: 3 | X9: =IF(Z9>0,"гр.21 > гр.19 по строке «"&Y9&"»","ОК") -> ОК | Y9: =IF(Z9>0,INDEX($B$9:$B$20,Z9,1),CHAR(151)) -> — | Z9: 0 | AA9: гр.21 меньше либо равна гр.19 по всем строкам | AB9: =IF(OR($W9<>0,$U9<>0),IF($W9<=$U9,TRUE,FALSE),TRUE) -> TRUE | AC9: =IF(OR($W10<>0,$U10<>0),IF($W10<=$U10,TRUE,FALSE),TRUE) -> TRUE | AD9: =IF(OR($W11<>0,$U11<>0),IF($W11<=$U11,TRUE,FALSE),TRUE) -> TRUE | AE9: =IF(OR($W12<>0,$U12<>0),IF($W12<=$U12,TRUE,FALSE),TRUE) -> TRUE | AF9: =IF(OR($W13<>0,$U13<>0),IF($W13<=$U13,TRUE,FALSE),TRUE) -> TRUE | AG9: =IF(OR($W14<>0,$U14<>0),IF($W14<=$U14,TRUE,FALSE),TRUE) -> TRUE | AH9: =IF(OR($W15<>0,$U15<>0),IF($W15<=$U15,TRUE,FALSE),TRUE) -> TRUE | AI9: =IF(OR($W16<>0,$U16<>0),IF($W16<=$U16,TRUE,FALSE),TRUE) -> TRUE | AJ9: =IF(OR($W17<>0,$U17<>0),IF($W17<=$U17,TRUE,FALSE),TRUE) -> TRUE | AK9: TRUE | AL9: TRUE | AM9: TRUE
A10: в возрасте 35-39 | B10: 1.2 | C10: 1218 | D10: 87 | E10: 5 | F10: 6 | G10: 8 | H10: 87 | I10: 5 | J10: 6 | K10: 13 | L10: 13 | M10: 3 | S10: 1 | T10: 1 | U10: 4 | V10: 4 | W10: 4 | X10: =IF(Z10>0,"гр.2 > гр.6 по строке «"&Y10&"»","ОК") -> ОК | Y10: — | Z10: 0 | AA10: гр.2 больше либо равна гр.6 | AB10: =IF(OR($D9<>0,$H9<>0),IF($D9>=$H9,TRUE,FALSE),TRUE) -> TRUE | AC10: =IF(OR($D10<>0,$H10<>0),IF($D10>=$H10,TRUE,FALSE),TRUE) -> TRUE | AD10: =IF(OR($D11<>0,$H11<>0),IF($D11>=$H11,TRUE,FALSE),TRUE) -> TRUE | AE10: =IF(OR($D12<>0,$H12<>0),IF($D12>=$H12,TRUE,FALSE),TRUE) -> TRUE | AF10: =IF(OR($D13<>0,$H13<>0),IF($D13>=$H13,TRUE,FALSE),TRUE) -> TRUE | AG10: =IF(OR($D14<>0,$H14<>0),IF($D14>=$H14,TRUE,FALSE),TRUE) -> TRUE | AH10: =IF(OR($D15<>0,$H15<>0),IF($D15>=$H15,TRUE,FALSE),TRUE) -> TRUE | AI10: =IF(OR($D16<>0,$H16<>0),IF($D16>=$H16,TRUE,FALSE),TRUE) -> TRUE | AJ10: =IF(OR($D17<>0,$H17<>0),IF($D17>=$H17,TRUE,FALSE),TRUE) -> TRUE | AK10: =IF(OR($D18<>0,$H18<>0),IF($D18>=$H18,TRUE,FALSE),TRUE) -> TRUE | AL10: =IF(OR($D19<>0,$H19<>0),IF($D19>=$H19,TRUE,FALSE),TRUE) -> TRUE | AM10: =IF(OR($D20<>0,$H20<>0),IF($D20>=$H20,TRUE,FALSE),TRUE) -> TRUE
A11: в возрасте 40-54 | B11: 1.3 | C11: 935 | D11: 96 | E11: 7 | F11: 11 | G11: 52 | H11: 96 | I11: 7 | J11: 11 | K11: 71 | L11: 71 | M11: 9 | S11: 3 | T11: 3 | U11: 11 | V11: 11 | W11: 11 | X11: =IF(Z11>0,"гр.6 < гр.7+гр.8 по строке «"&Y11&"»","ОК") -> ОК | Y11: — | Z11: 0 | AA11: гр.6 больше либо равна гр. 7+ гр.8 | AB11: =IF(OR($H9<>0,SUM($I9:$J9)<>0),IF($H9>=SUM($I9:$J9),TRUE,FALSE),TRUE) -> TRUE | AC11: =IF(OR($H10<>0,SUM($I10:$J10)<>0),IF($H10>=SUM($I10:$J10),TRUE,FALSE),TRUE) -> TRUE | AD11: =IF(OR($H11<>0,SUM($I11:$J11)<>0),IF($H11>=SUM($I11:$J11),TRUE,FALSE),TRUE) -> TRUE | AE11: =IF(OR($H12<>0,SUM($I12:$J12)<>0),IF($H12>=SUM($I12:$J12),TRUE,FALSE),TRUE) -> TRUE | AF11: =IF(OR($H13<>0,SUM($I13:$J13)<>0),IF($H13>=SUM($I13:$J13),TRUE,FALSE),TRUE) -> TRUE | AG11: =IF(OR($H14<>0,SUM($I14:$J14)<>0),IF($H14>=SUM($I14:$J14),TRUE,FALSE),TRUE) -> TRUE | AH11: =IF(OR($H15<>0,SUM($I15:$J15)<>0),IF($H15>=SUM($I15:$J15),TRUE,FALSE),TRUE) -> TRUE | AI11: =IF(OR($H16<>0,SUM($I16:$J16)<>0),IF($H16>=SUM($I16:$J16),TRUE,FALSE),TRUE) -> TRUE | AJ11: =IF(OR($H17<>0,SUM($I17:$J17)<>0),IF($H17>=SUM($I17:$J17),TRUE,FALSE),TRUE) -> TRUE | AK11: =IF(OR($H18<>0,SUM($I18:$J18)<>0),IF($H18>=SUM($I18:$J18),TRUE,FALSE),TRUE) -> TRUE | AL11: =IF(OR($H19<>0,SUM($I19:$J19)<>0),IF($H19>=SUM($I19:$J19),TRUE,FALSE),TRUE) -> TRUE | AM11: =IF(OR($H20<>0,SUM($I20:$J20)<>0),IF($H20>=SUM($I20:$J20),TRUE,FALSE),TRUE) -> TRUE
A12: в возрасте 55-59 | B12: 1.4 | C12: 651 | D12: 81 | E12: 5 | F12: 4 | G12: 20 | H12: 81 | I12: 5 | J12: 4 | K12: 36 | L12: 36 | M12: 6 | S12: 2 | T12: 1 | U12: 7 | V12: 7 | W12: 7 | X12: =IF(Z12>0,"гр.10 < гр.11+12+14+16+17+18 по строке «"&Y12&"»","ОК") -> ОК | Y12: — | Z12: 0 | AA12: гр. 10 больше либо равна сумме граф 11+12+14+16+17+18 по всем строкам | AB12: =IF(OR($L9<>0,SUM($M9:$N9,$P9,$R9:$T9)<>0),IF($L9>=SUM($M9:$N9,$P9,$R9:$T9),TRUE,FALSE),TRUE) -> TRUE | AC12: =IF(OR($L10<>0,SUM($M10:$N10,$P10,$R10:$T10)<>0),IF($L10>=SUM($M10:$N10,$P10,$R10:$T10),TRUE,FALSE),TRUE) -> TRUE | AD12: =IF(OR($L11<>0,SUM($M11:$N11,$P11,$R11:$T11)<>0),IF($L11>=SUM($M11:$N11,$P11,$R11:$T11),TRUE,FALSE),TRUE) -> TRUE | AE12: =IF(OR($L12<>0,SUM($M12:$N12,$P12,$R12:$T12)<>0),IF($L12>=SUM($M12:$N12,$P12,$R12:$T12),TRUE,FALSE),TRUE) -> TRUE | AF12: =IF(OR($L13<>0,SUM($M13:$N13,$P13,$R13:$T13)<>0),IF($L13>=SUM($M13:$N13,$P13,$R13:$T13),TRUE,FALSE),TRUE) -> TRUE | AG12: =IF(OR($L14<>0,SUM($M14:$N14,$P14,$R14:$T14)<>0),IF($L14>=SUM($M14:$N14,$P14,$R14:$T14),TRUE,FALSE),TRUE) -> TRUE | AH12: =IF(OR($L15<>0,SUM($M15:$N15,$P15,$R15:$T15)<>0),IF($L15>=SUM($M15:$N15,$P15,$R15:$T15),TRUE,FALSE),TRUE) -> TRUE | AI12: =IF(OR($L16<>0,SUM($M16:$N16,$P16,$R16:$T16)<>0),IF($L16>=SUM($M16:$N16,$P16,$R16:$T16),TRUE,FALSE),TRUE) -> TRUE | AJ12: =IF(OR($L17<>0,SUM($M17:$N17,$P17,$R17:$T17)<>0),IF($L17>=SUM($M17:$N17,$P17,$R17:$T17),TRUE,FALSE),TRUE) -> TRUE | AK12: =IF(OR($L18<>0,SUM($M18:$N18,$P18,$R18:$T18)<>0),IF($L18>=SUM($M18:$N18,$P18,$R18:$T18),TRUE,FALSE),TRUE) -> TRUE | AL12: =IF(OR($L19<>0,SUM($M19:$N19,$P19,$R19:$T19)<>0),IF($L19>=SUM($M19:$N19,$P19,$R19:$T19),TRUE,FALSE),TRUE) -> TRUE | AM12: =IF(OR($L20<>0,SUM($M20:$N20,$P20,$R20:$T20)<>0),IF($L20>=SUM($M20:$N20,$P20,$R20:$T20),TRUE,FALSE),TRUE) -> TRUE
A13: в возрасте 60-64 | B13: 1.5 | C13: 590 | D13: 199 | E13: 9 | F13: 9 | G13: 35 | H13: 199 | I13: 9 | J13: 9 | K13: 52 | L13: 52 | M13: 6 | P13: 4 | S13: 3 | T13: 3 | U13: 8 | V13: 8 | W13: 8 | X13: =IF(Z13>0,"гр.19 > гр.9 по строке «"&Y13&"»","ОК") -> ОК | Y13: — | Z13: 0 | AA13: гр.19 меньше либо равна гр.9 по всем строкам | AB13: =IF(OR($U9<>0,$K9<>0),IF($U9<=$K9,TRUE,FALSE),TRUE) -> TRUE | AC13: =IF(OR($U10<>0,$K10<>0),IF($U10<=$K10,TRUE,FALSE),TRUE) -> TRUE | AD13: =IF(OR($U11<>0,$K11<>0),IF($U11<=$K11,TRUE,FALSE),TRUE) -> TRUE | AE13: =IF(OR($U12<>0,$K12<>0),IF($U12<=$K12,TRUE,FALSE),TRUE) -> TRUE | AF13: =IF(OR($U13<>0,$K13<>0),IF($U13<=$K13,TRUE,FALSE),TRUE) -> TRUE | AG13: =IF(OR($U14<>0,$K14<>0),IF($U14<=$K14,TRUE,FALSE),TRUE) -> TRUE | AH13: =IF(OR($U15<>0,$K15<>0),IF($U15<=$K15,TRUE,FALSE),TRUE) -> TRUE | AI13: =IF(OR($U16<>0,$K16<>0),IF($U16<=$K16,TRUE,FALSE),TRUE) -> TRUE | AJ13: =IF(OR($U17<>0,$K17<>0),IF($U17<=$K17,TRUE,FALSE),TRUE) -> TRUE | AK13: =IF(OR($U18<>0,$K18<>0),IF($U18<=$K18,TRUE,FALSE),TRUE) -> TRUE | AL13: =IF(OR($U19<>0,$K19<>0),IF($U19<=$K19,TRUE,FALSE),TRUE) -> TRUE | AM13: =IF(OR($U20<>0,$K20<>0),IF($U20<=$K20,TRUE,FALSE),TRUE) -> TRUE
A14: в возрасте 65-74 | B14: 1.6 | C14: 493 | D14: 225 | E14: 4 | F14: 10 | G14: 87 | H14: 225 | I14: 4 | J14: 10 | K14: 109 | L14: 109 | M14: 19 | P14: 4 | S14: 4 | T14: 5 | U14: 24 | V14: 24 | W14: 24 | X14: =IF(Z14>0,"гр.20 > гр.9 по строке «"&Y14&"»","ОК") -> ОК | Y14: — | Z14: 0 | AA14: гр.20 меньше либо равна гр.9 по всем строкам | AB14: =IF(OR($V9<>0,$K9<>0),IF($V9<=$K9,TRUE,FALSE),TRUE) -> TRUE | AC14: =IF(OR($V10<>0,$K10<>0),IF($V10<=$K10,TRUE,FALSE),TRUE) -> TRUE | AD14: =IF(OR($V11<>0,$K11<>0),IF($V11<=$K11,TRUE,FALSE),TRUE) -> TRUE | AE14: =IF(OR($V12<>0,$K12<>0),IF($V12<=$K12,TRUE,FALSE),TRUE) -> TRUE | AF14: =IF(OR($V13<>0,$K13<>0),IF($V13<=$K13,TRUE,FALSE),TRUE) -> TRUE | AG14: =IF(OR($V14<>0,$K14<>0),IF($V14<=$K14,TRUE,FALSE),TRUE) -> TRUE | AH14: =IF(OR($V15<>0,$K15<>0),IF($V15<=$K15,TRUE,FALSE),TRUE) -> TRUE | AI14: =IF(OR($V16<>0,$K16<>0),IF($V16<=$K16,TRUE,FALSE),TRUE) -> TRUE | AJ14: =IF(OR($V17<>0,$K17<>0),IF($V17<=$K17,TRUE,FALSE),TRUE) -> TRUE | AK14: TRUE | AL14: TRUE | AM14: TRUE
A15: в возрасте 75 и старше | B15: 1.7 | C15: 975 | D15: 309 | E15: 5 | F15: 7 | G15: 102 | H15: 309 | I15: 5 | J15: 7 | K15: 48 | L15: 48 | M15: 13 | P15: 3 | U15: 15 | V15: 15 | W15: 15 | X15: =IF(Z15>0,"гр.9 > гр.10 по строке «"&Y15&"»","ОК") -> ОК | Y15: — | Z15: 0 | AA15: гр.9 меньше либо равна гр.10 | AB15: =IF(OR($K9<>0,$L9<>0),IF($K9<=$L9,TRUE,FALSE),TRUE) -> TRUE | AC15: =IF(OR($K10<>0,$L10<>0),IF($K10<=$L10,TRUE,FALSE),TRUE) -> TRUE | AD15: =IF(OR($K11<>0,$L11<>0),IF($K11<=$L11,TRUE,FALSE),TRUE) -> TRUE | AE15: =IF(OR($K12<>0,$L12<>0),IF($K12<=$L12,TRUE,FALSE),TRUE) -> TRUE | AF15: =IF(OR($K13<>0,$L13<>0),IF($K13<=$L13,TRUE,FALSE),TRUE) -> TRUE | AG15: =IF(OR($K14<>0,$L14<>0),IF($K14<=$L14,TRUE,FALSE),TRUE) -> TRUE | AH15: =IF(OR($K15<>0,$L15<>0),IF($K15<=$L15,TRUE,FALSE),TRUE) -> TRUE | AI15: =IF(OR($K16<>0,$L16<>0),IF($K16<=$L16,TRUE,FALSE),TRUE) -> TRUE | AJ15: =IF(OR($K17<>0,$L17<>0),IF($K17<=$L17,TRUE,FALSE),TRUE) -> TRUE | AK15: =IF(OR($K18<>0,$L18<>0),IF($K18<=$L18,TRUE,FALSE),TRUE) -> TRUE | AL15: =IF(OR($K19<>0,$L19<>0),IF($K19<=$L19,TRUE,FALSE),TRUE) -> TRUE | AM15: =IF(OR($K20<>0,$L20<>0),IF($K20<=$L20,TRUE,FALSE),TRUE) -> TRUE
A16: Граждане 65 лет и старше | B16: 1.8 | C16: =SUM('ДВН и профосмотр_общая '!E11:F11) -> 1826 | D16: 534 | E16: =SUM(E14:E15) -> 9 | F16: =SUM(F14:F15) -> 17 | G16: 189 | H16: 534 | I16: 9 | J16: 17 | K16: 145 | L16: 145 | M16: 39 | N16: =SUM(N14:N15) -> 0 | O16: 0 | P16: 7 | Q16: 0 | R16: 0 | S16: 4 | T16: 5 | U16: 44 | V16: 44 | W16: 44 | X16: =IF(Z16>0,"гр.3 < гр.7 по строке «"&Y16&"»","ОК") -> ОК | Y16: — | Z16: 0 | AA16: гр.3 больше либо равна гр.7 | AB16: =IF(OR($E9<>0,$I9<>0),IF($E9>=$I9,TRUE,FALSE),TRUE) -> TRUE | AC16: =IF(OR($E10<>0,$I10<>0),IF($E10>=$I10,TRUE,FALSE),TRUE) -> TRUE | AD16: =IF(OR($E11<>0,$I11<>0),IF($E11>=$I11,TRUE,FALSE),TRUE) -> TRUE | AE16: =IF(OR($E12<>0,$I12<>0),IF($E12>=$I12,TRUE,FALSE),TRUE) -> TRUE | AF16: =IF(OR($E13<>0,$I13<>0),IF($E13>=$I13,TRUE,FALSE),TRUE) -> TRUE | AG16: =IF(OR($E14<>0,$I14<>0),IF($E14>=$I14,TRUE,FALSE),TRUE) -> TRUE | AH16: =IF(OR($E15<>0,$I15<>0),IF($E15>=$I15,TRUE,FALSE),TRUE) -> TRUE | AI16: =IF(OR($E16<>0,$I16<>0),IF($E16>=$I16,TRUE,FALSE),TRUE) -> TRUE | AJ16: =IF(OR($E17<>0,$I17<>0),IF($E17>=$I17,TRUE,FALSE),TRUE) -> TRUE | AK16: =IF(OR($E18<>0,$I18<>0),IF($E18>=$I18,TRUE,FALSE),TRUE) -> TRUE | AL16: =IF(OR($E19<>0,$I19<>0),IF($E19>=$I19,TRUE,FALSE),TRUE) -> TRUE | AM16: =IF(OR($E20<>0,$I20<>0),IF($E20>=$I20,TRUE,FALSE),TRUE) -> TRUE
A17: в т.ч. лица старше трудоспособ. возраста (56 лет и старше у женщин и старше 61 года у мужчин) (из стр.1 ) | B17: 1.9 | C17: ='ДВН и профосмотр_общая '!$C$11 -> 2736 | D17: ='ДВН и профосмотр_общая '!$I$11 -> 733 | E17: =SUM(E13:E15) -> 18 | F17: =SUM(F13:F15) -> 26 | G17: 224 | H17: ='ДВН и профосмотр_общая '!$J$11 -> 733 | I17: =SUM(I13:I15) -> 18 | J17: =SUM(J13:J15) -> 26 | K17: 209 | L17: 209 | M17: 38 | N17: =SUM(N13:N15) -> 0 | O17: 0 | P17: 11 | Q17: 0 | R17: 0 | S17: 7 | T17: 8 | U17: 50 | V17: 50 | W17: 50 | X17: =IF(Z17>0,"гр.4 < гр.8 по строке «"&Y17&"»","ОК") -> ОК | Y17: — | Z17: 0 | AA17: гр. 4 больше либо равна гр.8 по всем строкам | AB17: =IF(OR($F9<>0,$J9<>0),IF($F9>=$J9,TRUE,FALSE),TRUE) -> TRUE | AC17: =IF(OR($F10<>0,$J10<>0),IF($F10>=$J10,TRUE,FALSE),TRUE) -> TRUE | AD17: =IF(OR($F11<>0,$J11<>0),IF($F11>=$J11,TRUE,FALSE),TRUE) -> TRUE | AE17: =IF(OR($F12<>0,$J12<>0),IF($F12>=$J12,TRUE,FALSE),TRUE) -> TRUE | AF17: =IF(OR($F13<>0,$J13<>0),IF($F13>=$J13,TRUE,FALSE),TRUE) -> TRUE | AG17: =IF(OR($F14<>0,$J14<>0),IF($F14>=$J14,TRUE,FALSE),TRUE) -> TRUE | AH17: =IF(OR($F15<>0,$J15<>0),IF($F15>=$J15,TRUE,FALSE),TRUE) -> TRUE | AI17: =IF(OR($F16<>0,$J16<>0),IF($F16>=$J16,TRUE,FALSE),TRUE) -> TRUE | AJ17: =IF(OR($F17<>0,$J17<>0),IF($F17>=$J17,TRUE,FALSE),TRUE) -> TRUE | AK17: =IF(OR($F18<>0,$J18<>0),IF($F18>=$J18,TRUE,FALSE),TRUE) -> TRUE | AL17: =IF(OR($F19<>0,$J19<>0),IF($F19>=$J19,TRUE,FALSE),TRUE) -> TRUE | AM17: =IF(OR($F20<>0,$J20<>0),IF($F20>=$J20,TRUE,FALSE),TRUE) -> TRUE
A18: Из числа (из гр.19), взятых на диспансерное наблюдение | B18: 2.0 | C18: х | D18: х | E18: х | F18: х | G18: х | H18: х | I18: х | J18: х | K18: х | L18: х | M18: =SUM(M19:M20) -> 56 | N18: 0 | O18: 0 | P18: 11 | Q18: 0 | R18: 0 | S18: 2 | T18: 0 | U18: 69 | V18: х | W18: х | X18: =IF(Z18>0,"гр.12 < гр.13 по строке «"&Y18&"»","ОК") -> ОК | Y18: — | Z18: 0 | AA18: гр.12 больше либо равна гр.13 по всем строкам | AB18: =IF(OR($N9<>0,$O9<>0),IF($N9>=$O9,TRUE,FALSE),TRUE) -> TRUE | AC18: =IF(OR($N10<>0,$O10<>0),IF($N10>=$O10,TRUE,FALSE),TRUE) -> TRUE | AD18: =IF(OR($N11<>0,$O11<>0),IF($N11>=$O11,TRUE,FALSE),TRUE) -> TRUE | AE18: =IF(OR($N12<>0,$O12<>0),IF($N12>=$O12,TRUE,FALSE),TRUE) -> TRUE | AF18: =IF(OR($N13<>0,$O13<>0),IF($N13>=$O13,TRUE,FALSE),TRUE) -> TRUE | AG18: =IF(OR($N14<>0,$O14<>0),IF($N14>=$O14,TRUE,FALSE),TRUE) -> TRUE | AH18: =IF(OR($N15<>0,$O15<>0),IF($N15>=$O15,TRUE,FALSE),TRUE) -> TRUE | AI18: =IF(OR($N16<>0,$O16<>0),IF($N16>=$O16,TRUE,FALSE),TRUE) -> TRUE | AJ18: =IF(OR($N17<>0,$O17<>0),IF($N17>=$O17,TRUE,FALSE),TRUE) -> TRUE | AK18: =IF(OR($N18<>0,$O18<>0),IF($N18>=$O18,TRUE,FALSE),TRUE) -> TRUE | AL18: =IF(OR($N19<>0,$O19<>0),IF($N19>=$O19,TRUE,FALSE),TRUE) -> TRUE | AM18: =IF(OR($N20<>0,$O20<>0),IF($N20>=$O20,TRUE,FALSE),TRUE) -> TRUE
A19: в трудоспособном возрасте | B19: 2.1 | C19: х | D19: х | E19: х | F19: х | G19: х | H19: х | I19: х | J19: х | K19: х | L19: х | M19: 18 | N19: =SUM(N9:N12) -> 0 | O19: =SUM(O9:O12) -> 0 | P19: 0 | Q19: 0 | R19: 0 | S19: 1 | U19: 19 | V19: х | W19: х | X19: =IF(Z19>0,"гр.14 < гр.15 по строке «"&Y19&"»","ОК") -> ОК | Y19: — | Z19: 0 | AA19: гр. 14 больше либо равна гр.15 по всем строкам | AB19: =IF(OR($P9<>0,$Q9<>0),IF($P9>=$Q9,TRUE,FALSE),TRUE) -> TRUE | AC19: =IF(OR($P10<>0,$Q10<>0),IF($P10>=$Q10,TRUE,FALSE),TRUE) -> TRUE | AD19: =IF(OR($P11<>0,$Q11<>0),IF($P11>=$Q11,TRUE,FALSE),TRUE) -> TRUE | AE19: =IF(OR($P12<>0,$Q12<>0),IF($P12>=$Q12,TRUE,FALSE),TRUE) -> TRUE | AF19: =IF(OR($P13<>0,$Q13<>0),IF($P13>=$Q13,TRUE,FALSE),TRUE) -> TRUE | AG19: =IF(OR($P14<>0,$Q14<>0),IF($P14>=$Q14,TRUE,FALSE),TRUE) -> TRUE | AH19: =IF(OR($P15<>0,$Q15<>0),IF($P15>=$Q15,TRUE,FALSE),TRUE) -> TRUE | AI19: =IF(OR($P16<>0,$Q16<>0),IF($P16>=$Q16,TRUE,FALSE),TRUE) -> TRUE | AJ19: =IF(OR($P17<>0,$Q17<>0),IF($P17>=$Q17,TRUE,FALSE),TRUE) -> TRUE | AK19: =IF(OR($P18<>0,$Q18<>0),IF($P18>=$Q18,TRUE,FALSE),TRUE) -> TRUE | AL19: =IF(OR($P19<>0,$Q19<>0),IF($P19>=$Q19,TRUE,FALSE),TRUE) -> TRUE | AM19: =IF(OR($P20<>0,$Q20<>0),IF($P20>=$Q20,TRUE,FALSE),TRUE) -> TRUE
A20: старше трудоспособного возраста (из стр.1.9 ) | B20: 2.2 | C20: х | D20: х | E20: х | F20: х | G20: х | H20: х | I20: х | J20: х | K20: х | L20: х | M20: 38 | N20: =N17 -> 0 | O20: =O17 -> 0 | P20: 11 | Q20: 0 | R20: 0 | S20: 1 | U20: 50 | V20: х | W20: х | X20: =IF(Z20>0,"гр.5 > гр.2 по строке «"&Y20&"»","ОК") -> ОК | Y20: — | Z20: =IF(ISERROR(MATCH(FALSE,AB20:AM20,0)),0,MATCH(FALSE,AB20:AM20,0)) -> 0 | AA20: гр5 меньше или равнв гр2 по всем строкам | AB20: =IF(OR($G9<>0,$D9<>0),IF($G9<=$D9,TRUE,FALSE),TRUE) -> TRUE | AC20: =IF(OR($G10<>0,$D10<>0),IF($G10<=$D10,TRUE,FALSE),TRUE) -> TRUE | AD20: =IF(OR($G11<>0,$D11<>0),IF($G11<=$D11,TRUE,FALSE),TRUE) -> TRUE | AE20: =IF(OR($G12<>0,$D12<>0),IF($G12<=$D12,TRUE,FALSE),TRUE) -> TRUE | AF20: =IF(OR($G13<>0,$D13<>0),IF($G13<=$D13,TRUE,FALSE),TRUE) -> TRUE | AG20: =IF(OR($G14<>0,$D14<>0),IF($G14<=$D14,TRUE,FALSE),TRUE) -> TRUE | AH20: =IF(OR($G15<>0,$D15<>0),IF($G15<=$D15,TRUE,FALSE),TRUE) -> TRUE | AI20: =IF(OR($G16<>0,$D16<>0),IF($G16<=$D16,TRUE,FALSE),TRUE) -> TRUE | AJ20: =IF(OR($G17<>0,$D17<>0),IF($G17<=$D17,TRUE,FALSE),TRUE) -> TRUE | AK20: =IF(OR($G18<>0,$D18<>0),IF($G18<=$D18,TRUE,FALSE),TRUE) -> TRUE | AL20: =IF(OR($G19<>0,$D19<>0),IF($G19<=$D19,TRUE,FALSE),TRUE) -> TRUE | AM20: =IF(OR($G20<>0,$D20<>0),IF($G20<=$D20,TRUE,FALSE),TRUE) -> TRUE
X21: =IF(AB21=FALSE,"гр.5(со стр.1 по стр.1.8) > гр.2(со стр.1 по стр.1.8)","ОК") -> ОК | AA21: гр.5 по строкам 1-1.8 должна быть меньше либо равна гр 2 по строкам 1-1.8 | AB21: =IF(OR(SUM($G8:$G16)<>0,SUM($D8:$D16)<>0),IF(SUM($G8:$G16)<=SUM($D8:$D16),TRUE,FALSE),TRUE) -> TRUE
X22: =IF(AB22=FALSE,"гр.6(со стр.1 по стр.1.8) > гр.2(со стр.1 по стр.1.8)","ОК") -> ОК | AA22: гр.6 должны быть меньше или равны графам 2 по строкам 1-1.8 | AB22: =IF(OR(SUM($H$8:$H$16)<>0,SUM($D$8:$D$16)<>0),IF(SUM($H$8:$H$16)<=SUM($D$8:$D$16),TRUE,FALSE),TRUE) -> TRUE
A23: просьба не ставить ноли при отсутствии значения | X23: =IF(AB23=FALSE,"гр.7(со стр.1 по стр.1.8) > гр.3(со стр.1 по стр.1.8)","ОК") -> ОК | AA23: гр.7 должны быть меньше или равны графам 3 по строкам 1-1.8 | AB23: =IF(OR(SUM(I8:I16)<>0,SUM(E8:E16)<>0),IF(SUM(I8:I16)<=SUM(E8:E16),TRUE,FALSE),TRUE) -> TRUE
A24: Сумма строк с 1.1. по 1.4. по графе 2 | D24: =SUM(D9:D12) -> 342 | E24: должна быть меньше или равна гр.1 таблицы (1001) | L24: ='1000, 1001'!G21 -> 342 | X24: =IF(AB24=FALSE,"гр.8(со стр.1 по стр.1.8) > гр.4(со стр.1 по стр.1.8)","ОК") -> ОК | AA24: гр.8 должны быть меньше или равны графам 4 по строкам 1-1.8 | AB24: =IF(OR(SUM(J8:J16)<>0,SUM(F8:F16)<>0),IF(SUM(J8:J16)<=SUM(F8:F16),TRUE,FALSE),TRUE) -> TRUE
X25: =IF(AB25=FALSE,"гр.1(со стр.1 по стр.1.9) < гр.2(со стр.1 по стр.1.9)","ОК") -> ОК | AA25: гр.1 больше либо равна гр.2 по строкам 1-1.9 | AB25: =IF(OR(SUM(C8:C17)<>0,SUM(D8:D17)<>0),IF(SUM(C8:C17)>=SUM(D8:D17),TRUE,FALSE),TRUE) -> TRUE
X26: =IF(AB26=FALSE,"гр.21(со стр.1 по стр.1.9) > гр.6(со стр.1 по стр.1.9)","ОК") -> ОК | AA26: данные по гр.21 меньше либо равны гр.6 по строкам 1-1.1.9 | AB26: =IF(OR(SUM(W8:W17)<>0,SUM(H8:H17)<>0),IF(SUM(W8:W17)<=SUM(H8:H17),TRUE,FALSE),TRUE) -> TRUE
X27: =IF(Z27>0,"стр.2.2 > стр.1.9 по графе "&Y27,"ОК") -> ОК | Y27: =IF(Z27>0,INDEX($C$7:$W$7,1,Z27),CHAR(151)) -> — | Z27: =IF(ISERROR(MATCH(FALSE,AB27:AV27,0)),0,MATCH(FALSE,AB27:AV27,0)) -> 0 | AA27: данные по строке 2.2 должны быть меньше либо равны данным по строке 1.9 по всем графам, кроме тех, что содержат кресты | AB27: TRUE | AC27: TRUE | AD27: TRUE | AE27: TRUE | AF27: TRUE | AG27: TRUE | AH27: TRUE | AI27: TRUE | AJ27: TRUE | AK27: TRUE | AL27: =IF(OR(M20<>0,M17<>0),IF(M20<=M17,TRUE,FALSE),TRUE) -> TRUE | AM27: =IF(OR(N20<>0,N17<>0),IF(N20<=N17,TRUE,FALSE),TRUE) -> TRUE | AN27: =IF(OR(O20<>0,O17<>0),IF(O20<=O17,TRUE,FALSE),TRUE) -> TRUE | AO27: =IF(OR(P20<>0,P17<>0),IF(P20<=P17,TRUE,FALSE),TRUE) -> TRUE | AP27: TRUE | AQ27: TRUE | AR27: TRUE | AS27: TRUE | AT27: TRUE | AU27: TRUE | AV27: TRUE
X28: =IF(AB28=FALSE,"гр.2 стр.1 ≠ гр.2(со стр.1.1 по стр.1.7)","ОК") -> ОК | Y28: =IF(Z28>0,INDEX($C$7:$W$7,1,Z28),CHAR(151)) -> — | Z28: =IF(ISERROR(MATCH(FALSE,AB28:AV28,0)),0,MATCH(FALSE,AB28:AV28,0)) -> 0 | AA28: данные стр.1 по графе 2 должны быть равны сумме строк с 1.1 по 1.7 по данной графе | AB28: =IF(OR(D8<>0,SUM(D9:D15)<>0),IF(D8=SUM(D9:D15),TRUE,FALSE),TRUE) -> TRUE
X29: =IF(AB29=FALSE,"гр.6 стр.1 ≠ гр.6(со стр.1.1 по стр.1.7)","ОК") -> ОК | Y29: =IF(Z29>0,INDEX($C$7:$W$7,1,Z29),CHAR(151)) -> — | Z29: =IF(ISERROR(MATCH(FALSE,AB29:AV29,0)),0,MATCH(FALSE,AB29:AV29,0)) -> 0 | AA29: данные стр.1 по графе 6 должны быть равны сумме строк с 1.1 по 1.7 по данной графе | AB29: =IF(OR(H8<>0,SUM(H9:H15)<>0),IF(H8=SUM(H9:H15),TRUE,FALSE),TRUE) -> TRUE

Sheet профосмотры 124н (hidden)
A1: =AND('ДВН и профосмотр_общая '!F2<>0,'ДВН и профосмотр_общая '!F4<>0,'ДВН и профосмотр_общая '!D13<>0,'ДВН и профосмотр_общая '!D14<>0,'ДВН и профосмотр_общая '!D15<>0) -> TRUE | D1: Сведения о профилактических осмотрах взрослого населения
A3: Национальный проект "Здравоохранение" Развитие системы первичной медико -санитарной помощи
A4: заполняется ЕЖЕНЕДЕЛЬНО | X4: Проверка
A5: Контингенты | B5: № | C5: ВСЕГО (план) | D5: Осмотрено (завершили) | H5: из них сельских жителей | K5: Число ГРАЖДАН, у которых при профосмотрах впервые выявлены неинфекцион. заболевания ВСЕГО | L5: Число впервые выявлен. заболеваний в ходе диспансериз. ВСЕГО | M5: число ГРАЖДАН, у которых впервые выявлены (из гр. 9):* | U5: Из числа ГРАЖДАН, у которых выявлены неинфекц. заболевания (из гр.9), взяты на диспансерное наблюдение | V5: Из числа ГРАЖДАН, у которых впервые выявлены неинфекц. заболевания (из гр. 9), было начато лечение | W5: из них сельских жителей (из гр. 19)
D6: ВСЕГО | E6: в вечернее время (после 18:00) (из гр.2) | F6: в субботу (из гр.2) | G6: Количество граждан, прошедших профосмотр в день обращения (прошедших ВСЕ ИССЛЕДОВАНИЯ за один день) (из гр.2) | H6: всего (из гр.2) | I6: в вечернее время (после 18:00) (из гр. 6) | J6: в субботу (из гр. 6) | M6: БОЛЕЗНИ СИСТЕМЫ КРОВОБРАЩЕНИЯ | N6: ЗЛОКАЧЕСТВЕН. НОВООБРАЗОВАНИЯ | O6: в том числе в I и П стадиях (из гр. 11) | P6: САХАРНЫЙ ДИАБЕТ | Q6: в т.ч. сахарный диабет 1 типа | R6: ГЛАУКОМА | S6: ХРОНИЧЕСКИЕ БОЛЕЗНИ ОРГАНОВ ДЫХАНИЯ | T6: БОЛЕЗНИ ОРГАНОВ ПИЩЕВАРЕНИЯ
A7: 1 | C7: 1 | D7: 2 | E7: 3 | F7: 4 | G7: 5 | H7: 6 | I7: 7 | J7: 8 | K7: 9 | L7: 10 | M7: 11 | N7: 12 | O7: 13 | P7: 14 | Q7: 15 | R7: 16 | S7: 17 | T7: 18 | U7: 19 | V7: 20 | W7: 21
A8: Число лиц, прошедших профосмотр | B8: 1. | C8: ='ДВН и профосмотр_общая '!$AD$11 -> 1564 | D8: ='ДВН и профосмотр_общая '!$AF$11 -> 391 | E8: =SUM(E9:E13) -> 0 | F8: =SUM(F9:F13) -> 0 | G8: =SUM(G9:G13) -> 3 | H8: ='ДВН и профосмотр_общая '!$AH$11 -> 391 | I8: 0 | J8: 0 | K8: =SUM(K9:K13) -> 1 | L8: =SUM(L9:L13) -> 1 | M8: 1 | N8: 0 | O8: 0 | P8: 0 | Q8: 0 | R8: 0 | S8: 0 | T8: 0 | U8: 1 | V8: 1 | W8: 1 | X8: =IF(OR(D8<>0,SUM(E8:F8)<>0),IF(D8>=SUM(E8:F8),"ОК","гр.2 < гр.3+гр.4"),"ОК") -> ОК | Y8: гр.2 больше либо равна гр 3+ гр.4
A9: в возрасте 18-34 | B9: 1.1 | C9: 980 | D9: 263 | G9: 3 | H9: 263 | K9: 1 | L9: 1 | M9: 1 | U9: 1 | V9: 1 | W9: 1 | X9: =IF(OR(D8<>0,H8<>0),IF(D8<H8,"гр.2 < гр.6","ОК"),"ОК") -> ОК | Y9: гр.2 больше либо равна гр.6
A10: в возрасте 35-39 | B10: 1.2 | C10: 584 | D10: 128 | H10: 128 | X10: =IF(OR(H8<>0,SUM(I8:J8)<>0),IF(H8>=SUM(I8:J8),"ОК","гр.6 < гр.7+гр.8"),"ОК") -> ОК | Y10: гр.6 больше либо равна гр 7+ гр8
A11: в возрасте 40-54 | B11: 1.3 | X11: =IF(OR(L8<>0,SUM(M8:N8,P8,R8:T8)<>0),IF(L8<SUM(M8:N8,P8,R8:T8),"гр.10 < гр.11+12+14+16+17+18","ОК"),"ОК") -> ОК | Y11: гр. 10 больше либо равна сумме граф 11+12+14+16+17+18
A12: в возрасте 55-59 | B12: 1.4 | X12: =IF(OR(U8<>0,K8<>0),IF(U8<=K8,"ОК","гр.19 > гр.9"),"ОК") -> ОК | Y12: гр.19 меньше либо равна гр.9
A13: в возрасте 60-64 | B13: 1.5 | X13: =IF(OR(K8<>0,L8<>0),IF(K8>L8,"гр.9 > гр.10","ОК"),"ОК") -> ОК | Y13: гр.9 меньше либо равна гр.10
A14: в возрасте 65-74 | B14: 1.6 | C14: х | D14: х | E14: х | F14: х | G14: х | H14: х | I14: х | J14: х | K14: х | L14: х | M14: х | N14: х | O14: х | P14: х | Q14: х | R14: х | S14: х | T14: х | U14: х | V14: х | W14: х | X14: =IF(OR(E8<>0,I8<>0),IF(E8<I8,"гр.3 < гр.7","ОК"),"ОК") -> ОК | Y14: гр.3 больше либо равна гр.7
A15: в возрасте 75 и старше | B15: 1.7 | C15: х | D15: х | E15: х | F15: х | G15: х | H15: х | I15: х | J15: х | K15: х | L15: х | M15: х | N15: х | O15: х | P15: х | Q15: х | R15: х | S15: х | T15: х | U15: х | V15: х | W15: х | X15: =IF(OR(F8<>0,J8<>0),IF(F8<J8,"гр.4 < гр.8","ОК"),"ОК") -> ОК | Y15: гр.4 больше либо равна гр8
A16: Из числа (из гр. 9), взятых на диспансерное наблюдение | B16: 2.0 | C16: х | D16: х | E16: х | F16: х | G16: х | H16: х | I16: х | J16: х | K16: х | L16: х | M16: 1 | N16: =N8 -> 0 | O16: =O8 -> 0 | P16: 0 | Q16: 0 | R16: 0 | U16: =$U$8 -> 1 | V16: х | W16: х | X16: =IF(OR(V8<>0,K8<>0),IF(V8>K8,"гр.20 > гр.9","ОК"),"ОК") -> ОК | Y16: гр.20 меньше либо равна гр.9
X17: =IF(OR(W8<>0,K8<>0),IF(W8>K8,"гр.21 > гр.9","ОК"),"ОК") -> ОК | Y17: гр.21 меньше либо равна гр.9
A18: просьба не ставить ноли при отсутствии значения | X18: =IF(OR(N8<>0,O8<>0),IF(N8<O8,"гр.12 < гр.13","ОК"),"ОК") -> ОК | Y18: гр.12 больше либо равна гр.13
X19: =IF(OR(P8<>0,Q8<>0),IF(P8<Q8,"гр.13 < гр.14","ОК"),"ОК") -> ОК | Y19: гр. 14 больше либо равна гр.15
X20: =IF(OR(W8<>0,H8<>0),IF(W8>H8,"гр.21 > гр.6","ОК"),"ОК") -> ОК | Y20: гр21 меньше или равнв гр6
X21: =IF(AA21>0,"стр.2 > стр.1 по графе "&Z21,"ОК") -> ОК | Y21: данные по строке 2.0 должны быть меньше или равны данных по строке 1.0 по графам с 11 по 18 | Z21: =IF(AA21>0,INDEX($M$7:$T$7,1,AA21),CHAR(151)) -> — | AA21: =IF(ISERROR(MATCH(FALSE,AC21:AI21,0)),0,MATCH(FALSE,AC21:AI21,0)) -> 0 | AB21: =IF(OR(M16<>0,M8<>0),IF(M16<=M8,TRUE,FALSE),TRUE) -> TRUE | AC21: =IF(OR(N16<>0,N8<>0),IF(N16<=N8,TRUE,FALSE),TRUE) -> TRUE | AD21: TRUE | AE21: TRUE | AF21: TRUE | AG21: TRUE | AH21: TRUE | AI21: TRUE
X22: =IF(Z22=FALSE,"гр.2 стр.1 ≠ гр.2(со стр.1.1 по стр.1.5)","ОК") -> ОК | Y22: данные по графе 2 стр.1 должны быть равны сумме строк с 1.1 по 1.5 по данной графе | Z22: =IF(OR(D8<>0,SUM(D9:D13)<>0),IF(D8=SUM(D9:D13),TRUE,FALSE),TRUE) -> TRUE
X23: =IF(Z23=FALSE,"гр.6 стр.1 ≠ гр.6(со стр.1.1 по стр.1.5)","ОК") -> ОК | Y23: данные по графе 6 стр.1 должны быть равны сумме строк с 1.1 по 1.5 по данной графе | Z23: =IF(OR(H8<>0,SUM(H9:H13)<>0),IF(H8=SUM(H9:H13),TRUE,FALSE),TRUE) -> TRUE

Sheet Нацпроект_ДВН_ПО _Ф.12 (hidden)
A1: =AND('ДВН и профосмотр_общая '!F2<>0,'ДВН и профосмотр_общая '!F4<>0,'ДВН и профосмотр_общая '!D13<>0,'ДВН и профосмотр_общая '!D14<>0,'ДВН и профосмотр_общая '!D15<>0) -> TRUE
A2: Показатель нацпроекта | B2: Доля впервые в жизни установленных неинфекционных заболеваний (ХНИЗ), выявленных при проведении диспансеризации и профилактическом медицинском осмотре у взрослого населения, от общего числа ХНИЗ с впервые установленным диагнозом, %
B4: заполняется ЕЖЕНЕДЕЛЬНО
A5: Нозологии | B5: впервые выявлено при ДВН | C5: впервые выявлено при профосмотре | D5: всего выявлено при ДВН и профосмотрах | E5: число зарегистр. заболеваний с впервые в жизни установл. диагнозом гр. 9 форма№12 (т.3000) | F5: Доля впервые в жизни установл. (ХНИЗ) от общего числа ХНИЗ с впервые установл.диагнозом, % | G5: Проверка
A6: 1 | B6: 2 | C6: 3 | D6: 4 | E6: 5 | F6: 6
A7: Болезни системы кровообращения | B7: ='ДВН-124н'!M8 -> 56 | C7: ='профосмотры 124н'!M8 -> 1 | D7: =B7+C7 -> 57 | E7: 144 | F7: =IF(ISERROR(D7/E7*100),0,D7/E7*100) -> 39.58333333 | G7: =IF(I7>0,"гр.5 < гр.4 по строке «"&H7&"»","ОК") -> ОК | H7: =IF(I7>0,INDEX($A$7:$A$11,I7,1),CHAR(151)) -> — | I7: =IF(ISERROR(MATCH(FALSE,K7:O7,0)),0,MATCH(FALSE,K7:O7,0)) -> 0 | J7: графа 5 по всем строкам должна быть больше либо равна графе 4 всем строкам | K7: =IF(OR($E7<>0,$D7<>0),IF($E7>=$D7,TRUE,FALSE),TRUE) -> TRUE | L7: =IF(OR($E8<>0,$D8<>0),IF($E8>=$D8,TRUE,FALSE),TRUE) -> TRUE | M7: =IF(OR($E9<>0,$D9<>0),IF($E9>=$D9,TRUE,FALSE),TRUE) -> TRUE | N7: =IF(OR($E10<>0,$D10<>0),IF($E10>=$D10,TRUE,FALSE),TRUE) -> TRUE | O7: =IF(OR($E11<>0,$D11<>0),IF($E11>=$D11,TRUE,FALSE),TRUE) -> TRUE
A8: Злокачественные новообразования | B8: ='ДВН-124н'!N8 -> 0 | C8: ='профосмотры 124н'!N8 -> 0 | D8: =B8+C8 -> 0 | E8: 26 | F8: 0
A9: Сахарный диабет (всего) | B9: ='ДВН-124н'!P8 -> 11 | C9: ='профосмотры 124н'!P8 -> 0 | D9: =B9+C9 -> 11 | E9: =E10+E11 -> 14 | F9: 78.57142857
A10: в т.ч. сахарный диабет 1 типа | B10: ='ДВН-124н'!Q8 -> 0 | C10: ='профосмотры 124н'!Q8 -> 0 | D10: =B10+C10 -> 0 | F10: 0
A11: в т.ч. сахарный диабет 2 типа | B11: =B9-B10 -> 11 | C11: =C9-C10 -> 0 | D11: =B11+C11 -> 11 | E11: 14 | F11: 78.57142857
A12: ИТОГО | B12: =B7+B8+B9 -> 67 | C12: =C7+C8+C9 -> 1 | D12: =D7+D8+D9 -> 68 | E12: =E7+E8+E9 -> 184 | F12: 36.95652174
A16: просьба не ставить ноли при отсутствии значения

Sheet период. и предвар. осмотры (hidden)
A1: =AND('ДВН и профосмотр_общая '!F2<>0,'ДВН и профосмотр_общая '!F4<>0,'ДВН и профосмотр_общая '!D13<>0,'ДВН и профосмотр_общая '!D14<>0,'ДВН и профосмотр_общая '!D15<>0) -> TRUE | B1: Сведения о числе граждан, прошедших периодические и предварительные осмотры в 2022 году
A2: =AND('ДВН и профосмотр_общая '!$F$2<>0,'ДВН и профосмотр_общая '!$F$4<>0,'ДВН и профосмотр_общая '!$D$13<>0,'ДВН и профосмотр_общая '!$D$14<>0,'ДВН и профосмотр_общая '!$D$15<>0) -> TRUE | C2: (нарастающим итогом)
M3: =L8+M8+N8 -> 50 | N3: =L9+M9+N9 -> 70
F4: Подлежало осмотрам(в т.ч муж.) | G4: Подлежало осмотрам(жен.) | H4: 4 | J4: Осмотрено(в т.ч муж.) | K4: Осмотрено(жен.) | Q4: 5 | R4: 6 | S4: 7 | T4: 8 | U4: 9
A5: Вид осмотров | B5: № стр. | C5: Наименование контингентов | D5: Подлежало осмотрам | H5: Осмотрено | L5: из числа осмотренных (из гр.4) определены группы здоровья | Q5: из числа осмотренных всего (из гр.4): | V5: =IF(W6>0,INDEX(V12:V23,W6,1),"Проверка") -> Проверка
D6: всего | E6: в т.ч. сельские жители (из гр.3) | F6: в т.ч муж. (из гр.3) | G6: жен. (из гр.3) | H6: всего | I6: в т.ч. сельские жители (из гр.4) | J6: в т.ч муж. (из гр.4) | K6: жен. (из гр.4) | L6: I группа | M6: II группа | N6: III группа | O6: III a группа | P6: III б группа | Q6: выявлено подозрений на профессион. заболевание | R6: не имели медицинских противопоказ. к работе | S6: имели временные /постоянные противопоказ. к работе | T6: нуждаются в дополнит.обслед. в центре профпатологии | U6: нуждаются в амбулаторном /стационарном обследовании и лечении
A7: 1 | C7: 2 | D7: 3 | E7: 3.1. | F7: 3.2. | G7: 3.3. | H7: 4 | I7: 4.1. | J7: 4.2 | K7: 4.3 | L7: 4.4 | M7: 4.5 | N7: 4.6 | O7: 4.6.1 | P7: 4.6.2 | Q7: 5 | R7: 6 | S7: 7 | T7: 8 | U7: 9
A8: Периодические осмотры | B8: 1 | C8: всего | D8: =SUM(D10:D11) -> 50 | E8: =SUM(E10:E11) -> 50 | F8: 20 | G8: 30 | H8: 50 | I8: 0 | J8: 20 | K8: 30 | L8: 0 | M8: 0 | N8: 50 | O8: 50 | P8: 0 | Q8: 0 | R8: 50 | S8: 0 | T8: 0 | U8: 0 | V8: =IF(X8>0,"гр.4 ≠ гр.6+гр.7 по строке "&W8,"ОК") -> ОК | W8: =IF(X8>0,INDEX($B$8:$B$19,X8,1),CHAR(151)) -> — | X8: =IF(ISERROR(MATCH(FALSE,Z8:AK8,0)),0,MATCH(FALSE,Z8:AK8,0)) -> 0 | Y8: графа 4 равна сумме граф 6 и 7 | Z8: =$H8=SUM($R8:$S8) -> TRUE | AA8: =$H9=SUM($R9:$S9) -> TRUE | AB8: =$H10=SUM($R10:$S10) -> TRUE | AC8: =$H11=SUM($R11:$S11) -> TRUE | AD8: =$H12=SUM($R12:$S12) -> TRUE | AE8: =$H13=SUM($R13:$S13) -> TRUE | AF8: =$H14=SUM($R14:$S14) -> TRUE | AG8: =$H15=SUM($R15:$S15) -> TRUE | AH8: =$H16=SUM($R16:$S16) -> TRUE | AI8: =$H17=SUM($R17:$S17) -> TRUE | AJ8: =$H18=SUM($R18:$S18) -> TRUE | AK8: =$H19=SUM($R19:$S19) -> TRUE
B9: 2 | C9: из них старше трудоспособного возраста | D9: =F9+G9 -> 70 | E9: 70 | F9: 25 | G9: 45 | H9: =J9+K9 -> 70 | I9: 70 | J9: 25 | K9: 45 | N9: =O9+P9 -> 70 | O9: 70 | R9: 70 | V9: =IF(X9>0,"гр.5 >= гр.4 по строке "&W9,"ОК") -> ОК | W9: — | X9: 0 | Y9: гр. 5 меньше гр.4 | Z9: =IF(OR($Q8<>0,$H8<>0),$Q8<$H8,TRUE) -> TRUE | AA9: =IF(OR($Q9<>0,$H9<>0),$Q9<$H9,TRUE) -> TRUE | AB9: =IF(OR($Q10<>0,$H10<>0),$Q10<$H10,TRUE) -> TRUE | AC9: =IF(OR($Q11<>0,$H11<>0),$Q11<$H11,TRUE) -> TRUE | AD9: =IF(OR($Q12<>0,$H12<>0),$Q12<$H12,TRUE) -> TRUE | AE9: =IF(OR($Q13<>0,$H13<>0),$Q13<$H13,TRUE) -> TRUE | AF9: =IF(OR($Q14<>0,$H14<>0),$Q14<$H14,TRUE) -> TRUE | AG9: =IF(OR($Q15<>0,$H15<>0),$Q15<$H15,TRUE) -> TRUE | AH9: =IF(OR($Q16<>0,$H16<>0),$Q16<$H16,TRUE) -> TRUE | AI9: =IF(OR($Q17<>0,$H17<>0),$Q17<$H17,TRUE) -> TRUE | AJ9: =IF(OR($Q18<>0,$H18<>0),$Q18<$H18,TRUE) -> TRUE | AK9: =IF(OR($Q19<>0,$H19<>0),$Q19<$H19,TRUE) -> TRUE
B10: 3 | C10: из них раб.занят.на тяж.раб.и на раб.с вредн.и опасн.услов.труд. | D10: =F10+G10 -> 0 | H10: 0 | N10: 0 | V10: =IF(X10>0,"гр.8 >= гр.4 по строке "&W10,"ОК") -> ОК | W10: — | X10: 0 | Y10: гр. 8 меньше гр.4 | Z10: =IF(OR($T8<>0,$H8<>0),$T8<$H8,TRUE) -> TRUE | AA10: =IF(OR($T9<>0,$H9<>0),$T9<$H9,TRUE) -> TRUE | AB10: =IF(OR($T10<>0,$H10<>0),$T10<$H10,TRUE) -> TRUE | AC10: =IF(OR($T11<>0,$H11<>0),$T11<$H11,TRUE) -> TRUE | AD10: =IF(OR($T12<>0,$H12<>0),$T12<$H12,TRUE) -> TRUE | AE10: =IF(OR($T13<>0,$H13<>0),$T13<$H13,TRUE) -> TRUE | AF10: =IF(OR($T14<>0,$H14<>0),$T14<$H14,TRUE) -> TRUE | AG10: =IF(OR($T15<>0,$H15<>0),$T15<$H15,TRUE) -> TRUE | AH10: =IF(OR($T16<>0,$H16<>0),$T16<$H16,TRUE) -> TRUE | AI10: =IF(OR($T17<>0,$H17<>0),$T17<$H17,TRUE) -> TRUE | AJ10: =IF(OR($T18<>0,$H18<>0),$T18<$H18,TRUE) -> TRUE | AK10: =IF(OR($T19<>0,$H19<>0),$T19<$H19,TRUE) -> TRUE
B11: 4 | C11: декретированные контингенты | D11: 50 | E11: 50 | F11: 20 | G11: 30 | H11: 50 | J11: 20 | K11: 30 | N11: 50 | O11: 50 | R11: 50 | V11: =IF(X11>0,"гр.8 > гр.5 по строке "&W11,"ОК") -> ОК | W11: — | X11: 0 | Y11: гр. 8 меньше либо равна гр.5 | Z11: =$T8<=$Q8 -> TRUE | AA11: =$T9<=$Q9 -> TRUE | AB11: =$T10<=$Q10 -> TRUE | AC11: =$T11<=$Q11 -> TRUE | AD11: =$T12<=$Q12 -> TRUE | AE11: =$T13<=$Q13 -> TRUE | AF11: =$T14<=$Q14 -> TRUE | AG11: =$T15<=$Q15 -> TRUE | AH11: =$T16<=$Q16 -> TRUE | AI11: =$T17<=$Q17 -> TRUE | AJ11: =$T18<=$Q18 -> TRUE | AK11: =$T19<=$Q19 -> TRUE
A12: Предварительные осмотры | B12: 5 | C12: всего | D12: =SUM(D14:D15) -> 65 | E12: =SUM(E14:E15) -> 65 | F12: 25 | G12: 40 | H12: 65 | I12: 0 | J12: 25 | K12: 40 | L12: 0 | M12: 0 | N12: 65 | O12: 65 | P12: 0 | Q12: 0 | R12: 65 | S12: 0 | T12: 0 | U12: 0 | V12: =IF(X12>0,"гр.9 >= гр.4 по строке "&W12,"ОК") -> ОК | W12: — | X12: 0 | Y12: гр. 9 меньше гр.4 | Z12: =IF(OR($U8<>0,$H8<>0),$U8<$H8,TRUE) -> TRUE | AA12: =IF(OR($U9<>0,$H9<>0),$U9<$H9,TRUE) -> TRUE | AB12: =IF(OR($U10<>0,$H10<>0),$U10<$H10,TRUE) -> TRUE | AC12: =IF(OR($U11<>0,$H11<>0),$U11<$H11,TRUE) -> TRUE | AD12: =IF(OR($U12<>0,$H12<>0),$U12<$H12,TRUE) -> TRUE | AE12: =IF(OR($U13<>0,$H13<>0),$U13<$H13,TRUE) -> TRUE | AF12: =IF(OR($U14<>0,$H14<>0),$U14<$H14,TRUE) -> TRUE | AG12: =IF(OR($U15<>0,$H15<>0),$U15<$H15,TRUE) -> TRUE | AH12: =IF(OR($U16<>0,$H16<>0),$U16<$H16,TRUE) -> TRUE | AI12: =IF(OR($U17<>0,$H17<>0),$U17<$H17,TRUE) -> TRUE | AJ12: =IF(OR($U18<>0,$H18<>0),$U18<$H18,TRUE) -> TRUE | AK12: =IF(OR($U19<>0,$H19<>0),$U19<$H19,TRUE) -> TRUE
B13: 6 | C13: из них старше трудоспособного возраста | D13: 80 | E13: 80 | F13: 30 | G13: 50 | H13: 80 | I13: 80 | J13: 30 | K13: 50 | N13: =O13+P13 -> 80 | O13: 80 | R13: 80 | V13: =IF(X13>0,"гр.3.1 > гр.3 по строке "&W13,"ОК") -> ОК | W13: — | X13: 0 | Y13: гр. 3.1. меньше либо равна гр.3 | Z13: =$E8<=$D8 -> TRUE | AA13: =$E9<=$D9 -> TRUE | AB13: =$E10<=$D10 -> TRUE | AC13: =$E11<=$D11 -> TRUE | AD13: =$E12<=$D12 -> TRUE | AE13: =$E13<=$D13 -> TRUE | AF13: =$E14<=$D14 -> TRUE | AG13: =$E15<=$D15 -> TRUE | AH13: =$E16<=$D16 -> TRUE | AI13: =$E17<=$D17 -> TRUE | AJ13: =$E18<=$D18 -> TRUE | AK13: =$E19<=$D19 -> TRUE
B14: 7 | C14: из них раб.занят.на тяж.раб.и на раб.с вредн.и опасн.услов.труд. | D14: 0 | H14: 0 | N14: 0 | V14: =IF(X14>0,"гр.4 ≠ гр.4.2+гр.4.3 по строке "&W14,"ОК") -> ОК | W14: — | X14: 0 | Y14: гр.4 = сумме граф 4.2+4.3 | Z14: =$H8=SUM($J8:$K8) -> TRUE | AA14: =$H9=SUM($J9:$K9) -> TRUE | AB14: =$H10=SUM($J10:$K10) -> TRUE | AC14: =$H11=SUM($J11:$K11) -> TRUE | AD14: =$H12=SUM($J12:$K12) -> TRUE | AE14: =$H13=SUM($J13:$K13) -> TRUE | AF14: =$H14=SUM($J14:$K14) -> TRUE | AG14: =$H15=SUM($J15:$K15) -> TRUE | AH14: =$H16=SUM($J16:$K16) -> TRUE | AI14: =$H17=SUM($J17:$K17) -> TRUE | AJ14: =$H18=SUM($J18:$K18) -> TRUE | AK14: =$H19=SUM($J19:$K19) -> TRUE
B15: 8 | C15: декретированные контингенты | D15: 65 | E15: 65 | F15: 25 | G15: 40 | H15: 65 | J15: 25 | K15: 40 | N15: 65 | O15: 65 | R15: 65 | V15: =IF(X15>0,"гр.4 ≠ гр.4.4+гр.4.5+гр.4.6 по строке "&W15,"ОК") -> ОК | W15: — | X15: 0 | Y15: гр.4 = сумме граф 4.4+4.5+4.6 | Z15: =$H8=SUM($L8:$N8) -> TRUE | AA15: =$H9=SUM($L9:$N9) -> TRUE | AB15: =$H10=SUM($L10:$N10) -> TRUE | AC15: =$H11=SUM($L11:$N11) -> TRUE | AD15: =$H12=SUM($L12:$N12) -> TRUE | AE15: =$H13=SUM($L13:$N13) -> TRUE | AF15: =$H14=SUM($L14:$N14) -> TRUE | AG15: =$H15=SUM($L15:$N15) -> TRUE | AH15: =$H16=SUM($L16:$N16) -> TRUE | AI15: =$H17=SUM($L17:$N17) -> TRUE | AJ15: =$H18=SUM($L18:$N18) -> TRUE | AK15: =$H19=SUM($L19:$N19) -> TRUE
A16: Всего: периодические и предварительные | B16: 9 | C16: всего | D16: =SUM(D18:D19) -> 115 | E16: =SUM(E18:E19) -> 115 | F16: 45 | G16: 70 | H16: 115 | I16: 0 | J16: 45 | K16: 70 | L16: 0 | M16: 0 | N16: 115 | O16: 115 | P16: 0 | Q16: 0 | R16: 115 | S16: 0 | T16: 0 | U16: 0 | V16: =IF(X16>0,"стр.1 < стр.3+стр.4 по графе "&W16,"ОК") -> ОК | W16: =IF(X16>0,INDEX($D$7:$U$7,1,X16),CHAR(151)) -> — | X16: =IF(ISERROR(MATCH(FALSE,Z16:AQ16,0)),0,MATCH(FALSE,Z16:AQ16,0)) -> 0 | Y16: стр.1 равна или больше стр.3 +стр. 4 по всем графам | Z16: TRUE | AA16: =E8>=SUM(E10:E11) -> TRUE | AB16: TRUE | AC16: TRUE | AD16: TRUE | AE16: TRUE | AF16: TRUE | AG16: TRUE | AH16: TRUE | AI16: TRUE | AJ16: TRUE | AK16: TRUE | AL16: TRUE | AM16: TRUE | AN16: TRUE | AO16: TRUE | AP16: TRUE | AQ16: TRUE
B17: 10 | C17: из них старше трудоспособного возраста | D17: =D9+D13 -> 150 | E17: 150 | F17: 55 | G17: =G9+G13 -> 95 | H17: 150 | I17: =I9+I13 -> 150 | J17: 55 | K17: 95 | L17: 0 | M17: 0 | N17: 150 | O17: =O9+O13 -> 150 | P17: 0 | Q17: 0 | R17: 150 | S17: 0 | T17: 0 | U17: 0 | V17: =IF(X17>0,"стр.5 < стр.7+стр.8 по графе "&W17,"ОК") -> ОК | W17: =IF(X17>0,INDEX($D$7:$U$7,1,X17),CHAR(151)) -> — | X17: =IF(ISERROR(MATCH(FALSE,Z17:AQ17,0)),0,MATCH(FALSE,Z17:AQ17,0)) -> 0 | Y17: стр.5 равна или больше стр.7 +стр. 8 по всем графам | Z17: TRUE | AA17: =E12>=SUM(E14:E15) -> TRUE | AB17: =F12>=SUM(F14:F15) -> TRUE | AC17: TRUE | AD17: TRUE | AE17: TRUE | AF17: TRUE | AG17: TRUE | AH17: TRUE | AI17: TRUE | AJ17: TRUE | AK17: TRUE | AL17: TRUE | AM17: TRUE | AN17: TRUE | AO17: TRUE | AP17: TRUE | AQ17: TRUE
B18: 11 | C18: из них раб.занят.на тяж.раб.и на раб.с вредн.и опасн.услов.труд. | D18: 0 | E18: 0 | F18: 0 | G18: =G10+G14 -> 0 | H18: 0 | I18: =I10+I14 -> 0 | J18: 0 | K18: 0 | L18: 0 | M18: 0 | N18: 0 | O18: =O10+O14 -> 0 | P18: 0 | Q18: 0 | R18: 0 | S18: 0 | T18: 0 | U18: 0
B19: 12 | C19: декретированные контингенты | D19: 115 | E19: 115 | F19: 45 | G19: =G11+G15 -> 70 | H19: 115 | I19: =I11+I15 -> 0 | J19: 45 | K19: 70 | L19: 0 | M19: 0 | N19: 115 | O19: =O11+O15 -> 115 | P19: 0 | Q19: 0 | R19: 115 | S19: 0 | T19: 0 | U19: 0
C23: таб.2516 | D23: подлежало осмотрам | E23: осмотрено | F23: выявлено подозрений на прфессиональное заболевание | G23: не имели медицинских противопоказаний к работе | H23: имели временные /постоянные противопоказания к работе | I23: нуждаются в дополнит.обследовании в центре профпатологии | J23: нуждаются в амбулаторном /стационарном обследовании и лечении
D24: 3 | E24: 4 | F24: 5 | G24: 6 | H24: 7 | I24: 8 | J24: 9
C25: всего | D25: =D16 -> 115 | E25: =H16 -> 115 | F25: =Q16 -> 0 | G25: =R16 -> 115 | H25: =S16 -> 0 | I25: =T16 -> 0 | J25: =U16 -> 0
C26: из них раб.занят.на тяж.раб.и на раб.с вредн.и опасн.услов.труд. | D26: =D18 -> 0 | E26: =H18 -> 0 | F26: =Q18 -> 0 | G26: 0 | H26: 0 | I26: 0 | J26: 0
C27: декретированные контингенты | D27: =D19 -> 115 | E27: =H19 -> 115 | F27: 0 | G27: 115 | H27: 0 | I27: 0 | J27: 0
A28: просьба не ставить ноли при отсутствии значения

Sheet Таб 2510 ф.№30 (hidden)
F1: =IF('ДВН и профосмотр_общая '!F4<>"",'ДВН и профосмотр_общая '!F4,"") -> ГБУЗ "Кумылженская ЦРБ"
B3: таб.2510 | C3: подлежало осмотрам | D3: из них: сельских жителей | E3: осмотрено | F3: из них: сельских жителей | G3: из числа осмотренных (гр 5): определены группы здоровья - I | H3: из числа осмотренных (гр 5): определены группы здоровья - II | I3: из числа осмотренных (гр 5): определены группы здоровья - III | J3: из них: III А | K3: из них: III Б | L3: из числа осмотренных (гр 5): определены группы здоровья - IV | M3: из числа осмотренных (гр 5): определены группы здоровья -V
C4: 3 | D4: 4 | E4: 5 | F4: 6 | G4: 7 | H4: 8 | I4: 9 | J4: 10 | K4: 11 | L4: 12 | M4: 13
A5: 001 | B5: Дети в возрасте 0-14 лет вкл.
A6: 002 | B6: из них дети до 1 года
A7: 003 | B7: Дети 15-17 лет вкл.
A8: 004 | B8: из общего числа детей 15-17 лет(стр03)-юношей
A9: 005 | B9: Школьники(из суммы стр1+3)
A10: 006 | B10: Континг. взр.населения (18л.и старше)-всего | C10: =C12+C13+C15 -> 5973 | D10: =D12+D13+D15 -> 5973 | E10: 1581 | F10: 1466 | G10: 179 | H10: 382 | I10: 1020 | J10: 987 | K10: 33 | L10: х | M10: х
A11: 061 | B11: из них старше трудоспособного возраста | C11: =C14+C16 -> 2886 | D11: =D14+D16 -> 2886 | E11: 883 | F11: 883 | G11: 5 | H11: 29 | I11: 849 | J11: 834 | K11: 15 | L11: х | M11: х
B12: профосмотры взрослых | C12: ='ДВН и профосмотр_общая '!AD11 -> 1564 | D12: ='ДВН и профосмотр_общая '!AE11 -> 1564 | E12: ='ДВН и профосмотр_общая '!AF11 -> 391 | F12: ='ДВН и профосмотр_общая '!AH11 -> 391 | G12: ='ДВН и профосмотр_общая '!AI11 -> 144 | H12: ='ДВН и профосмотр_общая '!AJ11 -> 187 | I12: ='ДВН и профосмотр_общая '!AK11 -> 60 | J12: ='ДВН и профосмотр_общая '!AL11 -> 58 | K12: ='ДВН и профосмотр_общая '!AM11 -> 2 | L12: х | M12: х
B13: предварительные и периодич. | C13: ='период. и предвар. осмотры'!D16 -> 115 | D13: ='период. и предвар. осмотры'!E16 -> 115 | E13: ='период. и предвар. осмотры'!H16 -> 115 | F13: ='период. и предвар. осмотры'!I16 -> 0 | G13: ='период. и предвар. осмотры'!L16 -> 0 | H13: ='период. и предвар. осмотры'!M16 -> 0 | I13: ='период. и предвар. осмотры'!N16 -> 115 | J13: ='период. и предвар. осмотры'!O16 -> 115 | K13: ='период. и предвар. осмотры'!P16 -> 0 | L13: х | M13: х
B14: из них старше трудоспособного возраста | C14: ='период. и предвар. осмотры'!D17 -> 150 | D14: ='период. и предвар. осмотры'!E17 -> 150 | E14: ='период. и предвар. осмотры'!H17 -> 150 | F14: ='период. и предвар. осмотры'!I17 -> 150 | G14: ='период. и предвар. осмотры'!L17 -> 0 | H14: ='период. и предвар. осмотры'!M17 -> 0 | I14: ='период. и предвар. осмотры'!N17 -> 150 | J14: ='период. и предвар. осмотры'!O17 -> 150 | K14: ='период. и предвар. осмотры'!P17 -> 0 | L14: х | M14: х
A15: 062 | B15: диспансеризация определ.групп взрослого населения | C15: ='ДВН и профосмотр_общая '!$A$11 -> 4294 | D15: ='ДВН и профосмотр_общая '!B11 -> 4294 | E15: ='ДВН и профосмотр_общая '!G11 -> 1075 | F15: ='ДВН и профосмотр_общая '!H11 -> 1075 | G15: ='ДВН и профосмотр_общая '!R11 -> 35 | H15: ='ДВН и профосмотр_общая '!S11 -> 195 | I15: ='ДВН и профосмотр_общая '!T11 -> 845 | J15: ='ДВН и профосмотр_общая '!U11 -> 814 | K15: ='ДВН и профосмотр_общая '!V11 -> 31 | L15: х | M15: х
A16: 621 | B16: из них старше трудоспособного возраста | C16: ='ДВН и профосмотр_общая '!C11 -> 2736 | D16: ='ДВН и профосмотр_общая '!D11 -> 2736 | E16: ='ДВН и профосмотр_общая '!I11 -> 733 | F16: ='ДВН и профосмотр_общая '!J11 -> 733 | G16: ='ДВН и профосмотр_общая '!W11 -> 5 | H16: ='ДВН и профосмотр_общая '!X11 -> 29 | I16: ='ДВН и профосмотр_общая '!Y11 -> 699 | J16: ='ДВН и профосмотр_общая '!Z11 -> 684 | K16: ='ДВН и профосмотр_общая '!AA11 -> 15 | L16: х | M16: х
A17: 007 | B17: всего (сумма стр 1,3,6) | C17: =C10 -> 5973 | D17: =D10 -> 5973 | E17: 1581 | F17: 1466 | G17: 179 | H17: 382 | I17: 1020 | J17: 987 | K17: 33

Sheet таб. 2516 ф. 30 (hidden)
D1: =IF('ДВН и профосмотр_общая '!F4<>"",'ДВН и профосмотр_общая '!F4,"") -> ГБУЗ "Кумылженская ЦРБ"
A3: таб.2516 | B3: подлежало осмотрам | C3: осмотрено | D3: выявлено подозрений на прфессиональное заболевание | E3: не имели медицинских противопоказаний к работе | F3: имели временные /постоянные противопоказания к работе | G3: нуждаются в дополнит.обследовании в центре профпатологии | H3: нуждаются в амбулаторном /стационарном обследовании и лечении
B4: 3 | C4: 4 | D4: 5 | E4: 6 | F4: 7 | G4: 8 | H4: 9
A5: всего | B5: =SUM(B6:B7) -> 115 | C5: =SUM(C6:C7) -> 115 | D5: 0 | E5: 115 | F5: 0 | G5: 0 | H5: 0
A6: из них раб.занят.на тяж.раб.и на раб.с вредн.и опасн.услов.труд. | B6: ='период. и предвар. осмотры'!D26 -> 0 | C6: ='период. и предвар. осмотры'!E26 -> 0 | D6: ='период. и предвар. осмотры'!F26 -> 0 | E6: ='период. и предвар. осмотры'!G26 -> 0 | F6: ='период. и предвар. осмотры'!H26 -> 0 | G6: ='период. и предвар. осмотры'!I26 -> 0 | H6: ='период. и предвар. осмотры'!J26 -> 0
A7: декретированные контингенты | B7: ='период. и предвар. осмотры'!D27 -> 115 | C7: ='период. и предвар. осмотры'!E27 -> 115 | D7: ='период. и предвар. осмотры'!F27 -> 0 | E7: ='период. и предвар. осмотры'!G27 -> 115 | F7: ='период. и предвар. осмотры'!H27 -> 0 | G7: ='период. и предвар. осмотры'!I27 -> 0 | H7: ='период. и предвар. осмотры'!J27 -> 0

Sheet Старше труд._период и предвар. (hidden)
A1: =AND('ДВН и профосмотр_общая '!F2<>0,'ДВН и профосмотр_общая '!F4<>0,'ДВН и профосмотр_общая '!D13<>0,'ДВН и профосмотр_общая '!D14<>0,'ДВН и профосмотр_общая '!D15<>0) -> TRUE | B1: Сведения о числе граждан, прошедших периодические и предварительные осмотры в 2022 году (старше трудоспособн.)
A2: =AND('ДВН и профосмотр_общая '!$F$2<>0,'ДВН и профосмотр_общая '!$F$4<>0,'ДВН и профосмотр_общая '!$D$13<>0,'ДВН и профосмотр_общая '!$D$14<>0,'ДВН и профосмотр_общая '!$D$15<>0) -> TRUE | C2: (нарастающим итогом)
A3: Национальный проект "Здравоохранение" Развитие системы первичной медико -санитарной помощи
A4: заполняется ЕЖЕНЕДЕЛЬНО | U4: Проверка
A5: Контингенты | B5: Осмотрено (завершили) | E5: из них сельских жителей | H5: Число ГРАЖДАН, у которых в ходе диспансериз. впервые выявлены неинфекцион. заболевания ВСЕГО | I5: Число впервые выявлен. заболеваний в ходе диспансериз. ВСЕГО | J5: число ГРАЖДАН, у которых впервые выявлены (из гр. 8):* | R5: Из числа ГРАЖДАН, у которых выявлены неинфекц. заболевания (из гр. 8), взяты на диспансерное наблюдение | S5: Из числа ГРАЖДАН, у которых впервые выявлены неинфекц. заболевания (из гр. 8), было начато лечение | T5: из них сельских жителей (из гр. 18)
B6: ВСЕГО | C6: в вечернее время (после 18:00) (из гр.2) | D6: в субботу (из гр.2) | E6: всего (из гр.2) | F6: в вечернее время (после 18:00) (из гр. 5) | G6: в субботу (из гр. 5) | J6: БОЛЕЗНИ СИСТЕМЫ КРОВОБРАЩЕНИЯ | K6: ЗЛОКАЧЕСТВЕН. НОВООБРАЗОВАНИЯ | L6: в том числе в I и П стадиях (из гр. 11) | M6: САХАРНЫЙ ДИАБЕТ | N6: в т.ч. сахарный диабет 1 типа | O6: ГЛАУКОМА | P6: ХРОНИЧЕСКИЕ БОЛЕЗНИ ОРГАНОВ ДЫХАНИЯ | Q6: БОЛЕЗНИ ОРГАНОВ ПИЩЕВАРЕНИЯ
A7: 1 | B7: 2 | C7: 3 | D7: 4 | E7: 5 | F7: 6 | G7: 7 | H7: 8 | I7: 9 | J7: 10 | K7: 11 | L7: 12 | M7: 13 | N7: 14 | O7: 15 | P7: 16 | Q7: 17 | R7: 18 | S7: 19 | T7: 20
A8: Всего в том числе: | B8: ='период. и предвар. осмотры'!$H$16 -> 115 | E8: ='период. и предвар. осмотры'!$I$16 -> 0 | U8: =IF(X8>0,"гр.2 < гр.3+гр.4 по строке "&W8,"ОК") -> ОК | V8: гр.2 больше либо равна гр 3+ гр.4 | W8: =IF(X8>0,INDEX($A$8:$A$9,X8,1),CHAR(151)) -> — | X8: =IF(ISERROR(MATCH(FALSE,Y8:Z8,0)),0,MATCH(FALSE,Y8:Z8,0)) -> 0 | Y8: =IF(OR($B8<>0,SUM($C8:$D8)<>0),$B8>=SUM($C8:$D8),TRUE) -> TRUE | Z8: =IF(OR($B9<>0,SUM($C9:$D9)<>0),$B9>=SUM($C9:$D9),TRUE) -> TRUE
A9: лица старше трудоспособного возраста (из табл.период и предварит.осмотры) | B9: ='период. и предвар. осмотры'!$H$17 -> 150 | E9: ='период. и предвар. осмотры'!$I$17 -> 150 | U9: =IF(X9>0,"гр.2 < гр.5 по строке "&W9,"ОК") -> ОК | V9: гр.2 больше либо равна гр.5 | W9: =IF(X9>0,INDEX($A$8:$A$9,X9,1),CHAR(151)) -> — | X9: =IF(ISERROR(MATCH(FALSE,Y9:Z9,0)),0,MATCH(FALSE,Y9:Z9,0)) -> 0 | Y9: =IF(OR($B8<>0,$E8<>0),$B8>=$E8,TRUE) -> TRUE | Z9: =IF(OR($B9<>0,$E9<>0),$B9>=$E9,TRUE) -> TRUE
U10: =IF(X10>0,"гр.5 < гр.6+гр.7 по строке "&W10,"ОК") -> ОК | V10: гр.5 больше либо равна гр 6+ гр7 | W10: =IF(X10>0,INDEX($A$8:$A$9,X10,1),CHAR(151)) -> — | X10: =IF(ISERROR(MATCH(FALSE,Y10:Z10,0)),0,MATCH(FALSE,Y10:Z10,0)) -> 0 | Y10: =IF(OR($E8>0,SUM($F8:$G8)<>0),$E8>=SUM($F8:$G8),TRUE) -> TRUE | Z10: =IF(OR($E9>0,SUM($F9:$G9)<>0),$E9>=SUM($F9:$G9),TRUE) -> TRUE
A11: просьба не ставить ноли при отсутствии значения | U11: =IF(X11>0,"гр.9 < гр.10+гр.11+гр.13+гр.15+гр.16+гр.17 по строке "&W11,"ОК") -> ОК | V11: гр.9 больше либо равна сумме граф 10+11+13+15+16+17 по всем строкам | W11: =IF(X11>0,INDEX($A$8:$A$9,X11,1),CHAR(151)) -> — | X11: =IF(ISERROR(MATCH(FALSE,Y11:Z11,0)),0,MATCH(FALSE,Y11:Z11,0)) -> 0 | Y11: =IF(OR($I8>0,SUM($J8:$K8,$M8,$O8:$Q8)<>0),$I8>=SUM($J8:$K8,$M8,$O8:$Q8),TRUE) -> TRUE | Z11: =IF(OR($I9>0,SUM($J9:$K9,$M9,$O9:$Q9)<>0),$I9>=SUM($J9:$K9,$M9,$O9:$Q9),TRUE) -> TRUE
U12: =IF(X12>0,"гр.18 > гр.8 по строке "&W12,"ОК") -> ОК | V12: гр.18 меньше либо равна гр.8 по всем строкам | W12: =IF(X12>0,INDEX($A$8:$A$9,X12,1),CHAR(151)) -> — | X12: =IF(ISERROR(MATCH(FALSE,Y12:Z12,0)),0,MATCH(FALSE,Y12:Z12,0)) -> 0 | Y12: =IF(OR($R8<>0,$H8<>0),$R8<=$H8,TRUE) -> TRUE | Z12: =IF(OR($R9<>0,$H9<>0),$R9<=$H9,TRUE) -> TRUE
U13: =IF(OR(H9<>0,I9<>0),IF(H9>I9,"гр.8 > гр.9","ОК"),"ОК") -> ОК | V13: гр.8 меньше либо равна гр.9
U14: =IF(OR(C9<>0,F9<>0),IF(C9<F9,"гр.3 < гр.6","ОК"),"ОК") -> ОК | V14: гр.3 больше либо равна гр.6
U15: =IF(OR(D9<>0,G9<>0),IF(D9<G9,"гр.4 < гр.7","ОК"),"ОК") -> ОК | V15: гр.4 больше либо равна гр.7
U16: =IF(X16>0,"гр.19 > гр.8 по строке "&W16,"ОК") -> ОК | V16: гр.19 меньше либо равна гр.8 по всем строкам | W16: =IF(X16>0,INDEX($A$8:$A$9,X16,1),CHAR(151)) -> — | X16: =IF(ISERROR(MATCH(FALSE,Y16:Z16,0)),0,MATCH(FALSE,Y16:Z16,0)) -> 0 | Y16: =IF(OR($S8<>0,$H8<>0),$S8<=$H8,TRUE) -> TRUE | Z16: =IF(OR($S9<>0,$H9<>0),$S9<=$H9,TRUE) -> TRUE
U17: =IF(X17>0,"гр.20 > гр.8 по строке "&W17,"ОК") -> ОК | V17: гр.20 меньше либо равна гр.18 по всем строкам | W17: =IF(X17>0,INDEX($A$8:$A$9,X17,1),CHAR(151)) -> — | X17: =IF(ISERROR(MATCH(FALSE,Y17:Z17,0)),0,MATCH(FALSE,Y17:Z17,0)) -> 0 | Y17: =IF(OR($T8<>0,$R8<>0),$T8<=$R8,TRUE) -> TRUE | Z17: =IF(OR($T9<>0,$R9<>0),$T9<=$R9,TRUE) -> TRUE
U18: =IF(OR(K9<>0,L9<>0),IF(K9<L9,"гр.11 < гр.12","ОК"),"ОК") -> ОК | V18: гр.11 больше либо равна гр.12 по всем строкам
U19: =IF(OR(M9<>0,N9<>0),IF(M9<N9,"гр.13 < гр.14","ОК"),"ОК") -> ОК | V19: гр. 13 больше либо равна гр.14 по всем строкам
V20: СТРОКА 9 может быть меньше или равна строке 8 по всем графам
V21: число заболеваний м.б. больше числа граждан: гр.9 м.б. больше или равна гр. 8 по всем строкам
V22: данные гр.20 не м.б. больше данных гр.5 по соотв. строкам

Sheet Включите макросы
I1: 2003
A3: Сервис - Параметры - Безопасность- Безопасность макросов - Низкая
I7: 2007
I28: 2010
